Workbook

Sheet PI vs x
A1: Measurement | B1: Hall
A2: Type | B2: Off-axis
A4: PS type | B4: SXR
A5: PS serial no | B5: 16334
A7: Measurement date | B7: ='DF raw data'!B2 -> 28. feb 2017
C11: Nominal gap [mm] | D11: Encoder [counts] | E11: Encoder [mm] | F11: PI [T^2mm^3] | G11: x [mm] | H11: Encoder offset
C12: 10 | D12: =' 10 x=-2'!B3 -> 390660 | E12: =(D12-$H$12)*0.00005+10 -> 9.99945 | F12: =' 10 x=-2'!Q3 -> 4517.399717 | G12: -2 | H12: 390671
C13: 10 | D13: ='10 x=-1'!B3 -> 390663 | E13: =(D13-$H$12)*0.00005+10 -> 9.9996 | F13: ='10 x=-1'!Q3 -> 4518.849791 | G13: -1
C14: 10 | D14: ='10 x=0'!B3 -> 390664 | E14: 9.99965 | F14: ='10 x=0'!Q3 -> 4519.409356 | G14: 0
C15: 10 | D15: ='10 x=1'!B3 -> 390665 | E15: 9.9997 | F15: ='10 x=1'!Q3 -> 4517.518246 | G15: 1
C16: 10 | D16: ='10 x=2'!B3 -> 390666 | E16: 9.99975 | F16: ='10 x=2'!Q3 -> 4514.583678 | G16: 2
C17: 30 | D17: ='30 x=-2'!B3 -> 791774 | E17: 30.05515 | F17: ='30 x=-2'!Q3 -> 834.931309 | G17: -2
C18: 30 | D18: ='30 x=-1'!B3 -> 791774 | E18: 30.05515 | F18: ='30 x=-1'!Q3 -> 836.0222839 | G18: -1
C19: 30 | D19: ='30 x=0'!B3 -> 791774 | E19: 30.05515 | F19: ='30 x=0'!Q3 -> 836.1971217 | G19: 0
C20: 30 | D20: ='30 x=1'!B3 -> 791774 | E20: 30.05515 | F20: ='30 x=1'!Q3 -> 835.6265024 | G20: 1
C21: 30 | D21: ='30 x=2'!B3 -> 791774 | E21: 30.05515 | F21: ='30 x=2'!Q3 -> 834.4727519 | G21: 2
A41: Measuring series at 10 mm gap:
A42: Reference magnet
A43: Tref | B43: 21.25 | C43: degC
A44: Hall ref field | B44: 0.50517 | C44: T
A45: NMR ref field | B45: 0.50634 | C45: T
A47: Measuring series at larger gaps:
A48: Reference magnet
A49: Tref | B49: 21.27 | C49: degC
A50: Hall ref field | B50: 0.50513 | C50: T
A51: NMR ref field | B51: 0.50633 | C51: T
A53: Offset from Faro | B53: -1.119

Sheet 10 x=-2
A1: dz | B1: ='DF raw data'!B7 -> 0.50032 | C1: mm | F1: T_coeff | G1: -0.0008 | H1: /degC | L1: Hallref | M1: ='PI vs x'!B44 -> 0.50517 | N1: T | P1: IBy total | Q1: =P1203*1000 -> -3.439579428 | R1: muTm
A2: Tref | B2: ='DF raw data'!B8 -> 21.08 | C2: degC | F2: Tcorr | G2: 20 | H2: degC | L2: NMRref | M2: ='PI vs x'!B45 -> 0.50634 | N2: T | P2: JBy total | Q2: =Q1203 -> -5.556460514 | R2: muTm^2
A3: Encoder | B3: ='DF raw data'!B9 -> 390660 | P3: PI total | Q3: =R1203 -> 4517.399717 | R3: T^2mm^3
J4: SXR-rotation
A5: z [mm] | B5: Bx | C5: By | D5: Bz | F5: Bx_corr | G5: By_corr | H5: Bz_corr | J5: Bx_rot | K5: By_rot | L5: Bz_rot | N5: Ix | O5: Jx | P5: Iy | Q5: Jy | R5: PI
A6: ='PI vs x'!B53 -> -1.119 | B6: ='DF raw data'!A11 -> -4.5666684e-06 | C6: ='DF raw data'!B11 -> -4.0952159e-06 | D6: ='DF raw data'!C11 -> -5.6890894e-07 | F6: =(1-$G$1*($B$2-$G$2))*B6 -> -4.570614001e-06 | G6: =(1-$G$1*($B$2-$G$2))*C6*$M$2/$M$1 -> -4.108247094e-06 | H6: =(1-$G$1*($B$2-$G$2))*D6 -> -5.694004773e-07 | J6: =-CELL("contents", INDEX($F$6:$F$1203,1204-CELL("row",F6))) -> -6.050980434e-06 | K6: =CELL("contents", INDEX($G$6:$G$1203,1204-CELL("row",G6))) -> -3.786327177e-06 | L6: =-CELL("contents", INDEX($H$6:$H$1203,1204-CELL("row",H6))) -> -5.726789475e-06 | N6: =J6*$B$1 -> -3.027426531e-06 | O6: =N6*$B$1 -> -1.514682042e-06 | P6: =K6*$B$1 -> -1.894375213e-06 | Q6: =P6*$B$1 -> -9.477938068e-07 | R6: =(N6^2+P6^2)*$B$1 -> 6.381065694e-12
A7: =A6+$B$1 -> -0.61868 | B7: ='DF raw data'!A12 -> -4.3917853e-06 | C7: ='DF raw data'!B12 -> -7.4515715e-06 | D7: ='DF raw data'!C12 -> 7.4412037e-06 | F7: =(1-$G$1*($B$2-$G$2))*B7 -> -4.395579802e-06 | G7: =(1-$G$1*($B$2-$G$2))*C7*$M$2/$M$1 -> -7.475282796e-06 | H7: =(1-$G$1*($B$2-$G$2))*D7 -> 7.4476329e-06 | J7: =-CELL("contents", INDEX($F$6:$F$1203,1204-CELL("row",F7))) -> -6.956751445e-06 | K7: =CELL("contents", INDEX($G$6:$G$1203,1204-CELL("row",G7))) -> 8.379052718e-06 | L7: =-CELL("contents", INDEX($H$6:$H$1203,1204-CELL("row",H7))) -> -4.943970103e-06 | N7: =J7*$B$1+N6 -> -6.508028413e-06 | O7: =N7*$B$1+O6 -> -4.770778818e-06 | P7: =K7*$B$1+P6 -> 2.297832442e-06 | Q7: =P7*$B$1+Q6 -> 2.018577208e-07 | R7: =(N7^2+P7^2)*$B$1+R6 -> 3.021354261e-11
A8: =A7+$B$1 -> -0.11836 | B8: ='DF raw data'!A13 -> -4.1497524e-06 | C8: ='DF raw data'!B13 -> -1.3792568e-05 | D8: ='DF raw data'!C13 -> 7.9682468e-06 | F8: -4.153337786e-06 | G8: -1.383645668e-05 | H8: 7.975131365e-06 | J8: -1.468453048e-05 | K8: 5.394427808e-06 | L8: -3.983298299e-06 | N8: =J8*$B$1+N7 -> -1.38549927e-05 | O8: =N8*$B$1+O7 -> -1.170270877e-05 | P8: =K8*$B$1+P7 -> 4.996772563e-06 | Q8: =P8*$B$1+Q7 -> 2.70184297e-06 | R8: =(N8^2+P8^2)*$B$1+R7 -> 1.387472392e-10
A9: 0.38196 | B9: ='DF raw data'!A14 -> -4.6661926e-06 | C9: ='DF raw data'!B14 -> 9.0533398e-08 | D9: ='DF raw data'!C14 -> 6.1647643e-06 | F9: -4.67022419e-06 | G9: 9.082148008e-08 | H9: 6.170090656e-06 | J9: -1.774128924e-05 | K9: 1.573898443e-06 | L9: -4.216239086e-06 | N9: -2.273131454e-05 | O9: -2.307564006e-05 | P9: 5.784225432e-06 | Q9: 5.595806638e-06 | R9: 4.140082558e-10
A10: 0.88228 | B10: ='DF raw data'!A15 -> -5.2031255e-06 | C10: ='DF raw data'!B15 -> 1.3131706e-05 | D10: ='DF raw data'!C15 -> -2.8611666e-06 | F10: -5.207621e-06 | G10: 1.317349179e-05 | H10: -2.863638648e-06 | J10: -1.495777136e-05 | K10: 5.956605312e-06 | L10: -4.703370204e-06 | N10: -3.02149867e-05 | O10: -3.81928022e-05 | P10: 8.764434202e-06 | Q10: 9.980828358e-06 | R10: 9.092053434e-10
A11: 1.3826 | B11: ='DF raw data'!A16 -> -4.928851e-06 | C11: ='DF raw data'!B16 -> 4.7742274e-06 | D11: ='DF raw data'!C16 -> -7.2076127e-06 | F11: =(1-$G$1*($B$2-$G$2))*B11 -> -4.933109527e-06 | G11: 4.789419245e-06 | H11: =(1-$G$1*($B$2-$G$2))*D11 -> -7.213840077e-06 | J11: -1.204070619e-05 | K11: 1.914100249e-05 | L11: -4.064433439e-06 | N11: -3.623919282e-05 | O11: -5.632399516e-05 | P11: 1.834106057e-05 | Q11: 1.915722778e-05 | R11: 1.734570039e-09
A12: 1.88292 | B12: ='DF raw data'!A17 -> -5.0436602e-06 | C12: ='DF raw data'!B17 -> 7.0296796e-06 | D12: ='DF raw data'!C17 -> -1.207338e-05 | F12: -5.048017922e-06 | G12: 7.052048414e-06 | H12: -1.20838114e-05 | J12: -7.748215679e-06 | K12: 1.146888685e-05 | L12: -3.209206661e-06 | N12: -4.011578009e-05 | O12: -7.639472225e-05 | P12: 2.407917403e-05 | Q12: 3.120452013e-05 | R12: 2.829811762e-09
A13: 2.38324 | B13: ='DF raw data'!A18 -> -4.7236636e-06 | C13: ='DF raw data'!B18 -> -1.6321478e-06 | D13: ='DF raw data'!C18 -> -1.1517188e-05 | F13: -4.727744845e-06 | G13: -1.637341381e-06 | H13: -1.152713885e-05 | J13: -7.443106993e-06 | K13: 6.763729979e-06 | L13: -3.13160347e-06 | N13: -4.383971538e-05 | O13: -9.832860865e-05 | P13: 2.746320342e-05 | Q13: 4.494491007e-05 | R13: 4.168742223e-09
A14: 2.88356 | B14: ='DF raw data'!A19 -> -4.9734399e-06 | C14: ='DF raw data'!B19 -> 6.2918248e-06 | D14: ='DF raw data'!C19 -> -4.5553661e-06 | F14: -4.977736952e-06 | G14: 6.311845721e-06 | H14: -4.559301936e-06 | J14: -7.120696571e-06 | K14: 1.110079628e-05 | L14: -3.069256548e-06 | N14: -4.740234229e-05 | O14: -0.0001220449486 | P14: 3.301715381e-05 | Q14: 6.146405246e-05 | R14: 5.83836735e-09
A15: 3.38388 | B15: ='DF raw data'!A20 -> -4.3353148e-06 | C15: ='DF raw data'!B20 -> -1.1100005e-05 | D15: ='DF raw data'!C20 -> -4.3265518e-06 | F15: -4.339060512e-06 | G15: -1.113532581e-05 | H15: -4.330289941e-06 | J15: -8.919010273e-06 | K15: 1.012822934e-05 | L15: -2.611767719e-06 | N15: -5.186470151e-05 | O15: -0.000147993896 | P15: 3.808450951e-05 | Q15: 8.051849426e-05 | R15: 7.909880835e-09
A16: 3.8842 | B16: ='DF raw data'!A21 -> -4.3186274e-06 | C16: ='DF raw data'!B21 -> -1.0817138e-05 | D16: ='DF raw data'!C21 -> -4.1916243e-07 | F16: -4.322358694e-06 | G16: -1.085155871e-05 | H16: -4.195245863e-07 | J16: -9.697580477e-06 | K16: 1.478327495e-06 | L16: -2.789418077e-06 | N16: -5.671659498e-05 | O16: -0.0001763703428 | P16: 3.882414633e-05 | Q16: 9.994299115e-05 | R16: 1.027343578e-08
A17: 4.38452 | B17: ='DF raw data'!A22 -> -4.1221183e-06 | C17: ='DF raw data'!B22 -> -1.6205327e-05 | D17: ='DF raw data'!C22 -> -1.4245288e-06 | F17: -4.12567981e-06 | G17: -1.625689321e-05 | H17: -1.425759593e-06 | J17: -5.488264167e-06 | K17: -4.215857831e-06 | L17: -3.47804894e-06 | N17: -5.94624833e-05 | O17: -0.0002061206125 | P17: 3.671486834e-05 | Q17: 0.0001183121741 | R17: 1.271688283e-08
A18: 4.88484 | B18: ='DF raw data'!A23 -> -4.3903847e-06 | C18: ='DF raw data'!B23 -> -8.3994391e-06 | D18: ='DF raw data'!C23 -> 9.2170194e-07 | F18: -4.394177992e-06 | G18: -8.426166561e-06 | H18: 9.224982905e-07 | J18: -4.918533244e-06 | K18: 1.201138864e-05 | L18: -3.380397642e-06 | N18: -6.192332386e-05 | O18: -0.0002371020898 | P18: 4.27244063e-05 | Q18: 0.000139688049 | R18: 1.554863045e-08
A19: 5.38516 | B19: ='DF raw data'!A24 -> -4.5551888e-06 | C19: ='DF raw data'!B24 -> -4.01836e-06 | D19: ='DF raw data'!C24 -> 2.3639406e-07 | F19: -4.559124483e-06 | G19: -4.031146635e-06 | H19: 2.365983045e-07 | J19: -7.925588397e-06 | K19: -3.120816203e-06 | L19: -3.30172753e-06 | N19: -6.588865424e-05 | O19: -0.0002700675013 | P19: 4.116299954e-05 | Q19: 0.000160282721 | R19: 1.856841552e-08
A20: 5.88548 | B20: ='DF raw data'!A25 -> -4.8172469e-06 | C20: ='DF raw data'!B25 -> 2.4883507e-06 | D20: ='DF raw data'!C25 -> -3.4345303e-06 | F20: -4.821409001e-06 | G20: 2.496268764e-06 | H20: -3.437497734e-06 | J20: -6.531858854e-06 | K20: -1.919900848e-06 | L20: -4.132107259e-06 | N20: -6.915667386e-05 | O20: -0.0003046679684 | P20: 4.020243475e-05 | Q20: 0.0001803968031 | R20: 2.176990382e-08
A21: 6.3858 | B21: ='DF raw data'!A26 -> -4.4717517e-06 | C21: ='DF raw data'!B26 -> -5.8752644e-06 | D21: ='DF raw data'!C26 -> 2.8621525e-06 | F21: -4.475615293e-06 | G21: -5.893959803e-06 | H21: 2.8646254e-06 | J21: -8.860620367e-06 | K21: 2.575777964e-06 | L21: -4.926918683e-06 | N21: -7.358981945e-05 | O21: -0.0003414864269 | P21: 4.149114798e-05 | Q21: 0.0002011556543 | R21: 2.534067609e-08
A22: 6.88612 | B22: ='DF raw data'!A27 -> -5.0407898e-06 | C22: ='DF raw data'!B27 -> 1.2145679e-05 | D22: ='DF raw data'!C27 -> -1.56649e-06 | F22: -5.045145042e-06 | G22: 1.21843272e-05 | H22: -1.567843447e-06 | J22: -1.336823018e-05 | K22: 1.395437973e-05 | L22: -4.356123642e-06 | N22: -8.027821237e-05 | O22: -0.0003816512221 | P22: 4.847280324e-05 | Q22: 0.0002254075672 | R22: 2.974059226e-08
A23: 7.38644 | B23: ='DF raw data'!A28 -> -4.2417332e-06 | C23: ='DF raw data'!B28 -> 6.4742221e-06 | D23: ='DF raw data'!C28 -> -6.7764104e-06 | F23: -4.245398057e-06 | G23: 6.494823418e-06 | H23: -6.782265219e-06 | J23: -1.613604951e-05 | K23: 1.095315697e-05 | L23: 3.412585128e-06 | N23: -8.835140066e-05 | O23: -0.0004258551949 | P23: 5.395288674e-05 | Q23: 0.0002524012755 | R23: 3.510246365e-08
A24: 7.88676 | B24: ='DF raw data'!A29 -> -1.2396765e-06 | C24: ='DF raw data'!B29 -> 3.1745681e-06 | D24: ='DF raw data'!C29 -> -3.7909737e-07 | F24: -1.24074758e-06 | G24: 3.184669744e-06 | H24: -3.794249101e-07 | J24: -1.449085629e-05 | K24: 6.956612595e-06 | L24: 1.027224256e-06 | N24: -9.560146588e-05 | O24: -0.0004736865203 | P24: 5.743341915e-05 | Q24: 0.0002811363638 | R24: 4.132556285e-08
A25: 8.38708 | B25: ='DF raw data'!A30 -> 1.6860179e-06 | C25: ='DF raw data'!B30 -> 1.23661e-05 | D25: ='DF raw data'!C30 -> 1.9556192e-06 | F25: 1.687474619e-06 | G25: 1.240544959e-05 | H25: 1.957308855e-06 | J25: -1.324710862e-05 | K25: -7.991590403e-07 | L25: 2.446249635e-06 | N25: -0.0001022292593 | O25: -0.0005248338633 | P25: 5.70335839e-05 | Q25: 0.0003096714065 | R25: 4.818177359e-08
A26: 8.8874 | B26: ='DF raw data'!A31 -> 2.0284426e-06 | C26: ='DF raw data'!B31 -> 7.0554293e-06 | D26: ='DF raw data'!C31 -> 1.1357388e-06 | F26: 2.030195174e-06 | G26: 7.077880051e-06 | H26: 1.136720078e-06 | J26: -1.677145002e-05 | K26: 1.32504529e-05 | L26: 9.22308947e-07 | N26: -0.0001106203511 | O26: -0.0005801794374 | P26: 6.36630505e-05 | Q26: 0.0003415233039 | R26: 5.633190938e-08
A27: 9.38772 | B27: ='DF raw data'!A32 -> 4.1879202e-06 | C27: ='DF raw data'!B32 -> 2.2716044e-05 | D27: ='DF raw data'!C32 -> 2.6095786e-06 | F27: 4.191538563e-06 | G27: 2.278832766e-05 | H27: 2.611833276e-06 | J27: -1.680639019e-05 | K27: 3.496411075e-06 | L27: 1.861332503e-06 | N27: -0.0001190289243 | O27: -0.0006397319888 | P27: 6.541237489e-05 | Q27: 0.0003742504233 | R27: 6.556114411e-08
A28: 9.88804 | B28: ='DF raw data'!A33 -> 7.8732901e-06 | C28: ='DF raw data'!B33 -> -2.3595944e-06 | D28: ='DF raw data'!C33 -> 3.4413697e-06 | F28: 7.880092623e-06 | G28: -2.367102755e-06 | H28: 3.444343043e-06 | J28: -6.128877679e-06 | K28: 4.729453336e-06 | L28: 2.748666598e-06 | N28: -0.0001220953244 | O28: -0.0007008187214 | P28: 6.777861498e-05 | Q28: 0.0004081614199 | R28: 7.531798894e-08
A29: 10.38836 | B29: ='DF raw data'!A34 -> 7.8662151e-06 | C29: ='DF raw data'!B34 -> -1.4757375e-05 | D29: ='DF raw data'!C34 -> 7.3954106e-07 | F29: 7.87301151e-06 | G29: -1.480433375e-05 | H29: 7.401800235e-07 | J29: -3.639594995e-07 | K29: 9.414398593e-06 | L29: -1.33062797e-06 | N29: -0.0001222774206 | O29: -0.0007619965605 | P29: 7.248882689e-05 | Q29: 0.0004444290298 | R29: 8.542765379e-08
A30: 10.88868 | B30: ='DF raw data'!A35 -> 3.0588537e-06 | C30: ='DF raw data'!B35 -> -1.1180325e-05 | D30: ='DF raw data'!C35 -> -6.7333349e-07 | F30: 3.06149655e-06 | G30: -1.121590139e-05 | H30: -6.739152501e-07 | J30: -5.618071023e-06 | K30: -2.591835097e-06 | L30: -1.436337024e-06 | N30: -0.0001250882539 | O30: -0.0008245807157 | P30: 7.119207995e-05 | Q30: 0.0004800478512 | R30: 9.579197447e-08
A31: 11.389 | B31: ='DF raw data'!A36 -> -2.0416035e-06 | C31: ='DF raw data'!B36 -> -4.4897547e-06 | D31: ='DF raw data'!C36 -> -7.7652021e-06 | F31: -2.043367445e-06 | G31: -4.504041338e-06 | H31: -7.771911235e-06 | J31: -1.311476337e-05 | K31: 8.90314883e-07 | L31: -2.812134987e-06 | N31: -0.0001316498323 | O31: -0.0008904477598 | P31: 7.163752229e-05 | Q31: 0.0005158895364 | R31: 1.070309693e-07
A32: 11.88932 | B32: ='DF raw data'!A37 -> -1.1318759e-06 | C32: ='DF raw data'!B37 -> 6.5745576e-06 | D32: ='DF raw data'!C37 -> -1.9852685e-05 | F32: -1.132853841e-06 | G32: 6.595478191e-06 | H32: -1.986983772e-05 | J32: -1.297500373e-05 | K32: -1.878675483e-06 | L32: -8.231251562e-06 | N32: -0.0001381414861 | O32: -0.0009595627081 | P32: 7.069758337e-05 | Q32: 0.0005512609513 | R32: 1.190792845e-07
A33: 12.38964 | B33: ='DF raw data'!A38 -> 6.9719158e-07 | C33: ='DF raw data'!B38 -> -3.2108596e-06 | D33: ='DF raw data'!C38 -> -6.2860399e-06 | F33: 6.977939535e-07 | G33: -3.221076726e-06 | H33: -6.291471038e-06 | J33: -1.203589504e-05 | K33: 1.526800048e-05 | L33: -6.072171727e-06 | N33: -0.0001441632852 | O33: -0.001031690483 | P33: 7.833646938e-05 | Q33: 0.0005904542537 | R33: 1.325477264e-07
A34: 12.88996 | B34: ='DF raw data'!A39 -> 2.2173595e-07 | C34: ='DF raw data'!B39 -> -2.2956824e-06 | D34: ='DF raw data'!C39 -> 2.0521202e-06 | F34: 2.219275299e-07 | G34: -2.302987383e-06 | H34: 2.053893232e-06 | J34: -1.602835554e-05 | K34: 9.464189428e-06 | L34: 2.350793933e-06 | N34: -0.000152182592 | O34: -0.001107830477 | P34: 8.307159263e-05 | Q34: 0.0006320166329 | R34: 1.475875612e-07
A35: 13.39028 | B35: ='DF raw data'!A40 -> -2.5792713e-06 | C35: ='DF raw data'!B40 -> -7.9544561e-06 | D35: ='DF raw data'!C40 -> 8.9067253e-06 | F35: -2.58149979e-06 | G35: -7.979767602e-06 | H35: 8.914420711e-06 | J35: -1.383434255e-05 | K35: 4.786474003e-06 | L35: 2.162151086e-06 | N35: -0.0001591041903 | O35: -0.001187433486 | P35: 8.54663613e-05 | Q35: 0.0006747771628 | R35: 1.639073203e-07
A36: 13.8906 | B36: ='DF raw data'!A41 -> -3.4347311e-06 | C36: ='DF raw data'!B41 -> -3.2575567e-06 | D36: ='DF raw data'!C41 -> 5.6471054e-06 | F36: -3.437698708e-06 | G36: -3.267922418e-06 | H36: 5.651984499e-06 | J36: -1.052137862e-05 | K36: 5.543136305e-06 | L36: -7.366434105e-06 | N36: -0.0001643682464 | O36: -0.001269670207 | P36: 8.823970326e-05 | Q36: 0.0007189252511 | R36: 1.813200401e-07
A37: 14.39092 | B37: ='DF raw data'!A42 -> -3.881486e-06 | C37: ='DF raw data'!B42 -> -2.8852969e-06 | D37: ='DF raw data'!C42 -> 1.8424089e-06 | F37: -3.884839604e-06 | G37: -2.894478068e-06 | H37: 1.844000741e-06 | J37: -8.420028224e-06 | K37: 5.885128792e-06 | L37: -6.449992783e-06 | N37: -0.0001685809549 | O37: -0.00135401463 | P37: 9.11841509e-05 | Q37: 0.0007645465055 | R37: 1.996988389e-07
A38: 14.89124 | B38: ='DF raw data'!A43 -> -3.3098429e-06 | C38: ='DF raw data'!B43 -> -4.4778803e-06 | D38: ='DF raw data'!C43 -> 1.716091e-06 | F38: -3.312702604e-06 | G38: -4.492129153e-06 | H38: 1.717573703e-06 | J38: -8.927227466e-06 | K38: -3.111745732e-08 | L38: -4.97367985e-06 | N38: -0.0001730474254 | O38: -0.001440593718 | P38: 9.116858221e-05 | Q38: 0.0008101599705 | R38: 2.188396421e-07
A39: 15.39156 | B39: ='DF raw data'!A44 -> -5.9559925e-06 | C39: ='DF raw data'!B44 -> 3.6589067e-06 | D39: ='DF raw data'!C44 -> -9.8838406e-08 | F39: -5.961138478e-06 | G39: 3.670549535e-06 | H39: -9.892380238e-08 | J39: -1.556144048e-05 | K39: -1.295262922e-05 | L39: -3.612737611e-06 | N39: -0.0001808331253 | O39: -0.001531068147 | P39: 8.468812276e-05 | Q39: 0.0008525311321 | R39: 2.3878875e-07
A40: 15.89188 | B40: ='DF raw data'!A45 -> -9.3463286e-06 | C40: ='DF raw data'!B45 -> 2.2037516e-06 | D40: ='DF raw data'!C45 -> -1.4096621e-07 | F40: -9.354403828e-06 | G40: 2.210764055e-06 | H40: -1.410880048e-07 | J40: -1.706005717e-05 | K40: 1.070077342e-06 | L40: -5.647056145e-06 | N40: -0.0001893686131 | O40: -0.001625813052 | P40: 8.522350386e-05 | Q40: 0.0008951701556 | R40: 2.603643082e-07
A41: 16.3922 | B41: ='DF raw data'!A46 -> -4.3588107e-06 | C41: ='DF raw data'!B46 -> -1.1646124e-05 | D41: ='DF raw data'!C46 -> 3.7580339e-06 | F41: -4.362576712e-06 | G41: -1.168318258e-05 | H41: 3.761280841e-06 | J41: -1.528285399e-05 | K41: -6.630680853e-06 | L41: -7.449366096e-06 | N41: -0.0001970149306 | O41: -0.001724383562 | P41: 8.190604161e-05 | Q41: 0.0009361493863 | R41: 2.831406169e-07
A42: 16.89252 | B42: ='DF raw data'!A47 -> 1.95088e-06 | C42: ='DF raw data'!B47 -> -4.9500827e-06 | D42: ='DF raw data'!C47 -> 5.409509e-06 | F42: 1.95256556e-06 | G42: -4.965834126e-06 | H42: 5.414182816e-06 | J42: -1.253113756e-05 | K42: 6.770896311e-07 | L42: -9.875891704e-06 | N42: -0.0002032845093 | O42: -0.001826090868 | P42: 8.22448031e-05 | Q42: 0.0009772981062 | R42: 3.07200405e-07
A43: 17.39284 | B43: ='DF raw data'!A48 -> 1.5769494e-06 | C43: ='DF raw data'!B48 -> -5.4688439e-06 | D43: ='DF raw data'!C48 -> 4.2943266e-06 | F43: 1.578311884e-06 | G43: -5.486246052e-06 | H43: 4.298036898e-06 | J43: -7.443174351e-06 | K43: 1.200536754e-05 | L43: -5.434431095e-06 | N43: -0.0002070084783 | O43: -0.00192966135 | P43: 8.825132859e-05 | Q43: 0.001021452011 | R43: 3.325370136e-07
A44: 17.89316 | B44: ='DF raw data'!A49 -> 4.5916318e-07 | C44: ='DF raw data'!B49 -> 2.6368566e-06 | D44: ='DF raw data'!C49 -> 4.3915643e-06 | F44: 4.59559897e-07 | G44: 2.645247218e-06 | H44: 4.395358612e-06 | J44: -2.841767568e-06 | K44: 3.219201778e-06 | L44: -3.083242021e-06 | N44: -0.0002084302715 | O44: -0.002033943183 | P44: 8.986195962e-05 | Q44: 0.001066411747 | R44: 3.583126744e-07
A45: 18.39348 | B45: ='DF raw data'!A50 -> 6.0338762e-06 | C45: ='DF raw data'!B50 -> -9.5033238e-07 | D45: ='DF raw data'!C50 -> 6.0812381e-06 | F45: 6.039089469e-06 | G45: -9.533563881e-07 | H45: 6.08649229e-06 | J45: -2.152852759e-06 | K45: 1.750466208e-05 | L45: -5.567985587e-07 | N45: -0.0002095073868 | O45: -0.002138763919 | P45: 9.861989215e-05 | Q45: 0.001115753251 | R45: 3.851394467e-07
A46: 18.8938 | B46: ='DF raw data'!A51 -> 6.2672316e-06 | C46: ='DF raw data'!B51 -> 5.2630503e-07 | D46: ='DF raw data'!C51 -> 7.3160827e-06 | F46: 6.272646488e-06 | G46: 5.279797605e-07 | H46: 7.322403795e-06 | J46: -8.551437264e-06 | K46: 1.582790347e-05 | L46: 4.467378183e-06 | N46: -0.0002137858419 | O46: -0.002245725251 | P46: 0.0001065389088 | Q46: 0.001169056798 | R46: 4.136851669e-07
A47: 19.39412 | B47: ='DF raw data'!A52 -> 5.9220702e-06 | C47: ='DF raw data'!B52 -> -1.3982165e-05 | D47: ='DF raw data'!C52 -> 1.0637796e-05 | F47: 5.927186869e-06 | G47: -1.402665699e-05 | H47: 1.064698706e-05 | J47: -1.160645932e-05 | K47: 1.468735269e-05 | L47: 4.910677463e-06 | N47: -0.0002195927856 | O47: -0.002355591914 | P47: 0.0001138872851 | Q47: 0.001226036884 | R47: 4.443004007e-07
A48: 19.89444 | B48: ='DF raw data'!A53 -> 4.9365817e-06 | C48: ='DF raw data'!B53 -> 3.2343437e-06 | D48: ='DF raw data'!C53 -> 3.3668966e-06 | F48: 4.940846907e-06 | G48: 3.244635553e-06 | H48: 3.369805599e-06 | J48: -1.091948229e-05 | K48: 2.780302708e-06 | L48: 5.178522081e-06 | N48: -0.000225056021 | O48: -0.002468191942 | P48: 0.0001152783262 | Q48: 0.001283712936 | R48: 4.762905138e-07
A49: 20.39476 | B49: ='DF raw data'!A54 -> 4.2798338e-06 | C49: ='DF raw data'!B54 -> 2.7327901e-06 | D49: ='DF raw data'!C54 -> 4.06871e-06 | F49: 4.283531576e-06 | G49: 2.741485983e-06 | H49: 4.072225365e-06 | J49: -7.830856419e-06 | K49: 1.282145915e-05 | L49: -1.422282291e-06 | N49: -0.0002289739551 | O49: -0.002582752191 | P49: 0.0001216931586 | Q49: 0.001344598458 | R49: 5.099311786e-07
A50: 20.89508 | B50: ='DF raw data'!A55 -> 3.6605336e-06 | C50: ='DF raw data'!B55 -> 3.1517507e-06 | D50: ='DF raw data'!C55 -> -1.5139103e-06 | F50: 3.663696301e-06 | G50: 3.161779738e-06 | H50: -1.515218318e-06 | J50: -4.849054266e-06 | K50: 1.02555221e-05 | L50: 2.687648724e-06 | N50: -0.0002314000339 | O50: -0.002698526256 | P50: 0.0001268242014 | Q50: 0.001408051142 | R50: 5.447686372e-07
A51: 21.3954 | B51: ='DF raw data'!A56 -> -1.4806417e-06 | C51: ='DF raw data'!B56 -> -4.8472079e-06 | D51: ='DF raw data'!C56 -> 7.7940967e-07 | F51: -1.481920974e-06 | G51: -4.862631973e-06 | H51: 7.8008308e-07 | J51: -3.226910944e-06 | K51: 8.829331083e-06 | L51: 2.075688947e-06 | N51: -0.000233014522 | O51: -0.002815108082 | P51: 0.0001312416924 | Q51: 0.001473713986 | R51: 5.805515982e-07
A52: 21.89572 | B52: ='DF raw data'!A57 -> -2.9210285e-06 | C52: ='DF raw data'!B57 -> -3.609e-06 | D52: ='DF raw data'!C57 -> 2.2529148e-06 | F52: -2.923552269e-06 | G52: -3.62048403e-06 | H52: 2.254861318e-06 | J52: 1.315838503e-06 | K52: 5.280251545e-06 | L52: 2.2199721e-06 | N52: -0.0002323561816 | O52: -0.002931360527 | P52: 0.0001338835078 | Q52: 0.001540698582 | R52: 6.165317052e-07
A53: 22.39604 | B53: ='DF raw data'!A58 -> -1.3139695e-06 | C53: ='DF raw data'!B58 -> 1.5801111e-06 | D53: ='DF raw data'!C58 -> 1.5501701e-06 | F53: -1.31510477e-06 | G53: 1.585139097e-06 | H53: 1.551509447e-06 | J53: -7.989554716e-08 | K53: 2.555698071e-06 | L53: 1.221929636e-06 | N53: -0.000232396155 | O53: -0.003047632971 | P53: 0.0001351621747 | Q53: 0.001608322921 | R53: 6.526932269e-07
A54: 22.89636 | B54: ='DF raw data'!A59 -> -3.7640064e-06 | C54: ='DF raw data'!B59 -> -2.3011539e-06 | D54: ='DF raw data'!C59 -> 3.9965201e-07 | F54: -3.767258502e-06 | G54: -2.308476294e-06 | H54: 3.999973093e-07 | J54: -5.191306917e-06 | K54: -1.629173673e-06 | L54: 1.110820721e-06 | N54: -0.0002349934697 | O54: -0.003165204904 | P54: 0.0001343470665 | Q54: 0.001675539446 | R54: 6.893522062e-07
A55: 23.39668 | B55: ='DF raw data'!A60 -> -4.533561e-06 | C55: ='DF raw data'!B60 -> -3.6714496e-06 | D55: ='DF raw data'!C60 -> 6.0166149e-06 | F55: -4.537477997e-06 | G55: -3.683132348e-06 | H55: 6.021813255e-06 | J55: -3.029295452e-06 | K55: -5.701482272e-06 | L55: -5.522293142e-06 | N55: -0.0002365090868 | O55: -0.00328353513 | P55: 0.0001314945009 | Q55: 0.001741328774 | R55: 7.259893149e-07
A56: 23.897 | B56: ='DF raw data'!A61 -> -4.9875243e-06 | C56: ='DF raw data'!B61 -> -7.3418937e-06 | D56: ='DF raw data'!C61 -> 6.7523688e-06 | F56: -4.991833521e-06 | G56: -7.365255996e-06 | H56: 6.758202847e-06 | J56: -4.453756724e-06 | K56: -5.561602078e-06 | L56: -3.835086454e-06 | N56: -0.0002387373903 | O56: -0.003402980221 | P56: 0.0001287119201 | Q56: 0.001805725922 | R56: 7.627940048e-07
A57: 24.39732 | B57: ='DF raw data'!A62 -> -9.7328748e-06 | C57: ='DF raw data'!B62 -> -6.1126279e-06 | D57: ='DF raw data'!C62 -> 5.0073886e-06 | F57: -9.741284004e-06 | G57: -6.132078607e-06 | H57: 5.011714984e-06 | J57: -1.127523039e-05 | K57: -3.893281031e-06 | L57: -3.400462363e-07 | N57: -0.0002443786136 | O57: -0.003525247729 | P57: 0.0001267640338 | Q57: 0.001869148504 | R57: 8.007132711e-07
A58: 24.89764 | B58: ='DF raw data'!A63 -> -9.7959537e-06 | C58: ='DF raw data'!B63 -> -9.8635364e-06 | D58: ='DF raw data'!C63 -> 1.9819164e-07 | F58: -9.804417404e-06 | G58: -9.894922696e-06 | H58: 1.983628776e-07 | J58: -1.004778279e-05 | K58: 1.520089362e-06 | L58: -4.142368016e-06 | N58: -0.0002494057203 | O58: -0.003650030399 | P58: 0.0001275245649 | Q58: 0.001932951594 | R58: 8.399712441e-07
A59: 25.39796 | B59: ='DF raw data'!A64 -> -1.4035456e-06 | C59: ='DF raw data'!B64 -> -1.1323494e-05 | D59: ='DF raw data'!C64 -> -4.9837745e-06 | F59: -1.404758263e-06 | G59: -1.135952596e-05 | H59: -4.988080481e-06 | J59: -6.594923995e-06 | K59: 5.920332356e-06 | L59: -2.219556942e-06 | N59: -0.0002527052927 | O59: -0.003776463911 | P59: 0.0001304866256 | Q59: 0.001998236662 | R59: 8.804404901e-07
A60: 25.89828 | B60: ='DF raw data'!A65 -> 2.9152754e-06 | C60: ='DF raw data'!B65 -> -2.2975451e-06 | D60: ='DF raw data'!C65 -> -5.7269845e-06 | F60: 2.917794198e-06 | G60: -2.30485601e-06 | H60: -5.731932615e-06 | J60: -6.279794859e-06 | K60: 8.610886987e-06 | L60: 9.32495901e-06 | N60: -0.0002558471996 | O60: -0.003904469382 | P60: 0.0001347948245 | Q60: 0.002065677209 | R60: 9.22280968e-07
A61: 26.3986 | B61: ='DF raw data'!A66 -> 2.2288243e-06 | C61: ='DF raw data'!B66 -> 1.5246064e-06 | D61: ='DF raw data'!C66 -> -7.0035585e-06 | F61: 2.230750004e-06 | G61: 1.529457779e-06 | H61: -7.009609575e-06 | J61: -5.05608939e-06 | K61: -1.053478291e-06 | L61: 1.114092445e-05 | N61: -0.0002583768623 | O61: -0.004033740494 | P61: 0.0001342677483 | Q61: 0.002132854049 | R61: 9.647013152e-07
A62: 26.89892 | B62: ='DF raw data'!A67 -> 5.8105325e-06 | C62: ='DF raw data'!B67 -> -9.5660425e-07 | D62: ='DF raw data'!C67 -> -6.195658e-06 | F62: 5.8155528e-06 | G62: -9.596482155e-07 | H62: -6.201011049e-06 | J62: -5.978962664e-06 | K62: 7.096755523e-06 | L62: 4.125662495e-06 | N62: -0.0002613682569 | O62: -0.00416450826 | P62: 0.000137818397 | Q62: 0.002201807349 | R62: 1.008382892e-06
A63: 27.39924 | B63: ='DF raw data'!A68 -> 1.0548808e-05 | C63: ='DF raw data'!B68 -> -2.4200358e-06 | D63: ='DF raw data'!C68 -> 4.5555683e-07 | F63: 1.055792217e-05 | G63: -2.427736482e-06 | H63: 4.559504311e-07 | J63: -9.418660598e-06 | K63: 9.254310902e-06 | L63: 4.231640982e-06 | N63: -0.0002660806011 | O63: -0.004297633706 | P63: 0.0001424485138 | Q63: 0.00227307719 | R63: 1.053957273e-06
A64: 27.89956 | B64: ='DF raw data'!A69 -> 1.25318e-05 | C64: ='DF raw data'!B69 -> -3.8198209e-06 | D64: ='DF raw data'!C69 -> -3.5221801e-06 | F64: 1.254262748e-05 | G64: -3.831975773e-06 | H64: -3.525223264e-06 | J64: -8.643831624e-06 | K64: 1.545767011e-05 | L64: 4.883369089e-06 | N64: -0.000270405283 | O64: -0.004432922877 | P64: 0.0001501822953 | Q64: 0.002348216396 | R64: 1.101824758e-06
A65: 28.39988 | B65: ='DF raw data'!A70 -> 1.4482085e-05 | C65: ='DF raw data'!B70 -> 6.7718961e-06 | D65: ='DF raw data'!C70 -> -7.9755791e-06 | F65: 1.449459752e-05 | G65: 6.793444633e-06 | H65: -7.98247e-06 | J65: -1.046292216e-05 | K65: 2.013685931e-05 | L65: 1.088120725e-05 | N65: -0.0002756400922 | O65: -0.004570831128 | P65: 0.0001602571688 | Q65: 0.002428396262 | R65: 1.1526872e-06
A66: 28.9002 | B66: ='DF raw data'!A71 -> 1.3330791e-05 | C66: ='DF raw data'!B71 -> 3.3273413e-06 | D66: ='DF raw data'!C71 -> -4.9001155e-06 | F66: 1.33423088e-05 | G66: 3.337929077e-06 | H66: -4.9043492e-06 | J66: -1.141759629e-05 | K66: 1.911008342e-05 | L66: 1.359223055e-05 | N66: -0.000281352544 | O66: -0.004711597433 | P66: 0.0001698183257 | Q66: 0.002513359767 | R66: 1.206720518e-06
A67: 29.40052 | B67: ='DF raw data'!A72 -> 9.7163756e-06 | C67: ='DF raw data'!B72 -> 9.367991e-06 | D67: ='DF raw data'!C72 -> -2.8007362e-06 | F67: 9.724770549e-06 | G67: 9.397800445e-06 | H67: -2.803156036e-06 | J67: -6.916533426e-06 | K67: 8.876180487e-06 | L67: 8.989436869e-06 | N67: -0.000284813024 | O67: -0.004854095085 | P67: 0.0001742592563 | Q67: 0.002600545158 | R67: 1.262498567e-06
A68: 29.90084 | B68: ='DF raw data'!A73 -> 1.8603007e-06 | C68: ='DF raw data'!B73 -> 1.9609129e-06 | D68: ='DF raw data'!C73 -> -4.6150653e-06 | F68: 1.861908e-06 | G68: 1.967152629e-06 | H68: -4.619052716e-06 | J68: -6.676228482e-06 | K68: 6.672443623e-06 | L68: 7.474158498e-06 | N68: -0.0002881532746 | O68: -0.004998263932 | P68: 0.0001775976133 | Q68: 0.002689400796 | R68: 1.319821841e-06
A69: 30.40116 | B69: ='DF raw data'!A74 -> -4.9748883e-07 | C69: ='DF raw data'!B74 -> -2.8313893e-06 | D69: ='DF raw data'!C74 -> -5.9023532e-06 | F69: -4.979186603e-07 | G69: -2.840398931e-06 | H69: -5.907452833e-06 | J69: -1.260054948e-05 | K69: -6.310945264e-08 | L69: 1.070968118e-05 | N69: -0.0002944575815 | O69: -0.005145586949 | P69: 0.0001775660384 | Q69: 0.002778240637 | R69: 1.378977159e-06
A70: 30.90148 | B70: ='DF raw data'!A75 -> 7.3937758e-07 | C70: ='DF raw data'!B75 -> -6.5345243e-06 | D70: ='DF raw data'!C75 -> -1.8966657e-06 | F70: 7.400164022e-07 | G70: -6.555317503e-06 | H70: -1.898304419e-06 | J70: -1.654584327e-05 | K70: -6.722233554e-06 | L70: 1.289807231e-05 | N70: -0.0003027357978 | O70: -0.005297051723 | P70: 0.0001742027705 | Q70: 0.002865397767 | R70: 1.440013982e-06
A71: 31.4018 | B71: ='DF raw data'!A76 -> 4.5529237e-07 | C71: ='DF raw data'!B76 -> 1.7854568e-06 | D71: ='DF raw data'!C76 -> -4.0997384e-06 | F71: 4.556857426e-07 | G71: =(1-$G$1*($B$2-$G$2))*C71*$M$2/$M$1 -> 1.791138218e-06 | H71: -4.103280574e-06 | J71: =-CELL("contents", INDEX($F$6:$F$1203,1204-CELL("row",F71))) -> -1.397256688e-05 | K71: =CELL("contents", INDEX($G$6:$G$1203,1204-CELL("row",G71))) -> -2.182252818e-06 | L71: =-CELL("contents", INDEX($H$6:$H$1203,1204-CELL("row",H71))) -> 1.121439888e-05 | N71: -0.0003097265525 | O71: -0.005452014112 | P71: 0.0001731109458 | Q71: 0.002952008635 | R71: 1.503003237e-06
A72: =A71+$B$1 -> 31.90212 | B72: ='DF raw data'!A77 -> -8.8296724e-07 | C72: ='DF raw data'!B77 -> -2.0668535e-06 | D72: ='DF raw data'!C77 -> -5.7190646e-06 | F72: -8.837301237e-07 | G72: -2.073430338e-06 | H72: -5.724005872e-06 | J72: -1.212214349e-05 | K72: -1.245554348e-06 | L72: 9.287324421e-06 | N72: =J72*$B$1+N71 -> -0.0003157915033 | O72: =N72*$B$1+O71 -> -0.005610010917 | P72: =K72*$B$1+P71 -> 0.00017248777 | Q72: =P72*$B$1+Q71 -> 0.003038307716 | R72: =(N72^2+P72^2)*$B$1+R71 -> 1.567782822e-06
A73: 32.40244 | B73: ='DF raw data'!A78 -> -8.6398531e-06 | C73: ='DF raw data'!B78 -> 1.7953303e-06 | D73: ='DF raw data'!C78 -> 2.7848819e-06 | F73: -8.647317933e-06 | G73: 1.801043136e-06 | H73: 2.787288038e-06 | J73: -1.090331533e-05 | K73: -1.79019934e-06 | L73: 6.562246787e-06 | N73: -0.00032124665 | O73: -0.005770737041 | P73: 0.0001715920975 | Q73: 0.003124158674 | R73: 1.634146897e-06
A74: 32.90276 | B74: ='DF raw data'!A79 -> -1.1336865e-05 | C74: ='DF raw data'!B79 -> 8.9068662e-06 | D74: ='DF raw data'!C79 -> -1.794835e-06 | F74: -1.134666005e-05 | G74: 8.935208321e-06 | H74: -1.796385737e-06 | J74: -9.267141598e-06 | K74: 6.309572008e-06 | L74: 4.27407101e-06 | N74: -0.0003258831863 | O74: -0.005933782917 | P74: 0.0001747489026 | Q74: 0.003211589045 | R74: 1.702559168e-06
A75: 33.40308 | B75: ='DF raw data'!A80 -> -9.4367088e-06 | C75: ='DF raw data'!B80 -> 1.5484194e-07 | D75: ='DF raw data'!C80 -> -4.6941987e-06 | F75: =(1-$G$1*($B$2-$G$2))*B75 -> -9.444862116e-06 | G75: 1.553346553e-07 | H75: =(1-$G$1*($B$2-$G$2))*D75 -> -4.698254488e-06 | J75: -5.072857665e-06 | K75: 2.397219785e-06 | L75: 3.545205814e-06 | N75: -0.0003284212385 | O75: -0.006098098631 | P75: 0.0001759482796 | Q75: 0.003299619489 | R75: 1.772012743e-06
A76: 33.9034 | B76: ='DF raw data'!A81 -> -6.7477076e-06 | C76: ='DF raw data'!B81 -> -3.0321232e-07 | D76: ='DF raw data'!C81 -> -4.7511003e-06 | F76: -6.753537619e-06 | G76: -3.041771577e-07 | H76: -4.755205251e-06 | J76: -4.132881927e-06 | K76: -3.606966151e-06 | L76: 4.646495907e-06 | N76: -0.000330489002 | O76: -0.006263448888 | P76: 0.0001741436423 | Q76: 0.003386747036 | R76: 1.841831893e-06
A77: 34.40372 | B77: ='DF raw data'!A82 -> -3.8864919e-06 | C77: ='DF raw data'!B82 -> 2.3593261e-06 | D77: ='DF raw data'!C82 -> -3.893887e-06 | F77: -3.889849829e-06 | G77: 2.366833601e-06 | H77: -3.897251318e-06 | J77: -1.033792626e-05 | K77: 7.702968907e-06 | L77: 3.061140442e-06 | N77: -0.0003356612732 | O77: -0.006431386936 | P77: 0.0001779975917 | Q77: 0.003475802791 | R77: 1.914053902e-06
A78: 34.90404 | B78: ='DF raw data'!A83 -> -2.0113664e-06 | C78: ='DF raw data'!B83 -> 3.1634941e-06 | D78: ='DF raw data'!C83 -> 3.5898538e-06 | F78: -2.013104221e-06 | G78: 3.173560506e-06 | H78: 3.592955434e-06 | J78: -1.308095919e-05 | K78: 1.199452415e-05 | L78: 2.125849048e-06 | N78: -0.0003422059387 | O78: -0.006602599412 | P78: 0.000183998692 | Q78: 0.003567861016 | R78: 1.989582421e-06
A79: 35.40436 | B79: ='DF raw data'!A84 -> -4.9895857e-07 | C79: ='DF raw data'!B84 -> 8.2985071e-07 | D79: ='DF raw data'!C84 -> 7.5496209e-06 | F79: -4.993896702e-07 | G79: 8.32491339e-07 | H79: 7.556143772e-06 | J79: -9.452264507e-06 | K79: 6.346516495e-06 | L79: 6.694670702e-06 | N79: -0.0003469350957 | O79: -0.006776177979 | P79: 0.0001871739811 | Q79: 0.003661507903 | R79: 2.067331178e-06
A80: 35.90468 | B80: ='DF raw data'!A85 -> -2.2683514e-06 | C80: ='DF raw data'!B85 -> 6.2370827e-07 | D80: ='DF raw data'!C85 -> 5.8794467e-06 | F80: -2.270311256e-06 | G80: 6.256929428e-07 | H80: 5.884526542e-06 | J80: -8.595664143e-06 | K80: 9.034928831e-06 | L80: 1.777601222e-06 | N80: -0.0003512356784 | O80: -0.006951908213 | P80: 0.0001916943367 | Q80: 0.003757416413 | R80: 2.147439025e-06
A81: 36.405 | B81: ='DF raw data'!A86 -> -5.1092748e-06 | C81: ='DF raw data'!B86 -> 2.2097543e-06 | D81: ='DF raw data'!C86 -> -4.7516351e-06 | F81: -5.113689213e-06 | G81: 2.216785856e-06 | H81: -4.755740513e-06 | J81: -1.490866797e-05 | K81: 1.984974559e-05 | L81: 5.776696557e-06 | N81: -0.0003586947831 | O81: -0.007131370387 | P81: 0.0002016255614 | Q81: 0.003858293714 | R81: 2.232150613e-06
A82: 36.90532 | B82: ='DF raw data'!A87 -> -5.7205007e-06 | C82: ='DF raw data'!B87 -> -1.2361356e-06 | D82: ='DF raw data'!C87 -> -5.7651869e-06 | F82: -5.725443213e-06 | G82: -1.240069049e-06 | H82: -5.770168021e-06 | J82: -1.97238577e-05 | K82: 1.424818667e-05 | L82: 1.252158331e-05 | N82: -0.0003685630236 | O82: -0.007315769839 | P82: 0.0002087542142 | Q82: 0.003962737623 | R82: 2.321916538e-06
A83: 37.40564 | B83: ='DF raw data'!A88 -> -5.4199945e-06 | C83: ='DF raw data'!B88 -> -3.3877818e-06 | D83: ='DF raw data'!C88 -> 1.3035879e-06 | F83: -5.424677375e-06 | G83: -3.398561902e-06 | H83: 1.3047142e-06 | J83: -1.675514895e-05 | K83: 7.837221451e-06 | L83: 1.219185467e-05 | N83: -0.0003769459598 | O83: -0.007504363442 | P83: 0.0002126753328 | Q83: 0.004069143345 | R83: 2.415636007e-06
A84: 37.90596 | B84: ='DF raw data'!A89 -> 3.4115078e-07 | C84: ='DF raw data'!B89 -> -3.7297518e-06 | D84: ='DF raw data'!C89 -> 8.4383173e-06 | F84: 3.414455343e-07 | G84: -3.741620068e-06 | H84: 8.445608006e-06 | J84: -1.105256217e-05 | K84: 1.768518269e-06 | L84: 3.869538695e-06 | N84: -0.0003824757777 | O84: -0.007695723723 | P84: 0.0002135601579 | Q84: 0.004175991763 | R84: 2.511645245e-06
A85: 38.40628 | B85: ='DF raw data'!A90 -> 7.1684162e-06 | C85: ='DF raw data'!B90 -> -7.5250878e-06 | D85: ='DF raw data'!C90 -> 8.2664756e-06 | F85: 7.174609712e-06 | G85: -7.549033029e-06 | H85: 8.273617835e-06 | J85: -9.644602143e-06 | K85: 6.039191071e-06 | L85: 8.284887063e-06 | N85: -0.000387301165 | O85: -0.007889498242 | P85: 0.000216581686 | Q85: 0.004284351912 | R85: 2.610163165e-06
A86: 38.9066 | B86: ='DF raw data'!A91 -> 6.8507552e-06 | C86: ='DF raw data'!B91 -> 2.0480425e-06 | D86: ='DF raw data'!C91 -> 6.525288e-06 | F86: 6.856674252e-06 | G86: 2.05455948e-06 | H86: 6.530925849e-06 | J86: -1.516153326e-05 | K86: 1.436798367e-05 | L86: 6.525941146e-06 | N86: -0.0003948867833 | O86: -0.008087067997 | P86: 0.0002237702756 | Q86: 0.004396308657 | R86: 2.713233442e-06
A87: 39.40692 | B87: ='DF raw data'!A92 -> 3.5173555e-06 | C87: ='DF raw data'!B92 -> -5.9345052e-06 | D87: ='DF raw data'!C92 -> -2.662218e-07 | F87: 3.520394495e-06 | G87: -5.953389111e-06 | H87: -2.664518156e-07 | J87: -1.527477101e-05 | K87: 1.22040016e-05 | L87: -2.334328819e-06 | N87: -0.0004025290567 | O87: -0.008288461335 | P87: 0.0002298761816 | Q87: 0.004511320308 | R87: 2.820738552e-06
A88: 39.90724 | B88: ='DF raw data'!A93 -> -3.520571e-06 | C88: ='DF raw data'!B93 -> 2.2850095e-06 | D88: ='DF raw data'!C93 -> -4.9918945e-06 | F88: -3.523612773e-06 | G88: 2.292280522e-06 | H88: -4.996207497e-06 | J88: -1.355181566e-05 | K88: 7.20691364e-06 | L88: 1.090171995e-06 | N88: -0.0004093093012 | O88: -0.008493246964 | P88: 0.0002334819447 | Q88: 0.004628135994 | R88: 2.931833568e-06
A89: 40.40756 | B89: ='DF raw data'!A94 -> -7.7151735e-06 | C89: ='DF raw data'!B94 -> 8.1600729e-06 | D89: ='DF raw data'!C94 -> 5.0314156e-07 | F89: -7.72183941e-06 | G89: 8.186038685e-06 | H89: 5.035762743e-07 | J89: -8.499194365e-06 | K89: 8.843787036e-06 | L89: 7.441118977e-06 | N89: -0.0004135616181 | O89: -0.008700160113 | P89: 0.0002379066682 | Q89: 0.004747165459 | R89: 3.045722808e-06
A90: 40.90788 | B90: ='DF raw data'!A95 -> -4.2160345e-06 | C90: ='DF raw data'!B95 -> 3.1284021e-06 | D90: ='DF raw data'!C95 -> -9.1685615e-07 | F90: -4.219677154e-06 | G90: 3.138356842e-06 | H90: -9.176483137e-07 | J90: -7.782353949e-06 | K90: 8.632568961e-06 | L90: 8.327517364e-06 | N90: -0.0004174552854 | O90: -0.008909021341 | P90: 0.0002422257151 | Q90: 0.004868355828 | R90: 3.162268456e-06
A91: 41.4082 | B91: ='DF raw data'!A96 -> 3.7134653e-06 | C91: ='DF raw data'!B96 -> 1.7851912e-06 | D91: ='DF raw data'!C96 -> -6.1714982e-06 | F91: 3.716673734e-06 | G91: 1.790871773e-06 | H91: -6.176830374e-06 | J91: -1.592447087e-05 | K91: 1.664051705e-05 | L91: 3.739048149e-06 | N91: -0.0004254226167 | O91: -0.009121868785 | P91: 0.0002505512986 | Q91: 0.004993711654 | R91: 3.284226637e-06
A92: 41.90852 | B92: ='DF raw data'!A97 -> 4.2589418e-06 | C92: ='DF raw data'!B97 -> 8.0637392e-06 | D92: ='DF raw data'!C97 -> -7.226181e-06 | F92: 4.262621526e-06 | G92: 8.089398446e-06 | H92: -7.23242442e-06 | J92: -2.064673138e-05 | K92: 7.078281424e-06 | L92: 2.44531743e-06 | N92: -0.0004357525893 | O92: -0.009339884521 | P92: 0.0002540927044 | Q92: 0.005120839316 | R92: 3.41152977e-06
A93: 42.40884 | B93: ='DF raw data'!A98 -> 9.8668374e-07 | C93: ='DF raw data'!B98 -> 4.9482137e-06 | D93: ='DF raw data'!C98 -> -1.0916938e-06 | F93: 9.875362348e-07 | G93: 4.963959179e-06 | H93: -1.092637023e-06 | J93: -1.469054267e-05 | K93: 1.055756517e-06 | L93: 8.151997045e-06 | N93: -0.0004431025616 | O93: -0.009561577594 | P93: 0.0002546209205 | Q93: 0.005248231255 | R93: 3.542199191e-06
A94: 42.90916 | B94: ='DF raw data'!A99 -> 6.611474e-07 | C94: ='DF raw data'!B99 -> 3.2336041e-07 | D94: ='DF raw data'!C99 -> -1.3863955e-06 | F94: 6.617186314e-07 | G94: 3.2438936e-07 | H94: -1.387593346e-06 | J94: -8.001414754e-06 | K94: 1.23230743e-06 | L94: 6.791054906e-06 | N94: -0.0004471058295 | O94: -0.009785273583 | P94: 0.0002552374685 | Q94: 0.005375931665 | R94: 3.674808901e-06
A95: 43.40948 | B95: ='DF raw data'!A100 -> -1.3844553e-06 | C95: ='DF raw data'!B100 -> 5.1158008e-06 | D95: ='DF raw data'!C100 -> -2.6248981e-06 | F95: -1.385651469e-06 | G95: 5.13207955e-06 | H95: -2.627166012e-06 | J95: -4.087586426e-06 | K95: 2.158369762e-07 | L95: -9.694578385e-07 | N95: -0.0004491509307 | O95: -0.01000999278 | P95: 0.0002553454561 | Q95: 0.005503686104 | R95: 3.808363252e-06
A96: 43.9098 | B96: ='DF raw data'!A101 -> -4.4676135e-06 | C96: ='DF raw data'!B101 -> 2.881427e-06 | D96: ='DF raw data'!C101 -> -8.2928436e-06 | F96: -4.471473518e-06 | G96: 2.890595854e-06 | H96: -8.300008617e-06 | J96: -2.946655613e-06 | K96: -4.239737978e-07 | L96: -9.937732489e-07 | N96: -0.0004506252014 | O96: -0.01023544958 | P96: 0.0002551333335 | Q96: 0.005631334413 | R96: 3.942527107e-06
A97: 44.41012 | B97: ='DF raw data'!A102 -> -4.7743933e-06 | C97: ='DF raw data'!B102 -> 8.8350816e-06 | D97: ='DF raw data'!C102 -> -8.6223536e-06 | F97: -4.778518376e-06 | G97: 8.863195299e-06 | H97: -8.629803314e-06 | J97: -4.582894603e-06 | K97: 6.548362442e-06 | L97: 5.180120561e-06 | N97: -0.0004529181153 | O97: -0.01046205357 | P97: 0.0002584096102 | Q97: 0.005760621909 | R97: 4.078569291e-06
A98: 44.91044 | B98: ='DF raw data'!A103 -> -4.972705e-06 | C98: ='DF raw data'!B103 -> 4.4229114e-06 | D98: ='DF raw data'!C103 -> 1.9256677e-06 | F98: -4.977001417e-06 | G98: 4.436985339e-06 | H98: 1.927331477e-06 | J98: -4.533857772e-06 | K98: 1.743485967e-06 | L98: 1.352009228e-05 | N98: -0.000455186495 | O98: -0.01068979248 | P98: 0.0002592819111 | Q98: 0.005890345835 | R98: 4.215868033e-06
A99: 45.41076 | B99: ='DF raw data'!A104 -> -1.0517716e-05 | C99: ='DF raw data'!B104 -> -4.2095576e-06 | D99: ='DF raw data'!C104 -> 1.7145594e-06 | F99: -1.052680331e-05 | G99: -4.222952636e-06 | H99: 1.716040779e-06 | J99: -3.784749901e-06 | K99: 3.459200144e-06 | L99: 2.054894296e-05 | N99: -0.0004570800811 | O99: -0.01091847878 | P99: 0.0002610126181 | Q99: 0.006020935668 | R99: 4.354481583e-06
A100: 45.91108 | B100: ='DF raw data'!A105 -> -1.5103201e-05 | C100: ='DF raw data'!B105 -> -6.5205181e-06 | D100: ='DF raw data'!C105 -> -4.2345109e-06 | F100: -1.511625017e-05 | G100: -6.541266735e-06 | H100: -4.238169517e-06 | J100: -7.342896986e-06 | K100: -3.483961486e-06 | L100: 1.757999801e-05 | N100: -0.0004607538793 | O100: -0.01114900316 | P100: 0.0002592695225 | Q100: 0.006150653396 | R100: 4.494328439e-06
A101: 46.4114 | B101: ='DF raw data'!A106 -> -7.9636147e-06 | C101: ='DF raw data'!B106 -> 3.839364e-07 | D101: ='DF raw data'!C106 -> -4.8551938e-06 | F101: -7.970495263e-06 | G101: 3.85158106e-07 | H101: -4.859388687e-06 | J101: -1.253120361e-05 | K101: 3.786200275e-06 | L101: 1.360548799e-05 | N101: -0.0004670234911 | O101: -0.01138266436 | P101: 0.0002611638342 | Q101: 0.006281318885 | R101: 4.637578805e-06
A102: 46.91172 | B102: ='DF raw data'!A107 -> 1.2474077e-06 | C102: ='DF raw data'!B107 -> 1.0453355e-06 | D102: ='DF raw data'!C107 -> 7.9677739e-07 | F102: 1.24848546e-06 | G102: 1.048661813e-06 | H102: 7.974658057e-07 | J102: -1.712325772e-05 | K102: 6.633225524e-06 | L102: 6.882181171e-06 | N102: -0.0004755905994 | O102: -0.01162061184 | P102: 0.0002644825696 | Q102: 0.006413644804 | R102: 4.785742293e-06
A103: 47.41204 | B103: ='DF raw data'!A108 -> 1.1270579e-06 | C103: ='DF raw data'!B108 -> -1.5458186e-06 | D103: ='DF raw data'!C108 -> 4.339252e-06 | F103: 1.128031678e-06 | G103: -1.550737477e-06 | H103: 4.343001114e-06 | J103: -1.325599329e-05 | K103: 9.697896036e-06 | L103: 5.900258022e-06 | N103: -0.0004822228379 | O103: -0.01186187757 | P103: 0.000269334621 | Q103: 0.006548398302 | R103: 4.93837992e-06
A104: 47.91236 | B104: ='DF raw data'!A109 -> 5.5675105e-07 | C104: ='DF raw data'!B109 -> 1.993809e-05 | D104: ='DF raw data'!C109 -> 7.7696495e-06 | F104: 5.572320829e-07 | G104: 2.000153406e-05 | H104: 7.776362477e-06 | J104: -1.242030388e-05 | K104: -5.273073276e-07 | L104: 7.266130217e-06 | N104: -0.0004884369644 | O104: -0.01210625236 | P104: 0.0002690707986 | Q104: 0.006683019804 | R104: 5.093964312e-06
A105: 48.41268 | B105: ='DF raw data'!A110 -> 7.2068747e-07 | C105: ='DF raw data'!B110 -> 8.1035023e-06 | D105: ='DF raw data'!C110 -> 1.1684426e-05 | F105: 7.21310144e-07 | G105: 8.129288075e-06 | H105: 1.169452134e-05 | J105: -1.671499829e-05 | K105: -7.308906858e-06 | L105: 8.756962184e-06 | N105: -0.0004967998123 | O105: -0.01235481124 | P105: 0.0002654140063 | Q105: 0.00681581174 | R105: 5.252693158e-06
A106: 48.913 | B106: ='DF raw data'!A111 -> -3.1623265e-06 | C106: ='DF raw data'!B111 -> -4.7009685e-06 | D106: ='DF raw data'!C111 -> 9.0064223e-06 | F106: -3.16505875e-06 | G106: -4.715927231e-06 | H106: 9.014203849e-06 | J106: -1.613972268e-05 | K106: -8.07593153e-07 | L106: 3.406122149e-06 | N106: -0.0005048748384 | O106: -0.01260741022 | P106: 0.0002650099513 | Q106: 0.006948401518 | R106: 5.415361637e-06
A107: 49.41332 | B107: ='DF raw data'!A112 -> -4.7753283e-06 | C107: ='DF raw data'!B112 -> -3.2092589e-06 | D107: ='DF raw data'!C112 -> 3.245701e-06 | F107: -4.779454184e-06 | G107: -3.219470932e-06 | H107: 3.248505286e-06 | J107: -1.344759669e-05 | K107: 1.846515372e-07 | L107: 3.166119166e-07 | N107: -0.0005116029399 | O107: -0.0128633754 | P107: 0.0002651023361 | Q107: 0.007081037519 | R107: 5.581476291e-06
A108: 49.91364 | B108: ='DF raw data'!A113 -> -3.493539e-06 | C108: ='DF raw data'!B113 -> -1.0349263e-06 | D108: ='DF raw data'!C113 -> -9.4913027e-08 | F108: -3.496557418e-06 | G108: -1.03821949e-06 | H108: -9.499503186e-08 | J108: -1.015828118e-05 | K108: 1.824334516e-06 | L108: -9.917050935e-07 | N108: -0.0005166853312 | O108: -0.01312188341 | P108: 0.0002660150872 | Q108: 0.007214130188 | R108: 5.750448243e-06
A109: 50.41396 | B109: ='DF raw data'!A114 -> -2.0472114e-06 | C109: ='DF raw data'!B114 -> 6.3004977e-06 | D109: ='DF raw data'!C114 -> -1.3971094e-06 | F109: -2.048980191e-06 | G109: 6.320546218e-06 | H109: -1.398316503e-06 | J109: -7.88764244e-06 | K109: 8.771909042e-06 | L109: 2.709899632e-06 | N109: -0.0005206316765 | O109: -0.01338236585 | P109: 0.0002704038487 | Q109: 0.007349418641 | R109: 5.922646171e-06
A110: 50.91428 | B110: ='DF raw data'!A115 -> -2.7024241e-06 | C110: ='DF raw data'!B115 -> -5.528354e-06 | D110: ='DF raw data'!C115 -> 4.9276568e-06 | F110: -2.704758994e-06 | G110: -5.545945516e-06 | H110: 4.931914295e-06 | J110: -8.634812538e-06 | K110: -8.99303013e-06 | L110: 8.732650397e-06 | N110: -0.0005249518459 | O110: -0.01364500975 | P110: 0.0002659044559 | Q110: 0.007482455959 | R110: 6.095896791e-06
A111: 51.4146 | B111: ='DF raw data'!A116 -> -2.2688687e-07 | C111: ='DF raw data'!B116 -> -1.3255838e-07 | D111: ='DF raw data'!C116 -> 6.0105576e-06 | F111: -2.270829003e-07 | G111: -1.329801878e-07 | H111: 6.015750722e-06 | J111: -1.074324515e-05 | K111: 1.496933011e-06 | L111: 6.607808118e-06 | N111: -0.0005303269063 | O111: -0.01391034291 | P111: 0.0002666534014 | Q111: 0.007615867988 | R111: 6.272184875e-06
A112: 51.91492 | B112: ='DF raw data'!A117 -> 4.3895707e-06 | C112: ='DF raw data'!B117 -> 4.8786992e-06 | D112: ='DF raw data'!C117 -> -2.2162585e-06 | F112: 4.393363289e-06 | G112: 4.89422348e-06 | H112: -2.218173347e-06 | J112: -1.356003275e-05 | K112: 4.179855935e-06 | L112: 1.145258449e-06 | N112: -0.0005371112619 | O112: -0.01417907042 | P112: 0.0002687446669 | Q112: 0.00775032632 | R112: 6.452656405e-06
A113: 52.41524 | B113: ='DF raw data'!A118 -> 5.4023594e-06 | C113: ='DF raw data'!B118 -> 2.4284441e-06 | D113: ='DF raw data'!C118 -> -7.999739e-06 | F113: 5.407027039e-06 | G113: 2.436171538e-06 | H113: -8.006650774e-06 | J113: -1.42536245e-05 | K113: 5.564019044e-06 | L113: -1.860520502e-06 | N113: -0.0005442426353 | O113: -0.01445136589 | P113: 0.0002715284569 | Q113: 0.007886177438 | R113: 6.637738656e-06
A114: 52.91556 | B114: ='DF raw data'!A119 -> 1.657316e-06 | C114: ='DF raw data'!B119 -> 9.016544e-06 | D114: ='DF raw data'!C119 -> 2.423958e-06 | F114: 1.658747921e-06 | G114: 9.045235122e-06 | H114: 2.4260523e-06 | J114: -1.060321727e-05 | K114: 1.908124695e-06 | L114: -7.995847549e-06 | N114: -0.0005495476369 | O114: -0.01472631557 | P114: 0.0002724831299 | Q114: 0.008022506197 | R114: 6.825983886e-06
A115: 53.41588 | B115: ='DF raw data'!A120 -> 2.1623421e-06 | C115: ='DF raw data'!B120 -> 1.0002702e-05 | D115: ='DF raw data'!C120 -> 9.8045384e-06 | F115: 2.164210364e-06 | G115: 1.003453113e-05 | H115: 9.813009521e-06 | J115: -9.543456328e-06 | K115: -4.763583094e-06 | L115: -1.143053946e-05 | N115: -0.000554322419 | O115: -0.01500365416 | P115: 0.000270099814 | Q115: 0.008157642536 | R115: 7.016219186e-06
A116: 53.9162 | B116: ='DF raw data'!A121 -> 6.6449666e-06 | C116: ='DF raw data'!B121 -> -2.1247629e-06 | D116: ='DF raw data'!C121 -> 4.4298995e-06 | F116: 6.650707851e-06 | G116: -2.131524008e-06 | H116: 4.433726933e-06 | J116: -1.235115819e-05 | K116: -1.050131675e-06 | L116: -8.093233017e-06 | N116: -0.0005605019505 | O116: -0.0152840845 | P116: 0.0002695744121 | Q116: 0.008292516006 | R116: 7.209759373e-06
A117: 54.41652 | B117: ='DF raw data'!A122 -> 5.1889619e-06 | C117: ='DF raw data'!B122 -> 2.21456e-06 | D117: ='DF raw data'!C122 -> 2.4317469e-06 | F117: 5.193445163e-06 | G117: 2.221606847e-06 | H117: 2.433847929e-06 | J117: -1.21666369e-05 | K117: 1.16016299e-06 | L117: 3.119476401e-07 | N117: -0.0005665891622 | O117: -0.01556756039 | P117: 0.0002701548648 | Q117: 0.008427679888 | R117: 7.40688892e-06
A118: 54.91684 | B118: ='DF raw data'!A123 -> 5.8153382e-06 | C118: ='DF raw data'!B123 -> 1.1064115e-05 | D118: ='DF raw data'!C123 -> 3.9859169e-06 | F118: 5.820362652e-06 | G118: 1.10993216e-05 | H118: 3.989360732e-06 | J118: -9.261797385e-06 | K118: 3.798243877e-06 | L118: 3.997633374e-06 | N118: -0.0005712230247 | O118: -0.01585335469 | P118: 0.0002720552022 | Q118: 0.008563794547 | R118: 7.607171907e-06
A119: 55.41716 | B119: ='DF raw data'!A124 -> 9.4800162e-06 | C119: ='DF raw data'!B124 -> -2.6423236e-06 | D119: ='DF raw data'!C124 -> -1.1414759e-06 | F119: 9.488206934e-06 | G119: -2.650731614e-06 | H119: -1.142462135e-06 | J119: -5.634639026e-06 | K119: 1.693445541e-05 | L119: -1.321299417e-06 | N119: -0.0005740421473 | O119: -0.01614055946 | P119: 0.000280527849 | Q119: 0.00870414824 | R119: 7.811412668e-06
A120: 55.91748 | B120: ='DF raw data'!A125 -> 7.0469987e-06 | C120: ='DF raw data'!B125 -> -7.4487702e-06 | D120: ='DF raw data'!C125 -> -6.0704024e-06 | F120: 7.053087307e-06 | G120: -7.472472582e-06 | H120: -6.075647228e-06 | J120: -2.031999332e-06 | K120: 8.677009625e-06 | L120: 4.433406457e-06 | N120: -0.0005750587972 | O120: -0.01642827287 | P120: 0.0002848691304 | Q120: 0.008846673964 | R120: 8.017465979e-06
A121: 56.4178 | B121: ='DF raw data'!A126 -> 5.1683514e-07 | C121: ='DF raw data'!B126 -> 9.1684569e-07 | D121: ='DF raw data'!C126 -> -6.1999181e-06 | F121: 5.172816856e-07 | G121: 9.197631417e-07 | H121: -6.205274829e-06 | J121: 9.24683647e-07 | K121: 1.247679088e-05 | L121: 3.230732944e-06 | N121: -0.0005745961595 | O121: -0.01671575482 | P121: 0.0002911115184 | Q121: 0.008992322878 | R121: 8.22505208e-06
A122: 56.91812 | B122: ='DF raw data'!A127 -> -8.6721479e-07 | C122: ='DF raw data'!B127 -> -6.119169e-06 | D122: ='DF raw data'!C127 -> -8.6739328e-06 | F122: -8.679640636e-07 | G122: -6.138640521e-06 | H122: -8.681427078e-06 | J122: -7.357460558e-06 | K122: 1.680890316e-05 | L122: -3.316517798e-08 | N122: -0.0005782772442 | O122: -0.01700507849 | P122: 0.0002995213489 | Q122: 0.0091421794 | R122: 8.437246603e-06
A123: 57.41844 | B123: ='DF raw data'!A128 -> 2.3640589e-06 | C123: ='DF raw data'!B128 -> -2.5390486e-06 | D123: ='DF raw data'!C128 -> -5.2012056e-06 | F123: 2.366101447e-06 | G123: -2.547127987e-06 | H123: -5.205699442e-06 | J123: -1.788499129e-05 | K123: 2.050008444e-06 | L123: 1.808179418e-06 | N123: -0.000587225463 | O123: -0.01729887914 | P123: 0.0003005470091 | Q123: 0.009292549079 | R123: 8.654966979e-06
A124: 57.91876 | B124: ='DF raw data'!A129 -> 2.3017149e-06 | C124: ='DF raw data'!B129 -> 1.7244806e-06 | D124: ='DF raw data'!C129 -> 9.9331191e-07 | F124: 2.303703582e-06 | G124: 1.729967989e-06 | H124: 9.941701315e-07 | J124: -1.668526863e-05 | K124: 7.458910464e-07 | L124: 2.508330727e-06 | N124: -0.0005955734366 | O124: -0.01759685644 | P124: 0.0003009201933 | Q124: 0.00944310547 | R124: 8.877739803e-06
A125: 58.41908 | B125: ='DF raw data'!A130 -> 5.7944567e-07 | C125: ='DF raw data'!B130 -> 2.8687523e-06 | D125: ='DF raw data'!C130 -> -4.1589719e-06 | F125: 5.799463111e-07 | G125: 2.877880822e-06 | H125: -4.162565252e-06 | J125: -1.266608705e-05 | K125: -2.769590329e-06 | L125: 6.663626503e-06 | N125: -0.0006019105333 | O125: -0.01789800432 | P125: 0.0002995345119 | Q125: 0.009592968577 | R125: 9.103893056e-06
A126: 58.9194 | B126: ='DF raw data'!A131 -> 3.0556496e-06 | C126: ='DF raw data'!B131 -> 2.4467213e-06 | D126: ='DF raw data'!C131 -> -5.7011621e-06 | F126: 3.058289681e-06 | G126: 2.454506897e-06 | H126: -5.706087904e-06 | J126: -1.31014689e-05 | K126: 7.391362203e-06 | L126: 1.042345309e-05 | N126: -0.0006084654602 | O126: -0.01820243176 | P126: 0.0003032325582 | Q126: 0.009744681891 | R126: 9.335131054e-06
A127: 59.41972 | B127: ='DF raw data'!A132 -> 4.9985256e-06 | C127: ='DF raw data'!B132 -> -9.6341091e-07 | D127: ='DF raw data'!C132 -> -5.501699e-06 | F127: 5.002844326e-06 | G127: -9.664765347e-07 | H127: -5.506452468e-06 | J127: -1.451537446e-05 | K127: 4.650612054e-06 | L127: 1.191035566e-05 | N127: -0.0006157277923 | O127: -0.01851049269 | P127: 0.0003055593524 | Q127: 0.009897559346 | R127: 9.571525866e-06
A128: 59.92004 | B128: ='DF raw data'!A133 -> 4.38403e-06 | C128: ='DF raw data'!B133 -> -1.1439443e-05 | D128: ='DF raw data'!C133 -> -9.2877617e-06 | F128: 4.387817802e-06 | G128: -1.147584391e-05 | H128: -9.295786326e-06 | J128: -1.30108787e-05 | K128: -7.591601454e-06 | L128: 4.36419601e-06 | N128: -0.0006222373952 | O128: -0.0188218105 | P128: 0.0003017611224 | Q128: 0.01004853647 | R128: 9.810798478e-06
A129: 60.42036 | B129: ='DF raw data'!A134 -> 2.6386663e-06 | C129: ='DF raw data'!B134 -> 1.3776527e-07 | D129: ='DF raw data'!C134 -> -3.0499814e-06 | F129: 2.640946108e-06 | G129: 1.382036464e-07 | H129: -3.052616584e-06 | J129: -1.119091961e-05 | K129: 5.784740464e-06 | L129: 3.784927855e-07 | N129: -0.0006278364361 | O129: -0.01913592963 | P129: 0.0003046553437 | Q129: 0.01020096163 | R129: 1.005445105e-05
A130: 60.92068 | B130: ='DF raw data'!A135 -> 2.7736335e-06 | C130: ='DF raw data'!B135 -> -6.9496177e-06 | D130: ='DF raw data'!C135 -> -2.6042017e-06 | F130: 2.776029919e-06 | G130: -6.971731752e-06 | H130: -2.60645173e-06 | J130: -1.387429304e-05 | K130: 1.946138473e-06 | L130: 5.717999787e-07 | N130: -0.0006347780224 | O130: -0.01945352177 | P130: 0.0003056290357 | Q130: 0.01035387395 | R130: 1.030278601e-05
A131: 61.421 | B131: ='DF raw data'!A136 -> 6.8690451e-06 | C131: ='DF raw data'!B136 -> -6.1505211e-06 | D131: ='DF raw data'!C136 -> 1.5782553e-06 | F131: 6.874979955e-06 | G131: -6.170092385e-06 | H131: 1.579618913e-06 | J131: -1.572632081e-05 | K131: -7.496698426e-06 | L131: -1.798108024e-06 | N131: -0.0006426462152 | O131: -0.01977505052 | P131: 0.0003018782876 | Q131: 0.0105049097 | R131: 1.055500965e-05
A132: 61.92132 | B132: ='DF raw data'!A137 -> 1.009124e-05 | C132: ='DF raw data'!B137 -> -1.662434e-06 | D132: ='DF raw data'!C137 -> 4.4748886e-06 | F132: 1.009995883e-05 | G132: -1.667723953e-06 | H132: 4.478754904e-06 | J132: -1.226905331e-05 | K132: -3.931898022e-07 | L132: -3.771541599e-06 | N132: -0.0006487846679 | O132: -0.02009965047 | P132: 0.0003016815668 | Q132: 0.01065584702 | R132: 1.081114013e-05
A133: 62.42164 | B133: ='DF raw data'!A138 -> 1.3173196e-05 | C133: ='DF raw data'!B138 -> -1.5937198e-06 | D133: ='DF raw data'!C138 -> 4.0689756e-06 | F133: 1.318457764e-05 | G133: -1.598791101e-06 | H133: 4.072491195e-06 | J133: -8.757003119e-06 | K133: 7.965587322e-06 | L133: 2.595919438e-07 | N133: -0.0006531659717 | O133: -0.02042644246 | P133: 0.0003056669095 | Q133: 0.01080877829 | R133: 1.107133557e-05
A134: 62.92196 | B134: ='DF raw data'!A139 -> 1.5401825e-05 | C134: ='DF raw data'!B139 -> -4.750668e-07 | D134: ='DF raw data'!C139 -> 5.9607082e-06 | F134: 1.541513218e-05 | G134: -4.765784878e-07 | H134: 5.965858252e-06 | J134: -6.798419063e-06 | K134: 9.657682781e-08 | L134: 5.821917394e-07 | N134: -0.0006565673568 | O134: -0.02075493624 | P134: 0.0003057152288 | Q134: 0.01096173373 | R134: 1.133377467e-05
A135: 63.42228 | B135: ='DF raw data'!A140 -> 1.2698273e-05 | C135: ='DF raw data'!B140 -> -3.3324118e-06 | D135: ='DF raw data'!C140 -> 6.9315338e-06 | F135: 1.270924431e-05 | G135: =(1-$G$1*($B$2-$G$2))*C135*$M$2/$M$1 -> -3.343015711e-06 | H135: 6.937522645e-06 | J135: =-CELL("contents", INDEX($F$6:$F$1203,1204-CELL("row",F135))) -> -6.973186532e-06 | K135: =CELL("contents", INDEX($G$6:$G$1203,1204-CELL("row",G135))) -> -5.596944382e-06 | L135: =-CELL("contents", INDEX($H$6:$H$1203,1204-CELL("row",H135))) -> -6.189488702e-07 | N135: -0.0006600561815 | O135: -0.02108517555 | P135: 0.0003029149656 | Q135: 0.01111328814 | R135: 1.159765927e-05
A136: =A135+$B$1 -> 63.9226 | B136: ='DF raw data'!A141 -> 1.2332353e-05 | C136: ='DF raw data'!B141 -> -1.0548815e-05 | D136: ='DF raw data'!C141 -> 4.8181755e-06 | F136: 1.234300815e-05 | G136: -1.058238189e-05 | H136: 4.822338404e-06 | J136: -7.318244705e-06 | K136: 4.517027329e-06 | L136: 3.955469175e-06 | N136: =J136*$B$1+N135 -> -0.0006637176456 | O136: =N136*$B$1+O135 -> -0.02141724677 | P136: =K136*$B$1+P135 -> 0.0003051749247 | Q136: =P136*$B$1+Q135 -> 0.01126597326 | R136: =(N136^2+P136^2)*$B$1+R135 -> 1.186465646e-05
A137: 64.42292 | B137: ='DF raw data'!A142 -> 1.3721142e-05 | C137: ='DF raw data'!B142 -> 2.6500661e-06 | D137: ='DF raw data'!C142 -> 2.717334e-07 | F137: 1.373299707e-05 | G137: 2.658498751e-06 | H137: 2.719681777e-07 | J137: -9.905884596e-06 | K137: 3.666133628e-06 | L137: 5.422921459e-06 | N137: -0.0006686737578 | O137: -0.02175179762 | P137: 0.0003070091647 | Q137: 0.01141957609 | R137: 1.213551932e-05
A138: 64.92324 | B138: ='DF raw data'!A143 -> 1.1209027e-05 | C138: ='DF raw data'!B143 -> 1.0866376e-05 | D138: ='DF raw data'!C143 -> 2.6538382e-06 | F138: 1.12187116e-05 | G138: 1.090095339e-05 | H138: 2.656131116e-06 | J138: -9.84809631e-06 | K138: 4.902324075e-07 | L138: 5.283437349e-06 | N138: -0.0006736009574 | O138: -0.02208881365 | P138: 0.0003072544378 | Q138: 0.01157330163 | R138: 1.240976649e-05
A139: 65.42356 | B139: ='DF raw data'!A144 -> 5.7750885e-06 | C139: ='DF raw data'!B144 -> -6.8520835e-06 | D139: ='DF raw data'!C144 -> 5.5080091e-06 | F139: =(1-$G$1*($B$2-$G$2))*B139 -> 5.780078176e-06 | G139: -6.873887193e-06 | H139: =(1-$G$1*($B$2-$G$2))*D139 -> 5.51276802e-06 | J139: -6.828548373e-06 | K139: -2.596119687e-06 | L139: 9.218649137e-06 | N139: -0.0006770174167 | O139: -0.022427539 | P139: 0.0003059555472 | Q139: 0.01172637731 | R139: 1.268592381e-05
A140: 65.92388 | B140: ='DF raw data'!A145 -> 5.8525279e-07 | C140: ='DF raw data'!B145 -> 3.137206e-06 | D140: ='DF raw data'!C145 -> 2.4686833e-06 | F140: 5.857584484e-07 | G140: 3.147188756e-06 | H140: 2.470816242e-06 | J140: -1.081806974e-05 | K140: -1.460235207e-05 | L140: 3.726857725e-06 | N140: -0.0006824299134 | O140: -0.02276897234 | P140: 0.0002986496984 | Q140: 0.01187579773 | R140: 1.296355249e-05
A141: 66.4242 | B141: ='DF raw data'!A146 -> 2.1025346e-06 | C141: ='DF raw data'!B146 -> 1.0802864e-05 | D141: ='DF raw data'!C146 -> -3.361185e-06 | F141: 2.10435119e-06 | G141: 1.083723929e-05 | H141: -3.364089064e-06 | J141: -1.614780666e-05 | K141: -1.184915705e-05 | L141: -8.477249321e-06 | N141: -0.000690508984 | O141: -0.02311444779 | P141: 0.0002927213281 | Q141: 0.01202225206 | R141: 1.32449767e-05
A142: 66.92452 | B142: ='DF raw data'!A147 -> 6.8944764e-06 | C142: ='DF raw data'!B147 -> 5.7134189e-06 | D142: ='DF raw data'!C147 -> -4.7763915e-06 | F142: 6.900433228e-06 | G142: 5.731599302e-06 | H142: -4.780518302e-06 | J142: -1.681226926e-05 | K142: 1.793280514e-06 | L142: -6.357535569e-06 | N142: -0.0006989204985 | O142: -0.0234641317 | P142: 0.0002936185422 | Q142: 0.01216915529 | R142: 1.353251146e-05
A143: 67.42484 | B143: ='DF raw data'!A148 -> 9.5057812e-06 | C143: ='DF raw data'!B148 -> 1.0540282e-05 | D143: ='DF raw data'!C148 -> -5.3986059e-06 | F143: 9.513994195e-06 | G143: 1.057382174e-05 | H143: -5.403270295e-06 | J143: -1.668212992e-05 | K143: 1.891395129e-06 | L143: 3.310400717e-06 | N143: -0.0007072669018 | O143: -0.02381799147 | P143: 0.000294564845 | Q143: 0.01231653197 | R143: 1.382619676e-05
A144: 67.92516 | B144: ='DF raw data'!A149 -> 7.7811765e-06 | C144: ='DF raw data'!B149 -> 7.6691967e-06 | D144: ='DF raw data'!C149 -> -3.6461042e-06 | F144: 7.787899436e-06 | G144: 7.693600491e-06 | H144: -3.649254434e-06 | J144: -1.621234137e-05 | K144: -8.643008575e-06 | L144: 6.49170369e-06 | N144: -0.0007153782604 | O144: -0.02417590953 | P144: 0.000290240575 | Q144: 0.01246174514 | R144: 1.412439031e-05
A145: 68.42548 | B145: ='DF raw data'!A150 -> 1.2605572e-06 | C145: ='DF raw data'!B150 -> 6.2914246e-06 | D145: ='DF raw data'!C150 -> -2.7148232e-07 | F145: 1.261646321e-06 | G145: 6.311444247e-06 | H145: -2.717168807e-07 | J145: -1.219148935e-05 | K145: 4.624645489e-06 | L145: 2.162151086e-06 | N145: -0.0007214779064 | O145: -0.02453687935 | P145: 0.0002925543776 | Q145: 0.01260811594 | R145: 1.442764348e-05
A146: 68.9258 | B146: ='DF raw data'!A151 -> 5.5261285e-07 | C146: ='DF raw data'!B151 -> 1.4074899e-05 | D146: ='DF raw data'!C151 -> -4.6768216e-07 | F146: 5.530903075e-07 | G146: 1.411968608e-05 | H146: -4.680862374e-07 | J146: -4.930358653e-06 | K146: 1.032954289e-05 | L146: 4.860386349e-06 | N146: -0.0007239446634 | O146: -0.02489908335 | P146: 0.0002977224545 | Q146: 0.01275707244 | R146: 1.473420682e-05
A147: 69.42612 | B147: ='DF raw data'!A152 -> 4.028856e-06 | C147: ='DF raw data'!B152 -> 8.1053686e-06 | D147: ='DF raw data'!C152 -> -1.7366019e-06 | F147: 4.032336932e-06 | G147: 8.131160313e-06 | H147: -1.738102324e-06 | J147: -1.906468066e-06 | K147: 6.973075715e-06 | L147: 1.646711831e-05 | N147: -0.0007248985075 | O147: -0.02526176457 | P147: 0.0003012112238 | Q147: 0.01290777444 | R147: 1.504250703e-05
A148: 69.92644 | B148: ='DF raw data'!A153 -> 5.2278765e-06 | C148: ='DF raw data'!B153 -> -5.5598443e-06 | D148: ='DF raw data'!C153 -> 8.1148573e-07 | F148: 5.232393385e-06 | G148: -5.57753602e-06 | H148: 8.121868537e-07 | J148: -5.607047507e-06 | K148: -3.278498866e-06 | L148: 1.5806466e-05 | N148: -0.0007277038255 | O148: -0.02562584934 | P148: 0.0002995709252 | Q148: 0.01305765577 | R148: 1.535235301e-05
A149: 70.42676 | B149: ='DF raw data'!A154 -> 2.6445398e-06 | C149: ='DF raw data'!B154 -> -8.4652629e-07 | D149: ='DF raw data'!C154 -> -1.1957836e-06 | F149: 2.646824682e-06 | G149: -8.492199816e-07 | H149: -1.196816757e-06 | J149: -7.579728232e-06 | K149: -4.405123775e-06 | L149: 7.12844486e-06 | N149: -0.0007314961151 | O149: -0.02599183148 | P149: 0.0002973669537 | Q149: 0.0132064344 | R149: 1.566430937e-05
A150: 70.92708 | B150: ='DF raw data'!A155 -> -2.7461351e-07 | C150: ='DF raw data'!B155 -> 2.4952883e-06 | D150: ='DF raw data'!C155 -> -4.1640287e-06 | F150: -2.748507761e-07 | G150: 2.50322844e-06 | H150: -4.167626421e-06 | J150: -5.617135315e-06 | K150: 7.696009231e-06 | L150: 6.636984404e-06 | N150: -0.0007343064803 | O150: -0.0263592197 | P150: 0.000301217421 | Q150: 0.0133571395 | R150: 1.597947992e-05
A151: 71.4274 | B151: ='DF raw data'!A156 -> -2.2366464e-06 | C151: ='DF raw data'!B156 -> 1.2046498e-06 | D151: ='DF raw data'!C156 -> -3.9563802e-06 | F151: -2.238578862e-06 | G151: 1.20848306e-06 | H151: -3.959798512e-06 | J151: -4.522100622e-06 | K151: 2.372723985e-06 | L151: 6.256432591e-06 | N151: -0.0007365689777 | O151: -0.02672773989 | P151: 0.0003024045423 | Q151: 0.01350843854 | R151: 1.629667398e-05
A152: 71.92772 | B152: ='DF raw data'!A157 -> -6.2269273e-06 | C152: ='DF raw data'!B157 -> 4.9754331e-06 | D152: ='DF raw data'!C157 -> -4.2514821e-06 | F152: -6.232307365e-06 | G152: 4.991265192e-06 | H152: -4.255155381e-06 | J152: -2.106555893e-06 | K152: 6.779643657e-08 | L152: 7.562750576e-06 | N152: -0.0007376229297 | O152: -0.02709678739 | P152: 0.0003024384622 | Q152: 0.01365975455 | R152: 1.661465566e-05
A153: 72.42804 | B153: ='DF raw data'!A158 -> -5.553492e-06 | C153: ='DF raw data'!B158 -> 1.4259963e-05 | D153: ='DF raw data'!C158 -> 3.1570507e-06 | F153: -5.558290217e-06 | G153: 1.430533896e-05 | H153: 3.159778392e-06 | J153: -4.686645666e-06 | K153: 4.700807974e-06 | L153: 7.180600283e-06 | N153: -0.0007399677523 | O153: -0.02746700806 | P153: 0.0003047903704 | Q153: 0.01381224727 | R153: 1.693508532e-05
A154: 72.92836 | B154: ='DF raw data'!A159 -> -1.3785818e-06 | C154: ='DF raw data'!B159 -> 1.4591663e-05 | D154: ='DF raw data'!C159 -> 4.8818674e-06 | F154: -1.379772895e-06 | G154: 1.463809445e-05 | H154: 4.886085333e-06 | J154: -1.040580285e-05 | K154: 2.300981019e-06 | L154: 6.224261419e-07 | N154: -0.0007451739836 | O154: -0.02783983351 | P154: 0.0003059415973 | Q154: 0.01396531597 | R154: 1.725973523e-05
A155: 73.42868 | B155: ='DF raw data'!A160 -> -4.5078623e-06 | C155: ='DF raw data'!B160 -> 1.4853848e-05 | D155: ='DF raw data'!C160 -> 5.2712094e-06 | F155: -4.511757093e-06 | G155: 1.490111373e-05 | H155: 5.275763725e-06 | J155: -1.376372759e-05 | K155: -2.880960089e-06 | L155: -3.129404171e-06 | N155: -0.0007520602518 | O155: -0.02821610429 | P155: 0.0003045001953 | Q155: 0.01411766351 | R155: 1.758910339e-05
A156: 73.929 | B156: ='DF raw data'!A161 -> -7.0858596e-06 | C156: ='DF raw data'!B161 -> 1.411066e-05 | D156: ='DF raw data'!C161 -> 9.9579465e-06 | F156: -7.091981783e-06 | G156: 1.415556087e-05 | H156: 9.966550166e-06 | J156: -1.323134201e-05 | K156: -9.933739422e-06 | L156: -1.759872617e-06 | N156: -0.0007586801568 | O156: -0.02859568715 | P156: 0.0002995301468 | Q156: 0.01426752443 | R156: 1.792197323e-05
A157: 74.42932 | B157: ='DF raw data'!A162 -> -8.065007e-06 | C157: ='DF raw data'!B162 -> 1.152911e-05 | D157: ='DF raw data'!C162 -> 9.1509119e-06 | F157: -8.071975166e-06 | G157: 1.156579624e-05 | H157: 9.158818288e-06 | J157: -7.658226296e-06 | K157: 1.920573281e-06 | L157: 1.746629885e-06 | N157: -0.0007625117206 | O157: -0.02897718701 | P157: 0.000300491048 | Q157: 0.01441786611 | R157: 1.825804768e-05
A158: 74.92964 | B158: ='DF raw data'!A163 -> -8.5269139e-06 | C158: ='DF raw data'!B163 -> 6.646877e-06 | D158: ='DF raw data'!C163 -> 1.2289669e-05 | F158: -8.534281154e-06 | G158: 6.668027716e-06 | H158: 1.230028727e-05 | J158: -3.988378584e-06 | K158: -1.445261712e-06 | L158: 3.510236426e-06 | N158: -0.0007645071861 | O158: -0.02935968525 | P158: 0.0002997679547 | Q158: 0.01456784602 | R158: 1.85954295e-05
A159: 75.42996 | B159: ='DF raw data'!A164 -> -1.7490408e-06 | C159: ='DF raw data'!B164 -> -4.1193648e-06 | D159: ='DF raw data'!C164 -> 1.0869937e-05 | F159: -1.750551971e-06 | G159: -4.132472837e-06 | H159: 1.087932863e-05 | J159: -3.714803119e-06 | K159: -2.17167637e-06 | L159: 6.950925615e-06 | N159: -0.0007663657764 | O159: -0.02974311337 | P159: 0.0002986814216 | Q159: 0.0147172823 | R159: 1.893390953e-05
A160: 75.93028 | B160: ='DF raw data'!A165 -> 5.0650078e-06 | C160: ='DF raw data'!B165 -> -4.0617247e-06 | D160: ='DF raw data'!C165 -> 5.5102046e-06 | F160: 5.069383967e-06 | G160: -4.074649324e-06 | H160: 5.514965417e-06 | J160: -4.830949637e-06 | K160: -2.768711843e-07 | L160: 9.980750524e-06 | N160: -0.0007687827972 | O160: -0.03012775078 | P160: 0.0002985428974 | Q160: 0.01486664929 | R160: 1.927420461e-05
A161: 76.4306 | B161: ='DF raw data'!A166 -> 3.659866e-06 | C161: ='DF raw data'!B166 -> 1.5763688e-05 | D161: ='DF raw data'!C166 -> 6.1752125e-06 | F161: 3.663028124e-06 | G161: 1.581384889e-05 | H161: 6.180547884e-06 | J161: -3.975083908e-06 | K161: 1.914818026e-06 | L161: 4.460183272e-06 | N161: -0.0007707716111 | O161: -0.03051338323 | P161: 0.0002995009191 | Q161: 0.01501649559 | R161: 1.961631826e-05
A162: 76.93092 | B162: ='DF raw data'!A167 -> 1.0015021e-06 | C162: ='DF raw data'!B167 -> 6.8320719e-06 | D162: ='DF raw data'!C167 -> 1.0092119e-05 | F162: 1.002367398e-06 | G162: 6.853811916e-06 | H162: 1.010083859e-05 | J162: -3.81835451e-06 | K162: 2.209158261e-06 | L162: 2.216640424e-06 | N162: -0.0007726820103 | O162: -0.0308999715 | P162: 0.0003006062052 | Q162: 0.01516689488 | R162: 1.996023902e-05
A163: 77.43124 | B163: ='DF raw data'!A168 -> 4.9342348e-09 | C163: ='DF raw data'!B168 -> 6.9965886e-06 | D163: ='DF raw data'!C168 -> 3.9870483e-06 | F163: 4.938497979e-09 | G163: 7.018852116e-06 | H163: 3.99049311e-06 | J163: -4.496713807e-06 | K163: -5.365248753e-06 | L163: 3.552735614e-06 | N163: -0.0007749318061 | O163: -0.03128768538 | P163: 0.0002979218639 | Q163: 0.01531595115 | R163: 2.030509796e-05
A164: 77.93156 | B164: ='DF raw data'!A169 -> 6.5700829e-07 | C164: ='DF raw data'!B169 -> 1.4675056e-05 | D164: ='DF raw data'!C169 -> -3.5892026e-06 | F164: 6.575759452e-07 | G164: 1.472175281e-05 | H164: -3.592303671e-06 | J164: -4.147713131e-06 | K164: -4.396561917e-06 | L164: 4.677736676e-06 | N164: -0.00077700699 | O164: -0.03167643752 | P164: 0.0002957221761 | Q164: 0.01546390687 | R164: 2.065091487e-05
A165: 78.43188 | B165: ='DF raw data'!A170 -> 1.4265627e-06 | C165: ='DF raw data'!B170 -> 1.9623826e-06 | D165: ='DF raw data'!C170 -> 9.3035872e-08 | F165: 1.42779525e-06 | G165: 1.968627006e-06 | H165: 9.311625499e-08 | J165: -7.099050985e-06 | K165: -4.944279857e-06 | L165: 2.553695488e-06 | N165: -0.0007805587871 | O165: -0.03206696669 | P165: 0.000293248454 | Q165: 0.01561062494 | R165: 2.09987707e-05
A166: 78.9322 | B166: ='DF raw data'!A171 -> -2.7609628e-06 | C166: ='DF raw data'!B171 -> 3.8998792e-06 | D166: ='DF raw data'!C171 -> 3.3541855e-06 | F166: -2.763348272e-06 | G166: 3.912288823e-06 | H166: 3.357083516e-06 | J166: -1.075981345e-05 | K166: -3.98945148e-07 | L166: 8.97265318e-07 | N166: -0.000785942137 | O166: -0.03246018926 | P166: 0.0002930488538 | Q166: 0.01575724314 | R166: 2.135078718e-05
A167: 79.43252 | B167: ='DF raw data'!A172 -> -4.0852728e-06 | C167: ='DF raw data'!B172 -> 1.3179338e-05 | D167: ='DF raw data'!C172 -> 6.2417676e-06 | F167: -4.088802476e-06 | G167: 1.322127535e-05 | H167: 6.247160487e-06 | J167: -1.589741351e-05 | K167: 2.910675746e-06 | L167: 1.624131538e-06 | N167: -0.0007938959309 | O167: -0.03285739127 | P167: 0.000294505123 | Q167: 0.01590458994 | R167: 2.170951863e-05
A168: 79.93284 | B168: ='DF raw data'!A173 -> -2.4982371e-06 | C168: ='DF raw data'!B173 -> 1.2410262e-05 | D168: ='DF raw data'!C173 -> 1.6374888e-06 | F168: -2.500395577e-06 | G168: 1.244975211e-05 | H168: 1.63890359e-06 | J168: -1.559103503e-05 | K168: 4.449032552e-06 | L168: 6.677284393e-06 | N168: -0.0008016964376 | O168: -0.03325849603 | P168: 0.000296731063 | Q168: 0.01605305043 | R168: 2.207513573e-05
A169: 80.43316 | B169: ='DF raw data'!A174 -> -2.0586117e-07 | C169: ='DF raw data'!B174 -> 4.8756287e-06 | D169: ='DF raw data'!C174 -> -1.0340573e-06 | F169: -2.060390341e-07 | G169: 4.891143209e-06 | H169: -1.034950726e-06 | J169: -1.146743431e-05 | K169: 6.0320439e-07 | L169: 8.35862712e-06 | N169: -0.0008074338243 | O169: -0.03366247132 | P169: 0.0002970328582 | Q169: 0.01620166191 | R169: 2.244546153e-05
A170: 80.93348 | B170: ='DF raw data'!A175 -> 3.8011742e-06 | C170: ='DF raw data'!B175 -> 6.4207184e-06 | D170: ='DF raw data'!C175 -> 6.701341e-08 | F170: 3.804458415e-06 | G170: 6.441149467e-06 | H170: 6.707130959e-08 | J170: -1.026864745e-05 | K170: -7.107991563e-06 | L170: 7.733078712e-06 | N170: -0.000812571434 | O170: -0.03406901706 | P170: 0.0002934765879 | Q170: 0.01634849411 | R170: 2.28189008e-05
A171: 81.4338 | B171: ='DF raw data'!A176 -> 6.8988147e-06 | C171: ='DF raw data'!B176 -> 3.9439096e-06 | D171: ='DF raw data'!C176 -> -1.0077001e-06 | F171: 6.904775276e-06 | G171: 3.95645933e-06 | H171: -1.008570753e-06 | J171: -1.149702986e-05 | K171: -9.290315507e-06 | L171: 8.547670512e-06 | N171: -0.000818323628 | O171: -0.03447844074 | P171: 0.0002888284572 | Q171: 0.01649300077 | R171: 2.31956795e-05
A172: 81.93412 | B172: ='DF raw data'!A177 -> 8.6216187e-06 | C172: ='DF raw data'!B177 -> 4.0313048e-06 | D172: ='DF raw data'!C177 -> -4.219668e-06 | F172: 8.629067779e-06 | G172: 4.044132626e-06 | H172: -4.223313793e-06 | J172: -1.335126053e-05 | K172: -4.125378133e-06 | L172: 1.002111977e-05 | N172: -0.0008250035307 | O172: -0.03489120651 | P172: 0.000286764448 | Q172: 0.01663647476 | R172: 2.357735596e-05
A173: 82.43444 | B173: ='DF raw data'!A178 -> 7.4898817e-06 | C173: ='DF raw data'!B178 -> 1.1932195e-05 | D173: ='DF raw data'!C178 -> -5.9397589e-06 | F173: 7.496352958e-06 | G173: 1.197016388e-05 | H173: -5.944890852e-06 | J173: -1.226163691e-05 | K173: -1.8978174e-06 | L173: 8.227666868e-06 | N173: -0.0008311382728 | O173: -0.03530704161 | P173: 0.000285814932 | Q173: 0.01677947368 | R173: 2.396384365e-05
A174: 82.93476 | B174: ='DF raw data'!A179 -> 2.7721646e-06 | C174: ='DF raw data'!B179 -> 4.6214504e-06 | D174: ='DF raw data'!C179 -> -4.2030279e-06 | F174: 2.77455975e-06 | G174: 4.636156101e-06 | H174: -4.206659316e-06 | J174: -1.118484036e-05 | K174: 6.754496591e-06 | L174: 3.128797648e-07 | N174: -0.0008367342722 | O174: -0.0357256765 | P174: 0.0002891943418 | Q174: 0.0169241634 | R174: 2.435597326e-05
A175: 83.43508 | B175: ='DF raw data'!A180 -> -1.2324679e-06 | C175: ='DF raw data'!B180 -> 6.8775721e-06 | D175: ='DF raw data'!C180 -> -5.5637265e-06 | F175: -1.233532752e-06 | G175: 6.8994569e-06 | H175: -5.56853356e-06 | J175: -1.0107108e-05 | K175: 1.453114822e-05 | L175: -3.782816532e-07 | N175: -0.0008417910604 | O175: -0.0361468414 | P175: 0.0002964645659 | Q175: 0.01707249055 | R175: 2.475447986e-05
A176: 83.9354 | B176: ='DF raw data'!A181 -> -1.0894178e-07 | C176: ='DF raw data'!B181 -> 3.1710974e-06 | D176: ='DF raw data'!C181 -> -8.4740041e-06 | F176: -1.090359057e-07 | G176: 3.181188e-06 | H176: -8.48132564e-06 | J176: -7.713676063e-06 | K176: 3.068084641e-06 | L176: 1.101129755e-05 | N176: -0.0008456503668 | O176: -0.03656993719 | P176: 0.00029799959 | Q176: 0.0172215857 | R176: 2.515670126e-05
A177: 84.43572 | B177: ='DF raw data'!A182 -> 8.0032009e-07 | C177: ='DF raw data'!B182 -> 2.3099587e-06 | D177: ='DF raw data'!C182 -> -4.8701677e-06 | F177: 8.010115666e-07 | G177: 2.317309111e-06 | H177: -4.874375525e-06 | J177: -6.252738603e-06 | K177: -2.482479826e-06 | L177: 9.753872271e-06 | N177: -0.000848778737 | O177: -0.03699459817 | P177: 0.0002967575557 | Q177: 0.01737005944 | R177: 2.556120518e-05
A178: 84.93604 | B178: ='DF raw data'!A183 -> 8.4283897e-07 | C178: ='DF raw data'!B183 -> 1.3418571e-05 | D178: ='DF raw data'!C183 -> 5.8950209e-06 | F178: 8.435671829e-07 | G178: 1.346126961e-05 | H178: 5.900114198e-06 | J178: -4.476003128e-06 | K178: 6.746062439e-06 | L178: -3.007572299e-06 | N178: -0.0008510181709 | O178: -0.03742037958 | P178: 0.0003001327456 | Q178: 0.01752022186 | R178: 2.596862155e-05
A179: 85.43636 | B179: ='DF raw data'!A184 -> 8.4654248e-06 | C179: ='DF raw data'!B184 -> 1.2006646e-05 | D179: ='DF raw data'!C184 -> 8.5575157e-06 | F179: 8.472738927e-06 | G179: 1.204485179e-05 | H179: 8.564909394e-06 | J179: -5.788896989e-06 | K179: -6.754829146e-07 | L179: -3.563112772e-06 | N179: -0.0008539144718 | O179: -0.03784761007 | P179: 0.000299794788 | Q179: 0.01767021519 | R179: 2.637840707e-05
A180: 85.93668 | B180: ='DF raw data'!A185 -> 1.3165853e-05 | C180: ='DF raw data'!B185 -> 1.6096323e-05 | D180: ='DF raw data'!C185 -> 4.2892043e-06 | F180: 1.31772283e-05 | G180: 1.614754235e-05 | H180: 4.292910173e-06 | J180: -1.444135256e-05 | K180: -9.027562164e-06 | L180: 4.18954234e-06 | N180: -0.0008611397694 | O180: -0.03827845552 | P180: 0.0002952781181 | Q180: 0.01781794873 | R180: 2.67930477e-05
A181: 86.437 | B181: ='DF raw data'!A186 -> 1.0482993e-05 | C181: ='DF raw data'!B186 -> 1.8232224e-05 | D181: ='DF raw data'!C186 -> 1.2792971e-06 | F181: 1.049205031e-05 | G181: 1.82902399e-05 | H181: 1.280402413e-06 | J181: -2.053723385e-05 | K181: -4.539113586e-06 | L181: 6.726377573e-06 | N181: -0.0008714149582 | O181: -0.03871444185 | P181: 0.0002930071088 | Q181: 0.01796454605 | R181: 2.721592677e-05
A182: 86.93732 | B182: ='DF raw data'!A187 -> 9.5088517e-06 | C182: ='DF raw data'!B187 -> 8.0926939e-06 | D182: ='DF raw data'!C187 -> 6.8352292e-06 | F182: 9.517067348e-06 | G182: 8.118445282e-06 | H182: 6.841134838e-06 | J182: -2.121826576e-05 | K182: -3.919818005e-07 | L182: 1.315917872e-06 | N182: -0.0008820308809 | O182: -0.03915573954 | P182: 0.0002928109925 | Q182: 0.01811104525 | R182: 2.764806153e-05
A183: 87.43764 | B183: ='DF raw data'!A188 -> 6.5516515e-06 | C183: ='DF raw data'!B188 -> 4.8396055e-06 | D183: ='DF raw data'!C188 -> 7.9191959e-06 | F183: 6.557312127e-06 | G183: 4.855005382e-06 | H183: 7.926038085e-06 | J183: -1.80753256e-05 | K183: 2.763167958e-06 | L183: -2.729070081e-06 | N183: -0.0008910743278 | O183: -0.03960156185 | P183: 0.0002941934606 | Q183: 0.01825823612 | R183: 2.808862494e-05
A184: 87.93796 | B184: ='DF raw data'!A189 -> 8.5299916e-08 | C184: ='DF raw data'!B189 -> 1.2229068e-05 | D184: ='DF raw data'!C189 -> 6.563514e-07 | F184: 8.537361513e-08 | G184: 1.226798154e-05 | H184: 6.569184876e-07 | J184: -1.356544443e-05 | K184: -7.465779352e-06 | L184: -7.27658214e-07 | N184: -0.000897861391 | O184: -0.04005077986 | P184: 0.0002904581819 | Q184: 0.01840355816 | R184: 2.853417042e-05
A185: 88.43828 | B185: ='DF raw data'!A190 -> -4.2532802e-06 | C185: ='DF raw data'!B190 -> 1.8531233e-05 | D185: ='DF raw data'!C190 -> -2.4298297e-06 | F185: -4.256955034e-06 | G185: 1.859020037e-05 | H185: -2.431929073e-06 | J185: -1.23468825e-05 | K185: 9.60403431e-08 | L185: 5.909317143e-06 | N185: -0.0009040387832 | O185: -0.04050308855 | P185: 0.0002905062328 | Q185: 0.01854890423 | R185: 2.898529896e-05
A186: 88.9386 | B186: ='DF raw data'!A191 -> -6.8860782e-06 | C186: ='DF raw data'!B191 -> 1.2935568e-05 | D186: ='DF raw data'!C191 -> 3.3363485e-06 | F186: -6.892027772e-06 | G186: 1.297672966e-05 | H186: 3.339231105e-06 | J186: -7.566767644e-06 | K186: 3.686344837e-06 | L186: 1.315172728e-05 | N186: -0.0009078245884 | O186: -0.04095729134 | P186: 0.0002923505849 | Q186: 0.01869517308 | R186: 2.944039721e-05
A187: 89.43892 | B187: ='DF raw data'!A192 -> -6.2221889e-06 | C187: ='DF raw data'!B192 -> 1.562439e-05 | D187: ='DF raw data'!C192 -> 4.3892342e-06 | F187: -6.227564871e-06 | G187: 1.567410764e-05 | H187: 4.393026498e-06 | J187: -8.813137878e-07 | K187: -4.884719132e-06 | L187: 1.810782966e-05 | N187: -0.0009082655273 | O187: -0.04141171475 | P187: 0.0002899066622 | Q187: 0.01884021918 | R187: 2.989518416e-05
A188: 89.93924 | B188: ='DF raw data'!A193 -> -2.48215e-06 | C188: ='DF raw data'!B193 -> 1.1335908e-05 | D188: ='DF raw data'!C193 -> -4.8900674e-06 | F188: -2.484294578e-06 | G188: 1.137197946e-05 | H188: -4.894292418e-06 | J188: -6.784122122e-06 | K188: 7.984192738e-06 | L188: 1.587787564e-05 | N188: -0.0009116597593 | O188: -0.04186783636 | P188: 0.0002939013135 | Q188: 0.01898726389 | R188: 3.03542285e-05
A189: 90.43956 | B189: ='DF raw data'!A194 -> 4.059641e-07 | C189: ='DF raw data'!B194 -> 7.8956209e-06 | D189: ='DF raw data'!C194 -> -7.8272296e-06 | F189: 4.06314853e-07 | G189: 7.920745185e-06 | H189: -7.833992326e-06 | J189: -1.354633793e-05 | K189: 1.064489719e-05 | L189: 9.670475979e-06 | N189: -0.0009184372631 | O189: -0.0423273489 | P189: 0.0002992271685 | Q189: 0.01913697322 | R189: 3.082105904e-05
A190: 90.93988 | B190: ='DF raw data'!A195 -> 3.6731492e-06 | C190: ='DF raw data'!B195 -> 1.1638919e-05 | D190: ='DF raw data'!C195 -> 3.2111532e-07 | F190: 3.676322801e-06 | G190: 1.167595466e-05 | H190: 3.213927636e-07 | J190: -1.02890911e-05 | K190: -7.504866033e-06 | L190: 5.745721518e-06 | N190: -0.0009235851012 | O190: -0.04278943699 | P190: 0.0002954723339 | Q190: 0.01928480394 | R190: 3.129151661e-05
A191: 91.4402 | B191: ='DF raw data'!A196 -> 4.3090704e-06 | C191: ='DF raw data'!B196 -> 1.4413671e-05 | D191: ='DF raw data'!C196 -> -2.9998646e-06 | F191: 4.312793437e-06 | G191: 1.445953607e-05 | H191: -3.002456483e-06 | J191: -7.300340449e-06 | K191: -5.090984699e-06 | L191: 5.848768874e-06 | N191: -0.0009272376075 | O191: -0.04325335251 | P191: 0.0002929252124 | Q191: 0.01943136028 | R191: 3.176460657e-05
A192: 91.94052 | B192: ='DF raw data'!A197 -> 2.9117384e-06 | C192: ='DF raw data'!B197 -> 1.0270224e-05 | D192: ='DF raw data'!C197 -> -8.723915e-06 | F192: 2.914254142e-06 | G192: 1.03029044e-05 | H192: -8.731452463e-06 | J192: -9.295067205e-06 | K192: -1.912003297e-06 | L192: 7.248343362e-06 | N192: -0.0009318881155 | O192: -0.04371959478 | P192: 0.0002919685989 | Q192: 0.01957743801 | R192: 3.22417423e-05
A193: 92.44084 | B193: ='DF raw data'!A198 -> 6.9151815e-07 | C193: ='DF raw data'!B198 -> 5.9342406e-06 | D193: ='DF raw data'!C198 -> -1.0972444e-05 | F193: 6.921156217e-07 | G193: 5.953123669e-06 | H193: -1.098192419e-05 | J193: -8.679707594e-06 | K193: 4.071033454e-06 | L193: 1.035237773e-05 | N193: -0.0009362307468 | O193: -0.04418800974 | P193: 0.0002940054184 | Q193: 0.0197245348 | R193: 3.272353405e-05
A194: 92.94116 | B194: ='DF raw data'!A199 -> -1.6908302e-07 | C194: ='DF raw data'!B199 -> 9.3200897e-06 | D194: ='DF raw data'!C199 -> -1.031855e-05 | F194: -1.692291077e-07 | G194: 9.34974672e-06 | H194: -1.032746523e-05 | J194: -1.167967953e-05 | K194: -4.638031148e-06 | L194: 7.845116029e-06 | N194: -0.0009420743241 | O194: -0.04465934837 | P194: 0.0002916849187 | Q194: 0.0198704706 | R194: 3.321013734e-05
A195: 93.44148 | B195: ='DF raw data'!A200 -> 4.1332523e-06 | C195: ='DF raw data'!B200 -> 6.3207794e-06 | D195: ='DF raw data'!C200 -> -4.2703814e-06 | F195: 4.13682343e-06 | G195: 6.340892456e-06 | H195: -4.27407101e-06 | J195: -1.803737984e-05 | K195: -3.076919364e-06 | L195: 1.972641591e-06 | N195: -0.000951098786 | O195: -0.04513520211 | P195: 0.0002901454744 | Q195: 0.02001563619 | R195: 3.37048404e-05
A196: 93.9418 | B196: ='DF raw data'!A201 -> 3.877135e-06 | C196: ='DF raw data'!B201 -> 9.6998219e-06 | D196: ='DF raw data'!C201 -> 1.8501488e-07 | F196: 3.880484845e-06 | G196: 9.730687248e-06 | H196: 1.851747329e-07 | J196: -1.965591405e-05 | K196: -2.072627491e-06 | L196: 4.906147953e-06 | N196: -0.0009609330329 | O196: -0.04561597613 | P196: 0.0002891084974 | Q196: 0.02016028295 | R196: 3.420865064e-05
A197: 94.44212 | B197: ='DF raw data'!A202 -> -4.8028278e-06 | C197: ='DF raw data'!B202 -> 1.8802226e-05 | D197: ='DF raw data'!C202 -> 2.0024072e-06 | F197: -4.806977443e-06 | G197: 1.886205568e-05 | H197: 2.00413728e-06 | J197: -1.679156038e-05 | K197: 3.539778736e-06 | L197: -6.579884312e-06 | N197: -0.0009693341864 | O197: -0.04610095341 | P197: 0.0002908795195 | Q197: 0.02030581579 | R197: 3.472108822e-05
A198: 94.94244 | B198: ='DF raw data'!A203 -> -9.3056124e-06 | C198: ='DF raw data'!B203 -> 2.1613001e-05 | D198: ='DF raw data'!C203 -> 3.7299487e-06 | F198: -9.313652449e-06 | G198: 2.168177472e-05 | H198: 3.733171376e-06 | J198: -1.652205874e-05 | K198: 3.965827746e-06 | L198: -5.226404615e-06 | N198: -0.0009776005028 | O198: -0.04659006649 | P198: 0.0002928637024 | Q198: 0.02045234136 | R198: 3.524215744e-05
A199: 95.44276 | B199: ='DF raw data'!A204 -> -7.407526e-06 | C199: ='DF raw data'!B204 -> 1.0900533e-05 | D199: ='DF raw data'!C204 -> 1.5361275e-06 | F199: -7.413926102e-06 | G199: =(1-$G$1*($B$2-$G$2))*C199*$M$2/$M$1 -> 1.093521907e-05 | H199: 1.537454714e-06 | J199: =-CELL("contents", INDEX($F$6:$F$1203,1204-CELL("row",F199))) -> -1.648284388e-05 | K199: =CELL("contents", INDEX($G$6:$G$1203,1204-CELL("row",G199))) -> 1.438171522e-06 | L199: =-CELL("contents", INDEX($H$6:$H$1203,1204-CELL("row",H199))) -> 2.9870691e-06 | N199: -0.0009858471993 | O199: -0.04708330556 | P199: 0.0002935832484 | Q199: 0.02059922693 | R199: 3.577153893e-05
A200: =A199+$B$1 -> 95.94308 | B200: ='DF raw data'!A205 -> -5.6042891e-06 | C200: ='DF raw data'!B205 -> 3.2388803e-06 | D200: ='DF raw data'!C205 -> 1.4519374e-06 | F200: -5.609131206e-06 | G200: 3.249186589e-06 | H200: 1.453191874e-06 | J200: -1.446934472e-05 | K200: 3.227500903e-06 | L200: 9.862516058e-06 | N200: =J200*$B$1+N199 -> -0.0009930865018 | O200: =N200*$B$1+O199 -> -0.0475801666 | P200: =K200*$B$1+P199 -> 0.0002951980316 | Q200: =P200*$B$1+Q199 -> 0.02074692041 | R200: =(N200^2+P200^2)*$B$1+R199 -> 3.630856375e-05
... 1003 more rows

Sheet 10 x=-1
A1: dz | B1: ='DF raw data'!E7 -> 0.50018 | C1: mm | F1: T_coeff | G1: -0.0008 | H1: /degC | L1: Hallref | M1: ='PI vs x'!B44 -> 0.50517 | N1: T | P1: IBy total | Q1: =P1203*1000 -> -11.25790859 | R1: muTm
A2: Tref | B2: ='DF raw data'!E8 -> 21.08 | C2: degC | F2: Tcorr | G2: 20 | H2: degC | L2: NMRref | M2: ='PI vs x'!B45 -> 0.50634 | N2: T | P2: JBy total | Q2: =Q1203 -> -7.997836639 | R2: muTm^2
A3: Encoder | B3: ='DF raw data'!E9 -> 390663 | P3: PI total | Q3: =R1203 -> 4518.849791 | R3: T^2mm^3
J4: SXR-rotation
A5: z [mm] | B5: Bx | C5: By | D5: Bz | F5: Bx_corr | G5: By_corr | H5: Bz_corr | J5: Bx_rot | K5: By_rot | L5: Bz_rot | N5: Ix | O5: Jx | P5: Iy | Q5: Jy | R5: PI
A6: ='PI vs x'!B53 -> -1.119 | B6: ='DF raw data'!D11 -> -2.7005894e-06 | C6: ='DF raw data'!E11 -> -2.5110851e-06 | D6: ='DF raw data'!F11 -> -5.9698082e-06 | F6: =(1-$G$1*($B$2-$G$2))*B6 -> -2.702922709e-06 | G6: =(1-$G$1*($B$2-$G$2))*C6*$M$2/$M$1 -> -2.519075506e-06 | H6: =(1-$G$1*($B$2-$G$2))*D6 -> -5.974966114e-06 | J6: =-CELL("contents", INDEX($F$6:$F$1203,1204-CELL("row",F6))) -> -1.16761715e-05 | K6: =CELL("contents", INDEX($G$6:$G$1203,1204-CELL("row",G6))) -> 3.597545971e-06 | L6: =-CELL("contents", INDEX($H$6:$H$1203,1204-CELL("row",H6))) -> 9.464948356e-06 | N6: =J6*$B$1 -> -5.840187463e-06 | O6: =N6*$B$1 -> -2.921144965e-06 | P6: =K6*$B$1 -> 1.799420544e-06 | Q6: =P6*$B$1 -> 9.000341676e-07 | R6: =(N6^2+P6^2)*$B$1 -> 1.867957417e-11
A7: =A6+$B$1 -> -0.61882 | B7: ='DF raw data'!D12 -> -2.5821751e-06 | C7: ='DF raw data'!E12 -> -5.0141821e-06 | D7: ='DF raw data'!F12 -> -2.0821874e-06 | F7: =(1-$G$1*($B$2-$G$2))*B7 -> -2.584406099e-06 | G7: =(1-$G$1*($B$2-$G$2))*C7*$M$2/$M$1 -> -5.030137494e-06 | H7: -2.08398641e-06 | J7: =-CELL("contents", INDEX($F$6:$F$1203,1204-CELL("row",F7))) -> -8.231262471e-06 | K7: =CELL("contents", INDEX($G$6:$G$1203,1204-CELL("row",G7))) -> 2.581611969e-06 | L7: =-CELL("contents", INDEX($H$6:$H$1203,1204-CELL("row",H7))) -> 9.626279125e-06 | N7: =J7*$B$1+N6 -> -9.957300326e-06 | O7: =N7*$B$1+O6 -> -7.901587442e-06 | P7: =K7*$B$1+P6 -> 3.090691219e-06 | Q7: =P7*$B$1+Q6 -> 2.445936101e-06 | R7: =(N7^2+P7^2)*$B$1+R6 -> 7.30492412e-11
A8: =A7+$B$1 -> -0.11864 | B8: ='DF raw data'!D13 -> -2.2085801e-06 | C8: ='DF raw data'!E13 -> -1.3905496e-05 | D8: ='DF raw data'!F13 -> 4.9039941e-06 | F8: -2.210488313e-06 | G8: -1.394974403e-05 | H8: 4.908231151e-06 | J8: -4.937673267e-06 | K8: 1.582542561e-06 | L8: 1.006071996e-05 | N8: =J8*$B$1+N7 -> -1.242702574e-05 | O8: =N8*$B$1+O7 -> -1.411733718e-05 | P8: =K8*$B$1+P7 -> 3.882247357e-06 | Q8: =P8*$B$1+Q7 -> 4.387758584e-06 | R8: =(N8^2+P8^2)*$B$1+R7 -> 1.578311584e-10
A9: 0.38154 | B9: ='DF raw data'!D14 -> -3.0497554e-06 | C9: ='DF raw data'!E14 -> 9.1021475e-06 | D9: ='DF raw data'!F14 -> 5.339391e-06 | F9: -3.052390389e-06 | G9: 9.131111017e-06 | H9: 5.344004234e-06 | J9: -8.70298799e-06 | K9: -3.971257068e-07 | L9: 1.005092851e-05 | N9: -1.678008627e-05 | O9: -2.251040073e-05 | P9: 3.683613021e-06 | Q9: 6.230228145e-06 | R9: 3.054544337e-10
A10: 0.88172 | B10: ='DF raw data'!D15 -> -2.855782e-06 | C10: ='DF raw data'!E15 -> 3.4237535e-06 | D10: ='DF raw data'!F15 -> 3.7388988e-06 | F10: -2.858249396e-06 | G10: 3.434648065e-06 | H10: 3.742129209e-06 | J10: -1.878364506e-05 | K10: -1.470293211e-05 | L10: 8.978483513e-06 | N10: -2.617528986e-05 | O10: -3.560275721e-05 | P10: -3.670499561e-06 | Q10: 4.394317674e-06 | R10: 6.548893681e-10
A11: 1.3819 | B11: ='DF raw data'!D16 -> -2.4438045e-06 | C11: ='DF raw data'!E16 -> -7.7448994e-06 | D11: ='DF raw data'!F16 -> 4.3028108e-06 | F11: -2.445915947e-06 | G11: -7.769544081e-06 | H11: 4.306528429e-06 | J11: -2.270796274e-05 | K11: -4.510661336e-07 | L11: 8.183473618e-06 | N11: -3.753335866e-05 | O11: -5.437619255e-05 | P11: -3.89611382e-06 | Q11: 2.445559464e-06 | R11: 1.367112034e-09
A12: 1.88208 | B12: ='DF raw data'!D17 -> -2.6701523e-06 | C12: ='DF raw data'!E17 -> -1.268479e-06 | D12: ='DF raw data'!F17 -> 5.9123545e-06 | F12: -2.672459312e-06 | G12: -1.272515368e-06 | H12: 5.917462774e-06 | J12: -1.70013655e-05 | K12: 4.162131815e-06 | L12: 8.441658297e-06 | N12: -4.603710166e-05 | O12: -7.740303006e-05 | P12: -1.814298729e-06 | Q12: 1.538083526e-06 | R12: 2.428847325e-09
A13: 2.38226 | B13: ='DF raw data'!D18 -> -2.7823567e-06 | C13: ='DF raw data'!E18 -> 1.142817e-06 | D13: ='DF raw data'!F18 -> 2.3466553e-06 | F13: -2.784760656e-06 | G13: 1.146453504e-06 | H13: 2.34868281e-06 | J13: -7.948000444e-06 | K13: -2.250570419e-06 | L13: 8.917065093e-06 | N13: -5.001253252e-05 | O13: -0.0001024182986 | P13: -2.939989041e-06 | Q13: 6.755980708e-08 | R13: 3.684247579e-09
A14: 2.88244 | B14: ='DF raw data'!D19 -> -2.4436044e-06 | C14: ='DF raw data'!E19 -> -7.7355571e-06 | D14: ='DF raw data'!F19 -> 4.8098868e-06 | F14: -2.445715674e-06 | G14: -7.760172053e-06 | H14: 4.814042542e-06 | J14: -4.122024555e-06 | K14: 3.625924888e-06 | L14: 9.212156132e-06 | N14: -5.207428676e-05 | O14: -0.0001284648153 | P14: -1.126373931e-06 | Q14: -4.958299056e-07 | R14: 5.041235949e-09
A15: 3.38262 | B15: ='DF raw data'!D20 -> -2.3103053e-06 | C15: ='DF raw data'!E20 -> -1.1765725e-05 | D15: ='DF raw data'!F20 -> 2.0568793e-06 | F15: -2.312301404e-06 | G15: -1.180316416e-05 | H15: 2.058656444e-06 | J15: -4.516921551e-06 | K15: 1.023576644e-06 | L15: 9.495988852e-06 | N15: -5.433356059e-05 | O15: -0.0001556413757 | P15: -6.14401365e-07 | Q15: -8.031411803e-07 | R15: 6.518024049e-09
A16: 3.8828 | B16: ='DF raw data'!D21 -> -2.218057e-06 | C16: ='DF raw data'!E21 -> -1.4615463e-05 | D16: ='DF raw data'!F21 -> -4.0928475e-07 | F16: -2.219973401e-06 | G16: -1.466197018e-05 | H16: -4.09638372e-07 | J16: -6.645729954e-06 | K16: -1.40195043e-06 | L16: 9.492923105e-06 | N16: -5.765762179e-05 | O16: -0.0001844805649 | P16: -1.315628931e-06 | Q16: -1.461192459e-06 | R16: 8.181688868e-09
A17: 4.38298 | B17: ='DF raw data'!D22 -> -2.7896326e-06 | C17: ='DF raw data'!E22 -> 5.7441565e-07 | D17: ='DF raw data'!F22 -> -2.7553153e-06 | F17: -2.792042843e-06 | G17: 5.762434711e-07 | H17: -2.757695892e-06 | J17: -9.648441757e-06 | K17: -4.187134021e-06 | L17: 9.007925629e-06 | N17: -6.248357939e-05 | O17: -0.0002157336017 | P17: -3.409949626e-06 | Q17: -3.166781063e-06 | R17: 1.014030644e-08
A18: 4.88316 | B18: ='DF raw data'!D23 -> -2.1631236e-06 | C18: ='DF raw data'!E23 -> -1.6221398e-05 | D18: ='DF raw data'!F23 -> -9.7951977e-07 | F18: -2.164992539e-06 | G18: -1.627301535e-05 | H18: -9.803660751e-07 | J18: -1.022264974e-05 | K18: -1.34211965e-06 | L18: 8.631637497e-06 | N18: -6.759674434e-05 | O18: -0.0002495441413 | P18: -4.081251032e-06 | Q18: -5.208141204e-06 | R18: 1.243412015e-08
A19: 5.38334 | B19: ='DF raw data'!D24 -> -2.4353935e-06 | C19: ='DF raw data'!E24 -> -8.9011801e-06 | D19: ='DF raw data'!F24 -> -1.9692427e-06 | F19: -2.43749768e-06 | G19: -8.929504128e-06 | H19: -1.970944126e-06 | J19: -5.18058336e-06 | K19: 4.563422292e-06 | L19: 8.529187256e-06 | N19: -7.018796853e-05 | O19: -0.0002846507593 | P19: -1.79871847e-06 | Q19: -6.107824208e-06 | R19: 1.489980063e-08
A20: 5.88352 | B20: ='DF raw data'!D25 -> -2.6571356e-06 | C20: ='DF raw data'!E25 -> -2.9041614e-06 | D20: ='DF raw data'!F25 -> -2.3225778e-06 | F20: -2.659431365e-06 | G20: -2.913402596e-06 | H20: -2.324584507e-06 | J20: 8.201641601e-07 | K20: -3.877805041e-06 | L20: 8.42454142e-06 | N20: -6.977773882e-05 | O20: -0.0003195521888 | P20: -3.738318996e-06 | Q20: -7.977656604e-06 | R20: 1.734213348e-08
A21: 6.3837 | B21: ='DF raw data'!D26 -> -2.6026678e-06 | C21: ='DF raw data'!E26 -> -3.9996007e-06 | D21: ='DF raw data'!F26 -> 3.0291145e-07 | F21: -2.604916505e-06 | G21: -4.012327642e-06 | H21: 3.031731655e-07 | J21: -2.510169915e-06 | K21: 1.20496159e-05 | L21: 8.873833974e-06 | N21: -7.10332756e-05 | O21: -0.0003550816125 | P21: 2.288657884e-06 | Q21: -6.832915703e-06 | R21: 1.986852476e-08
A22: 6.88388 | B22: ='DF raw data'!D27 -> 2.4079097e-07 | C22: ='DF raw data'!E27 -> -4.454319e-06 | D22: ='DF raw data'!F27 -> -1.1801106e-06 | F22: 2.409990134e-07 | G22: -4.46849288e-06 | H22: -1.181130216e-06 | J22: -1.024763431e-05 | K22: 3.76325399e-06 | L22: 9.449491713e-06 | N22: -7.615893733e-05 | O22: -0.0003931747898 | P22: 4.170962264e-06 | Q22: -4.746683798e-06 | R22: 2.277836225e-08
A23: 7.38406 | B23: ='DF raw data'!D28 -> 4.2364131e-06 | C23: ='DF raw data'!E28 -> -6.235437e-06 | D23: ='DF raw data'!F28 -> -1.0067137e-07 | F23: =(1-$G$1*($B$2-$G$2))*B23 -> 4.240073361e-06 | G23: -6.255278492e-06 | H23: -1.007583501e-07 | J23: -1.06285021e-05 | K23: 1.821066449e-06 | L23: 6.105125275e-06 | N23: -8.147510151e-05 | O23: -0.0004339270061 | P23: 5.081823281e-06 | Q23: -2.204857429e-06 | R23: 2.611157032e-08
A24: 7.88424 | B24: ='DF raw data'!D29 -> -3.0841325e-06 | C24: ='DF raw data'!E29 -> 2.5827619e-06 | D24: ='DF raw data'!F29 -> -3.0672285e-07 | F24: -3.08679719e-06 | G24: 2.590980385e-06 | H24: -3.069878585e-07 | J24: -7.619577132e-06 | K24: -1.354298179e-06 | L24: 3.880632772e-06 | N24: -8.52862616e-05 | O24: -0.0004765854884 | P24: 4.404430418e-06 | Q24: -1.849422939e-09 | R24: 2.97594558e-08
A25: 8.38442 | B25: ='DF raw data'!D30 -> -1.2257175e-05 | C25: ='DF raw data'!E30 -> 1.0512855e-06 | D25: ='DF raw data'!F30 -> 2.0727191e-06 | F25: -1.22677652e-05 | G25: 1.054630746e-06 | H25: 2.074509929e-06 | J25: -6.909350826e-06 | K25: 1.324397335e-05 | L25: 7.955262714e-06 | N25: -8.87421807e-05 | O25: -0.0005209725524 | P25: 1.102880101e-05 | Q25: 5.514536265e-06 | R25: 3.375929977e-08
A26: 8.8846 | B26: ='DF raw data'!D31 -> -1.1026381e-05 | C26: ='DF raw data'!E31 -> -2.0146028e-06 | D26: ='DF raw data'!F31 -> 7.8534058e-06 | F26: -1.103590779e-05 | G26: -2.021013373e-06 | H26: 7.860191143e-06 | J26: -3.973846339e-06 | K26: 2.26920282e-06 | L26: 3.821613824e-06 | N26: -9.072981916e-05 | O26: -0.0005663537933 | P26: 1.216381087e-05 | Q26: 1.159863119e-05 | R26: 3.795073733e-08
A27: 9.38478 | B27: ='DF raw data'!D32 -> -9.4985535e-06 | C27: ='DF raw data'!E32 -> 1.8533046e-05 | D27: ='DF raw data'!F32 -> 9.9344843e-06 | F27: -9.50676025e-06 | G27: 1.859201914e-05 | H27: 9.943067694e-06 | J27: -1.664925354e-06 | K27: -3.030389072e-06 | L27: 1.532076872e-05 | N27: -9.156258153e-05 | O27: -0.0006121515653 | P27: 1.064807087e-05 | Q27: 1.692458328e-05 | R27: 4.220081068e-08
A28: 9.88496 | B28: ='DF raw data'!D33 -> -6.105412e-06 | C28: ='DF raw data'!E33 -> 4.0804848e-06 | D28: ='DF raw data'!F33 -> 7.2303251e-06 | F28: -6.110687076e-06 | G28: 4.093469119e-06 | H28: 7.236572101e-06 | J28: -7.627527595e-06 | K28: -1.504747498e-06 | L28: 1.470854221e-05 | N28: -9.537771828e-05 | O28: -0.0006598575925 | P28: 9.895426265e-06 | Q28: 2.187407758e-05 | R28: 4.679988006e-08
A29: 10.38514 | B29: ='DF raw data'!D34 -> -1.235439e-06 | C29: ='DF raw data'!E34 -> -5.44155e-06 | D29: ='DF raw data'!F34 -> -5.9516401e-06 | F29: -1.236506419e-06 | G29: -5.458865301e-06 | H29: -5.956782317e-06 | J29: -1.06576973e-05 | K29: -3.129974553e-06 | L29: 1.022405296e-05 | N29: -0.0001007084853 | O29: -0.0007102299627 | P29: 8.329875593e-06 | Q29: 2.604051476e-05 | R29: 5.190751106e-08
A30: 10.88532 | B30: ='DF raw data'!D35 -> -7.7386682e-07 | C30: ='DF raw data'!E35 -> -9.7707323e-07 | D30: ='DF raw data'!F35 -> -7.0023939e-06 | F30: -7.745354409e-07 | G30: -9.801823289e-07 | H30: -7.008443968e-06 | J30: -5.36824506e-06 | K30: 1.263039912e-05 | L30: 1.335726071e-05 | N30: -0.0001033935741 | O30: -0.0007619453606 | P30: 1.464734862e-05 | Q30: 3.336682559e-05 | R30: 5.736186192e-08
A31: 11.3855 | B31: ='DF raw data'!D36 -> -2.4688356e-06 | C31: ='DF raw data'!E36 -> 1.1848214e-05 | D31: ='DF raw data'!F36 -> 2.4301141e-06 | F31: -2.470968674e-06 | G31: 1.188591565e-05 | H31: 2.432213719e-06 | J31: -7.66093073e-06 | K31: 2.271209987e-06 | L31: 1.136110952e-05 | N31: -0.0001072254185 | O31: -0.0008155773704 | P31: 1.578336243e-05 | Q31: 4.126134782e-05 | R31: 6.323717872e-08
A32: 11.88568 | B32: ='DF raw data'!D37 -> -3.0305323e-06 | C32: ='DF raw data'!E37 -> 3.9945558e-06 | D32: ='DF raw data'!F37 -> -2.971746e-06 | F32: -3.03315068e-06 | G32: 4.007266689e-06 | H32: -2.974313589e-06 | J32: -8.999344421e-06 | K32: 6.575214014e-06 | L32: 9.28955915e-06 | N32: -0.0001117267106 | O32: -0.0008714608365 | P32: 1.907215298e-05 | Q32: 5.080085729e-05 | R32: 6.966279354e-08
A33: 12.38586 | B33: ='DF raw data'!D38 -> -2.9930848e-06 | C33: ='DF raw data'!E38 -> 7.5270405e-06 | D33: ='DF raw data'!F38 -> -6.0289108e-06 | F33: -2.995670825e-06 | G33: 7.550991942e-06 | H33: -6.034119779e-06 | J33: -5.6333351e-06 | K33: -7.285417952e-07 | L33: 1.028946542e-05 | N33: -0.0001145443921 | O33: -0.0009287536505 | P33: 1.870775094e-05 | Q33: 6.015810016e-05 | R33: 7.640041707e-08
A34: 12.88604 | B34: ='DF raw data'!D39 -> -1.1257703e-06 | C34: ='DF raw data'!E39 -> -6.2455797e-06 | D34: ='DF raw data'!F39 -> -1.0081361e-06 | F34: -1.126742966e-06 | G34: -6.265453466e-06 | H34: -1.00900713e-06 | J34: -7.876249405e-06 | K34: -6.990525164e-06 | L34: 1.333540384e-06 | N34: -0.0001184839345 | O34: -0.0009880169449 | P34: 1.521123007e-05 | Q34: 6.776645322e-05 | R34: 8.353789777e-08
A35: 13.38622 | B35: ='DF raw data'!D40 -> 2.5758204e-06 | C35: ='DF raw data'!E40 -> -4.4128242e-06 | D35: ='DF raw data'!F40 -> 5.2381624e-06 | F35: 2.578045909e-06 | G35: -4.426866041e-06 | H35: 5.242688172e-06 | J35: -1.442034042e-05 | K35: -6.006181767e-06 | L35: -1.514104757e-06 | N35: -0.0001256967004 | O35: -0.00105088792 | P35: 1.220705807e-05 | Q35: 7.387217952e-05 | R35: 9.151510491e-08
A36: 13.8864 | B36: ='DF raw data'!D41 -> 1.1693432e-06 | C36: ='DF raw data'!E41 -> -1.6983826e-06 | D36: ='DF raw data'!F41 -> 5.5022488e-06 | F36: 1.170353513e-06 | G36: -1.703786944e-06 | H36: 5.507002743e-06 | J36: -1.493061291e-05 | K36: -4.36462652e-06 | L36: -1.530959507e-06 | N36: -0.0001331646944 | O36: -0.001117494237 | P36: 1.002395918e-05 | Q36: 7.888596342e-05 | R36: 1.004349727e-07
A37: 14.38658 | B37: ='DF raw data'!D42 -> 1.7203861e-07 | C37: ='DF raw data'!E42 -> -7.659909e-06 | D37: ='DF raw data'!F42 -> 9.5514281e-07 | F37: 1.721872514e-07 | G37: -7.684283237e-06 | H37: 9.559680534e-07 | J37: -1.036147459e-05 | K37: -6.420720166e-06 | L37: 1.66513003e-06 | N37: -0.0001383472967 | O37: -0.001186692788 | P37: 6.812443367e-06 | Q37: 8.229341135e-05 | R37: 1.100316182e-07
A38: 14.88676 | B38: ='DF raw data'!D43 -> 1.1380366e-06 | C38: ='DF raw data'!E43 -> -6.0342277e-06 | D38: ='DF raw data'!F43 -> 7.3022698e-06 | F38: 1.139019864e-06 | G38: -6.053428933e-06 | H38: 7.308578961e-06 | J38: -4.11013359e-06 | K38: -3.679571954e-06 | L38: 6.410273195e-06 | N38: -0.0001404031033 | O38: -0.001256919612 | P38: 4.971995067e-06 | Q38: 8.478030384e-05 | R38: 1.199040471e-07
A39: 15.38694 | B39: ='DF raw data'!D44 -> 1.7018033e-06 | C39: ='DF raw data'!E44 -> -4.2032111e-06 | D39: ='DF raw data'!F44 -> 1.1112225e-05 | F39: 1.703273658e-06 | G39: -4.216585941e-06 | H39: 1.112182596e-05 | J39: -2.768646846e-06 | K39: -7.543199224e-06 | L39: 8.550236527e-06 | N39: -0.0001417879251 | O39: -0.001327839097 | P39: 1.199037679e-06 | Q39: 8.538003851e-05 | R39: 1.299602927e-07
A40: 15.88712 | B40: ='DF raw data'!D45 -> 2.0200646e-06 | C40: ='DF raw data'!E45 -> 2.6090499e-06 | D40: ='DF raw data'!F45 -> 5.5797177e-06 | F40: 2.021809936e-06 | G40: 2.617352035e-06 | H40: 5.584538576e-06 | J40: -2.844405845e-06 | K40: -3.940044563e-06 | L40: 4.622620596e-06 | N40: -0.00014321064 | O40: -0.001399470195 | P40: -7.716938106e-07 | Q40: 8.49940527e-05 | R40: 1.40218926e-07
A41: 16.3873 | B41: ='DF raw data'!D46 -> -2.7772853e-06 | C41: ='DF raw data'!E46 -> -8.5579023e-07 | D41: ='DF raw data'!F46 -> 5.2971959e-06 | F41: -2.779684874e-06 | G41: -8.585133999e-07 | H41: 5.301772677e-06 | J41: -6.812213872e-06 | K41: 3.667416698e-06 | L41: 3.483295069e-06 | N41: -0.0001466179732 | O41: -0.001472805573 | P41: 1.062674673e-06 | Q41: 8.552558131e-05 | R41: 1.509717753e-07
A42: 16.88748 | B42: ='DF raw data'!D47 -> -3.6163924e-06 | C42: ='DF raw data'!E47 -> -1.3242528e-06 | D42: ='DF raw data'!F47 -> -1.1025381e-07 | F42: -3.619516963e-06 | G42: -1.328466643e-06 | H42: -1.103490693e-07 | J42: -1.408617095e-05 | K42: -1.857046276e-06 | L42: 7.2546421e-06 | N42: -0.0001536635942 | O42: -0.001549665029 | P42: 1.338172671e-07 | Q42: 8.559251404e-05 | R42: 1.627822846e-07
A43: 17.38766 | B43: ='DF raw data'!D48 -> -5.7177694e-08 | C43: ='DF raw data'!E48 -> 4.5137208e-06 | D43: ='DF raw data'!F48 -> -8.4743706e-06 | F43: -5.722709553e-08 | G43: 4.528083699e-06 | H43: -8.481692456e-06 | J43: -1.1070899e-05 | K43: -4.637416198e-06 | L43: 1.017236033e-05 | N43: -0.0001592010364 | O43: -0.001629294203 | P43: -2.185725567e-06 | Q43: 8.449925782e-05 | R43: 1.754617212e-07
A44: 17.88784 | B44: ='DF raw data'!D49 -> 4.1585831e-06 | C44: ='DF raw data'!E49 -> 1.5525735e-06 | D44: ='DF raw data'!F49 -> -3.4388224e-06 | F44: 4.162176116e-06 | G44: 1.557513871e-06 | H44: -3.441793543e-06 | J44: -5.072890894e-06 | K44: -3.174546534e-06 | L44: 1.159884275e-06 | N44: -0.000161738395 | O44: -0.001710192514 | P44: -3.773570252e-06 | Q44: 8.261179345e-05 | R44: 1.885532066e-07
A45: 18.38802 | B45: ='DF raw data'!D50 -> 5.7904067e-06 | C45: ='DF raw data'!E50 -> 8.7763192e-06 | D45: ='DF raw data'!F50 -> 1.1595972e-06 | F45: 5.795409611e-06 | G45: 8.804245914e-06 | H45: 1.160599092e-06 | J45: -5.82126343e-06 | K45: -7.228782708e-06 | L45: -2.16490076e-06 | N45: -0.0001646500745 | O45: -0.001792547188 | P45: -7.389262787e-06 | Q45: 7.891583199e-05 | R45: 2.021402203e-07
A46: 18.8882 | B46: ='DF raw data'!D51 -> 6.489006e-06 | C46: ='DF raw data'!E51 -> 9.7345919e-06 | D46: ='DF raw data'!F51 -> 3.1890293e-06 | F46: 6.494612501e-06 | G46: 9.765567888e-06 | H46: 3.191784621e-06 | J46: -9.305320657e-06 | K46: -8.187162751e-06 | L46: -1.073871224e-06 | N46: -0.0001693044098 | O46: -0.001877229868 | P46: -1.148431785e-05 | Q46: 7.317160589e-05 | R46: 2.165433399e-07
A47: 19.38838 | B47: ='DF raw data'!D52 -> 4.1900889e-06 | C47: ='DF raw data'!E52 -> -2.9406084e-07 | D47: ='DF raw data'!F52 -> 5.6434096e-06 | F47: 4.193709137e-06 | G47: -2.949965572e-07 | H47: 5.648285506e-06 | J47: -6.610923507e-06 | K47: 2.243769045e-06 | L47: -3.889805691e-06 | N47: -0.0001726110615 | O47: -0.001963566469 | P47: -1.036202945e-05 | Q47: 6.7988726e-05 | R47: 2.314996973e-07
A48: 19.88856 | B48: ='DF raw data'!D53 -> -7.4529777e-07 | C48: ='DF raw data'!E53 -> 8.7441631e-06 | D48: ='DF raw data'!F53 -> -1.6472562e-06 | F48: -7.459417073e-07 | G48: 8.771987491e-06 | H48: -1.648679429e-06 | J48: -4.55653785e-06 | K48: 1.122092733e-06 | L48: -2.509015918e-06 | N48: -0.0001748901506 | O48: -0.002051043024 | P48: -9.800781107e-06 | Q48: 6.30865713e-05 | R48: 2.468465303e-07
A49: 20.38874 | B49: ='DF raw data'!D54 -> 1.4594357e-06 | C49: ='DF raw data'!E54 -> -1.2806189e-06 | D49: ='DF raw data'!F54 -> 9.3284569e-07 | F49: 1.460696652e-06 | G49: -1.284693897e-06 | H49: 9.336516687e-07 | J49: -6.710332522e-06 | K49: -6.980242247e-07 | L49: -1.133323446e-07 | N49: -0.0001782465248 | O49: -0.002140198371 | P49: -1.014991886e-05 | Q49: 5.800978489e-05 | R49: 2.6278969e-07
A50: 20.88892 | B50: ='DF raw data'!D55 -> 9.157915e-06 | C50: ='DF raw data'!E55 -> -1.0194758e-05 | D50: ='DF raw data'!F55 -> 1.5025495e-06 | F50: 9.165827439e-06 | G50: -1.022719826e-05 | H50: 1.503847703e-06 | J50: -1.146613018e-05 | K50: -1.119414036e-05 | L50: -2.576161882e-06 | N50: -0.0001839816538 | O50: -0.002232222315 | P50: -1.574900399e-05 | Q50: 5.013244807e-05 | R50: 2.798444675e-07
A51: 21.3891 | B51: ='DF raw data'!D56 -> 1.205117e-05 | C51: ='DF raw data'!E56 -> -5.0850281e-06 | D51: ='DF raw data'!F56 -> -4.7257467e-07 | F51: 1.206158221e-05 | G51: -5.101208929e-06 | H51: -4.729829745e-07 | J51: -1.46727373e-05 | K51: -3.650791564e-06 | L51: -3.73673315e-06 | N51: -0.0001913206635 | O51: -0.002327917084 | P51: -1.757505691e-05 | Q51: 4.13417561e-05 | R51: 2.983073512e-07
A52: 21.88928 | B52: ='DF raw data'!D57 -> 7.9455449e-06 | C52: ='DF raw data'!E57 -> 6.0262505e-06 | D52: ='DF raw data'!F57 -> -9.7582777e-09 | F52: 7.952409851e-06 | G52: 6.045426349e-06 | H52: -9.766708852e-09 | J52: -1.248607365e-05 | K52: -9.327575695e-06 | L52: -3.422325837e-06 | N52: -0.0001975659478 | O52: -0.00242673562 | P52: -2.224052373e-05 | Q52: 3.021749095e-05 | R52: 3.180779384e-07
A53: 22.38946 | B53: ='DF raw data'!D58 -> 3.5545004e-06 | C53: ='DF raw data'!E58 -> 2.8398761e-06 | D53: ='DF raw data'!F58 -> 5.5401856e-06 | F53: 3.557571488e-06 | G53: 2.848912737e-06 | H53: 5.54497232e-06 | J53: -1.092205251e-05 | K53: 3.135891823e-06 | L53: -4.129609903e-06 | N53: -0.00020302894 | O53: -0.002528286635 | P53: -2.067201335e-05 | Q53: 1.987776331e-05 | R53: 3.389094763e-07
A54: 22.88964 | B54: ='DF raw data'!D59 -> -1.1918523e-06 | C54: ='DF raw data'!E59 -> -1.0144321e-05 | D54: ='DF raw data'!F59 -> 1.3226551e-06 | F54: -1.19288206e-06 | G54: -1.017660077e-05 | H54: 1.323797874e-06 | J54: -1.060358359e-05 | K54: 5.49583256e-06 | L54: 7.928285625e-06 | N54: -0.0002083326405 | O54: -0.002632490455 | P54: -1.792310782e-05 | Q54: 1.091298324e-05 | R54: 3.6077921e-07
A55: 23.38982 | B55: ='DF raw data'!D60 -> -1.6522222e-06 | C55: ='DF raw data'!E60 -> -1.4204378e-05 | D55: ='DF raw data'!F60 -> -3.6746253e-06 | F55: -1.65364972e-06 | G55: -1.424957708e-05 | H55: -3.677800176e-06 | J55: -1.001741758e-05 | K55: 8.973034203e-06 | L55: 9.336984691e-06 | N55: -0.0002133431524 | O55: -0.002739200433 | P55: -1.343497558e-05 | Q55: 4.193077152e-06 | R55: 3.836353349e-07
A56: 23.89 | B56: ='DF raw data'!D61 -> 8.4427342e-07 | C56: ='DF raw data'!E61 -> -9.6035428e-06 | D56: ='DF raw data'!F61 -> -3.8222438e-06 | F56: 8.450028722e-07 | G56: -9.634101783e-06 | H56: -3.825546219e-06 | J56: -6.201596754e-06 | K56: -3.514807227e-07 | L56: 8.09105844e-07 | N56: -0.0002164450671 | O56: -0.002847461927 | P56: -1.36107792e-05 | Q56: -2.61476239e-06 | R56: 4.071606612e-07
A57: 24.39018 | B57: ='DF raw data'!D62 -> -2.0689399e-06 | C57: ='DF raw data'!E62 -> -5.120251e-06 | D57: ='DF raw data'!F62 -> -3.2875082e-07 | F57: -2.070727464e-06 | G57: -5.136543911e-06 | H57: -3.290348607e-07 | J57: -4.503052679e-07 | K57: -6.450974933e-06 | L57: 2.800763271e-07 | N57: -0.0002166703008 | O57: -0.002955836078 | P57: -1.683742785e-05 | Q57: -1.103650705e-05 | R57: 4.307839216e-07
A58: 24.89036 | B58: ='DF raw data'!D63 -> -1.7558173e-06 | C58: ='DF raw data'!E63 -> 3.6456447e-06 | D58: ='DF raw data'!F63 -> 4.9208325e-06 | F58: -1.757334326e-06 | G58: 3.657245335e-06 | H58: 4.925084099e-06 | J58: -3.929754177e-06 | K58: -3.89079023e-06 | L58: 7.191759917e-06 | N58: -0.0002186358852 | O58: -0.003065193375 | P58: -1.87835233e-05 | Q58: -2.043164974e-05 | R58: 4.548698249e-07
A59: 25.39054 | B59: ='DF raw data'!D64 -> 5.5289488e-06 | C59: ='DF raw data'!E64 -> -2.5804686e-06 | D59: ='DF raw data'!F64 -> 2.6747646e-06 | F59: 5.533725812e-06 | G59: -2.588679788e-06 | H59: 2.677075597e-06 | J59: -1.288504607e-05 | K59: -1.987161597e-05 | L59: 3.641428979e-06 | N59: -0.0002250807275 | O59: -0.003177774253 | P59: -2.872290818e-05 | Q59: -3.479827395e-05 | R59: 4.806222621e-07
A60: 25.89072 | B60: ='DF raw data'!D65 -> 8.323881e-06 | C60: ='DF raw data'!E65 -> -1.2004427e-05 | D60: ='DF raw data'!F65 -> -7.3123388e-06 | F60: 8.331072833e-06 | G60: -1.204262572e-05 | H60: -7.318656661e-06 | J60: -1.389490183e-05 | K60: -8.31672923e-06 | L60: -9.580325656e-07 | N60: -0.0002320306795 | O60: -0.003293831358 | P60: -3.28827698e-05 | Q60: -5.124557775e-05 | R60: 5.08091904e-07
A61: 26.3909 | B61: ='DF raw data'!D66 -> 3.1435907e-06 | C61: ='DF raw data'!E66 -> -1.5648214e-06 | D61: ='DF raw data'!F66 -> -9.4901197e-06 | F61: 3.146306762e-06 | G61: -1.569800745e-06 | H61: -9.498319163e-06 | J61: -8.086959301e-06 | K61: -1.366611838e-06 | L61: -8.178130205e-07 | N61: -0.0002360756148 | O61: -0.003411911659 | P61: -3.356632171e-05 | Q61: -6.803478054e-05 | R61: 5.365313355e-07
A62: 26.89108 | B62: ='DF raw data'!D67 -> 7.5296015e-07 | C62: ='DF raw data'!E67 -> -2.0725122e-06 | D62: ='DF raw data'!F67 -> -7.9455322e-06 | F62: 7.536107076e-07 | G62: -2.079107044e-06 | H62: -7.95239714e-06 | J62: -2.766642416e-06 | K62: 7.449264166e-06 | L62: -2.76427317e-06 | N62: -0.0002374594341 | O62: -0.003530684119 | P62: -2.984034876e-05 | Q62: -8.296032619e-05 | R62: 5.6518036e-07
A63: 27.39126 | B63: ='DF raw data'!D68 -> -3.2427956e-06 | C63: ='DF raw data'!E68 -> 1.5853954e-06 | D63: ='DF raw data'!F68 -> 3.8999592e-06 | F63: -3.245597375e-06 | G63: 1.590440212e-06 | H63: 3.903328765e-06 | J63: -2.847011094e-06 | K63: -1.025195679e-05 | L63: -7.666588915e-07 | N63: -0.0002388834521 | O63: -0.003650168844 | P63: -3.496817251e-05 | Q63: -0.0001004507067 | R63: 5.943348903e-07
A64: 27.89144 | B64: ='DF raw data'!D69 -> -4.5402699e-06 | C64: ='DF raw data'!E69 -> -4.1622475e-06 | D64: ='DF raw data'!F69 -> 9.6554222e-06 | F64: -4.544192693e-06 | G64: -4.175491993e-06 | H64: 9.663764485e-06 | J64: -3.640546317e-06 | K64: 4.491409269e-06 | L64: 4.81426013e-06 | N64: -0.0002407043805 | O64: -0.003770564361 | P64: -3.272165942e-05 | Q64: -0.0001168174263 | R64: 6.238501649e-07
A65: 28.39162 | B65: ='DF raw data'!D70 -> -1.8742317e-06 | C65: ='DF raw data'!E70 -> 5.533372e-07 | D65: ='DF raw data'!F70 -> 3.5605324e-06 | F65: -1.875851036e-06 | G65: 5.550979483e-07 | H65: 3.5636087e-06 | J65: -5.635005442e-06 | K65: 2.511073424e-06 | L65: 1.032669957e-05 | N65: -0.0002435228975 | O65: -0.003892369644 | P65: -3.146567072e-05 | Q65: -0.0001325559255 | R65: 6.540077627e-07
A66: 28.8918 | B66: ='DF raw data'!D71 -> 1.6998679e-06 | C66: ='DF raw data'!E71 -> -7.0061225e-07 | D66: ='DF raw data'!F71 -> 1.1647886e-06 | F66: 1.701336586e-06 | G66: -7.028416354e-07 | H66: 1.165794977e-06 | J66: -5.382073998e-06 | K66: 3.061335031e-06 | L66: 8.047452196e-06 | N66: -0.0002462149033 | O66: -0.004015521414 | P66: -2.993445216e-05 | Q66: -0.0001475285398 | R66: 6.847777609e-07
A67: 29.39198 | B67: ='DF raw data'!D72 -> -1.2389769e-06 | C67: ='DF raw data'!E72 -> -1.1108999e-06 | D67: ='DF raw data'!F72 -> 2.7370613e-06 | F67: -1.240047376e-06 | G67: -1.114434842e-06 | H67: 2.739426121e-06 | J67: -2.475096838e-06 | K67: -2.243340686e-06 | L67: 5.423754779e-06 | N67: -0.0002474528972 | O67: -0.004139292405 | P67: -3.105652631e-05 | Q67: -0.0001630623931 | R67: 7.158876786e-07
A68: 29.89216 | B68: ='DF raw data'!D73 -> -1.2582e-06 | C68: ='DF raw data'!E73 -> 5.2356959e-06 | D68: ='DF raw data'!F73 -> 1.6342589e-06 | F68: -1.259287085e-06 | G68: 5.252356162e-06 | H68: 1.6356709e-06 | J68: -4.835858375e-06 | K68: 7.694748332e-06 | L68: 4.672310992e-06 | N68: -0.0002498716969 | O68: -0.00426427323 | P68: -2.720776709e-05 | Q68: -0.0001766711741 | R68: 7.47487114e-07
A69: 30.39234 | B69: ='DF raw data'!D74 -> 1.4151142e-06 | C69: ='DF raw data'!E74 -> -1.3634775e-06 | D69: ='DF raw data'!F74 -> -4.0909886e-06 | F69: 1.416336859e-06 | G69: -1.367816158e-06 | H69: -4.094523214e-06 | J69: -1.434077273e-05 | K69: -1.795741119e-06 | L69: 1.849112254e-06 | N69: -0.0002570446646 | O69: -0.00439284183 | P69: -2.810596088e-05 | Q69: -0.0001907292136 | R69: 7.809301015e-07
A70: 30.89252 | B70: ='DF raw data'!D75 -> 3.9194861e-06 | C70: ='DF raw data'!E75 -> -8.9548184e-06 | D70: ='DF raw data'!F75 -> -1.415979e-06 | F70: 3.922872536e-06 | G70: -8.983313108e-06 | H70: -1.417202406e-06 | J70: -1.584105986e-05 | K70: 1.320059275e-06 | L70: 3.195133012e-06 | N70: -0.0002649680459 | O70: -0.004525373548 | P70: -2.744569363e-05 | Q70: -0.0002044570006 | R70: 8.164235403e-07
A71: 31.3927 | B71: ='DF raw data'!D76 -> 2.7549754e-06 | C71: ='DF raw data'!E76 -> -9.3246772e-06 | D71: ='DF raw data'!F76 -> -2.7471262e-06 | F71: 2.757355699e-06 | G71: =(1-$G$1*($B$2-$G$2))*C71*$M$2/$M$1 -> -9.354348818e-06 | H71: -2.749499717e-06 | J71: =-CELL("contents", INDEX($F$6:$F$1203,1204-CELL("row",F71))) -> -7.445811928e-06 | K71: =CELL("contents", INDEX($G$6:$G$1203,1204-CELL("row",G71))) -> 1.158073262e-05 | L71: =-CELL("contents", INDEX($H$6:$H$1203,1204-CELL("row",H71))) -> -1.386079239e-06 | N71: -0.0002686922921 | O71: -0.004659768058 | P71: -2.165324279e-05 | Q71: -0.0002152875196 | R71: 8.527688252e-07
A72: =A71+$B$1 -> 31.89288 | B72: ='DF raw data'!D77 -> -9.4781677e-07 | C72: ='DF raw data'!E77 -> -1.0027971e-05 | D72: ='DF raw data'!F77 -> 1.895353e-06 | F72: -9.486356837e-07 | G72: -1.005988054e-05 | H72: 1.896990585e-06 | J72: 3.415586619e-07 | K72: 3.69418611e-06 | L72: -2.980359207e-06 | N72: =J72*$B$1+N71 -> -0.0002685214513 | O72: =N72*$B$1+O71 -> -0.004794077118 | P72: =K72*$B$1+P71 -> -1.980548478e-05 | Q72: =P72*$B$1+Q71 -> -0.000225193827 | R72: =(N72^2+P72^2)*$B$1+R71 -> 8.89029888e-07
A73: 32.39306 | B73: ='DF raw data'!D78 -> -2.7771785e-09 | C73: ='DF raw data'!E78 -> -2.0937252e-06 | D73: ='DF raw data'!F78 -> -1.6640928e-06 | F73: -2.779577982e-09 | G73: -2.100387545e-06 | H73: -1.665530576e-06 | J73: -8.230232382e-07 | K73: -4.464879819e-06 | L73: 6.334002554e-06 | N73: -0.0002689331111 | O73: -0.004928592081 | P73: -2.203872837e-05 | Q73: -0.0002362171581 | R73: 9.254483559e-07
A74: 32.89324 | B74: ='DF raw data'!D79 -> 1.0997232e-06 | C74: ='DF raw data'!E79 -> -1.1494625e-06 | D74: ='DF raw data'!F79 -> -3.8183839e-06 | F74: 1.100673361e-06 | G74: -1.153120151e-06 | H74: -3.821682984e-06 | J74: -8.639253772e-06 | K74: 1.02879941e-05 | L74: 1.89243225e-05 | N74: -0.000273254293 | O74: -0.005065268414 | P74: -1.689287948e-05 | Q74: -0.0002446666386 | R74: 9.629384865e-07
A75: 33.39342 | B75: ='DF raw data'!D80 -> 6.506329e-07 | C75: ='DF raw data'!E80 -> 5.237162e-06 | D75: ='DF raw data'!F80 -> -9.2212404e-06 | F75: 6.511950468e-07 | G75: 5.253826928e-06 | H75: -9.229207552e-06 | J75: -1.321467262e-05 | K75: 2.367718207e-05 | L75: 1.610978584e-05 | N75: -0.000279864008 | O75: -0.005205250793 | P75: -5.050026552e-06 | Q75: -0.0002471925609 | R75: 1.002127272e-06
A76: 33.8936 | B76: ='DF raw data'!D81 -> 4.0304908e-06 | C76: ='DF raw data'!E81 -> 2.75001e-08 | D76: ='DF raw data'!F81 -> -6.3511629e-06 | F76: 4.033973144e-06 | G76: 2.758760678e-08 | H76: -6.356650305e-06 | J76: -8.773736865e-06 | K76: 7.397196008e-06 | L76: 8.217845789e-06 | N76: -0.0002842524557 | O76: -0.005347428186 | P76: -1.350097052e-06 | Q76: -0.0002478678524 | R76: 1.042542457e-06
A77: 34.39378 | B77: ='DF raw data'!D82 -> 5.3123472e-06 | C77: ='DF raw data'!E82 -> 2.6242603e-06 | D77: ='DF raw data'!F82 -> -4.8361267e-06 | F77: 5.316937068e-06 | G77: 2.632610836e-06 | H77: -4.840305113e-06 | J77: -1.922735009e-06 | K77: 9.631851846e-06 | L77: 6.639150474e-06 | N77: -0.0002852141693 | O77: -0.005490086609 | P77: 3.467562604e-06 | Q77: -0.0002461334469 | R77: 1.083236675e-06
A78: 34.89396 | B78: ='DF raw data'!D83 -> 3.5191229e-06 | C78: ='DF raw data'!E83 -> -1.4055071e-06 | D78: ='DF raw data'!F83 -> -5.3331546e-06 | F78: 3.522163422e-06 | G78: -1.409979498e-06 | H78: -5.337762446e-06 | J78: 5.393735665e-07 | K78: 9.834770797e-06 | L78: 5.974368899e-06 | N78: -0.0002849443854 | O78: -0.005632610092 | P78: 8.386718261e-06 | Q78: -0.0002419385782 | R78: 1.123883122e-06
A79: 35.39414 | B79: ='DF raw data'!D84 -> 2.09162e-06 | C79: ='DF raw data'!E84 -> 1.6473065e-06 | D79: ='DF raw data'!F84 -> 2.4989301e-06 | F79: 2.09342716e-06 | G79: 1.652548317e-06 | H79: 2.501089176e-06 | J79: -2.736512105e-06 | K79: 7.571068123e-06 | L79: 8.138709675e-06 | N79: -0.000286313134 | O79: -0.005775818196 | P79: 1.217361512e-05 | Q79: -0.0002358495794 | R79: 1.164959608e-06
A80: 35.89432 | B80: ='DF raw data'!D85 -> 2.4918486e-06 | C80: ='DF raw data'!E85 -> -3.8559239e-07 | D80: ='DF raw data'!F85 -> 2.6710393e-06 | F80: 2.494001557e-06 | G80: -3.868193655e-07 | H80: 2.673347078e-06 | J80: -7.193615018e-06 | K80: 4.32021234e-06 | L80: 1.469535483e-05 | N80: -0.0002899112364 | O80: -0.005920825998 | P80: 1.433449892e-05 | Q80: -0.0002286797497 | R80: 1.207101775e-06
A81: 36.3945 | B81: ='DF raw data'!D86 -> 2.0526372e-06 | C81: ='DF raw data'!E86 -> -5.818481e-06 | D81: ='DF raw data'!F86 -> 9.3644002e-07 | F81: 2.054410679e-06 | G81: -5.836995715e-06 | H81: 9.372491042e-07 | J81: -7.442538502e-06 | K81: -2.994919063e-06 | L81: 8.939581731e-06 | N81: -0.0002936338453 | O81: -0.006067695775 | P81: 1.283650031e-05 | Q81: -0.000222259189 | R81: 1.25031013e-06
A82: 36.89468 | B82: ='DF raw data'!D87 -> -2.8431655e-06 | C82: ='DF raw data'!E87 -> 1.1665658e-06 | D82: ='DF raw data'!F87 -> 1.9507231e-06 | F82: -2.845621995e-06 | G82: 1.170277874e-06 | H82: 1.952408525e-06 | J82: -5.492705801e-06 | K82: 6.271501651e-06 | L82: 6.139763276e-06 | N82: -0.0002963811869 | O82: -0.006215939717 | P82: 1.597338e-05 | Q82: -0.0002142696238 | R82: 1.294374466e-06
A83: 37.39486 | B83: ='DF raw data'!D88 -> -7.6853048e-06 | C83: ='DF raw data'!E88 -> 7.3973268e-07 | D83: ='DF raw data'!F88 -> 3.7645211e-06 | F83: -7.691944903e-06 | G83: 7.420865487e-07 | H83: 3.767773646e-06 | J83: -5.234830689e-06 | K83: -3.439442172e-06 | L83: 5.740761836e-06 | N83: -0.0002989995445 | O83: -0.006365493309 | P83: 1.425303982e-05 | Q83: -0.0002071405383 | R83: 1.339192533e-06
A84: 37.89504 | B84: ='DF raw data'!D89 -> -7.531447e-06 | C84: ='DF raw data'!E89 -> 1.1440327e-05 | D84: ='DF raw data'!F89 -> 8.0102736e-06 | F84: -7.53795417e-06 | G84: 1.147673073e-05 | H84: 8.017194476e-06 | J84: -2.62160371e-06 | K84: -4.296226558e-06 | L84: 9.824647468e-06 | N84: -0.0003003108182 | O84: -0.006515702774 | P84: 1.210415322e-05 | Q84: -0.000201086283 | R84: 1.384375342e-06
A85: 38.39522 | B85: ='DF raw data'!D90 -> -4.8118068e-06 | C85: ='DF raw data'!E90 -> 1.5119714e-05 | D85: ='DF raw data'!F90 -> 1.0899185e-05 | F85: -4.815964201e-06 | G85: 1.516782573e-05 | H85: 1.09086019e-05 | J85: 2.081415991e-06 | K85: -5.000152683e-06 | L85: 2.150858638e-05 | N85: -0.0002992697356 | O85: -0.00666539151 | P85: 9.603176848e-06 | Q85: -0.000196282966 | R85: 1.429218778e-06
A86: 38.8954 | B86: ='DF raw data'!D91 -> -2.2330764e-06 | C86: ='DF raw data'!E91 -> -4.6538054e-07 | D86: ='DF raw data'!F91 -> 6.8498362e-06 | F86: -2.235005778e-06 | G86: -4.668614056e-07 | H86: 6.855754458e-06 | J86: -1.117307921e-06 | K86: -1.043452991e-05 | L86: 2.112597008e-05 | N86: -0.0002998285907 | O86: -0.006815359775 | P86: 4.384033678e-06 | Q86: -0.00019409016 | R86: 1.474193165e-06
A87: 39.39558 | B87: ='DF raw data'!D92 -> -3.1930663e-06 | C87: ='DF raw data'!E92 -> 1.0930501e-05 | D87: ='DF raw data'!F92 -> 1.6556902e-06 | F87: =(1-$G$1*($B$2-$G$2))*B87 -> -3.195825109e-06 | G87: 1.096528243e-05 | H87: 1.657120716e-06 | J87: -7.365109161e-06 | K87: -1.094316829e-05 | L87: 1.535887361e-05 | N87: -0.000303512471 | O87: -0.006967170642 | P87: -1.089520237e-06 | Q87: -0.0001946351162 | R87: 1.52027025e-06
A88: 39.89576 | B88: ='DF raw data'!D93 -> -6.6165117e-06 | C88: ='DF raw data'!E93 -> 2.9604969e-06 | D88: ='DF raw data'!F93 -> -2.4362939e-07 | F88: -6.622228366e-06 | G88: 2.969917358e-06 | H88: -2.438398858e-07 | J88: -9.358231632e-06 | K88: -1.730514623e-05 | L88: 4.585983669e-06 | N88: -0.0003081932713 | O88: -0.007121322753 | P88: -9.745208277e-06 | Q88: -0.0001995094745 | R88: 1.567826395e-06
A89: 40.39594 | B89: ='DF raw data'!D94 -> -8.9064852e-06 | C89: ='DF raw data'!E94 -> -5.4997213e-06 | D89: ='DF raw data'!F94 -> 5.146851e-06 | F89: -8.914180403e-06 | G89: -5.517221705e-06 | H89: 5.151297879e-06 | J89: -6.162381001e-06 | K89: -7.182338489e-06 | L89: -2.129931472e-06 | N89: -0.000311275571 | O89: -0.007277016568 | P89: -1.333767034e-05 | Q89: -0.0002061807105 | R89: 1.616379055e-06
A90: 40.89612 | B90: ='DF raw data'!D95 -> -6.2696158e-06 | C90: ='DF raw data'!E95 -> -1.4558094e-06 | D90: ='DF raw data'!F95 -> 6.2935765e-06 | F90: -6.275032748e-06 | G90: -1.460441863e-06 | H90: 6.29901415e-06 | J90: 1.589247324e-06 | K90: 1.457793462e-06 | L90: 8.834069347e-06 | N90: -0.0003104806613 | O90: -0.007432312785 | P90: -1.260851121e-05 | Q90: -0.0002124872356 | R90: 1.664675043e-06
A91: 41.3963 | B91: ='DF raw data'!D96 -> -3.0011629e-06 | C91: ='DF raw data'!E96 -> 4.7350773e-06 | D91: ='DF raw data'!F96 -> 1.6563559e-06 | F91: -3.003755905e-06 | G91: 4.750144567e-06 | H91: 1.657786991e-06 | J91: 2.601309992e-06 | K91: -9.791244333e-06 | L91: 1.321071621e-05 | N91: -0.000309179538 | O91: -0.007586958206 | P91: -1.75058958e-05 | Q91: -0.0002212433346 | R91: 1.712641526e-06
A92: 41.89648 | B92: ='DF raw data'!D97 -> -5.6347341e-07 | C92: ='DF raw data'!E97 -> -2.0172731e-06 | D92: ='DF raw data'!F97 -> 1.4537642e-06 | F92: -5.63960251e-07 | G92: -2.02369217e-06 | H92: 1.455020252e-06 | J92: -1.509398495e-06 | K92: -6.312970689e-06 | L92: 9.217151744e-06 | N92: -0.000309934509 | O92: -0.007741981249 | P92: -2.066351748e-05 | Q92: -0.0002315788127 | R92: 1.760902084e-06
A93: 42.39666 | B93: ='DF raw data'!D98 -> -1.1478637e-06 | C93: ='DF raw data'!E98 -> 1.8164907e-06 | D93: ='DF raw data'!F98 -> -1.0967864e-06 | F93: -1.148855454e-06 | G93: 1.82227087e-06 | H93: -1.097734023e-06 | J93: -4.687279614e-06 | K93: 9.247831048e-06 | L93: 1.205193989e-05 | N93: -0.0003122789925 | O93: -0.007898176956 | P93: -1.603793734e-05 | Q93: -0.0002396006682 | R93: 1.809807376e-06
A94: 42.89684 | B94: ='DF raw data'!D99 -> -1.8019414e-06 | C94: ='DF raw data'!E99 -> -9.0334061e-06 | D94: ='DF raw data'!F99 -> 3.7232772e-07 | F94: -1.803498277e-06 | G94: -9.062150878e-06 | H94: 3.726494112e-07 | J94: -7.76334554e-06 | K94: -7.415269135e-07 | L94: 1.308561821e-05 | N94: -0.0003161620627 | O94: -0.008056314896 | P94: -1.640883428e-05 | Q94: -0.000247808039 | R94: 1.859939267e-06
A95: 43.39702 | B95: ='DF raw data'!D100 -> 6.2994008e-07 | C95: ='DF raw data'!E100 -> -3.9188776e-06 | D95: ='DF raw data'!F100 -> 2.1093899e-06 | F95: 6.304843482e-07 | G95: -3.931347677e-06 | H95: 2.111212413e-06 | J95: -1.115741468e-05 | K95: -1.222573855e-05 | L95: 1.242576359e-05 | N95: -0.0003217427783 | O95: -0.008217244199 | P95: -2.252390418e-05 | Q95: -0.0002590740454 | R95: 1.911970862e-06
A96: 43.8972 | B96: ='DF raw data'!D101 -> -5.5038942e-07 | C96: ='DF raw data'!E101 -> 1.2696543e-05 | D96: ='DF raw data'!F101 -> -3.071845e-06 | F96: -5.508649565e-07 | G96: 1.273694407e-05 | H96: -3.074499074e-06 | J96: -1.314318891e-05 | K96: -6.991328111e-06 | L96: 6.484744983e-06 | N96: -0.0003283167386 | O96: -0.008381461665 | P96: -2.602082668e-05 | Q96: -0.0002720891425 | R96: 1.966224869e-06
A97: 44.39738 | B97: ='DF raw data'!D102 -> -4.6422642e-06 | C97: ='DF raw data'!E102 -> 5.3157532e-06 | D97: ='DF raw data'!F102 -> -1.084769e-05 | F97: -4.646275116e-06 | G97: 5.332668209e-06 | H97: -1.08570624e-05 | J97: -1.186663893e-05 | K97: 4.703163846e-06 | L97: 1.787362548e-06 | N97: -0.000334252194 | O97: -0.008548647928 | P97: -2.366839819e-05 | Q97: -0.0002839276019 | R97: 2.022387441e-06
A98: 44.89756 | B98: ='DF raw data'!D103 -> -4.3062478e-06 | C98: ='DF raw data'!E103 -> -1.7058513e-06 | D98: ='DF raw data'!F103 -> -7.8521562e-06 | F98: -4.309968398e-06 | G98: -1.711279409e-06 | H98: -7.858940463e-06 | J98: -7.977462578e-06 | K98: 9.761944997e-07 | L98: 5.976764767e-06 | N98: -0.0003382423613 | O98: -0.008717829992 | P98: -2.318012522e-05 | Q98: -0.0002955218369 | R98: 2.079880738e-06
A99: 45.39774 | B99: ='DF raw data'!D104 -> -8.1805553e-07 | C99: ='DF raw data'!E104 -> 7.2657899e-06 | D99: ='DF raw data'!F104 -> 1.592222e-07 | F99: -8.1876233e-07 | G99: 7.288910029e-06 | H99: 1.59359768e-07 | J99: -3.569463354e-06 | K99: -1.012252223e-05 | L99: 1.225210668e-05 | N99: -0.0003400277354 | O99: -0.008887905065 | P99: -2.824320839e-05 | Q99: -0.0003096485249 | R99: 2.138109963e-06
A100: 45.89792 | B100: ='DF raw data'!D105 -> -8.1725335e-07 | C100: ='DF raw data'!E105 -> -3.0016993e-06 | D100: ='DF raw data'!F105 -> 1.0968348e-06 | F100: -8.179594569e-07 | G100: -3.011250867e-06 | H100: 1.097782465e-06 | J100: 1.222744739e-06 | K100: -1.13981284e-05 | L100: 1.368119235e-05 | N100: -0.000339416143 | O100: -0.009057674231 | P100: -3.394432426e-05 | Q100: -0.000326626797 | R100: 2.196308674e-06
A101: 46.3981 | B101: ='DF raw data'!D106 -> -2.8388945e-06 | C101: ='DF raw data'!E106 -> -4.9121077e-06 | D101: ='DF raw data'!F106 -> 6.7472321e-09 | F101: -2.841347305e-06 | G101: -4.927738287e-06 | H101: 6.753061709e-09 | J101: -2.570326945e-07 | K101: -1.35077691e-05 | L101: 6.00760509e-06 | N101: -0.0003395447056 | O101: -0.009227507702 | P101: -4.070064021e-05 | Q101: -0.0003469844432 | R101: 2.254803299e-06
A102: 46.89828 | B102: ='DF raw data'!D107 -> 1.1262896e-06 | C102: ='DF raw data'!E107 -> -8.6833035e-07 | D102: ='DF raw data'!F107 -> 1.0451246e-06 | F102: 1.127262714e-06 | G102: -8.710934233e-07 | H102: 1.046027588e-06 | J102: -8.583870562e-06 | K102: -4.335174599e-06 | L102: 5.332166014e-06 | N102: -0.000343838186 | O102: -0.009399488686 | P102: -4.286900784e-05 | Q102: -0.0003684266635 | R102: 2.314856136e-06
A103: 47.39846 | B103: ='DF raw data'!D108 -> 3.8137555e-06 | C103: ='DF raw data'!E108 -> -1.7673623e-06 | D103: ='DF raw data'!F108 -> -3.4916677e-06 | F103: 3.817050585e-06 | G103: -1.772986141e-06 | H103: -3.494684501e-06 | J103: -1.130452368e-05 | K103: 2.936987406e-06 | L103: 1.135325274e-05 | N103: -0.0003494924826 | O103: -0.009574297836 | P103: -4.139998548e-05 | Q103: -0.0003891341083 | R103: 2.376807907e-06
A104: 47.89864 | B104: ='DF raw data'!D109 -> 4.4839867e-06 | C104: ='DF raw data'!E109 -> -5.8851942e-06 | D104: ='DF raw data'!F109 -> -3.7811126e-06 | F104: 4.487860865e-06 | G104: -5.9039212e-06 | H104: -3.784379481e-06 | J104: -7.547759635e-06 | K104: 6.999657231e-06 | L104: 9.267508515e-06 | N104: -0.000353267721 | O104: -0.009750995284 | P104: -3.789889692e-05 | Q104: -0.0004080903785 | R104: 2.439947834e-06
A105: 48.39882 | B105: ='DF raw data'!D110 -> 5.051957e-06 | C105: ='DF raw data'!E110 -> -6.3363342e-07 | D105: ='DF raw data'!F110 -> -5.9789941e-06 | F105: 5.056321891e-06 | G105: -6.356496752e-07 | H105: -5.984159951e-06 | J105: -6.190038977e-06 | K105: 5.154693581e-08 | L105: 7.536741623e-06 | N105: -0.0003563638547 | O105: -0.009929241357 | P105: -3.787311418e-05 | Q105: -0.0004270337528 | R105: 2.504185736e-06
A106: 48.899 | B106: ='DF raw data'!D111 -> 6.5075624e-06 | C106: ='DF raw data'!E111 -> 1.6094265e-05 | D106: ='DF raw data'!F111 -> -1.1377194e-05 | F106: 6.513184934e-06 | G106: 1.614547781e-05 | H106: -1.13870239e-05 | J106: -7.61389883e-06 | K106: -4.293547761e-06 | L106: 1.779512271e-05 | N106: -0.0003601721747 | O106: -0.01010939228 | P106: -4.002066089e-05 | Q106: -0.0004470512869 | R106: 2.569872199e-06
A107: 49.39918 | B107: ='DF raw data'!D112 -> 5.3553999e-06 | C107: ='DF raw data'!E112 -> 2.5602137e-06 | D107: ='DF raw data'!F112 -> -8.5330039e-06 | F107: 5.360026966e-06 | G107: 2.568360436e-06 | H107: -8.540376415e-06 | J107: -9.490376107e-06 | K107: -5.023845636e-06 | L107: 1.954694298e-05 | N107: -0.000364919071 | O107: -0.0102919175 | P107: -4.2533488e-05 | Q107: -0.000468325687 | R107: 2.637384008e-06
A108: 49.89936 | B108: ='DF raw data'!D113 -> 2.2570243e-06 | C108: ='DF raw data'!E113 -> 1.9122933e-06 | D108: ='DF raw data'!F113 -> -3.5936948e-06 | F108: 2.258974369e-06 | G108: 1.918378319e-06 | H108: -3.596799752e-06 | J108: -1.137861263e-05 | K108: -1.33792675e-05 | L108: 8.263206948e-06 | N108: -0.0003706104254 | O108: -0.01047728942 | P108: -4.922553002e-05 | Q108: -0.0004929473126 | R108: 2.707296787e-06
A109: 50.39954 | B109: ='DF raw data'!D114 -> 3.8269714e-06 | C109: ='DF raw data'!E114 -> 2.1336444e-07 | D109: ='DF raw data'!F114 -> -1.4753472e-06 | F109: 3.830277903e-06 | G109: 2.14043377e-07 | H109: -1.4766219e-06 | J109: -1.32306394e-05 | K109: -3.913008706e-06 | L109: 1.945499961e-06 | N109: -0.0003772281267 | O109: -0.01066597138 | P109: -5.118273872e-05 | Q109: -0.0005185478948 | R109: 2.779783239e-06
A110: 50.89972 | B110: ='DF raw data'!D115 -> 7.0654537e-06 | C110: ='DF raw data'!E115 -> 1.1867129e-06 | D110: ='DF raw data'!F115 -> -5.6569384e-06 | F110: 7.071558252e-06 | G110: 1.190489083e-06 | H110: -5.661825995e-06 | J110: -1.513531062e-05 | K110: 1.814643275e-06 | L110: 3.945379165e-06 | N110: -0.0003847985063 | O110: -0.0108584399 | P110: -5.027509044e-05 | Q110: -0.0005436944896 | R110: 2.855109084e-06
A111: 51.3999 | B111: ='DF raw data'!D116 -> 5.8519495e-06 | C111: ='DF raw data'!E116 -> -6.7999713e-06 | D111: ='DF raw data'!F116 -> -5.6236618e-06 | F111: 5.857005584e-06 | G111: -6.82160917e-06 | H111: -5.628520644e-06 | J111: -1.311686719e-05 | K111: -4.116734115e-06 | L111: 1.654141144e-06 | N111: -0.000391359301 | O111: -0.01105419 | P111: -5.233419851e-05 | Q111: -0.000569871009 | R111: 2.933087632e-06
A112: 51.90008 | B112: ='DF raw data'!D117 -> 1.1848956e-06 | C112: ='DF raw data'!E117 -> -2.7193666e-06 | D112: ='DF raw data'!F117 -> -3.6579852e-06 | F112: 1.18591935e-06 | G112: -2.728019769e-06 | H112: -3.661145699e-06 | J112: -9.791676205e-06 | K112: -1.103460633e-06 | L112: 3.936920863e-06 | N112: -0.0003962569016 | O112: -0.01125238977 | P112: -5.288612745e-05 | Q112: -0.0005963235922 | R112: 3.013024636e-06
A113: 52.40026 | B113: ='DF raw data'!D118 -> -3.1747782e-06 | C113: ='DF raw data'!E118 -> -2.7204379e-07 | D113: ='DF raw data'!F118 -> -7.6328553e-07 | F113: -3.177521208e-06 | G113: -2.729094478e-07 | H113: -7.639450087e-07 | J113: -8.183228806e-06 | K113: -9.614021991e-06 | L113: 1.387470039e-05 | N113: -0.0004003499889 | O113: -0.01145263683 | P113: -5.769486897e-05 | Q113: -0.0006251814118 | R113: 3.094858492e-06
A114: 52.90044 | B114: ='DF raw data'!D119 -> -2.584045e-06 | C114: ='DF raw data'!E119 -> 1.0139546e-05 | D114: ='DF raw data'!F119 -> 2.7303383e-06 | F114: -2.586277615e-06 | G114: 1.017181057e-05 | H114: 2.732697312e-06 | J114: -6.94282182e-06 | K114: -1.236896185e-05 | L114: 1.658652539e-05 | N114: -0.0004038226496 | O114: -0.01165462084 | P114: -6.388157631e-05 | Q114: -0.0006571336986 | R114: 3.178465373e-06
A115: 53.40062 | B115: ='DF raw data'!D120 -> 3.3049241e-06 | C115: ='DF raw data'!E120 -> 6.454688e-06 | D115: ='DF raw data'!F120 -> -5.2147529e-06 | F115: 3.307779554e-06 | G115: 6.47522716e-06 | H115: -5.219258447e-06 | J115: -9.304986568e-06 | K115: -4.645978055e-06 | L115: 1.338903314e-05 | N115: -0.0004084768177 | O115: -0.01185893278 | P115: -6.620540161e-05 | Q115: -0.0006902483164 | R115: 3.264114429e-06
A116: 53.9008 | B116: ='DF raw data'!D121 -> 3.7150326e-06 | C116: ='DF raw data'!E121 -> -1.5329309e-06 | D116: ='DF raw data'!F121 -> -4.519597e-06 | F116: 3.718242388e-06 | G116: -1.537808768e-06 | H116: -4.523501932e-06 | J116: -1.267266673e-05 | K116: 3.473866164e-06 | L116: 6.579068308e-06 | N116: -0.0004148154322 | O116: -0.01206641516 | P116: -6.446784324e-05 | Q116: -0.0007224938422 | R116: 3.352260123e-06
A117: 54.40098 | B117: ='DF raw data'!D122 -> -1.1433908e-06 | C117: ='DF raw data'!E122 -> 4.2676807e-06 | D117: ='DF raw data'!F122 -> 2.1555122e-06 | F117: -1.14437869e-06 | G117: 4.281260687e-06 | H117: 2.157374563e-06 | J117: -1.203946812e-05 | K117: -2.363673778e-06 | L117: 1.00170913e-05 | N117: -0.0004208373334 | O117: -0.01227690958 | P117: -6.565010559e-05 | Q117: -0.000755330712 | R117: 3.442999776e-06
A118: 54.90116 | B118: ='DF raw data'!D123 -> -4.249177e-06 | C118: ='DF raw data'!E123 -> 5.1720494e-06 | D118: ='DF raw data'!F123 -> 5.5894515e-07 | F118: -4.252848289e-06 | G118: 5.188507136e-06 | H118: 5.594280786e-07 | J118: -1.074107228e-05 | K118: -3.167053968e-06 | L118: 1.298037136e-05 | N118: -0.0004262098029 | O118: -0.0124900912 | P118: -6.723420264e-05 | Q118: -0.0007889599155 | R118: 3.536120904e-06
A119: 55.40134 | B119: ='DF raw data'!D124 -> -5.1978855e-06 | C119: ='DF raw data'!E124 -> -7.3055267e-06 | D119: ='DF raw data'!F124 -> -6.6687585e-06 | F119: -5.202376473e-06 | G119: -7.328773274e-06 | H119: -6.674520307e-06 | J119: -1.094209481e-05 | K119: -4.979941474e-06 | L119: 1.036007438e-05 | N119: -0.0004316828199 | O119: -0.01270601031 | P119: -6.972506977e-05 | Q119: -0.0008238350009 | R119: 3.631761144e-06
A120: 55.90152 | B120: ='DF raw data'!D125 -> -4.774161e-06 | C120: ='DF raw data'!E125 -> -6.6223797e-06 | D120: ='DF raw data'!F125 -> -9.7961356e-06 | F120: -4.778285875e-06 | G120: -6.643452464e-06 | H120: -9.804599461e-06 | J120: -1.245006457e-05 | K120: -1.412482839e-05 | L120: 1.231825178e-05 | N120: -0.0004379100932 | O120: -0.01292504418 | P120: -7.679002643e-05 | Q120: -0.0008622438363 | R120: 3.730627702e-06
A121: 56.4017 | B121: ='DF raw data'!D126 -> -4.992698e-06 | C121: ='DF raw data'!E126 -> -8.317723e-07 | D121: ='DF raw data'!F126 -> -3.7407639e-07 | F121: -4.997011691e-06 | G121: -8.344190436e-07 | H121: -3.74399592e-07 | J121: -1.199130054e-05 | K121: -1.387093103e-06 | L121: 1.068520505e-05 | N121: -0.0004439079019 | O121: -0.01314707803 | P121: -7.748382266e-05 | Q121: -0.0009009996947 | R121: 3.832193236e-06
A122: 56.90188 | B122: ='DF raw data'!D127 -> -6.8483328e-06 | C122: ='DF raw data'!E127 -> 5.8063638e-06 | D122: ='DF raw data'!F127 -> 1.3954416e-05 | F122: -6.85424976e-06 | G122: 5.824839958e-06 | H122: 1.396647262e-05 | J122: -8.577858072e-06 | K122: 1.380561586e-06 | L122: 7.510365354e-06 | N122: -0.0004481983749 | O122: -0.0133712579 | P122: -7.679329336e-05 | Q122: -0.0009394101642 | R122: 3.935619953e-06
A123: 57.40206 | B123: ='DF raw data'!D128 -> -4.1387734e-06 | C123: ='DF raw data'!E128 -> 9.5321656e-07 | D123: ='DF raw data'!F128 -> 1.2323509e-05 | F123: -4.1423493e-06 | G123: 9.562497457e-07 | H123: 1.233415651e-05 | J123: -7.498055628e-06 | K123: -1.023736551e-05 | L123: 3.775054531e-06 | N123: -0.0004519487524 | O123: -0.01359731362 | P123: -8.191381884e-05 | Q123: -0.0009803818181 | R123: 4.041141701e-06
A124: 57.90224 | B124: ='DF raw data'!D129 -> 4.214821e-07 | C124: ='DF raw data'!E129 -> -6.3485854e-06 | D124: ='DF raw data'!F129 -> 9.4409432e-07 | F124: 4.218462605e-07 | G124: -6.368786936e-06 | H124: 9.449100175e-07 | J124: -9.745713428e-06 | K124: -7.579205736e-06 | L124: 2.082719316e-06 | N124: -0.0004568233633 | O124: -0.01382580753 | P124: -8.570478597e-05 | Q124: -0.001023249638 | R124: 4.149197035e-06
A125: 58.40242 | B125: ='DF raw data'!D130 -> 5.1072925e-06 | C125: ='DF raw data'!E130 -> -5.1722886e-06 | D125: ='DF raw data'!F130 -> 1.6738583e-06 | F125: 5.111705201e-06 | G125: -5.188747097e-06 | H125: 1.675304514e-06 | J125: -1.268996967e-05 | K125: 3.043667591e-06 | L125: 1.963450857e-07 | N125: -0.0004631706324 | O125: -0.01405747622 | P125: -8.418240431e-05 | Q125: -0.001065355993 | R125: 4.260043782e-06
A126: 58.9026 | B126: ='DF raw data'!D131 -> 8.9875703e-06 | C126: ='DF raw data'!E131 -> -8.6904975e-06 | D126: ='DF raw data'!F131 -> 7.9861138e-06 | F126: 8.995335561e-06 | G126: -8.718151124e-06 | H126: 7.993013802e-06 | J126: -1.077187086e-05 | K126: -1.26261045e-06 | L126: 1.034054452e-06 | N126: -0.0004685585067 | O126: -0.01429183982 | P126: -8.481393681e-05 | Q126: -0.001107778228 | R126: 4.373454834e-06
A127: 59.40278 | B127: ='DF raw data'!D132 -> 7.2177095e-06 | C127: ='DF raw data'!E132 -> 7.155581e-06 | D127: ='DF raw data'!F132 -> 1.0030987e-05 | F127: 7.223945601e-06 | G127: 7.178350439e-06 | H127: 1.003965377e-05 | J127: -3.608813023e-06 | K127: 1.310690859e-06 | L127: 7.392061628e-06 | N127: -0.0004703635628 | O127: -0.01452710626 | P127: -8.415835545e-05 | Q127: -0.001149872554 | R127: 4.487658187e-06
A128: 59.90296 | B128: ='DF raw data'!D133 -> 3.4601167e-06 | C128: ='DF raw data'!E133 -> 4.6199279e-06 | D128: ='DF raw data'!F133 -> 1.3605228e-06 | F128: 3.463106241e-06 | G128: 4.634628756e-06 | H128: 1.361698292e-06 | J128: -2.177937614e-06 | K128: 3.013151897e-07 | L128: 1.223838684e-05 | N128: -0.0004714529237 | O128: -0.01476291759 | P128: -8.400764362e-05 | Q128: -0.001191891497 | R128: 4.602362038e-06
A129: 60.40314 | B129: ='DF raw data'!D134 -> 6.1535898e-06 | C129: ='DF raw data'!E134 -> -9.5054702e-06 | D129: ='DF raw data'!F134 -> -9.5643927e-06 | F129: 6.158906502e-06 | G129: -9.535717111e-06 | H129: -9.572656335e-06 | J129: -7.171902975e-06 | K129: 8.185715661e-06 | L129: 1.200171453e-05 | N129: -0.0004750401661 | O129: -0.01500052318 | P129: -7.991331236e-05 | Q129: -0.001231862538 | R129: 4.718428455e-06
A130: 60.90332 | B130: ='DF raw data'!D135 -> 6.2039194e-06 | C130: ='DF raw data'!E135 -> 1.032194e-05 | D130: ='DF raw data'!F135 -> -8.3453242e-06 | F130: 6.209279586e-06 | G130: 1.035478496e-05 | H130: -8.35253456e-06 | J130: -8.782822308e-06 | K130: 8.430130033e-06 | L130: 1.221906716e-05 | N130: -0.0004794331581 | O130: -0.01524032605 | P130: -7.569672992e-05 | Q130: -0.001269724528 | R130: 4.836263934e-06
A131: 61.4035 | B131: ='DF raw data'!D136 -> 1.3076483e-06 | C131: ='DF raw data'!E136 -> 1.2093054e-05 | D131: ='DF raw data'!F136 -> 3.066302e-06 | F131: 1.308778108e-06 | G131: 1.213153474e-05 | H131: 3.068951285e-06 | J131: -4.982033061e-06 | K131: 7.173799403e-06 | L131: 1.509535713e-05 | N131: -0.0004819250714 | O131: -0.01548137534 | P131: -7.210853894e-05 | Q131: -0.001305791777 | R131: 4.955032384e-06
A132: 61.90368 | B132: ='DF raw data'!D137 -> -1.9908798e-07 | C132: ='DF raw data'!E137 -> 6.7554324e-06 | D132: ='DF raw data'!F137 -> 1.2123847e-05 | F132: -1.99259992e-07 | G132: 6.776928545e-06 | H132: 1.2134322e-05 | J132: -5.517291625e-06 | K132: 9.227886284e-06 | L132: 1.534688326e-05 | N132: -0.0004846847104 | O132: -0.01572380493 | P132: -6.749293478e-05 | Q132: -0.001339550393 | R132: 5.074812771e-06
A133: 62.40386 | B133: ='DF raw data'!D138 -> -1.9867707e-06 | C133: ='DF raw data'!E138 -> 6.8302751e-07 | D133: ='DF raw data'!F138 -> 1.1138979e-05 | F133: -1.98848727e-06 | G133: 6.852009398e-07 | H133: 1.114860308e-05 | J133: -9.01918575e-06 | K133: 2.599547861e-07 | L133: 1.325487933e-05 | N133: -0.0004891959267 | O133: -0.01596849095 | P133: -6.736291059e-05 | Q133: -0.001373243974 | R133: 5.196781873e-06
A134: 62.90404 | B134: ='DF raw data'!D139 -> -4.1687431e-06 | C134: ='DF raw data'!E139 -> -9.5188143e-06 | D134: ='DF raw data'!F139 -> 3.0112631e-06 | F134: -4.172344894e-06 | G134: -9.549103672e-06 | H134: 3.013864831e-06 | J134: -1.00511557e-05 | K134: -2.160754928e-06 | L134: 1.114728894e-05 | N134: -0.0004942233138 | O134: -0.01621569157 | P134: -6.844367699e-05 | Q134: -0.001407478132 | R134: 5.321297293e-06
A135: 63.40422 | B135: ='DF raw data'!D140 -> -1.6497538e-06 | C135: ='DF raw data'!E140 -> 7.8990405e-07 | D135: ='DF raw data'!F140 -> -1.932772e-06 | F135: -1.651179187e-06 | G135: =(1-$G$1*($B$2-$G$2))*C135*$M$2/$M$1 -> 7.924175666e-07 | H135: -1.934441915e-06 | J135: =-CELL("contents", INDEX($F$6:$F$1203,1204-CELL("row",F135))) -> -9.223014005e-06 | K135: =CELL("contents", INDEX($G$6:$G$1203,1204-CELL("row",G135))) -> -1.2969899e-08 | L135: =-CELL("contents", INDEX($H$6:$H$1203,1204-CELL("row",H135))) -> 1.077499456e-05 | N135: -0.0004988364809 | O135: -0.0164651996 | P135: -6.845016428e-05 | Q135: -0.001441715536 | R135: 5.448104557e-06
A136: =A135+$B$1 -> 63.9044 | B136: ='DF raw data'!D141 -> -1.7574871e-06 | C136: ='DF raw data'!E141 -> 9.4309116e-06 | D136: ='DF raw data'!F141 -> -5.6643926e-06 | F136: -1.759005569e-06 | G136: 9.460921261e-06 | H136: -5.669286635e-06 | J136: -6.586939503e-06 | K136: -1.920088644e-06 | L136: 6.895470844e-06 | N136: =J136*$B$1+N135 -> -0.0005021311363 | O136: =N136*$B$1+O135 -> -0.01671635555 | P136: =K136*$B$1+P135 -> -6.941055421e-05 | Q136: =P136*$B$1+Q135 -> -0.001476433307 | R136: =(N136^2+P136^2)*$B$1+R135 -> 5.57662756e-06
A137: 64.40458 | B137: ='DF raw data'!D142 -> -3.4176114e-06 | C137: ='DF raw data'!E142 -> -1.9239025e-07 | D137: ='DF raw data'!F142 -> -7.5349612e-06 | F137: -3.420564216e-06 | G137: -1.93002446e-07 | H137: -7.541471406e-06 | J137: -3.408992727e-06 | K137: -1.049516524e-06 | L137: 1.12824296e-06 | N137: -0.0005038362463 | O137: -0.01696836437 | P137: -6.993550139e-05 | Q137: -0.001511413646 | R137: 5.706045102e-06
A138: 64.90476 | B138: ='DF raw data'!D143 -> -1.2960477e-06 | C138: ='DF raw data'!E143 -> -4.9481309e-06 | D138: ='DF raw data'!F143 -> -4.2370752e-06 | F138: -1.297167485e-06 | G138: -4.963876115e-06 | H138: -4.240736033e-06 | J138: -6.5339974e-07 | K138: 4.138709018e-06 | L138: 5.432602417e-07 | N138: -0.0005041630638 | O138: -0.01722053665 | P138: -6.786540191e-05 | Q138: -0.001545358562 | R138: 5.835484737e-06
A139: 65.40494 | B139: ='DF raw data'!D144 -> 2.0195298e-06 | C139: ='DF raw data'!E144 -> -8.1838725e-06 | D139: ='DF raw data'!F144 -> 3.6085864e-06 | F139: 2.021274674e-06 | G139: -8.209914017e-06 | H139: 3.611704219e-06 | J139: -2.471355608e-06 | K139: 2.607177161e-06 | L139: 4.120633654e-06 | N139: -0.0005053991864 | O139: -0.01747332721 | P139: -6.656134404e-05 | Q139: -0.001578651215 | R139: 5.965460887e-06
A140: 65.90512 | B140: ='DF raw data'!D145 -> 1.0497938e-06 | C140: ='DF raw data'!E145 -> 1.2105999e-06 | D140: ='DF raw data'!F145 -> 2.2176052e-06 | F140: 1.050700822e-06 | G140: 1.214452093e-06 | H140: 2.219521211e-06 | J140: -5.955278519e-06 | K140: -1.169448243e-06 | L140: 7.259772429e-06 | N140: -0.0005083778976 | O140: -0.01772760767 | P140: -6.714627866e-05 | Q140: -0.001612236441 | R140: 6.096986574e-06
A141: 66.4053 | B141: ='DF raw data'!D146 -> 4.208378e-06 | C141: ='DF raw data'!E146 -> 5.0156746e-06 | D141: ='DF raw data'!F146 -> -1.6975695e-06 | F141: 4.212014039e-06 | G141: 5.031634743e-06 | H141: -1.6990362e-06 | J141: -5.92742027e-06 | K141: 4.861105631e-06 | L141: 8.535781349e-06 | N141: -0.0005113426747 | O141: -0.01798337105 | P141: -6.471485085e-05 | Q141: -0.001644605515 | R141: 6.229864064e-06
A142: 66.90548 | B142: ='DF raw data'!D147 -> 6.386746e-06 | C142: ='DF raw data'!E147 -> 3.8024198e-06 | D142: ='DF raw data'!F147 -> 2.971889e-07 | F142: 6.392264149e-06 | G142: 3.814519302e-06 | H142: 2.974456712e-07 | J142: -3.340114568e-06 | K142: -2.797489123e-06 | L142: 1.093799327e-05 | N142: -0.0005130133332 | O142: -0.01823997006 | P142: -6.611409896e-05 | Q142: -0.001677674465 | R142: 6.363689101e-06
A143: 67.40566 | B143: ='DF raw data'!D148 -> 1.2737387e-06 | C143: ='DF raw data'!E148 -> -1.8423483e-06 | D143: ='DF raw data'!F148 -> -2.2630786e-06 | F143: 1.27483921e-06 | G143: -1.84821075e-06 | H143: -2.2650339e-06 | J143: -1.194765486e-07 | K143: -1.406726781e-05 | L143: 2.608482784e-06 | N143: -0.000513073093 | O143: -0.01849659896 | P143: -7.315026497e-05 | Q143: -0.001714262765 | R143: 6.498034928e-06
A144: 67.90584 | B144: ='DF raw data'!D149 -> -4.545745e-06 | C144: ='DF raw data'!E149 -> 1.5796583e-06 | D144: ='DF raw data'!F149 -> 8.6402969e-07 | F144: -4.549672524e-06 | G144: 1.584684857e-06 | H144: 8.647762117e-07 | J144: -2.766747206e-07 | K144: -5.44093292e-07 | L144: 1.85077629e-06 | N144: -0.0005132114801 | O144: -0.01875329707 | P144: -7.342240955e-05 | Q144: -0.001750987185 | R144: 6.632471744e-06
A145: 68.40602 | B145: ='DF raw data'!D150 -> -4.1999824e-06 | C145: ='DF raw data'!E150 -> -1.0349826e-06 | D145: ='DF raw data'!F150 -> 5.2111413e-06 | F145: -4.203611185e-06 | G145: -1.03827597e-06 | H145: 5.215643726e-06 | J145: -4.496678777e-06 | K145: 7.775461852e-06 | L145: 6.845314446e-06 | N145: -0.0005154606289 | O145: -0.01901112017 | P145: -6.953327904e-05 | Q145: -0.001785766341 | R145: 6.767787709e-06
A146: 68.9062 | B146: ='DF raw data'!D151 -> 1.6668932e-06 | C146: ='DF raw data'!E151 -> -1.0178343e-05 | D146: ='DF raw data'!F151 -> -4.213301e-07 | F146: 1.668333396e-06 | G146: -1.021073103e-05 | H146: -4.216941292e-07 | J146: -7.745508542e-06 | K146: 1.284454137e-06 | L146: 4.494657031e-06 | N146: -0.0005193347774 | O146: -0.01927088104 | P146: -6.889082077e-05 | Q146: -0.001820224152 | R146: 6.905064389e-06
A147: 69.40638 | B147: ='DF raw data'!D152 -> 4.0074624e-06 | C147: ='DF raw data'!E152 -> -8.231229e-08 | D147: ='DF raw data'!F152 -> -4.8885718e-06 | F147: 4.010924848e-06 | G147: -8.257421208e-08 | H147: -4.892795526e-06 | J147: -9.520640232e-06 | K147: 4.988802079e-07 | L147: 1.267461241e-06 | N147: -0.0005240968112 | O147: -0.01953302378 | P147: -6.864129087e-05 | Q147: -0.001854557153 | R147: 7.044809226e-06
A148: 69.90656 | B148: ='DF raw data'!D153 -> 4.5989286e-06 | C148: ='DF raw data'!E153 -> -3.7654347e-06 | D148: ='DF raw data'!F153 -> -4.4992971e-06 | F148: 4.602902074e-06 | G148: -3.777416513e-06 | H148: -4.503184493e-06 | J148: -1.349813532e-05 | K148: 1.836190221e-06 | L148: 5.189350328e-06 | N148: -0.0005308483085 | O148: -0.01979854349 | P148: -6.772286524e-05 | Q148: -0.001888430775 | R148: 7.188053932e-06
A149: 70.40674 | B149: ='DF raw data'!D154 -> 2.5576642e-06 | C149: ='DF raw data'!E154 -> -4.002271e-06 | D149: ='DF raw data'!F154 -> -1.0272391e-06 | F149: 2.559874022e-06 | G149: -4.015006439e-06 | H149: -1.028126635e-06 | J149: -1.623675845e-05 | K149: 5.834609848e-06 | L149: 6.823864529e-06 | N149: -0.0005389696104 | O149: -0.02006812531 | P149: -6.480451009e-05 | Q149: -0.001920844695 | R149: 7.335450909e-06
A150: 70.90692 | B150: ='DF raw data'!D155 -> 1.1636698e-06 | C150: ='DF raw data'!E155 -> -4.5413176e-06 | D150: ='DF raw data'!F155 -> -2.1693716e-06 | F150: 1.164675211e-06 | G150: -4.555768314e-06 | H150: -2.171245937e-06 | J150: -1.964886496e-05 | K150: -6.376684587e-06 | L150: 5.136925472e-06 | N150: -0.0005487975797 | O150: -0.02034262288 | P150: -6.799400019e-05 | Q150: -0.001954853934 | R150: 7.488406937e-06
A151: 71.4071 | B151: ='DF raw data'!D156 -> 1.9593231e-06 | C151: ='DF raw data'!E156 -> -3.2193159e-06 | D151: ='DF raw data'!F156 -> -2.4204794e-06 | F151: =(1-$G$1*($B$2-$G$2))*B151 -> 1.961015955e-06 | G151: -3.229559934e-06 | H151: -2.422570694e-06 | J151: -2.034085333e-05 | K151: -1.709808644e-06 | L151: 8.181274419e-06 | N151: -0.0005589716677 | O151: -0.02062220933 | P151: -6.884921227e-05 | Q151: -0.001989290933 | R151: 7.647058801e-06
A152: 71.90728 | B152: ='DF raw data'!D157 -> -6.750775e-07 | C152: ='DF raw data'!E157 -> 6.6589641e-06 | D152: ='DF raw data'!F157 -> 1.6570217e-06 | F152: -6.75660767e-07 | G152: 6.680153277e-06 | H152: 1.658453367e-06 | J152: -1.164343624e-05 | K152: 9.403232776e-06 | L152: 8.066568098e-06 | N152: -0.0005647954816 | O152: -0.02090470874 | P152: -6.41459033e-05 | Q152: -0.002021375431 | R152: 7.808671277e-06
A153: 72.40746 | B153: ='DF raw data'!D158 -> -2.1590508e-06 | C153: ='DF raw data'!E158 -> 8.9306932e-06 | D153: ='DF raw data'!F158 -> 4.4013782e-06 | F153: -2.16091622e-06 | G153: 8.95911114e-06 | H153: 4.405180991e-06 | J153: -3.368841166e-06 | K153: -5.848367687e-06 | L153: 1.713786734e-05 | N153: -0.0005664805086 | O153: -0.02118805096 | P153: -6.707113985e-05 | Q153: -0.002054923074 | R153: 7.971429201e-06
A154: 72.90764 | B154: ='DF raw data'!D159 -> 3.0090237e-06 | C154: ='DF raw data'!E159 -> 4.665028e-06 | D154: ='DF raw data'!F159 -> -4.5999818e-07 | F154: 3.011623496e-06 | G154: 4.679872367e-06 | H154: -4.603956184e-07 | J154: -2.705513446e-06 | K154: -6.662057879e-06 | L154: 2.455320165e-05 | N154: -0.0005678337523 | O154: -0.02147207004 | P154: -7.040336796e-05 | Q154: -0.00209013743 | R154: 8.135184034e-06
A155: 73.40782 | B155: ='DF raw data'!D160 -> 5.3967183e-06 | C155: ='DF raw data'!E160 -> 1.1818994e-05 | D155: ='DF raw data'!F160 -> -8.3579698e-06 | F155: 5.401381065e-06 | G155: 1.185660267e-05 | H155: -8.365191086e-06 | J155: -8.299138466e-06 | K155: -3.446560551e-07 | L155: 1.260275038e-05 | N155: -0.0005719848154 | O155: -0.02175816541 | P155: -7.057575803e-05 | Q155: -0.002125438013 | R155: 8.301317603e-06
A156: 73.908 | B156: ='DF raw data'!D161 -> -5.2522552e-07 | C156: ='DF raw data'!E161 -> 1.2576326e-05 | D156: ='DF raw data'!F161 -> -5.1866677e-06 | F156: -5.256793148e-07 | G156: 1.261634454e-05 | H156: -5.191148981e-06 | J156: -1.209418335e-05 | K156: 1.064252968e-07 | L156: 6.772826571e-07 | N156: -0.000578034084 | O156: -0.0220472865 | P156: -7.052252623e-05 | Q156: -0.00216071197 | R156: 8.470927055e-06
A157: 74.40818 | B157: ='DF raw data'!D162 -> -4.4095082e-06 | C157: ='DF raw data'!E162 -> 1.4263502e-06 | D157: ='DF raw data'!F162 -> 2.1390722e-06 | F157: -4.413318015e-06 | G157: 1.430888922e-06 | H157: 2.140920358e-06 | J157: -8.515059661e-06 | K157: -9.220903735e-08 | L157: 3.735330039e-07 | N157: -0.0005822931466 | O157: -0.02233853788 | P157: -7.056864734e-05 | Q157: -0.002196008996 | R157: 8.643011605e-06
A158: 74.90836 | B158: ='DF raw data'!D163 -> -2.042641e-06 | C158: ='DF raw data'!E163 -> 9.8334613e-06 | D158: ='DF raw data'!F163 -> 5.1740703e-06 | F158: -2.044405842e-06 | G158: 9.864751896e-06 | H158: 5.178540697e-06 | J158: -6.466754252e-06 | K158: -4.302379675e-06 | L158: 1.035541035e-05 | N158: -0.0005855276877 | O158: -0.02263140712 | P158: -7.272061161e-05 | Q158: -0.002232382392 | R158: 8.817139749e-06
A159: 75.40854 | B159: ='DF raw data'!D164 -> -8.6651522e-07 | C159: ='DF raw data'!E164 -> 1.65239e-05 | D159: ='DF raw data'!F164 -> 7.0250343e-07 | F159: -8.672638892e-07 | G159: 1.657647993e-05 | H159: 7.03110393e-07 | J159: -8.55982e-06 | K159: -6.945555322e-06 | L159: 1.845997365e-05 | N159: -0.0005898091385 | O159: -0.02292641786 | P159: -7.619463947e-05 | Q159: -0.002270493427 | R159: 8.994043633e-06
A160: 75.90872 | B160: ='DF raw data'!D165 -> -5.5168816e-06 | C160: ='DF raw data'!E165 -> 5.7718066e-06 | D160: ='DF raw data'!F165 -> 2.4338394e-06 | F160: -5.521648186e-06 | G160: 5.790172795e-06 | H160: 2.435942237e-06 | J160: -6.698708288e-06 | K160: -4.044180979e-06 | L160: 1.770959688e-05 | N160: -0.0005931596984 | O160: -0.02322310447 | P160: -7.821745791e-05 | Q160: -0.002309616235 | R160: 9.173086264e-06
A161: 76.4089 | B161: ='DF raw data'!D166 -> -8.3010673e-06 | C161: ='DF raw data'!E166 -> 3.0969902e-06 | D161: ='DF raw data'!F166 -> 1.7768858e-06 | F161: -8.308239422e-06 | G161: 3.106844987e-06 | H161: 1.778421029e-06 | J161: -7.53413097e-06 | K161: -6.464222855e-06 | L161: 1.439733256e-05 | N161: -0.00059692812 | O161: -0.02352167598 | P161: -8.14507329e-05 | Q161: -0.002350356262 | R161: 9.354630297e-06
A162: 76.90908 | B162: ='DF raw data'!D167 -> -1.8243022e-06 | C162: ='DF raw data'!E167 -> 5.9119052e-06 | D162: ='DF raw data'!F167 -> -4.2051956e-06 | F162: -1.825878397e-06 | G162: 5.930717196e-06 | H162: -4.208828889e-06 | J162: -1.418344292e-05 | K162: -3.0305241e-06 | L162: 1.421621521e-05 | N162: -0.0006040223945 | O162: -0.0238237959 | P162: -8.296654044e-05 | Q162: -0.002391854466 | R162: 9.540560458e-06
A163: 77.40926 | B163: ='DF raw data'!D168 -> 7.3019478e-06 | C163: ='DF raw data'!E168 -> 6.3759658e-06 | D163: ='DF raw data'!F168 -> 1.7645713e-06 | F163: 7.308256683e-06 | G163: 6.396254462e-06 | H163: 1.76609589e-06 | J163: -1.458508664e-05 | K163: -2.501006592e-06 | L163: 9.45222257e-06 | N163: -0.0006113175631 | O163: -0.02412956472 | P163: -8.421749392e-05 | Q163: -0.002433978373 | R163: 9.731029877e-06
A164: 77.90944 | B164: ='DF raw data'!D169 -> 6.2858876e-06 | C164: ='DF raw data'!E169 -> 1.305733e-06 | D164: ='DF raw data'!F169 -> 1.7417429e-06 | F164: 6.291318607e-06 | G164: 1.309887912e-06 | H164: 1.743247766e-06 | J164: -1.154877052e-05 | K164: -1.313793701e-05 | L164: 8.256146753e-06 | N164: -0.0006170940272 | O164: -0.02443822281 | P164: -9.078882725e-05 | Q164: -0.002479389128 | R164: 9.92562373e-06
A165: 78.40962 | B165: ='DF raw data'!D170 -> -4.0294376e-06 | C165: ='DF raw data'!E170 -> 7.3854758e-06 | D165: ='DF raw data'!F170 -> -5.6138792e-06 | F165: -4.032919034e-06 | G165: 7.408976776e-06 | H165: -5.618729592e-06 | J165: -1.180564327e-05 | K165: 2.544802611e-06 | L165: 1.522331759e-05 | N165: -0.0006229989738 | O165: -0.02474983444 | P165: -8.951596788e-05 | Q165: -0.002524163225 | R165: 1.012376545e-05
A166: 78.9098 | B166: ='DF raw data'!D171 -> -8.3013347e-06 | C166: ='DF raw data'!E171 -> 2.2741449e-06 | D166: ='DF raw data'!F171 -> -9.0293661e-06 | F166: -8.308507053e-06 | G166: 2.28138135e-06 | H166: -9.037167472e-06 | J166: -1.281750376e-05 | K166: 1.187360159e-05 | L166: 1.147621689e-05 | N166: -0.0006294100328 | O166: -0.02506465275 | P166: -8.357702984e-05 | Q166: -0.002565966784 | R166: 1.032540907e-05
A167: 79.40998 | B167: ='DF raw data'!D172 -> -6.7666983e-06 | C167: ='DF raw data'!E172 -> 8.0431355e-06 | D167: ='DF raw data'!F172 -> -5.0493668e-06 | F167: -6.772544727e-06 | G167: 8.068729184e-06 | H167: -5.053729453e-06 | J167: -1.309087876e-05 | K167: 5.94450152e-06 | L167: 1.150690438e-06 | N167: -0.0006359578286 | O167: -0.02538274614 | P167: -8.060370907e-05 | Q167: -0.002606283147 | R167: 1.05309527e-05
A168: 79.91016 | B168: ='DF raw data'!D173 -> -5.381647e-06 | C168: ='DF raw data'!E173 -> 1.7977989e-05 | D168: ='DF raw data'!F173 -> -5.9294121e-06 | F168: -5.386296743e-06 | G168: 1.803519592e-05 | H168: -5.934535112e-06 | J168: -1.358612027e-05 | K168: 7.006481979e-06 | L168: 1.187454975e-07 | N168: -0.0006427533342 | O168: -0.0257042385 | P168: -7.709920691e-05 | Q168: -0.002644846628 | R168: 1.07405662e-05
A169: 80.41034 | B169: ='DF raw data'!D174 -> -2.4090273e-06 | C169: ='DF raw data'!E174 -> 8.2841079e-06 | D169: ='DF raw data'!F174 -> -2.8783736e-06 | F169: -2.4111087e-06 | G169: 8.310468371e-06 | H169: -2.880860515e-06 | J169: -1.046596078e-05 | K169: 7.770775888e-06 | L169: 4.696892212e-06 | N169: -0.0006479881985 | O169: -0.02602834924 | P169: -7.321242023e-05 | Q169: -0.002681466017 | R169: 1.095326713e-05
A170: 80.91052 | B170: ='DF raw data'!D175 -> 1.829962e-06 | C170: ='DF raw data'!E175 -> 1.0164496e-05 | D170: ='DF raw data'!F175 -> 6.3035591e-06 | F170: 1.831543087e-06 | G170: 1.019683997e-05 | H170: 6.309005375e-06 | J170: -8.546325051e-06 | K170: -2.608624652e-06 | L170: 1.799209275e-05 | N170: -0.0006522628994 | O170: -0.02635459809 | P170: -7.451720211e-05 | Q170: -0.002718738031 | R170: 1.116884456e-05
A171: 81.4107 | B171: ='DF raw data'!D176 -> 4.3253899e-06 | C171: ='DF raw data'!E176 -> 9.3922181e-06 | D171: ='DF raw data'!F176 -> 4.0599539e-06 | F171: 4.329127037e-06 | G171: 9.422104637e-06 | H171: 4.0634617e-06 | J171: -1.179027801e-05 | K171: -1.076460991e-05 | L171: 2.352245486e-05 | N171: -0.0006581601606 | O171: -0.02668379664 | P171: -7.990144469e-05 | Q171: -0.002758703135 | R171: 1.13887032e-05
A172: 81.91088 | B172: ='DF raw data'!D177 -> 3.1643499e-06 | C172: ='DF raw data'!E177 -> 1.9184172e-05 | D172: ='DF raw data'!F177 -> 3.096188e-06 | F172: 3.167083898e-06 | G172: 1.924521705e-05 | H172: 3.098863106e-06 | J172: -1.587065541e-05 | K172: -1.065191143e-05 | L172: 1.478241398e-05 | N172: -0.000666098345 | O172: -0.02701696571 | P172: -8.522931776e-05 | Q172: -0.002801333136 | R172: 1.161425989e-05
A173: 82.41106 | B173: ='DF raw data'!D178 -> 1.8049982e-06 | C173: ='DF raw data'!E178 -> 1.7560898e-05 | D173: ='DF raw data'!F178 -> 7.0914271e-06 | F173: 1.806557718e-06 | G173: 1.761677771e-05 | H173: 7.097554093e-06 | J173: -1.799251712e-05 | K173: -7.565016227e-06 | L173: 1.025216222e-05 | N173: -0.0006750978422 | O173: -0.02735463615 | P173: -8.901318757e-05 | Q173: -0.002845855752 | R173: 1.184618358e-05
A174: 82.91124 | B174: ='DF raw data'!D179 -> 2.061583e-06 | C174: ='DF raw data'!E179 -> 4.6759674e-06 | D174: ='DF raw data'!F179 -> 9.3425524e-06 | F174: 2.063364208e-06 | G174: 4.690846577e-06 | H174: 9.350624365e-06 | J174: -1.458174575e-05 | K174: 3.494212401e-06 | L174: 1.28865834e-05 | N174: -0.0006823913398 | O174: -0.02769595465 | P174: -8.726545241e-05 | Q174: -0.002889504186 | R174: 1.208290536e-05
A175: 83.41142 | B175: ='DF raw data'!D180 -> -4.5493792e-07 | C175: ='DF raw data'!E180 -> 1.0388788e-05 | D175: ='DF raw data'!F180 -> 5.9686595e-06 | F175: -4.553309864e-07 | G175: 1.042184567e-05 | H175: 5.973816422e-06 | J175: -9.889616052e-06 | K175: 3.634223912e-06 | L175: 1.527627431e-05 | N175: -0.000687337928 | O175: -0.02803974734 | P175: -8.54476863e-05 | Q175: -0.002932243409 | R175: 1.232285908e-05
A176: 83.9116 | B176: ='DF raw data'!D181 -> -5.5379746e-06 | C176: ='DF raw data'!E181 -> 1.39526e-06 | D176: ='DF raw data'!F181 -> 6.3794386e-07 | F176: -5.54275941e-06 | G176: 1.399699791e-06 | H176: 6.384950435e-07 | J176: -1.166922351e-05 | K176: 5.609793038e-08 | L176: 1.069313189e-05 | N176: -0.0006931746402 | O176: -0.02838645943 | P176: -8.541962723e-05 | Q176: -0.002974968599 | R176: 1.256684068e-05
A177: 84.41178 | B177: ='DF raw data'!D182 -> -6.6726475e-06 | C177: ='DF raw data'!E182 -> 6.8049184e-07 | D177: ='DF raw data'!F182 -> 2.4783646e-06 | F177: -6.678412667e-06 | G177: 6.826572012e-07 | H177: 2.480505907e-06 | J177: -1.355685901e-05 | K177: 2.41108657e-06 | L177: 5.916813714e-06 | N177: -0.0006999555099 | O177: -0.02873656317 | P177: -8.421364995e-05 | Q177: -0.003017090582 | R177: 1.281544498e-05
A178: 84.91196 | B178: ='DF raw data'!D183 -> -5.3773761e-06 | C178: ='DF raw data'!E183 -> 1.60485e-05 | D178: ='DF raw data'!F183 -> 2.6627847e-06 | F178: -5.382022153e-06 | G178: 1.609956718e-05 | H178: 2.665085346e-06 | J178: -7.848992876e-06 | K178: -2.031589821e-06 | L178: 1.37011756e-05 | N178: -0.0007038814192 | O178: -0.02908863058 | P178: -8.522981055e-05 | Q178: -0.003059720829 | R178: 1.306689205e-05
A179: 85.41214 | B179: ='DF raw data'!D184 -> -4.5331285e-06 | C179: ='DF raw data'!E184 -> 2.1966927e-05 | D179: ='DF raw data'!F184 -> -8.55461e-07 | F179: -4.537045123e-06 | G179: 2.203682693e-05 | H179: -8.562001183e-07 | J179: -4.901864655e-06 | K179: -9.227862508e-06 | L179: 1.83658504e-05 | N179: -0.0007063332339 | O179: -0.02944192434 | P179: -8.984540282e-05 | Q179: -0.003104659702 | R179: 1.332047272e-05
A180: 85.91232 | B180: ='DF raw data'!D185 -> -8.1131253e-07 | C180: ='DF raw data'!E185 -> 1.7382772e-05 | D180: ='DF raw data'!F185 -> -6.2844384e-07 | F180: -8.12013504e-07 | G180: 1.74380849e-05 | H180: -6.289868155e-07 | J180: -6.349039535e-06 | K180: -1.627863618e-05 | L180: 1.412742356e-05 | N180: -0.0007095088965 | O180: -0.0297968065 | P180: -9.798765106e-05 | Q180: -0.003153671166 | R180: 1.357706729e-05
A181: 86.4125 | B181: ='DF raw data'!D186 -> -2.0016555e-06 | C181: ='DF raw data'!E186 -> 8.794731e-06 | D181: ='DF raw data'!F186 -> 1.3241175e-06 | F181: -2.00338493e-06 | G181: 8.822716301e-06 | H181: 1.325261538e-06 | J181: -5.718180543e-06 | K181: -3.53862618e-06 | L181: 9.849294244e-06 | N181: -0.000712369016 | O181: -0.03015311923 | P181: -9.975760111e-05 | Q181: -0.003203567922 | R181: 1.383587102e-05
A182: 86.91268 | B182: ='DF raw data'!D187 -> -8.603176e-06 | C182: ='DF raw data'!E187 -> 1.2142687e-05 | D182: ='DF raw data'!F187 -> 4.1445551e-07 | F182: -8.610609144e-06 | G182: 1.218132567e-05 | H182: 4.148135996e-07 | J182: -8.895191911e-06 | K182: -7.905541158e-06 | L182: 5.837546486e-06 | N182: -0.0007168182131 | O182: -0.03051165737 | P182: -0.0001037117947 | Q182: -0.003255442488 | R182: 1.409825769e-05
A183: 87.41286 | B183: ='DF raw data'!D188 -> -8.5543161e-06 | C183: ='DF raw data'!E188 -> 7.6972947e-06 | D183: ='DF raw data'!F188 -> -3.644943e-06 | F183: -8.561707029e-06 | G183: 7.7217879e-06 | H183: -3.648092231e-06 | J183: -1.44994407e-05 | K183: -2.668065597e-05 | L183: 1.297164783e-05 | N183: -0.0007240705433 | O183: -0.03087382297 | P183: -0.0001170569252 | Q183: -0.003313992021 | R183: 1.436734477e-05
A184: 87.91304 | B184: ='DF raw data'!D189 -> -5.8218607e-06 | C184: ='DF raw data'!E189 -> 8.6553018e-06 | D184: ='DF raw data'!F189 -> 2.1015355e-06 | F184: -5.826890788e-06 | G184: 8.68284343e-06 | H184: 2.103351227e-06 | J184: -1.458675708e-05 | K184: -8.586708694e-06 | L184: 1.563764126e-05 | N184: -0.0007313665475 | O184: -0.03123963789 | P184: -0.0001213518251 | Q184: -0.003374689777 | R184: 1.464225535e-05
A185: 88.41322 | B185: ='DF raw data'!D190 -> -3.2613511e-06 | C185: ='DF raw data'!E190 -> 1.4874208e-05 | D185: ='DF raw data'!F190 -> 4.4992798e-06 | F185: -3.264168907e-06 | G185: 1.492153852e-05 | H185: 4.503167178e-06 | J185: -1.348176719e-05 | K185: 2.7740895e-06 | L185: 1.047271261e-05 | N185: -0.0007381098578 | O185: -0.03160882568 | P185: -0.0001199642811 | Q185: -0.003434693511 | R185: 1.49219548e-05
A186: 88.9134 | B186: ='DF raw data'!D191 -> 2.4018705e-06 | C186: ='DF raw data'!E191 -> 7.5345129e-06 | D186: ='DF raw data'!F191 -> 1.5629362e-07 | F186: 2.403945716e-06 | G186: 7.55848812e-06 | H186: 1.564286577e-07 | J186: -1.315367797e-05 | K186: 5.877305476e-08 | L186: 5.189084499e-06 | N186: -0.0007446890645 | O186: -0.03198130426 | P186: -0.0001199348839 | Q186: -0.003494682541 | R186: 1.52065303e-05
A187: 89.41358 | B187: ='DF raw data'!D192 -> 8.9551968e-06 | C187: ='DF raw data'!E192 -> 1.2118669e-05 | D187: ='DF raw data'!F192 -> -3.0826279e-06 | F187: 8.96293409e-06 | G187: 1.215723125e-05 | H187: -3.085291291e-06 | J187: -1.202617364e-05 | K187: -7.444551718e-06 | L187: 1.130469082e-05 | N187: -0.000750704316 | O187: -0.03235679154 | P187: -0.0001236584998 | Q187: -0.003556534049 | R187: 1.549605869e-05
A188: 89.91376 | B188: ='DF raw data'!D193 -> 8.397772e-06 | C188: ='DF raw data'!E193 -> 8.3668319e-06 | D188: ='DF raw data'!F193 -> -2.2832077e-07 | F188: 8.405027675e-06 | G188: 8.393455603e-06 | H188: -2.285180391e-07 | J188: -1.264600972e-05 | K188: -8.849462037e-06 | L188: 1.370464159e-05 | N188: -0.0007570295971 | O188: -0.03273544261 | P188: -0.0001280848237 | Q188: -0.003620599517 | R188: 1.579091456e-05
A189: 90.41394 | B189: ='DF raw data'!D194 -> 2.0892171e-06 | C189: ='DF raw data'!E194 -> 6.735951e-06 | D189: ='DF raw data'!F194 -> 3.3574786e-06 | F189: 2.091022184e-06 | G189: 6.757385154e-06 | H189: 3.360379462e-06 | J189: -1.320558678e-05 | K189: -1.974164069e-06 | L189: 3.826343607e-06 | N189: -0.0007636347675 | O189: -0.03311739744 | P189: -0.0001290722611 | Q189: -0.00368515888 | R189: 1.609092138e-05
A190: 90.91412 | B190: ='DF raw data'!D195 -> 1.7632797e-06 | C190: ='DF raw data'!E195 -> 8.919219e-06 | D190: ='DF raw data'!F195 -> -5.180545e-06 | F190: 1.764803174e-06 | G190: 8.947600428e-06 | H190: -5.185020991e-06 | J190: -9.054860546e-06 | K190: 9.263727571e-08 | L190: -3.370771232e-06 | N190: -0.0007681638277 | O190: -0.03350161763 | P190: -0.0001290259258 | Q190: -0.003749695068 | R190: 1.639439227e-05
A191: 91.4143 | B191: ='DF raw data'!D196 -> 6.9720049e-06 | C191: ='DF raw data'!E196 -> 5.5480331e-07 | D191: ='DF raw data'!F196 -> -4.6775945e-06 | F191: 6.978028712e-06 | G191: 5.565687236e-07 | H191: -4.681635942e-06 | J191: -2.185019527e-06 | K191: -7.681886435e-08 | L191: 6.837518716e-06 | N191: -0.0007692567307 | O191: -0.03388638446 | P191: -0.0001290643491 | Q191: -0.003814250474 | R191: 1.669870854e-05
A192: 91.91448 | B192: ='DF raw data'!D197 -> 5.5168671e-06 | C192: ='DF raw data'!E197 -> 8.5843176e-06 | D192: ='DF raw data'!F197 -> -1.7804317e-06 | F192: 5.521633673e-06 | G192: 8.611633354e-06 | H192: -1.781969993e-06 | J192: -1.645953276e-06 | K192: -3.294076779e-06 | L192: 9.241397975e-06 | N192: -0.0007700800036 | O192: -0.03427156307 | P192: -0.0001307119804 | Q192: -0.003879629992 | R192: 1.700387278e-05
A193: 92.41466 | B193: ='DF raw data'!D198 -> -3.0320002e-06 | C193: ='DF raw data'!E198 -> 1.3657486e-05 | D193: ='DF raw data'!F198 -> -3.5859096e-06 | F193: -3.034619848e-06 | G193: 1.370094485e-05 | H193: -3.589007826e-06 | J193: -7.822135991e-06 | K193: -5.415625346e-06 | L193: 5.563373605e-06 | N193: -0.0007739924796 | O193: -0.03465869863 | P193: -0.0001334207679 | Q193: -0.003946364392 | R193: 1.731241655e-05
A194: 92.91484 | B194: ='DF raw data'!D199 -> -7.9960901e-06 | C194: ='DF raw data'!E199 -> 1.9573778e-05 | D194: ='DF raw data'!F199 -> 3.7043562e-06 | F194: -8.002998722e-06 | G194: 1.96360628e-05 | H194: 3.707556764e-06 | J194: -9.540415103e-06 | K194: -5.338130736e-06 | L194: 1.169383575e-05 | N194: -0.0007787644045 | O194: -0.03504822101 | P194: -0.0001360907941 | Q194: -0.004014434285 | R194: 1.76250264e-05
A195: 93.41502 | B195: ='DF raw data'!D200 -> -5.7237389e-06 | C195: ='DF raw data'!E200 -> 8.4647663e-06 | D195: ='DF raw data'!F200 -> -5.2886516e-08 | F195: -5.72868421e-06 | G195: 8.491701636e-06 | H195: -5.293220995e-08 | J195: -7.57114202e-06 | K195: -5.594986372e-06 | L195: 2.290015666e-06 | N195: -0.0007825513383 | O195: -0.03543963754 | P195: -0.0001388892944 | Q195: -0.004083903933 | R195: 1.794097851e-05
A196: 93.9152 | B196: ='DF raw data'!D201 -> -1.4871507e-06 | C196: ='DF raw data'!E201 -> 8.3713593e-07 | D196: ='DF raw data'!F201 -> -3.5477071e-06 | F196: -1.488435598e-06 | G196: 8.39799741e-07 | H196: -3.550772319e-06 | J196: -4.633968192e-06 | K196: -6.734603792e-06 | L196: -4.347895239e-06 | N196: -0.0007848691565 | O196: -0.0358322134 | P196: -0.0001422578085 | Q196: -0.004155058443 | R196: 1.825922148e-05
A197: 94.41538 | B197: ='DF raw data'!D202 -> 2.550923e-06 | C197: ='DF raw data'!E202 -> 1.4913167e-05 | D197: ='DF raw data'!F202 -> -6.3536692e-07 | F197: 2.553126997e-06 | G197: 1.496062149e-05 | H197: -6.35915877e-07 | J197: -2.149449521e-07 | K197: 2.76191097e-06 | L197: 7.925485608e-06 | N197: -0.0007849766676 | O197: -0.03622484303 | P197: -0.0001408763559 | Q197: -0.004225521979 | R197: 1.857735322e-05
A198: 94.91556 | B198: ='DF raw data'!D203 -> 4.3247887e-06 | C198: ='DF raw data'!E203 -> 1.7761839e-05 | D198: ='DF raw data'!F203 -> -3.8851917e-07 | F198: 4.328525317e-06 | G198: 1.781835811e-05 | H198: -3.888548506e-07 | J198: -2.678123101e-06 | K198: 2.255540785e-07 | L198: 1.620057722e-05 | N198: -0.0007863162113 | O198: -0.03661814267 | P198: -0.0001407635383 | Q198: -0.004295929086 | R198: 1.889652186e-05
A199: 95.41574 | B199: ='DF raw data'!D204 -> -8.4962772e-07 | C199: ='DF raw data'!E204 -> 1.5895192e-05 | D199: ='DF raw data'!F204 -> 5.3327353e-06 | F199: -8.503617984e-07 | G199: =(1-$G$1*($B$2-$G$2))*C199*$M$2/$M$1 -> 1.594577134e-05 | H199: 5.337342783e-06 | J199: =-CELL("contents", INDEX($F$6:$F$1203,1204-CELL("row",F199))) -> -1.042747956e-05 | K199: =CELL("contents", INDEX($G$6:$G$1203,1204-CELL("row",G199))) -> -1.661674565e-05 | L199: =-CELL("contents", INDEX($H$6:$H$1203,1204-CELL("row",H199))) -> 1.116140913e-05 | N199: -0.000791531828 | O199: -0.03701405106 | P199: -0.0001490749021 | Q199: -0.00437049337 | R199: 1.922101162e-05
A200: =A199+$B$1 -> 95.91592 | B200: ='DF raw data'!D205 -> -7.6327051e-06 | C200: ='DF raw data'!E205 -> 1.1239253e-05 | D200: ='DF raw data'!F205 -> 4.5279635e-06 | F200: -7.639299757e-06 | G200: 1.12750169e-05 | H200: 4.53187566e-06 | J200: -1.39146769e-05 | K200: -1.378631764e-05 | L200: 8.036594423e-06 | N200: =J200*$B$1+N199 -> -0.0007984916711 | O200: =N200*$B$1+O199 -> -0.03741344062 | P200: =K200*$B$1+P199 -> -0.0001559705425 | Q200: =P200*$B$1+Q199 -> -0.004448506716 | R200: =(N200^2+P200^2)*$B$1+R199 -> 1.955208864e-05
... 1003 more rows

Sheet 10 x=0
A1: dz | B1: ='DF raw data'!H7 -> 0.50015 | C1: mm | F1: T_coeff | G1: -0.0008 | H1: /degC | L1: Hallref | M1: ='PI vs x'!B44 -> 0.50517 | N1: T | P1: IBy total | Q1: =P1203*1000 -> -9.692296275 | R1: muTm
A2: Tref | B2: ='DF raw data'!H8 -> 21.1 | C2: degC | F2: Tcorr | G2: 20 | H2: degC | L2: NMRref | M2: ='PI vs x'!B45 -> 0.50634 | N2: T | P2: JBy total | Q2: =Q1203 -> -7.430985067 | R2: muTm^2
A3: Encoder | B3: ='DF raw data'!H9 -> 390664 | P3: PI total | Q3: =R1203 -> 4519.409356 | R3: T^2mm^3
J4: SXR-rotation
A5: z [mm] | B5: Bx | C5: By | D5: Bz | F5: Bx_corr | G5: By_corr | H5: Bz_corr | J5: Bx_rot | K5: By_rot | L5: Bz_rot | N5: Ix | O5: Jx | P5: Iy | Q5: Jy | R5: PI
A6: ='PI vs x'!B53 -> -1.119 | B6: ='DF raw data'!G11 -> 3.2110136e-06 | C6: ='DF raw data'!H11 -> -6.5537029e-07 | D6: ='DF raw data'!I11 -> -6.0592697e-06 | F6: =(1-$G$1*($B$2-$G$2))*B6 -> 3.213839292e-06 | G6: =(1-$G$1*($B$2-$G$2))*C6*$M$2/$M$1 -> -6.574662233e-07 | H6: =(1-$G$1*($B$2-$G$2))*D6 -> -6.064601857e-06 | J6: =-CELL("contents", INDEX($F$6:$F$1203,1204-CELL("row",F6))) -> -4.789576121e-06 | K6: =CELL("contents", INDEX($G$6:$G$1203,1204-CELL("row",G6))) -> 7.0415431e-06 | L6: =-CELL("contents", INDEX($H$6:$H$1203,1204-CELL("row",H6))) -> 7.867273313e-06 | N6: =J6*$B$1 -> -2.395506497e-06 | O6: =N6*$B$1 -> -1.198112574e-06 | P6: =K6*$B$1 -> 3.521827781e-06 | Q6: =P6*$B$1 -> 1.761442165e-06 | R6: =(N6^2+P6^2)*$B$1 -> 9.073582408e-12
A7: =A6+$B$1 -> -0.61885 | B7: ='DF raw data'!G12 -> 2.7252106e-06 | C7: ='DF raw data'!H12 -> 1.3133395e-05 | D7: ='DF raw data'!I12 -> -2.3771656e-06 | F7: =(1-$G$1*($B$2-$G$2))*B7 -> 2.727608785e-06 | G7: =(1-$G$1*($B$2-$G$2))*C7*$M$2/$M$1 -> 1.317539678e-05 | H7: -2.379257506e-06 | J7: =-CELL("contents", INDEX($F$6:$F$1203,1204-CELL("row",F7))) -> -4.719894856e-06 | K7: =CELL("contents", INDEX($G$6:$G$1203,1204-CELL("row",G7))) -> 3.540191358e-06 | L7: =-CELL("contents", INDEX($H$6:$H$1203,1204-CELL("row",H7))) -> 7.602155715e-06 | N7: =J7*$B$1+N6 -> -4.756161909e-06 | O7: =N7*$B$1+O6 -> -3.576906953e-06 | P7: =K7*$B$1+P6 -> 5.292454489e-06 | Q7: =P7*$B$1+Q6 -> 4.408463278e-06 | R7: =(N7^2+P7^2)*$B$1+R6 -> 3.439675239e-11
A8: =A7+$B$1 -> -0.1187 | B8: ='DF raw data'!G13 -> 3.4604561e-06 | C8: ='DF raw data'!H13 -> -6.6746679e-06 | D8: ='DF raw data'!I13 -> -4.8816338e-07 | F8: 3.463501301e-06 | G8: -6.69601409e-06 | H8: -4.885929638e-07 | J8: -2.795953776e-06 | K8: -5.611662892e-06 | L8: 6.724336413e-06 | N8: =J8*$B$1+N7 -> -6.15455819e-06 | O8: =N8*$B$1+O7 -> -6.655109232e-06 | P8: =K8*$B$1+P7 -> 2.485781294e-06 | Q8: =P8*$B$1+Q7 -> 5.651726792e-06 | R8: =(N8^2+P8^2)*$B$1+R7 -> 5.643220863e-11
A9: 0.38145 | B9: ='DF raw data'!G14 -> 3.2646128e-06 | C9: ='DF raw data'!H14 -> -1.4420541e-06 | D9: ='DF raw data'!I14 -> -1.4250447e-06 | F9: 3.267485659e-06 | G9: -1.446665919e-06 | H9: -1.426298739e-06 | J9: -2.511350946e-06 | K9: -3.482449483e-06 | L9: 5.888612723e-06 | N9: -7.410610366e-06 | O9: -1.036152601e-05 | P9: 7.440341848e-07 | Q9: 6.023855489e-06 | R9: 8.417589567e-11
A10: 0.8816 | B10: ='DF raw data'!G15 -> 3.1449315e-06 | C10: ='DF raw data'!H15 -> 3.5447854e-06 | D10: ='DF raw data'!I15 -> 8.8253482e-06 | F10: 3.14769904e-06 | G10: 3.556121943e-06 | H10: 8.833114506e-06 | J10: -5.204454994e-06 | K10: 6.073778769e-06 | L10: 5.920786211e-06 | N10: -1.001361853e-05 | O10: -1.536983731e-05 | P10: 3.781834636e-06 | Q10: 7.915340082e-06 | R10: 1.414804965e-10
A11: 1.38175 | B11: ='DF raw data'!G16 -> 3.2196901e-06 | C11: ='DF raw data'!H16 -> 1.6986858e-06 | D11: ='DF raw data'!I16 -> 1.036421e-05 | F11: 3.222523427e-06 | G11: 1.70411835e-06 | H11: 1.03733305e-05 | J11: -5.915828752e-06 | K11: -1.966421947e-06 | L11: 6.253451699e-06 | N11: -1.297242028e-05 | O11: -2.185799332e-05 | P11: 2.798328699e-06 | Q11: 9.314924181e-06 | R11: 2.295640794e-10
A12: 1.8819 | B12: ='DF raw data'!G17 -> 3.4433676e-06 | C12: ='DF raw data'!H17 -> -5.0197732e-06 | D12: ='DF raw data'!I17 -> 6.9622315e-06 | F12: 3.446397763e-06 | G12: -5.035826887e-06 | H12: 6.968358264e-06 | J12: -3.85733477e-06 | K12: 1.481922513e-06 | L12: 6.261509584e-06 | N12: -1.490166627e-05 | O12: -2.93110617e-05 | P12: 3.539512244e-06 | Q12: 1.108521123e-05 | R12: 3.468931698e-10
A13: 2.38205 | B13: ='DF raw data'!G18 -> 3.2971864e-06 | C13: ='DF raw data'!H18 -> -2.1286717e-06 | D13: ='DF raw data'!I18 -> 5.259887e-07 | F13: 3.300087924e-06 | G13: -2.135479384e-06 | H13: 5.264515701e-07 | J13: -3.897152879e-06 | K13: -5.477040931e-07 | L13: 6.019571365e-06 | N13: -1.685082728e-05 | O13: -3.773900296e-05 | P13: 3.265578042e-06 | Q13: 1.271849009e-05 | R13: 4.942445519e-10
A14: 2.8822 | B14: ='DF raw data'!G19 -> 3.6414137e-06 | C14: ='DF raw data'!H19 -> -1.1172236e-05 | D14: ='DF raw data'!I19 -> 2.4170556e-06 | F14: 3.644618144e-06 | G14: -1.120796582e-05 | H14: 2.419182609e-06 | J14: -1.1436188e-05 | K14: 1.46358325e-06 | L14: 6.096975621e-06 | N14: -2.257063671e-05 | O14: -4.902770691e-05 | P14: 3.997589205e-06 | Q14: 1.471788433e-05 | R14: 7.570305445e-10
A15: 3.38235 | B15: ='DF raw data'!G20 -> 3.7788502e-06 | C15: ='DF raw data'!H20 -> -1.4776236e-05 | D15: ='DF raw data'!I20 -> 2.6553196e-06 | F15: 3.782175588e-06 | G15: -1.482349173e-05 | H15: 2.657656281e-06 | J15: -1.622359521e-05 | K15: 4.472083834e-06 | L15: 6.518169146e-06 | N15: -3.068486785e-05 | O15: -6.437474357e-05 | P15: 6.234301934e-06 | Q15: 1.783597044e-05 | R15: 1.247391426e-09
A16: 3.8825 | B16: ='DF raw data'!G21 -> 3.5067803e-06 | C16: ='DF raw data'!H21 -> -7.9116753e-06 | D16: ='DF raw data'!I21 -> -1.2679095e-06 | F16: 3.509866267e-06 | G16: -7.936977551e-06 | H16: -1.26902526e-06 | J16: -9.943893933e-06 | K16: -3.08373402e-07 | L16: 6.470207476e-06 | N16: -3.56583064e-05 | O16: -8.220924552e-05 | P16: 6.080068977e-06 | Q16: 2.087691694e-05 | R16: 1.901828726e-09
A17: 4.38265 | B17: ='DF raw data'!G22 -> 3.4019829e-06 | C17: ='DF raw data'!H22 -> -5.028046e-06 | D17: ='DF raw data'!I22 -> -1.2802241e-06 | F17: 3.404976645e-06 | G17: -5.044126144e-06 | H17: -1.281350697e-06 | J17: 5.305593818e-07 | K17: -7.28751423e-06 | L17: 5.879753734e-06 | N17: -3.539294713e-05 | O17: -9.991102802e-05 | P17: 2.435218735e-06 | Q17: 2.209489159e-05 | R17: 2.531313013e-09
A18: 4.8828 | B18: ='DF raw data'!G23 -> 3.2292353e-06 | C18: ='DF raw data'!H23 -> 3.0970909e-07 | D18: ='DF raw data'!I23 -> 2.4828103e-06 | F18: 3.232077027e-06 | G18: 3.106995676e-07 | H18: 2.484995173e-06 | J18: 7.474668025e-06 | K18: 1.021428306e-05 | L18: 5.808412109e-06 | N18: -3.165449191e-05 | O18: -0.0001157430222 | P18: 7.543892408e-06 | Q18: 2.586796938e-05 | R18: 3.060930436e-09
A19: 5.38295 | B19: ='DF raw data'!G24 -> 3.2626774e-06 | C19: ='DF raw data'!H24 -> -4.8871811e-07 | D19: ='DF raw data'!I24 -> 3.2892465e-06 | F19: 3.265548556e-06 | G19: -4.902810746e-07 | H19: 3.292141037e-06 | J19: 3.086506738e-06 | K19: -1.239864257e-06 | L19: 6.007515465e-06 | N19: -3.011077557e-05 | O19: -0.0001308029266 | P19: 6.9237743e-06 | Q19: 2.933089509e-05 | R19: 3.538372353e-09
A20: 5.8831 | B20: ='DF raw data'!G25 -> 2.7824815e-06 | C20: ='DF raw data'!H25 -> 1.1695852e-05 | D20: ='DF raw data'!I25 -> -1.9141492e-06 | F20: 2.784930084e-06 | G20: 1.173325639e-05 | H20: -1.915833651e-06 | J20: -3.183440865e-06 | K20: 1.666505444e-06 | L20: 6.457150196e-06 | N20: -3.170297352e-05 | O20: -0.0001466591688 | P20: 7.757276998e-06 | Q20: 3.321069718e-05 | R20: 4.07115908e-09
A21: 6.38325 | B21: ='DF raw data'!G26 -> 3.1831785e-06 | C21: ='DF raw data'!H26 -> 1.0315496e-06 | D21: ='DF raw data'!I26 -> -1.7515895e-07 | F21: 3.185979697e-06 | G21: 1.034848589e-06 | H21: -1.753130899e-07 | J21: -4.14888591e-06 | K21: 1.09701547e-05 | L21: 7.244580926e-06 | N21: -3.377803881e-05 | O21: -0.0001635532549 | P21: 1.324399987e-05 | Q21: 3.983468372e-05 | R21: 4.729536253e-09
A22: 6.8834 | B22: ='DF raw data'!G27 -> 2.0705991e-06 | C22: ='DF raw data'!H27 -> 9.0187687e-06 | D22: ='DF raw data'!I27 -> -2.0256932e-06 | F22: 2.072421227e-06 | G22: 9.047611535e-06 | H22: -2.02747581e-06 | J22: -8.759117546e-06 | K22: -1.051968465e-05 | L22: 7.062660277e-06 | N22: -3.815891145e-05 | O22: -0.0001826384344 | P22: 7.982579594e-06 | Q22: 4.38271709e-05 | R22: 5.489676276e-09
A23: 7.38355 | B23: ='DF raw data'!G28 -> 4.941773e-07 | C23: ='DF raw data'!H28 -> 1.2141766e-05 | D23: ='DF raw data'!I28 -> 1.0199024e-05 | F23: =(1-$G$1*($B$2-$G$2))*B23 -> 4.94612176e-07 | G23: 1.218059646e-05 | H23: 1.020799914e-05 | J23: -9.693563636e-06 | K23: -7.883028968e-06 | L23: 7.52748246e-06 | N23: -4.30071473e-05 | O23: -0.0002041484591 | P23: 4.039882655e-06 | Q23: 4.584771821e-05 | R23: 6.422923852e-09
A24: 7.8837 | B24: ='DF raw data'!G29 -> 5.6580001e-07 | C24: ='DF raw data'!H29 -> 1.7847458e-06 | D24: ='DF raw data'!I29 -> 1.2794898e-05 | F24: 5.66297914e-07 | G24: 1.790453578e-06 | H24: 1.280615751e-05 | J24: -3.5536925e-06 | K24: 2.658495906e-06 | L24: 5.574000207e-06 | N24: -4.47845266e-05 | O24: -0.0002265474401 | P24: 5.369529383e-06 | Q24: 4.853328834e-05 | R24: 7.440471859e-09
A25: 8.38385 | B25: ='DF raw data'!G30 -> -1.0872502e-06 | C25: ='DF raw data'!H30 -> -7.3883739e-06 | D25: ='DF raw data'!I30 -> 1.0976574e-05 | F25: -1.08820698e-06 | G25: -7.412002586e-06 | H25: 1.098623339e-05 | J25: -1.788085932e-06 | K25: 2.252921678e-06 | L25: 1.010425793e-05 | N25: -4.567883778e-05 | O25: -0.0002493937108 | P25: 6.49632816e-06 | Q25: 5.178242686e-05 | R25: 8.505170423e-09
A26: 8.884 | B26: ='DF raw data'!G31 -> -2.4484054e-06 | C26: ='DF raw data'!H31 -> -2.0389114e-05 | D26: ='DF raw data'!I31 -> 8.0298259e-06 | F26: -2.450559997e-06 | G26: -2.045432022e-05 | H26: 8.036892147e-06 | J26: -6.01664209e-06 | K26: 6.282992821e-06 | L26: 1.645370853e-05 | N26: -4.868806132e-05 | O26: -0.0002737450447 | P26: 9.638767019e-06 | Q26: 5.660325619e-05 | R26: 9.73725651e-09
A27: 9.38415 | B27: ='DF raw data'!G32 -> 2.787621e-06 | C27: ='DF raw data'!H32 -> -6.1102719e-06 | D27: ='DF raw data'!I32 -> 6.2069762e-06 | F27: 2.790074106e-06 | G27: -6.1298131e-06 | H27: 6.212438339e-06 | J27: -8.593433873e-06 | K27: -1.263243187e-05 | L27: 1.281872456e-05 | N27: -5.298606727e-05 | O27: -0.0003002460263 | P27: 3.320656222e-06 | Q27: 5.82640824e-05 | R27: 1.114695433e-08
A28: 9.8843 | B28: ='DF raw data'!G33 -> 4.8740753e-06 | C28: ='DF raw data'!H33 -> 1.9484621e-06 | D28: ='DF raw data'!I33 -> 4.7109083e-06 | F28: 4.878364486e-06 | G28: 1.954693457e-06 | H28: 4.715053899e-06 | J28: -7.772361364e-06 | K28: -6.201425794e-06 | L28: 1.14766806e-05 | N28: -5.687341381e-05 | O28: -0.0003286912642 | P28: 2.190131106e-07 | Q28: 5.837362181e-05 | R28: 1.276475611e-08
A29: 10.38445 | B29: ='DF raw data'!G34 -> -1.8969879e-06 | C29: ='DF raw data'!H34 -> 6.5280847e-06 | D29: ='DF raw data'!I34 -> 5.513883e-06 | F29: -1.898657249e-06 | G29: 6.548962103e-06 | H29: 5.518735217e-06 | J29: -1.14507528e-05 | K29: -3.837563951e-06 | L29: 8.766877869e-06 | N29: -6.260050782e-05 | O29: -0.0003600009082 | P29: -1.700344499e-06 | Q29: 5.75231945e-05 | R29: 1.472620174e-08
A30: 10.8846 | B30: ='DF raw data'!G35 -> 1.3379574e-06 | C30: ='DF raw data'!H35 -> 2.402249e-06 | D30: ='DF raw data'!I35 -> 1.1040781e-06 | F30: 1.339134803e-06 | G30: 2.409931609e-06 | H30: 1.105049689e-06 | J30: -1.094795373e-05 | K30: 9.224698069e-06 | L30: 4.722757773e-06 | N30: -6.807612688e-05 | O30: -0.000394049183 | P30: 2.91338824e-06 | Q30: 5.898032563e-05 | R30: 1.704832161e-08
A31: 11.38475 | B31: ='DF raw data'!G36 -> 7.584169e-06 | C31: ='DF raw data'!H36 -> 1.1005098e-05 | D31: ='DF raw data'!I36 -> 2.2709016e-06 | F31: 7.590843069e-06 | G31: 1.10402933e-05 | H31: 2.272899993e-06 | J31: -8.641067754e-06 | K31: 9.904810797e-06 | L31: 5.366168877e-06 | N31: -7.239795692e-05 | O31: -0.0004302590212 | P31: 7.86727936e-06 | Q31: 6.29151454e-05 | R31: 1.970079624e-08
A32: 11.8849 | B32: ='DF raw data'!G37 -> 5.0743233e-06 | C32: ='DF raw data'!H37 -> 4.3269365e-06 | D32: ='DF raw data'!I37 -> 3.7862726e-06 | F32: 5.078788705e-06 | G32: 4.340774433e-06 | H32: 3.78960452e-06 | J32: -5.578180283e-06 | K32: 1.151694682e-05 | L32: 9.233564292e-06 | N32: -7.518788379e-05 | O32: -0.0004678642413 | P32: 1.362748031e-05 | Q32: 6.973092968e-05 | R32: 2.262113512e-08
A33: 12.38505 | B33: ='DF raw data'!G38 -> 1.2199441e-06 | C33: ='DF raw data'!H38 -> 6.0877728e-06 | D33: ='DF raw data'!I38 -> 1.6333822e-06 | F33: 1.221017651e-06 | G33: 6.107242046e-06 | H33: 1.634819576e-06 | J33: -1.862309592e-06 | K33: 1.033394654e-05 | L33: 1.349084651e-05 | N33: -7.611931793e-05 | O33: -0.0005059353181 | P33: 1.879600367e-05 | Q33: 7.913175092e-05 | R33: 2.56957774e-08
A34: 12.8852 | B34: ='DF raw data'!G39 -> 1.4116483e-06 | C34: ='DF raw data'!H39 -> 7.4728823e-06 | D34: ='DF raw data'!I39 -> 1.6845613e-06 | F34: 1.412890551e-06 | G34: 7.496781251e-06 | H34: 1.686043714e-06 | J34: 1.690616635e-06 | K34: -2.200263609e-06 | L34: 9.225637423e-06 | N34: -7.527375602e-05 | O34: -0.0005435834872 | P34: 1.769554183e-05 | Q34: 8.798217616e-05 | R34: 2.868630956e-08
A35: 13.38535 | B35: ='DF raw data'!G40 -> 3.9457905e-06 | C35: ='DF raw data'!H40 -> 5.8521409e-06 | D35: ='DF raw data'!I40 -> -5.2782826e-07 | F35: 3.949262796e-06 | G35: 5.870856574e-06 | H35: -5.282927489e-07 | J35: 9.483775385e-07 | K35: 1.466184442e-05 | L35: 5.611438824e-06 | N35: -7.479942499e-05 | O35: -0.0005809944196 | P35: 2.502866331e-05 | Q35: 0.0001005002621 | R35: 3.179793675e-08
A36: 13.8855 | B36: ='DF raw data'!G41 -> 6.2339618e-06 | C36: ='DF raw data'!H41 -> 3.3786341e-07 | D36: ='DF raw data'!I41 -> -2.7794206e-06 | F36: 6.239447686e-06 | G36: 3.389439276e-07 | H36: -2.78186649e-06 | J36: -2.191673477e-06 | K36: 8.486895833e-06 | L36: -4.677341742e-08 | N36: -7.589559048e-05 | O36: -0.0006189535992 | P36: 2.927338426e-05 | Q36: 0.0001151413453 | R36: 3.510746516e-08
A37: 14.38565 | B37: ='DF raw data'!G42 -> 2.8759312e-06 | C37: ='DF raw data'!H42 -> 5.7703519e-06 | D37: ='DF raw data'!I42 -> -5.8972123e-06 | F37: 2.878462019e-06 | G37: 5.788806006e-06 | H37: -5.902401847e-06 | J37: -1.682528123e-06 | K37: 2.883456858e-07 | L37: 3.850531288e-06 | N37: -7.673710692e-05 | O37: -0.0006573336632 | P37: 2.941760036e-05 | Q37: 0.0001298545581 | R37: 3.848546765e-08
A38: 14.8858 | B38: ='DF raw data'!G43 -> 4.6656164e-06 | C38: ='DF raw data'!H43 -> 5.1601864e-06 | D38: ='DF raw data'!I43 -> -8.200671e-07 | F38: 4.669722142e-06 | G38: 5.176689141e-06 | H38: -8.20788759e-07 | J38: -5.142456583e-06 | K38: -1.772335519e-06 | L38: 7.65444629e-06 | N38: -7.930910658e-05 | O38: -0.0006970001129 | P38: 2.853116675e-05 | Q38: 0.0001441244211 | R38: 4.203851417e-08
A39: 15.38595 | B39: ='DF raw data'!G44 -> 5.732139e-06 | C39: ='DF raw data'!H44 -> -2.3277419e-06 | D39: ='DF raw data'!I44 -> 1.0273697e-05 | F39: 5.737183282e-06 | G39: -2.335186228e-06 | H39: 1.028273785e-05 | J39: -1.038917043e-05 | K39: -9.230269129e-06 | L39: -3.053667365e-06 | N39: -8.450525018e-05 | O39: -0.0007392654137 | P39: 2.391464764e-05 | Q39: 0.0001560853321 | R39: 4.589619497e-08
A40: 15.8861 | B40: ='DF raw data'!G45 -> 2.5669476e-06 | C40: ='DF raw data'!H45 -> 3.250844e-06 | D40: ='DF raw data'!I45 -> 9.7969705e-06 | F40: 2.569206514e-06 | G40: 3.261240492e-06 | H40: 9.805591834e-06 | J40: -1.102157646e-05 | K40: -4.553552347e-06 | L40: -4.630522077e-06 | N40: -9.001769164e-05 | O40: -0.0007842877622 | P40: 2.163718844e-05 | Q40: 0.0001669071719 | R40: 5.018315704e-08
A41: 16.38625 | B41: ='DF raw data'!G46 -> 4.9706618e-06 | C41: ='DF raw data'!H46 -> -3.1763441e-06 | D41: ='DF raw data'!I46 -> 5.1403154e-06 | F41: 4.975035982e-06 | G41: -3.186502335e-06 | H41: 5.144838878e-06 | J41: -9.236462641e-06 | K41: -4.207269734e-06 | L41: -7.711623762e-06 | N41: -9.463730843e-05 | O41: -0.000831620612 | P41: 1.953292248e-05 | Q41: 0.0001766765631 | R41: 5.485343531e-08
A42: 16.8864 | B42: ='DF raw data'!G47 -> 5.4127427e-06 | C42: ='DF raw data'!H47 -> -3.0415788e-06 | D42: ='DF raw data'!I47 -> 7.8955864e-06 | F42: 5.417505914e-06 | G42: -3.051306043e-06 | H42: 7.902534516e-06 | J42: -4.398748295e-06 | K42: -1.606324393e-05 | L42: 7.168731137e-07 | N42: -9.683734239e-05 | O42: -0.0008800538088 | P42: 1.149889103e-05 | Q42: 0.0001824277335 | R42: 5.960970945e-08
A43: 17.38655 | B43: ='DF raw data'!G48 -> 3.0201761e-06 | C43: ='DF raw data'!H48 -> -2.9770047e-06 | D43: ='DF raw data'!I48 -> 3.7553243e-06 | F43: 3.022833855e-06 | G43: -2.986525429e-06 | H43: 3.758628985e-06 | J43: -3.544605911e-06 | K43: -1.103598657e-06 | L43: 1.040874464e-05 | N43: -9.861017704e-05 | O43: -0.0009293736889 | P43: 1.094692616e-05 | Q43: 0.0001879028386 | R43: 6.453308712e-08
A44: 17.8867 | B44: ='DF raw data'!G49 -> 2.5741572e-06 | C44: ='DF raw data'!H49 -> -8.0098716e-06 | D44: ='DF raw data'!I49 -> -5.4228895e-08 | F44: 2.576422458e-06 | G44: -8.035487891e-06 | H44: -5.427661643e-08 | J44: -9.57725067e-06 | K44: 7.5005294e-06 | L44: 1.056475381e-05 | N44: -0.000103400239 | O44: -0.0009810893184 | P44: 1.469831594e-05 | Q44: 0.0001952542013 | R44: 6.998854822e-08
A45: 18.38685 | B45: ='DF raw data'!G50 -> 2.3673672e-06 | C45: ='DF raw data'!H50 -> -1.7070113e-05 | D45: ='DF raw data'!I50 -> 1.7082555e-06 | F45: 2.369450483e-06 | G45: -1.712470476e-05 | H45: 1.709758765e-06 | J45: -1.211449138e-05 | K45: 9.151850338e-07 | L45: 9.422479592e-06 | N45: -0.0001094593018 | O45: -0.001035835388 | P45: 1.515604573e-05 | Q45: 0.0002028344976 | R45: 7.609590212e-08
A46: 18.887 | B46: ='DF raw data'!G51 -> -2.598925e-06 | C46: ='DF raw data'!H51 -> 6.8963427e-06 | D46: ='DF raw data'!I51 -> 6.4798104e-07 | F46: -2.601212054e-06 | G46: 6.918397826e-06 | H46: 6.485512633e-07 | J46: -1.029837861e-05 | K46: -7.251375825e-06 | L46: 1.090221151e-05 | N46: -0.0001146100359 | O46: -0.001093157598 | P46: 1.152927011e-05 | Q46: 0.000208600862 | R46: 8.273208457e-08
A47: 19.38715 | B47: ='DF raw data'!G52 -> 1.7444809e-07 | C47: ='DF raw data'!H52 -> -2.0921136e-06 | D47: ='DF raw data'!I52 -> 2.9078609e-07 | F47: 1.746016043e-07 | G47: -2.098804368e-06 | H47: 2.910419818e-07 | J47: -7.82079725e-06 | K47: 2.13834201e-06 | L47: 7.705273479e-06 | N47: -0.0001185216076 | O47: -0.00115243618 | P47: 1.259876187e-05 | Q47: 0.0002149021328 | R47: 8.983726563e-08
A48: 19.8873 | B48: ='DF raw data'!G53 -> 8.3558598e-06 | C48: ='DF raw data'!H53 -> -1.0971958e-05 | D48: ='DF raw data'!I53 -> 4.0064992e-06 | F48: 8.363212957e-06 | G48: -1.100704731e-05 | H48: 4.010024919e-06 | J48: -5.777936313e-06 | K48: -3.903957707e-06 | L48: 5.856570351e-06 | N48: -0.0001214114425 | O48: -0.001213160113 | P48: 1.064619742e-05 | Q48: 0.0002202268284 | R48: 9.726653368e-08
A49: 20.38745 | B49: ='DF raw data'!G54 -> 6.5240542e-06 | C49: ='DF raw data'!H54 -> -1.0037565e-05 | D49: ='DF raw data'!I54 -> 5.8099818e-06 | F49: 6.529795368e-06 | G49: -1.006966604e-05 | H49: 5.815094584e-06 | J49: -3.766409326e-06 | K49: -3.616171274e-06 | L49: 8.798384971e-06 | N49: -0.0001232952121 | O49: -0.001274826213 | P49: 8.837569359e-06 | Q49: 0.0002246469387 | R49: 1.049087316e-07
A50: 20.8876 | B50: ='DF raw data'!G55 -> 2.7475714e-06 | C50: ='DF raw data'!H55 -> -2.7800663e-06 | D50: ='DF raw data'!I55 -> -6.9814428e-06 | F50: 2.749989263e-06 | G50: -2.788957203e-06 | H50: -6.98758647e-06 | J50: -5.936940314e-06 | K50: -3.392230976e-06 | L50: 8.281672364e-06 | N50: -0.0001262645728 | O50: -0.001337977439 | P50: 7.140945036e-06 | Q50: 0.0002282184824 | R50: 1.129079984e-07
A51: 21.38775 | B51: ='DF raw data'!G56 -> 3.4519787e-06 | C51: ='DF raw data'!H56 -> 6.2087938e-06 | D51: ='DF raw data'!I56 -> -1.0844041e-05 | F51: 3.455016441e-06 | G51: 6.228650082e-06 | H51: -1.085358376e-05 | J51: -8.576464153e-06 | K51: 8.662380158e-06 | L51: 1.339072848e-05 | N51: -0.0001305540913 | O51: -0.001403274068 | P51: 1.147343447e-05 | Q51: 0.0002339569206 | R51: 1.2149858e-07
A52: 21.8879 | B52: ='DF raw data'!G57 -> 1.041323e-06 | C52: ='DF raw data'!H57 -> -5.2091082e-06 | D52: ='DF raw data'!I57 -> -6.1919795e-06 | F52: 1.042239364e-06 | G52: -5.225767398e-06 | H52: -6.197428442e-06 | J52: -1.431094456e-05 | K52: 1.076696295e-05 | L52: 8.190278708e-06 | N52: -0.0001377117103 | O52: -0.00147215058 | P52: 1.685853099e-05 | Q52: 0.0002423887149 | R52: 1.3112583e-07
A53: 22.38805 | B53: ='DF raw data'!G58 -> -4.5492093e-06 | C53: ='DF raw data'!H58 -> -6.4663864e-06 | D53: ='DF raw data'!I58 -> 6.8694774e-08 | F53: -4.553212604e-06 | G53: -6.487066487e-06 | H53: 6.87552254e-08 | J53: -1.485636611e-05 | K53: 3.530556343e-06 | L53: 1.662705995e-06 | N53: -0.0001451421218 | O53: -0.001544743412 | P53: 1.862433875e-05 | Q53: 0.0002517036779 | R53: 1.418355927e-07
A54: 22.8882 | B54: ='DF raw data'!G59 -> -3.8935309e-06 | C54: ='DF raw data'!H59 -> -8.7193066e-06 | D54: ='DF raw data'!I59 -> 1.2792468e-06 | F54: -3.896957207e-06 | G54: -8.747191729e-06 | H54: 1.280372537e-06 | J54: -4.016672864e-06 | K54: 3.230857434e-06 | L54: 8.298858775e-06 | N54: -0.0001471510607 | O54: -0.001618341015 | P54: 2.024025209e-05 | Q54: 0.00026182684 | R54: 1.528704534e-07
A55: 23.38835 | B55: ='DF raw data'!G60 -> 2.0266777e-06 | C55: ='DF raw data'!H60 -> -3.0805973e-07 | D55: ='DF raw data'!I60 -> 5.3582794e-06 | F55: 2.028461176e-06 | G55: -3.090449328e-07 | H55: 5.362994686e-06 | J55: 6.388367421e-06 | K55: 8.170200642e-06 | L55: 7.757295118e-06 | N55: -0.0001439559187 | O55: -0.001690340568 | P55: 2.432657794e-05 | Q55: 0.000273993778 | R55: 1.635311951e-07
A56: 23.8885 | B56: ='DF raw data'!G61 -> 2.8512338e-06 | C56: ='DF raw data'!H61 -> 3.2034775e-06 | D56: ='DF raw data'!I61 -> 9.4364468e-06 | F56: 2.853742886e-06 | G56: 3.21372251e-06 | H56: 9.444750873e-06 | J56: 7.591315084e-06 | K56: 1.027504978e-05 | L56: 4.346529183e-06 | N56: -0.0001401591225 | O56: -0.001760441153 | P56: 2.946564409e-05 | Q56: 0.0002887310199 | R56: 1.737906739e-07
A57: 24.38865 | B57: ='DF raw data'!G62 -> -1.4013733e-06 | C57: ='DF raw data'!H62 -> 3.0141462e-06 | D57: ='DF raw data'!I62 -> 6.6606085e-06 | F57: -1.402606509e-06 | G57: 3.023785711e-06 | H57: 6.666469835e-06 | J57: 2.014235569e-06 | K57: 1.116932865e-05 | L57: 9.813163691e-06 | N57: -0.0001391517026 | O57: -0.001830037877 | P57: 3.505198381e-05 | Q57: 0.0003062622696 | R57: 1.840896817e-07
A58: 24.8888 | B58: ='DF raw data'!G63 -> -1.5821299e-06 | C58: ='DF raw data'!H63 -> 2.8529655e-06 | D58: ='DF raw data'!I63 -> 8.4966368e-06 | F58: -1.583522174e-06 | G58: 2.862089541e-06 | H58: 8.50411384e-06 | J58: -3.013147438e-06 | K58: 9.364978267e-06 | L58: 8.68780955e-06 | N58: -0.0001406587283 | O58: -0.00190038834 | P58: 3.973587769e-05 | Q58: 0.0003261361688 | R58: 1.947747951e-07
A59: 25.38895 | B59: ='DF raw data'!G64 -> -3.336105e-06 | C59: ='DF raw data'!H64 -> 8.9145624e-06 | D59: ='DF raw data'!I64 -> 1.2440299e-05 | F59: -3.339040772e-06 | G59: 8.943071974e-06 | H59: 1.245124646e-05 | J59: -8.705805273e-06 | K59: -6.165066083e-07 | L59: 3.738954387e-06 | N59: -0.0001450129368 | O59: -0.00197291656 | P59: 3.942753191e-05 | Q59: 0.0003458558489 | R59: 2.060698237e-07
A60: 25.8891 | B60: ='DF raw data'!G65 -> -7.4414625e-06 | C60: ='DF raw data'!H65 -> 1.3227594e-05 | D60: ='DF raw data'!I65 -> 1.1585677e-05 | F60: -7.448010987e-06 | G60: 1.326989704e-05 | H60: 1.15958724e-05 | J60: -1.002352895e-05 | K60: 5.041898041e-06 | L60: -4.445177317e-07 | N60: -0.0001500262048 | O60: -0.002047952166 | P60: 4.194923722e-05 | Q60: 0.0003668367599 | R60: 2.182072641e-07
A61: 26.38925 | B61: ='DF raw data'!G66 -> -6.5372756e-06 | C61: ='DF raw data'!H66 -> 1.1364252e-06 | D61: ='DF raw data'!I66 -> 5.1530264e-06 | F61: -6.543028403e-06 | G61: 1.14005959e-06 | H61: 5.157561063e-06 | J61: -4.324390818e-06 | K61: 6.054103647e-06 | L61: -3.084242347e-06 | N61: -0.0001521890489 | O61: -0.002124069519 | P61: 4.497719716e-05 | Q61: 0.000389332105 | R61: 2.308032692e-07
A62: 26.8894 | B62: ='DF raw data'!G67 -> -4.8744137e-06 | C62: ='DF raw data'!H67 -> -3.1151023e-06 | D62: ='DF raw data'!I67 -> -5.500418e-06 | F62: -4.878703184e-06 | G62: -3.125064678e-06 | H62: -5.505258368e-06 | J62: -9.060837526e-07 | K62: -2.284055128e-06 | L62: 2.574566827e-06 | N62: -0.0001526422266 | O62: -0.002200413529 | P62: 4.383482698e-05 | Q62: 0.0004112560937 | R62: 2.434176231e-07
A63: 27.38955 | B63: ='DF raw data'!G68 -> -2.8267407e-06 | C63: ='DF raw data'!H68 -> -1.5272981e-05 | D63: ='DF raw data'!I68 -> -8.5920519e-06 | F63: -2.829228232e-06 | G63: -1.532182537e-05 | H63: -8.599612906e-06 | J63: -5.381029443e-06 | K63: 1.672797302e-06 | L63: 5.108577195e-06 | N63: -0.0001553335485 | O63: -0.002278103603 | P63: 4.467147655e-05 | Q63: 0.0004335985327 | R63: 2.564835678e-07
A64: 27.8897 | B64: ='DF raw data'!G69 -> -1.6513497e-06 | C64: ='DF raw data'!H69 -> 4.5268107e-06 | D64: ='DF raw data'!I69 -> -6.7009182e-06 | F64: -1.652802888e-06 | G64: 4.541287849e-06 | H64: -6.706815008e-06 | J64: -5.893114081e-06 | K64: 1.256274772e-05 | L64: 9.125854491e-06 | N64: -0.0001582809895 | O64: -0.00235726784 | P64: 5.095473483e-05 | Q64: 0.0004590835434 | R64: 2.703123435e-07
A65: 28.38985 | B65: ='DF raw data'!G70 -> 2.5470561e-06 | C65: ='DF raw data'!H70 -> 4.5725728e-06 | D65: ='DF raw data'!I70 -> -1.0402302e-06 | F65: 2.549297509e-06 | G65: 4.5871963e-06 | H65: -1.041145603e-06 | J65: -2.297564479e-06 | K65: -3.43921616e-06 | L65: 1.188128534e-05 | N65: -0.0001594301164 | O65: -0.002437006813 | P65: 4.923461086e-05 | Q65: 0.000483708234 | R65: 2.842375242e-07
A66: 28.89 | B66: ='DF raw data'!G71 -> 3.4794127e-06 | C66: ='DF raw data'!H71 -> 8.3514601e-07 | D66: ='DF raw data'!I71 -> 7.2524749e-06 | F66: 3.482474583e-06 | G66: 8.378168822e-07 | H66: 7.258857078e-06 | J66: -1.186411024e-06 | K66: -5.02752763e-06 | L66: 4.397888039e-06 | N66: -0.0001600234999 | O66: -0.002517042566 | P66: 4.672009292e-05 | Q66: 0.0005070752885 | R66: 2.981368366e-07
A67: 29.39015 | B67: ='DF raw data'!G72 -> 2.6378355e-06 | C67: ='DF raw data'!H72 -> -1.6029692e-06 | D67: ='DF raw data'!I72 -> 5.3132212e-06 | F67: 2.640156795e-06 | G67: -1.60809564e-06 | H67: 5.317896835e-06 | J67: -5.110456047e-06 | K67: 8.989516936e-06 | L67: -1.942237166e-06 | N67: -0.0001625794945 | O67: -0.0025983567 | P67: 5.121619982e-05 | Q67: 0.0005326910708 | R67: 3.126687904e-07
A68: 29.8903 | B68: ='DF raw data'!G73 -> -1.9327517e-07 | C68: ='DF raw data'!H73 -> 3.5317105e-06 | D68: ='DF raw data'!I73 -> -1.3036815e-07 | F68: -1.934452521e-07 | G68: 3.543005229e-06 | H68: -1.30482874e-07 | J68: -8.500369849e-06 | K68: 7.274581903e-06 | L68: 1.354957114e-06 | N68: -0.0001668309544 | O68: -0.002681797202 | P68: 5.485458195e-05 | Q68: 0.00056012659 | R68: 3.280942129e-07
A69: 30.39045 | B69: ='DF raw data'!G74 -> -1.7714995e-06 | C69: ='DF raw data'!H74 -> 1.6343736e-06 | D69: ='DF raw data'!I74 -> -3.7981346e-07 | F69: -1.77305842e-06 | G69: 1.639600474e-06 | H69: -3.801476958e-07 | J69: -6.491581269e-06 | K69: 5.6965803e-06 | L69: 1.130148857e-05 | N69: -0.0001700777188 | O69: -0.002766861573 | P69: 5.770372659e-05 | Q69: 0.0005889871088 | R69: 3.442271266e-07
A70: 30.8906 | B70: ='DF raw data'!G75 -> -1.9842957e-06 | C70: ='DF raw data'!H75 -> -8.2181532e-06 | D70: ='DF raw data'!I75 -> -7.5564213e-07 | F70: -1.98604188e-06 | G70: -8.244435595e-06 | H70: -7.563070951e-07 | J70: -4.508982216e-06 | K70: 4.314402362e-06 | L70: 1.67174284e-05 | N70: -0.0001723328863 | O70: -0.002853053866 | P70: 5.986157493e-05 | Q70: 0.0006189268755 | R70: 3.608731348e-07
A71: 31.39075 | B71: ='DF raw data'!G76 -> -7.5383679e-07 | C71: ='DF raw data'!H76 -> -1.2430853e-05 | D71: ='DF raw data'!I76 -> 3.787404e-06 | F71: -7.545001664e-07 | G71: =(1-$G$1*($B$2-$G$2))*C71*$M$2/$M$1 -> -1.247060799e-05 | H71: 3.790736916e-06 | J71: =-CELL("contents", INDEX($F$6:$F$1203,1204-CELL("row",F71))) -> -7.948400643e-06 | K71: =CELL("contents", INDEX($G$6:$G$1203,1204-CELL("row",G71))) -> -5.640575161e-06 | L71: =-CELL("contents", INDEX($H$6:$H$1203,1204-CELL("row",H71))) -> 1.056848309e-05 | N71: -0.0001763082789 | O71: -0.002941234452 | P71: 5.704044127e-05 | Q71: 0.0006474556522 | R71: 3.780473961e-07
A72: =A71+$B$1 -> 31.8909 | B72: ='DF raw data'!G77 -> -1.0142933e-06 | C72: ='DF raw data'!H77 -> 2.3077816e-06 | D72: ='DF raw data'!I77 -> 4.3388031e-06 | F72: -1.015185878e-06 | G72: 2.315162094e-06 | H72: 4.342621247e-06 | J72: -1.001043444e-05 | K72: -8.671965917e-06 | L72: -9.07541134e-07 | N72: =J72*$B$1+N71 -> -0.0001813149976 | O72: =N72*$B$1+O71 -> -0.003031919148 | P72: =K72*$B$1+P71 -> 5.270315751e-05 | Q72: =P72*$B$1+Q71 -> 0.0006738151365 | R72: =(N72^2+P72^2)*$B$1+R71 -> 3.958791196e-07
A73: 32.39105 | B73: ='DF raw data'!G78 -> -5.0335443e-06 | C73: ='DF raw data'!H78 -> 5.4704078e-06 | D73: ='DF raw data'!I78 -> 3.2050564e-06 | F73: -5.037973819e-06 | G73: 5.487902657e-06 | H73: 3.20787685e-06 | J73: -8.274358133e-06 | K73: -2.424871837e-06 | L73: 6.015577053e-06 | N73: -0.0001854534179 | O73: -0.003124673675 | P73: 5.149035786e-05 | Q73: 0.0006995680389 | R73: 4.144067898e-07
A74: 32.8912 | B74: ='DF raw data'!G79 -> -4.8559236e-06 | C74: ='DF raw data'!H79 -> 6.262163e-06 | D74: ='DF raw data'!I79 -> 3.2679117e-07 | F74: -4.860196813e-06 | G74: 6.282189962e-06 | H74: 3.270787462e-07 | J74: -5.958384969e-06 | K74: -3.021058016e-06 | L74: 1.302762323e-05 | N74: -0.0001884335041 | O74: -0.003218918692 | P74: 4.99793757e-05 | Q74: 0.0007245652237 | R74: 4.334150523e-07
A75: 33.39135 | B75: ='DF raw data'!G80 -> -8.9307588e-07 | C75: ='DF raw data'!H80 -> 1.2813839e-05 | D75: ='DF raw data'!I80 -> 5.8340743e-06 | F75: -8.938617868e-07 | G75: 1.285481881e-05 | H75: 5.839208285e-06 | J75: -6.374667475e-06 | K75: -1.598325594e-06 | L75: 1.390071287e-05 | N75: -0.000191621794 | O75: -0.003314758332 | P75: 4.917997315e-05 | Q75: 0.0007491625873 | R75: 4.529897138e-07
A76: 33.8915 | B76: ='DF raw data'!G81 -> 3.9982556e-06 | C76: ='DF raw data'!H81 -> -1.2832782e-06 | D76: ='DF raw data'!I81 -> 6.9050625e-06 | F76: 4.001774065e-06 | G76: -1.287382239e-06 | H76: 6.911138955e-06 | J76: -7.827544383e-06 | K76: -4.628238037e-06 | L76: 1.032947595e-05 | N76: -0.0001955367404 | O76: -0.003412556033 | P76: 4.68651599e-05 | Q76: 0.000772602197 | R76: 4.732112585e-07
A77: 34.39165 | B77: ='DF raw data'!G82 -> 5.2621567e-06 | C77: ='DF raw data'!H82 -> -9.7808543e-06 | D77: ='DF raw data'!I82 -> -1.9200718e-06 | F77: 5.266787398e-06 | G77: -9.812134354e-06 | H77: -1.921761463e-06 | J77: -1.118667762e-06 | K77: 9.546702084e-07 | L77: 3.859725272e-06 | N77: -0.000196096242 | O77: -0.003510633569 | P77: 4.73426382e-05 | Q77: 0.0007962806175 | R77: 4.935648935e-07
A78: 34.8918 | B78: ='DF raw data'!G83 -> 2.1494968e-06 | C78: ='DF raw data'!H83 -> -2.0732044e-07 | D78: ='DF raw data'!I83 -> -9.5957557e-06 | F78: 2.151388357e-06 | G78: -2.079834695e-07 | H78: -9.604199965e-06 | J78: 2.504205563e-06 | K78: 6.106840566e-06 | L78: 1.680824525e-06 | N78: -0.0001948437636 | O78: -0.003608084677 | P78: 5.039697451e-05 | Q78: 0.0008214866643 | R78: 5.138229428e-07
A79: 35.39195 | B79: ='DF raw data'!G84 -> -3.4784828e-06 | C79: ='DF raw data'!H84 -> 1.3509795e-05 | D79: ='DF raw data'!I84 -> -1.0868001e-05 | F79: -3.481543865e-06 | G79: 1.355300054e-05 | H79: -1.087756484e-05 | J79: -9.44966089e-07 | K79: -3.963387965e-06 | L79: 8.325967309e-06 | N79: -0.0001953163884 | O79: -0.003705772169 | P79: 4.841468602e-05 | Q79: 0.0008457012695 | R79: 5.340752533e-07
A80: 35.8921 | B80: ='DF raw data'!G85 -> -9.5308533e-06 | C80: ='DF raw data'!H85 -> 1.8192684e-05 | D80: ='DF raw data'!I85 -> -2.3572659e-06 | F80: -9.539240451e-06 | G80: 1.825086584e-05 | H80: -2.359340294e-06 | J80: -2.32876391e-06 | K80: -4.901572197e-06 | L80: 1.021643556e-05 | N80: -0.0001964811197 | O80: -0.003804042201 | P80: 4.596316469e-05 | Q80: 0.0008686897463 | R80: 5.544400824e-07
A81: 36.39225 | B81: ='DF raw data'!G86 -> -1.2267581e-05 | C81: ='DF raw data'!H86 -> 8.4208814e-06 | D81: ='DF raw data'!I86 -> 1.920095e-06 | F81: -1.227837647e-05 | G81: 8.447812138e-06 | H81: 1.921784684e-06 | J81: -3.974383282e-06 | K81: -1.888922386e-06 | L81: 7.329576957e-06 | N81: -0.0001984689075 | O81: -0.003903306425 | P81: 4.501842015e-05 | Q81: 0.0008912057092 | R81: 5.751545776e-07
A82: 36.8924 | B82: ='DF raw data'!G87 -> -7.8193316e-06 | C82: ='DF raw data'!H87 -> 1.3775286e-06 | D82: ='DF raw data'!I87 -> 2.9383045e-09 | F82: -7.826212612e-06 | G82: 1.381934061e-06 | H82: 2.940890208e-09 | J82: -8.779427203e-06 | K82: -7.109756156e-06 | L82: 4.032251662e-06 | N82: -0.000202859938 | O82: -0.004004766823 | P82: 4.146247561e-05 | Q82: 0.0009119431663 | R82: 5.965966539e-07
A83: 37.39255 | B83: ='DF raw data'!G88 -> 2.0930936e-06 | C83: ='DF raw data'!H88 -> -1.8598178e-06 | D83: ='DF raw data'!I88 -> -1.2484754e-06 | F83: 2.094935522e-06 | G83: -1.865765665e-06 | H83: -1.249574058e-06 | J83: -1.296449272e-05 | K83: -1.144019815e-05 | L83: 1.274504978e-05 | N83: -0.000209344129 | O83: -0.004109470289 | P83: 3.574066051e-05 | Q83: 0.0009298188577 | R83: 6.191545989e-07
A84: 37.8927 | B84: ='DF raw data'!G89 -> 5.824721e-06 | C84: ='DF raw data'!H89 -> 6.0191519e-07 | D84: ='DF raw data'!I89 -> -2.8556908e-06 | F84: 5.829846754e-06 | G84: 6.03840169e-07 | H84: -2.858203808e-06 | J84: -9.92498711e-06 | K84: -1.009616953e-05 | L84: 1.551707002e-05 | N84: -0.0002143081113 | O84: -0.004216656491 | P84: 3.069106132e-05 | Q84: 0.000945168992 | R84: 6.425965833e-07
A85: 38.39285 | B85: ='DF raw data'!G90 -> 3.5666542e-06 | C85: ='DF raw data'!H90 -> 3.4645934e-06 | D85: ='DF raw data'!I90 -> -1.2559988e-06 | F85: 3.569792856e-06 | G85: 3.475673482e-06 | H85: -1.257104079e-06 | J85: -1.067851683e-05 | K85: -4.472968955e-06 | L85: 7.311789818e-06 | N85: -0.0002196489715 | O85: -0.004326513924 | P85: 2.84539059e-05 | Q85: 0.000959400213 | R85: 6.671315893e-07
A86: 38.893 | B86: ='DF raw data'!G91 -> 2.4425933e-06 | C86: ='DF raw data'!H91 -> 4.0977075e-06 | D86: ='DF raw data'!I91 -> -3.2214714e-06 | F86: 2.444742782e-06 | G86: 4.110812338e-06 | H86: -3.224306295e-06 | J86: -1.570382822e-05 | K86: -8.924278262e-06 | L86: 6.371422322e-06 | N86: -0.0002275032412 | O86: -0.00444029967 | P86: 2.399042812e-05 | Q86: 0.0009713990257 | R86: 6.93306072e-07
A87: 39.39315 | B87: ='DF raw data'!G92 -> 5.0342737e-06 | C87: ='DF raw data'!H92 -> -3.9483521e-06 | D87: ='DF raw data'!I92 -> -6.0486213e-06 | F87: =(1-$G$1*($B$2-$G$2))*B87 -> 5.038703861e-06 | G87: -3.960979286e-06 | H87: -6.053944087e-06 | J87: -1.167863516e-05 | K87: -9.701171516e-06 | L87: 9.568294296e-06 | N87: -0.0002333443106 | O87: -0.004557006827 | P87: 1.913838719e-05 | Q87: 0.00098097109 | R87: 7.207222169e-07
A88: 39.8933 | B88: ='DF raw data'!G93 -> 1.1576987e-05 | C88: ='DF raw data'!H93 -> 1.5715311e-06 | D88: ='DF raw data'!I93 -> -3.6038266e-06 | F88: 1.158717475e-05 | G88: 1.576556998e-06 | H88: -3.606997967e-06 | J88: -3.038801394e-06 | K88: -9.781477523e-06 | L88: 9.166351697e-06 | N88: -0.0002348641671 | O88: -0.00467447414 | P88: 1.424618121e-05 | Q88: 0.0009880963176 | R88: 7.484125869e-07
A89: 40.39345 | B89: ='DF raw data'!G94 -> 1.3567054e-05 | C89: ='DF raw data'!H94 -> -1.2581887e-05 | D89: ='DF raw data'!I94 -> 1.7334776e-06 | F89: 1.357899301e-05 | G89: -1.262212501e-05 | H89: 1.73500306e-06 | J89: 5.816669969e-07 | K89: 4.263136231e-06 | L89: 1.060645347e-05 | N89: -0.0002345732464 | O89: -0.004791795949 | P89: 1.637838879e-05 | Q89: 0.0009962879687 | R89: 7.760673106e-07
A90: 40.8936 | B90: ='DF raw data'!G95 -> 7.8348803e-06 | C90: ='DF raw data'!H95 -> -7.0510678e-06 | D90: ='DF raw data'!I95 -> 4.7480961e-07 | F90: 7.841774995e-06 | G90: -7.07361775e-06 | H90: 4.752274425e-07 | J90: -5.221290896e-06 | K90: 1.634291449e-05 | L90: 4.918198109e-06 | N90: -0.000237184675 | O90: -0.004910423864 | P90: 2.455229748e-05 | Q90: 0.0010085678 | R90: 8.045055322e-07
A91: 41.39375 | B91: ='DF raw data'!G96 -> 7.619079e-06 | C91: ='DF raw data'!H96 -> 8.4252833e-06 | D91: ='DF raw data'!I96 -> -1.2403937e-05 | F91: 7.62578379e-06 | G91: 8.452228116e-06 | H91: -1.241485246e-05 | J91: -8.900617457e-06 | K91: -1.047514968e-06 | L91: 2.665093821e-06 | N91: -0.0002416363188 | O91: -0.005031278269 | P91: 2.402838287e-05 | Q91: 0.001020585596 | R91: 8.339971139e-07
A92: 41.8939 | B92: ='DF raw data'!G97 -> 9.2181954e-06 | C92: ='DF raw data'!H97 -> 6.0666907e-06 | D92: ='DF raw data'!I97 -> -7.5839575e-06 | F92: 9.226307412e-06 | G92: 6.086092524e-06 | H92: -7.590631383e-06 | J92: -5.853162154e-06 | K92: -2.561805266e-06 | L92: 6.68809575e-06 | N92: -0.0002445637779 | O92: -0.005153596843 | P92: 2.274709596e-05 | Q92: 0.001031962556 | R92: 8.641705991e-07
A93: 42.39405 | B93: ='DF raw data'!G98 -> 3.9995243e-06 | C93: ='DF raw data'!H98 -> -2.9307005e-06 | D93: ='DF raw data'!I98 -> 4.5284349e-07 | F93: 4.003043881e-06 | G93: -2.940073144e-06 | H93: 4.532419923e-07 | J93: -4.959135002e-06 | K93: 4.3225702e-06 | L93: 8.575031293e-06 | N93: -0.0002470440892 | O93: -0.005277155944 | P93: 2.490902945e-05 | Q93: 0.001044420807 | R93: 8.950054677e-07
A94: 42.8942 | B94: ='DF raw data'!G99 -> 4.2330134e-06 | C94: ='DF raw data'!H99 -> 1.6663987e-06 | D94: ='DF raw data'!I99 -> 1.1507971e-06 | F94: 4.236738452e-06 | G94: 1.671727993e-06 | H94: 1.151809801e-06 | J94: -7.865959759e-06 | K94: -2.378828255e-06 | L94: 8.4063682e-06 | N94: -0.000250978249 | O94: -0.005402682715 | P94: 2.37192585e-05 | Q94: 0.001056283994 | R94: 9.26791343e-07
A95: 43.39435 | B95: ='DF raw data'!G100 -> 7.5664138e-06 | C95: ='DF raw data'!H100 -> 3.0230847e-06 | D95: ='DF raw data'!I100 -> 5.6434642e-06 | F95: 7.573072244e-06 | G95: 3.032752797e-06 | H95: 5.648430448e-06 | J95: -1.087065677e-05 | K95: -4.177554605e-06 | L95: 1.138641924e-05 | N95: -0.000256415208 | O95: -0.005530928782 | P95: 2.162985456e-05 | Q95: 0.001067102166 | R95: 9.599095802e-07
A96: 43.8945 | B96: ='DF raw data'!G101 -> 5.7371458e-06 | C96: ='DF raw data'!H101 -> 6.6697839e-06 | D96: ='DF raw data'!I101 -> 7.5385237e-06 | F96: 5.742194488e-06 | G96: 6.69111447e-06 | H96: 7.545157601e-06 | J96: -1.092183176e-05 | K96: -9.853360378e-06 | L96: 6.521897724e-06 | N96: -0.0002618777622 | O96: -0.005661906944 | P96: 1.670169637e-05 | Q96: 0.001075455519 | R96: 9.943493635e-07
A97: 44.39465 | B97: ='DF raw data'!G102 -> 5.551115e-06 | C97: ='DF raw data'!H102 -> -2.4949288e-06 | D97: ='DF raw data'!I102 -> -3.1269611e-08 | F97: 5.555999981e-06 | G97: -2.502907807e-06 | H97: -3.129712826e-08 | J97: -5.903870138e-06 | K97: -4.645507992e-06 | L97: 3.885570296e-06 | N97: -0.0002648305828 | O97: -0.00579436196 | P97: 1.437824554e-05 | Q97: 0.001082646799 | R97: 1.029530901e-06
A98: 44.8948 | B98: ='DF raw data'!G103 -> -1.9010588e-06 | C98: ='DF raw data'!H103 -> -6.5882077e-06 | D98: ='DF raw data'!I103 -> -5.5764514e-07 | F98: -1.902731732e-06 | G98: -6.609277382e-06 | H98: -5.581358677e-07 | J98: -2.646589251e-07 | K98: 3.467242906e-06 | L98: 1.151238199e-05 | N98: -0.000264962952 | O98: -0.005926883181 | P98: 1.611238708e-05 | Q98: 0.001090705409 | R98: 1.064773958e-06
A99: 45.39495 | B99: ='DF raw data'!G104 -> -9.3131166e-06 | C99: ='DF raw data'!H104 -> -2.2199605e-07 | D99: ='DF raw data'!I104 -> 4.1135177e-06 | F99: -9.321312143e-06 | G99: -2.227060134e-07 | H99: 4.117137596e-06 | J99: -3.304163307e-06 | K99: -4.330546427e-06 | L99: 7.928292163e-06 | N99: -0.0002666155292 | O99: -0.006060230938 | P99: 1.394646429e-05 | Q99: 0.001097680733 | R99: 1.100423822e-06
A100: 45.8951 | B100: ='DF raw data'!G105 -> -1.0406873e-05 | C100: ='DF raw data'!H105 -> -4.280987e-06 | D100: ='DF raw data'!I105 -> -9.00732e-07 | F100: -1.041603105e-05 | G100: -4.294677982e-06 | H100: -9.015246442e-07 | J100: -8.82893263e-06 | K100: -9.903287039e-06 | L100: 1.047829079e-05 | N100: -0.0002710313199 | O100: -0.006195787252 | P100: 8.993335276e-06 | Q100: 0.00110217875 | R100: 1.137204281e-06
A101: 46.39525 | B101: ='DF raw data'!G106 -> -1.0961026e-05 | C101: ='DF raw data'!H106 -> -1.5350775e-05 | D101: ='DF raw data'!I106 -> -9.0541371e-06 | F101: -1.09706717e-05 | G101: -1.539986816e-05 | H101: -9.062104741e-06 | J101: -3.12805667e-06 | K101: 7.320358935e-06 | L101: 1.534594156e-05 | N101: -0.0002725958174 | O101: -0.00633212605 | P101: 1.26546128e-05 | Q101: 0.001108507955 | R101: 1.174449761e-06
A102: 46.8954 | B102: ='DF raw data'!G107 -> -6.3638604e-06 | C102: ='DF raw data'!H107 -> -8.3866717e-06 | D102: ='DF raw data'!I107 -> -1.0486846e-05 | F102: -6.369460597e-06 | G102: -8.413493032e-06 | H102: -1.049607442e-05 | J102: 3.163670582e-06 | K102: 2.414347687e-06 | L102: 9.484761952e-06 | N102: -0.0002710135076 | O102: -0.006467673456 | P102: 1.386214879e-05 | Q102: 0.001115441108 | R102: 1.211281047e-06
A103: 47.39555 | B103: ='DF raw data'!G108 -> -1.8391161e-08 | C103: ='DF raw data'!H108 -> 5.3930171e-06 | D103: ='DF raw data'!I108 -> -5.1976617e-06 | F103: -1.840734522e-08 | G103: 5.410264455e-06 | H103: -5.202235642e-06 | J103: -2.805373458e-06 | K103: -6.647291768e-06 | L103: 6.334984985e-06 | N103: -0.0002724166151 | O103: -0.006603922626 | P103: 1.053750582e-05 | Q103: 0.001120711442 | R103: 1.248453121e-06
A104: 47.8957 | B104: ='DF raw data'!G109 -> 2.682558e-06 | C104: ='DF raw data'!H109 -> 2.1711163e-07 | D104: ='DF raw data'!I109 -> -6.2428276e-06 | F104: 2.684918651e-06 | G104: 2.178059726e-07 | H104: -6.248321288e-06 | J104: -1.169019333e-05 | K104: 1.6512464e-06 | L104: 5.739732123e-06 | N104: -0.0002782634653 | O104: -0.006743096099 | P104: 1.13633767e-05 | Q104: 0.001126394835 | R104: 1.287244596e-06
A105: 48.39585 | B105: ='DF raw data'!G110 -> 1.3379574e-06 | C105: ='DF raw data'!H110 -> 4.5749775e-06 | D105: ='DF raw data'!I110 -> -7.5926778e-06 | F105: 1.339134803e-06 | G105: 4.58960869e-06 | H105: -7.599359356e-06 | J105: -1.249309326e-05 | K105: -2.775300366e-06 | L105: 2.691204678e-06 | N105: -0.0002845118859 | O105: -0.006885394718 | P105: 9.975310225e-06 | Q105: 0.001131383986 | R105: 1.327780013e-06
A106: 48.896 | B106: ='DF raw data'!G111 -> -6.806275e-06 | C106: ='DF raw data'!H111 -> 1.1750156e-05 | D106: ='DF raw data'!I111 -> -2.9752202e-06 | F106: -6.812264522e-06 | G106: 1.178773406e-05 | H106: -2.977838394e-06 | J106: -9.684611865e-06 | K106: -7.558488467e-07 | L106: 7.923562304e-06 | N106: -0.0002893556445 | O106: -0.007030115944 | P106: 9.597272424e-06 | Q106: 0.001136184062 | R106: 1.369701984e-06
A107: 49.39615 | B107: ='DF raw data'!G112 -> -9.1419042e-06 | C107: ='DF raw data'!H112 -> -4.7102176e-06 | D107: ='DF raw data'!I112 -> -7.1577716e-07 | F107: -9.149949076e-06 | G107: -4.725281301e-06 | H107: -7.164070439e-07 | J107: -8.445053013e-06 | K107: -4.697442052e-06 | L107: 1.340345067e-05 | N107: -0.0002935794378 | O107: -0.0071769497 | P107: 7.247846782e-06 | Q107: 0.001139809073 | R107: 1.412835629e-06
A108: 49.8963 | B108: ='DF raw data'!G113 -> -2.9554342e-06 | C108: ='DF raw data'!H113 -> -6.529498e-06 | D108: ='DF raw data'!I113 -> 3.0877879e-06 | F108: -2.958034982e-06 | G108: -6.550379923e-06 | H108: 3.090505153e-06 | J108: -6.279264895e-06 | K108: -8.221143743e-06 | L108: 5.961086744e-06 | N108: -0.0002967200121 | O108: -0.007325354214 | P108: 3.136041739e-06 | Q108: 0.001141377564 | R108: 1.456875137e-06
A109: 50.39645 | B109: ='DF raw data'!G114 -> -8.5963467e-07 | C109: ='DF raw data'!H114 -> 9.693108e-06 | D109: ='DF raw data'!I114 -> 5.6873218e-06 | F109: -8.603911485e-07 | G109: 9.724107433e-06 | H109: 5.692326643e-06 | J109: -1.891838654e-06 | K109: -3.961650726e-06 | L109: 4.509129745e-06 | N109: -0.0002976662153 | O109: -0.007474231971 | P109: 1.154622128e-06 | Q109: 0.001141955048 | R109: 1.501191683e-06
A110: 50.8966 | B110: ='DF raw data'!G115 -> -1.9435122e-06 | C110: ='DF raw data'!H115 -> -5.9366821e-06 | D110: ='DF raw data'!I115 -> 3.2250216e-06 | F110: -1.945222491e-06 | G110: -5.955668145e-06 | H110: 3.227859619e-06 | J110: 1.09829485e-06 | K110: 7.059079504e-06 | L110: 1.241491852e-05 | N110: -0.0002971169031 | O110: -0.00762283499 | P110: 4.685220742e-06 | Q110: 0.001144298361 | R110: 1.54535513e-06
A111: 51.39675 | B111: ='DF raw data'!G116 -> -1.947383e-06 | C111: ='DF raw data'!H116 -> -1.1775456e-05 | D111: ='DF raw data'!I116 -> -4.4127896e-06 | F111: -1.949096697e-06 | G111: -1.181311497e-05 | H111: -4.416672855e-06 | J111: 9.340804381e-07 | K111: 6.619636807e-06 | L111: 1.486626281e-05 | N111: -0.0002966497228 | O111: -0.007771204349 | P111: 7.996032091e-06 | Q111: 0.001148297577 | R111: 1.589400837e-06
A112: 51.8969 | B112: ='DF raw data'!G117 -> 5.4617493e-07 | C112: ='DF raw data'!H117 -> -3.1968914e-06 | D112: ='DF raw data'!I117 -> -6.315769e-06 | F112: 5.466555639e-07 | G112: -3.207115347e-06 | H112: -6.321326877e-06 | J112: 2.60936282e-06 | K112: -7.860968442e-07 | L112: 9.637706125e-06 | N112: -0.0002953446499 | O112: -0.007918920976 | P112: 7.602865754e-06 | Q112: 0.00115210015 | R112: 1.633057063e-06
A113: 52.39705 | B113: ='DF raw data'!G118 -> 9.3185344e-07 | C113: ='DF raw data'!H118 -> 6.1623587e-06 | D113: ='DF raw data'!I118 -> -8.9993637e-06 | F113: 9.32673471e-07 | G113: 6.182066479e-06 | H113: -9.00728314e-06 | J113: 3.248382663e-06 | K113: -3.01182448e-06 | L113: 5.62362584e-06 | N113: -0.0002937199713 | O113: -0.00806582502 | P113: 6.09650174e-06 | Q113: 0.001155149315 | R113: 1.676224304e-06
A114: 52.8972 | B114: ='DF raw data'!G119 -> 1.651613e-06 | C114: ='DF raw data'!H119 -> -4.9032924e-06 | D114: ='DF raw data'!I119 -> -5.5799478e-06 | F114: 1.653066419e-06 | G114: -4.918973571e-06 | H114: -5.584858154e-06 | J114: 2.337051697e-06 | K114: -2.566754143e-06 | L114: 2.25815553e-06 | N114: -0.0002925510949 | O114: -0.00821214445 | P114: 4.812739656e-06 | Q114: 0.001157556407 | R114: 1.719041798e-06
A115: 53.39735 | B115: ='DF raw data'!G120 -> 1.7780364e-06 | C115: ='DF raw data'!H120 -> -1.3963126e-05 | D115: ='DF raw data'!I120 -> -6.5509716e-06 | F115: 1.779601072e-06 | G115: -1.400778134e-05 | H115: -6.556736455e-06 | J115: 1.843072778e-06 | K115: -5.019270006e-07 | L115: 3.397764804e-06 | N115: -0.0002916292821 | O115: -0.008358002835 | P115: 4.561700867e-06 | Q115: 0.001159837942 | R115: 1.761588782e-06
A116: 53.8975 | B116: ='DF raw data'!G121 -> -1.468323e-06 | C116: ='DF raw data'!H121 -> -3.8276003e-06 | D116: ='DF raw data'!I121 -> -9.9604049e-06 | F116: -1.469615124e-06 | G116: -3.839841311e-06 | H116: -9.969170056e-06 | J116: -1.113590098e-06 | K116: -5.840289229e-06 | L116: 1.17099567e-05 | N116: -0.0002921862442 | O116: -0.008504139785 | P116: 1.640680209e-06 | Q116: 0.001160658528 | R116: 1.804289335e-06
A117: 54.39765 | B117: ='DF raw data'!G122 -> -9.3368799e-06 | C117: ='DF raw data'!H122 -> 2.1672829e-06 | D117: ='DF raw data'!I122 -> -7.7221894e-06 | F117: -9.345096354e-06 | G117: 2.174214066e-06 | H117: -7.728984927e-06 | J117: -8.949320978e-06 | K117: -7.893072687e-06 | L117: 1.272273616e-05 | N117: -0.0002966622471 | O117: -0.008652515408 | P117: -2.307040095e-06 | Q117: 0.001159504662 | R117: 1.848309443e-06
A118: 54.8978 | B118: ='DF raw data'!G123 -> -1.2560144e-05 | C118: ='DF raw data'!H123 -> -2.5980655e-06 | D118: ='DF raw data'!I123 -> 4.0264663e-06 | F118: -1.257119693e-05 | G118: -2.606374348e-06 | H118: 4.03000959e-06 | J118: -1.17362238e-05 | K118: -2.00885241e-06 | L118: 6.086186735e-06 | N118: -0.0003025321194 | O118: -0.008803826848 | P118: -3.311767628e-06 | Q118: 0.001157848281 | R118: 1.894091499e-06
A119: 55.39795 | B119: ='DF raw data'!G124 -> -1.0626412e-05 | C119: ='DF raw data'!H124 -> -2.4452922e-06 | D119: ='DF raw data'!I124 -> 3.4939665e-06 | F119: -1.063576324e-05 | G119: -2.453112465e-06 | H119: 3.497041191e-06 | J119: -7.252994323e-06 | K119: 2.750053682e-06 | L119: 3.946785818e-06 | N119: -0.0003061597045 | O119: -0.008956952624 | P119: -1.936328279e-06 | Q119: 0.001156879827 | R119: 1.940974316e-06
A120: 55.8981 | B120: ='DF raw data'!G125 -> -7.4626228e-06 | C120: ='DF raw data'!H125 -> 4.5236056e-06 | D120: ='DF raw data'!I125 -> -1.0295572e-05 | F120: -7.469189908e-06 | G120: 4.538072499e-06 | H120: -1.03046321e-05 | J120: -2.938922878e-06 | K120: 3.210244422e-06 | L120: 9.232701334e-06 | N120: -0.0003076296068 | O120: -0.009110813572 | P120: -3.307245315e-07 | Q120: 0.001156714415 | R120: 1.988306554e-06
A121: 56.39825 | B121: ='DF raw data'!G126 -> -5.8843984e-06 | C121: ='DF raw data'!H126 -> -2.9364969e-07 | D121: ='DF raw data'!I126 -> -1.0189816e-05 | F121: -5.889576671e-06 | G121: -2.945888082e-07 | H121: -1.019878304e-05 | J121: -1.06735895e-06 | K121: 1.6527208e-06 | L121: 9.258611915e-06 | N121: -0.0003081634464 | O121: -0.009264941519 | P121: 4.958837768e-07 | Q121: 0.001156962431 | R121: 2.035803276e-06
A122: 56.8984 | B122: ='DF raw data'!G127 -> -8.1175676e-06 | C122: ='DF raw data'!H127 -> -7.1221007e-07 | D122: ='DF raw data'!I127 -> -3.024071e-06 | F122: -8.124711059e-06 | G122: -7.14487782e-07 | H122: -3.026732182e-06 | J122: -2.784930084e-06 | K122: -4.879083305e-06 | L122: 1.946943804e-06 | N122: -0.0003095563291 | O122: -0.009419766117 | P122: -1.944389738e-06 | Q122: 0.001155989945 | R122: 2.083732102e-06
A123: 57.39855 | B123: ='DF raw data'!G128 -> -7.6326323e-06 | C123: ='DF raw data'!H128 -> -2.1831104e-06 | D123: ='DF raw data'!I128 -> -1.16056e-06 | F123: -7.639349016e-06 | G123: -2.190092184e-06 | H123: -1.161581293e-06 | J123: -8.273021858e-06 | K123: -7.048851398e-06 | L123: 4.492879157e-06 | N123: -0.000313694081 | O123: -0.009576660212 | P123: -5.469872765e-06 | Q123: 0.001153254188 | R123: 2.132963815e-06
A124: 57.8987 | B124: ='DF raw data'!G129 -> -3.1531456e-06 | C124: ='DF raw data'!H129 -> 1.3992533e-05 | D124: ='DF raw data'!I129 -> 2.1958974e-06 | F124: -3.155920368e-06 | G124: 1.403728238e-05 | H124: 2.19782979e-06 | J124: -1.575921191e-05 | K124: 7.66155403e-06 | L124: 1.098394537e-05 | N124: -0.0003215760509 | O124: -0.009737496474 | P124: -1.637946517e-06 | Q124: 0.001152434969 | R124: 2.184686246e-06
A125: 58.39885 | B125: ='DF raw data'!G130 -> 2.7989688e-06 | C125: ='DF raw data'!H130 -> 7.2545927e-06 | D125: ='DF raw data'!I130 -> 1.1670068e-05 | F125: 2.801431893e-06 | G125: 7.277793541e-06 | H125: 1.168033766e-05 | J125: -1.642348496e-05 | K125: 8.44379754e-06 | L125: 1.314865564e-05 | N125: -0.0003297902569 | O125: -0.009902441071 | P125: 2.585218822e-06 | Q125: 0.001153727966 | R125: 2.23908671e-06
A126: 58.899 | B126: ='DF raw data'!G131 -> 6.4096462e-06 | C126: ='DF raw data'!H131 -> -3.0269032e-06 | D126: ='DF raw data'!I131 -> 4.1293574e-06 | F126: 6.415286689e-06 | G126: -3.036583509e-06 | H126: 4.132991235e-06 | J126: -1.018781139e-05 | K126: 4.521841355e-07 | L126: 1.429519471e-05 | N126: -0.0003348856907 | O126: -0.01006993415 | P126: 2.811378718e-06 | Q126: 0.001155134077 | R126: 2.295181698e-06
A127: 59.39915 | B127: ='DF raw data'!G132 -> 5.9776435e-06 | C127: ='DF raw data'!H132 -> 1.6842757e-06 | D127: ='DF raw data'!I132 -> -3.9561614e-06 | F127: 5.982903826e-06 | G127: 1.689662166e-06 | H127: -3.959642822e-06 | J127: -7.590843069e-06 | K127: -5.658779394e-06 | L127: 1.454326082e-05 | N127: -0.0003386822509 | O127: -0.01023932608 | P127: -1.885979626e-08 | Q127: 0.001155124644 | R127: 2.352551738e-06
A128: 59.8993 | B128: ='DF raw data'!G133 -> -2.0225436e-06 | C128: ='DF raw data'!H133 -> 7.6324586e-06 | D128: ='DF raw data'!I133 -> -1.3239489e-06 | F128: -2.024323438e-06 | G128: 7.656867891e-06 | H128: -1.325113975e-06 | J128: -8.890529587e-06 | K128: -5.825968175e-06 | L128: 1.083040338e-05 | N128: -0.0003431288493 | O128: -0.01041094197 | P128: -2.932717779e-06 | Q128: 0.001153657846 | R128: 2.411442404e-06
A129: 60.39945 | B129: ='DF raw data'!G134 -> -7.7417026e-06 | C129: ='DF raw data'!H134 -> 4.3466835e-06 | D129: ='DF raw data'!I134 -> -5.2554983e-06 | F129: -7.748515298e-06 | G129: 4.360584586e-06 | H129: -5.260123139e-06 | J129: -5.750812265e-06 | K129: 8.894480971e-06 | L129: 7.95486913e-06 | N129: -0.000346005118 | O129: -0.01058399643 | P129: 1.515856879e-06 | Q129: 0.001154416001 | R129: 2.471321282e-06
A130: 60.8996 | B130: ='DF raw data'!G135 -> -6.0602165e-06 | C130: ='DF raw data'!H135 -> -5.6125891e-06 | D130: ='DF raw data'!I135 -> -1.6982497e-06 | F130: -6.065549491e-06 | G130: -5.630538666e-06 | H130: -1.69974416e-06 | J130: 1.909728884e-07 | K130: 8.484757115e-06 | L130: 1.223293151e-05 | N130: -0.0003459096029 | O130: -0.01075700312 | P130: 5.75950815e-06 | Q130: 0.001157296619 | R130: 2.531182548e-06
A131: 61.39975 | B131: ='DF raw data'!G136 -> -3.0468802e-06 | C131: ='DF raw data'!H136 -> -7.9300835e-06 | D131: ='DF raw data'!I136 -> 5.4396755e-06 | F131: -3.049561455e-06 | G131: -7.955444622e-06 | H131: 5.444462414e-06 | J131: 1.349827604e-06 | K131: 5.422311861e-06 | L131: 1.317903035e-05 | N131: -0.0003452344867 | O131: -0.01092967215 | P131: 8.471477427e-06 | Q131: 0.001161533629 | R131: 2.590829745e-06
A132: 61.8999 | B132: ='DF raw data'!G137 -> 7.8887632e-07 | C132: ='DF raw data'!H137 -> -1.6030313e-05 | D132: ='DF raw data'!I137 -> -3.6502145e-06 | F132: 7.895705312e-07 | G132: -1.608157939e-05 | H132: -3.653426689e-06 | J132: -2.964978287e-06 | K132: 7.586729597e-06 | L132: 1.158878917e-05 | N132: -0.0003467174205 | O132: -0.01110308286 | P132: 1.226598023e-05 | Q132: 0.001167668459 | R132: 2.651029511e-06
A133: 62.40005 | B133: ='DF raw data'!G138 -> 1.0259034e-06 | C133: ='DF raw data'!H138 -> -1.9648244e-06 | D133: ='DF raw data'!I138 -> -5.6681324e-06 | F133: 1.026806195e-06 | G133: -1.971108086e-06 | H133: -5.673120357e-06 | J133: -5.071774037e-06 | K133: 9.005181071e-06 | L133: 1.418641407e-05 | N133: -0.0003492540683 | O133: -0.01127776229 | P133: 1.676992155e-05 | Q133: 0.001176055935 | R133: 2.712177667e-06
A134: 62.9002 | B134: ='DF raw data'!G139 -> -6.6263187e-06 | C134: ='DF raw data'!H139 -> 9.0401163e-06 | D134: ='DF raw data'!I139 -> 2.4115986e-06 | F134: -6.63214986e-06 | G134: 9.069027407e-06 | H134: 2.413720807e-06 | J134: -3.354269562e-06 | K134: -2.390200508e-06 | L134: 1.077524688e-05 | N134: -0.0003509317063 | O134: -0.01145328078 | P134: 1.557446276e-05 | Q134: 0.001183845503 | R134: 2.77389399e-06
A135: 63.40035 | B135: ='DF raw data'!G140 -> -1.2474036e-05 | C135: ='DF raw data'!H140 -> -2.1959498e-07 | D135: ='DF raw data'!I140 -> 1.0127877e-05 | F135: -1.248501315e-05 | G135: =(1-$G$1*($B$2-$G$2))*C135*$M$2/$M$1 -> -2.202972645e-07 | H135: 1.013678953e-05 | J135: =-CELL("contents", INDEX($F$6:$F$1203,1204-CELL("row",F135))) -> -4.018944061e-06 | K135: =CELL("contents", INDEX($G$6:$G$1203,1204-CELL("row",G135))) -> -1.584880733e-05 | L135: =-CELL("contents", INDEX($H$6:$H$1203,1204-CELL("row",H135))) -> 1.216534009e-06 | N135: -0.0003529417811 | O135: -0.01162980461 | P135: 7.647681776e-06 | Q135: 0.001187670491 | R135: 2.836225878e-06
A136: =A135+$B$1 -> 63.9005 | B136: ='DF raw data'!G141 -> -6.9379062e-06 | C136: ='DF raw data'!H141 -> 2.6837777e-06 | D136: ='DF raw data'!I141 -> 2.7721205e-06 | F136: -6.944011557e-06 | G136: 2.692360663e-06 | H136: 2.774559966e-06 | J136: -2.998315998e-06 | K136: -6.66643038e-06 | L136: 2.943003266e-06 | N136: =J136*$B$1+N135 -> -0.0003544413889 | O136: =N136*$B$1+O135 -> -0.01180707847 | P136: =K136*$B$1+P135 -> 4.313466621e-06 | Q136: =P136*$B$1+Q135 -> 0.001189827871 | R136: =(N136^2+P136^2)*$B$1+R135 -> 2.899068377e-06
A137: 64.40065 | B137: ='DF raw data'!G142 -> 3.7013549e-06 | C137: ='DF raw data'!H142 -> 5.1523175e-06 | D137: ='DF raw data'!I142 -> -8.2620109e-06 | F137: 3.704612092e-06 | G137: 5.168795076e-06 | H137: -8.26928147e-06 | J137: -3.837959034e-08 | K137: -6.987815321e-06 | L137: 1.616194801e-05 | N137: -0.0003544605844 | O137: -0.01198436193 | P137: 8.185107885e-07 | Q137: 0.001190237249 | R137: 2.961908711e-06
A138: 64.9008 | B138: ='DF raw data'!G143 -> 4.9874157e-06 | C138: ='DF raw data'!H143 -> 4.9997539e-07 | D138: ='DF raw data'!I143 -> -1.2699068e-06 | F138: 4.991804626e-06 | G138: 5.015743564e-07 | H138: -1.271024318e-06 | J138: -2.877459738e-06 | K138: -1.285316053e-05 | L138: 1.704656179e-05 | N138: -0.0003558997459 | O138: -0.01216236519 | P138: -5.609997449e-06 | Q138: 0.001187431409 | R138: 3.025275766e-06
A139: 65.40095 | B139: ='DF raw data'!G144 -> -2.5569391e-06 | C139: ='DF raw data'!H144 -> 8.1459871e-07 | D139: ='DF raw data'!I144 -> -2.5671118e-06 | F139: -2.559189206e-06 | G139: 8.172038701e-07 | H139: -2.569370858e-06 | J139: -7.557438899e-06 | K139: -1.254503024e-05 | L139: 1.36614395e-05 | N139: -0.000359679599 | O139: -0.01234225894 | P139: -1.188439432e-05 | Q139: 0.001181487429 | R139: 3.090050519e-06
A140: 65.9011 | B140: ='DF raw data'!G145 -> -7.8863486e-06 | C140: ='DF raw data'!H145 -> 1.3523536e-05 | D140: ='DF raw data'!I145 -> -2.7657745e-06 | F140: -7.893288587e-06 | G140: 1.356678549e-05 | H140: -2.768208382e-06 | J140: -1.102591928e-05 | K140: -9.254896739e-06 | L140: 1.606962283e-05 | N140: -0.0003651942125 | O140: -0.01252491083 | P140: -1.651323093e-05 | Q140: 0.001173228337 | R140: 3.156890315e-06
A141: 66.40125 | B141: ='DF raw data'!G146 -> -7.3090982e-06 | C141: ='DF raw data'!H146 -> 1.0164241e-05 | D141: ='DF raw data'!I146 -> -1.1054519e-06 | F141: -7.315530206e-06 | G141: 1.019674716e-05 | H141: -1.106424698e-06 | J141: -1.436178526e-05 | K141: -3.260655126e-06 | L141: 1.272859832e-05 | N141: -0.0003723772594 | O141: -0.01271115531 | P141: -1.814404759e-05 | Q141: 0.001164153591 | R141: 3.226408179e-06
A142: 66.9014 | B142: ='DF raw data'!G147 -> -5.3293102e-06 | C142: ='DF raw data'!H147 -> 1.1572381e-06 | D142: ='DF raw data'!I147 -> -8.2742563e-06 | F142: -5.333999993e-06 | G142: 1.160939052e-06 | H142: -8.281537646e-06 | J142: -1.514597874e-05 | K142: -9.001650115e-06 | L142: 1.529331929e-05 | N142: -0.0003799525207 | O142: -0.01290118857 | P142: -2.264622289e-05 | Q142: 0.001152827083 | R142: 3.298868295e-06
A143: 67.40155 | B143: ='DF raw data'!G148 -> -8.3193328e-07 | C143: ='DF raw data'!H148 -> -8.3989462e-06 | D143: ='DF raw data'!I148 -> -1.1579e-05 | F143: -8.326653813e-07 | G143: -8.425806787e-06 | H143: -1.158918952e-05 | J143: -1.72459601e-05 | K143: -7.846087603e-06 | L143: 1.940258426e-05 | N143: -0.0003885780876 | O143: -0.0130955359 | P143: -2.657044361e-05 | Q143: 0.001139537876 | R143: 3.374740509e-06
A144: 67.9017 | B144: ='DF raw data'!G149 -> 3.948127e-06 | C144: ='DF raw data'!H149 -> -2.9041505e-06 | D144: ='DF raw data'!I149 -> -1.5129525e-05 | F144: 3.951601352e-06 | G144: -2.913438235e-06 | H144: -1.514283898e-05 | J144: -1.747965457e-05 | K144: -6.04561649e-06 | L144: 1.773160609e-05 | N144: -0.0003973205368 | O144: -0.01329425577 | P144: -2.95941587e-05 | Q144: 0.001124736357 | R144: 3.454134032e-06
A145: 68.40185 | B145: ='DF raw data'!G150 -> 1.9148063e-06 | C145: ='DF raw data'!H150 -> 8.7926101e-06 | D145: ='DF raw data'!I150 -> -1.5340769e-05 | F145: 1.91649133e-06 | G145: 8.82072966e-06 | H145: -1.535426888e-05 | J145: -1.00250663e-05 | K145: -5.475269584e-06 | L145: 1.062323923e-05 | N145: -0.0004023345738 | O145: -0.0134954834 | P145: -3.233261478e-05 | Q145: 0.0011085652 | R145: 3.535617723e-06
A146: 68.902 | B146: ='DF raw data'!G151 -> -6.5911928e-07 | C146: ='DF raw data'!H151 -> 2.4516164e-06 | D146: ='DF raw data'!I151 -> -9.3240787e-06 | F146: -6.59699305e-07 | G146: 2.45945689e-06 | H146: -9.332283889e-06 | J146: -3.478332742e-06 | K146: -1.400430626e-05 | L146: 8.293662806e-06 | N146: -0.0004040742619 | O146: -0.01369758114 | P146: -3.933686855e-05 | Q146: 0.001088890865 | R146: 3.618054146e-06
A147: 69.40215 | B147: ='DF raw data'!G152 -> -1.2995135e-06 | C147: ='DF raw data'!H152 -> 5.6532017e-06 | D147: ='DF raw data'!I152 -> -3.6416943e-06 | F147: -1.300657072e-06 | G147: 5.671281149e-06 | H147: -3.644898991e-06 | J147: -4.475043776e-06 | K147: -5.697465321e-06 | L147: 8.554181962e-06 | N147: -0.000406312455 | O147: -0.01390079832 | P147: -4.218645583e-05 | Q147: 0.001067791309 | R147: 3.701513931e-06
A148: 69.9023 | B148: ='DF raw data'!G153 -> -2.263162e-07 | C148: ='DF raw data'!H153 -> 5.6552026e-06 | D148: ='DF raw data'!I153 -> -1.0038905e-06 | F148: -2.265153583e-07 | G148: 5.673288448e-06 | H148: -1.004773924e-06 | J148: -1.172526716e-05 | K148: 1.080438424e-07 | L148: 2.472184109e-06 | N148: -0.0004121768474 | O148: -0.01410694857 | P148: -4.213241771e-05 | Q148: 0.00104671878 | R148: 3.787372127e-06
A149: 70.40245 | B149: ='DF raw data'!G154 -> 2.1342782e-06 | C149: ='DF raw data'!H154 -> -7.3813017e-06 | D149: ='DF raw data'!I154 -> -1.7946852e-06 | F149: 2.136156365e-06 | G149: -7.404907768e-06 | H149: -1.796264523e-06 | J149: -1.684718249e-05 | K149: -3.476559005e-06 | L149: 1.52628555e-06 | N149: -0.0004206029657 | O149: -0.01431731314 | P149: -4.387121869e-05 | Q149: 0.00102477659 | R149: 3.876814721e-06
A150: 70.9026 | B150: ='DF raw data'!G155 -> 2.459348e-06 | C150: ='DF raw data'!H155 -> 1.1879281e-06 | D150: ='DF raw data'!I155 -> -3.2275941e-06 | F150: 2.461512226e-06 | G150: 1.191727201e-06 | H150: -3.230434383e-06 | J150: -1.600038896e-05 | K150: -7.212156999e-06 | L150: 6.618352529e-06 | N150: -0.0004286055603 | O150: -0.01453168021 | P150: -4.747837901e-05 | Q150: 0.001001030279 | R150: 3.969821076e-06
A151: 71.40275 | B151: ='DF raw data'!G156 -> 3.7050256e-06 | C151: ='DF raw data'!H156 -> 4.8324919e-06 | D151: ='DF raw data'!I156 -> 2.7763151e-06 | F151: =(1-$G$1*($B$2-$G$2))*B151 -> 3.708286023e-06 | G151: 4.847946645e-06 | H151: 2.778758257e-06 | J151: -9.529148878e-06 | K151: -5.553436974e-06 | L151: 9.331020478e-06 | N151: -0.0004333715641 | O151: -0.014748431 | P151: -5.025593052e-05 | Q151: 0.0009758947754 | R151: 4.065017912e-06
A152: 71.9029 | B152: ='DF raw data'!G157 -> 3.4242109e-06 | C152: ='DF raw data'!H157 -> -2.6331575e-06 | D152: ='DF raw data'!I157 -> 3.8593485e-06 | F152: 3.427224206e-06 | G152: -2.641578575e-06 | H152: 3.862744727e-06 | J152: -2.398711911e-06 | K152: -3.192655551e-06 | L152: 6.715874273e-06 | N152: -0.0004345712798 | O152: -0.01496578183 | P152: -5.185273719e-05 | Q152: 0.0009499606289 | R152: 4.160817095e-06
A153: 72.40305 | B153: ='DF raw data'!G158 -> -2.703455e-06 | C153: ='DF raw data'!H158 -> 8.918164e-06 | D153: ='DF raw data'!I158 -> 2.1055155e-06 | F153: -2.70583404e-06 | G153: 8.946685092e-06 | H153: 2.107368354e-06 | J153: -3.270425044e-06 | K153: -5.121089194e-06 | L153: 6.966340189e-06 | N153: -0.0004362069829 | O153: -0.01518395075 | P153: -5.441404995e-05 | Q153: 0.0009227454418 | R153: 4.257464791e-06
A154: 72.9032 | B154: ='DF raw data'!G159 -> -4.5476086e-06 | C154: ='DF raw data'!H159 -> 5.1282996e-06 | D154: ='DF raw data'!I159 -> -1.3698057e-06 | F154: -4.551610496e-06 | G154: 5.144700364e-06 | H154: -1.371011129e-06 | J154: -7.503257661e-06 | K154: -3.015700436e-06 | L154: 1.617133927e-05 | N154: -0.0004399597372 | O154: -0.01540399661 | P154: -5.592235252e-05 | Q154: 0.0008947758772 | R154: 4.355840235e-06
A155: 73.40335 | B155: ='DF raw data'!G160 -> -2.5187585e-06 | C155: ='DF raw data'!H160 -> 4.4722374e-06 | D155: ='DF raw data'!I160 -> -2.1487551e-06 | F155: -2.520975007e-06 | G155: 4.486540018e-06 | H155: -2.150646004e-06 | J155: -6.662877377e-06 | K155: -2.440535972e-06 | L155: 1.563737079e-05 | N155: -0.0004432921754 | O155: -0.01562570919 | P155: -5.714298659e-05 | Q155: 0.0008661958125 | R155: 4.455756838e-06
A156: 73.9035 | B156: ='DF raw data'!G161 -> -1.787452e-06 | C156: ='DF raw data'!H161 -> 9.0337135e-06 | D156: ='DF raw data'!I161 -> 1.2351873e-06 | F156: -1.789024958e-06 | G156: 9.06260413e-06 | H156: 1.236274265e-06 | J156: -2.999117002e-06 | K156: -1.261992801e-07 | L156: 1.071543029e-05 | N156: -0.0004447921837 | O156: -0.015848172 | P156: -5.720610516e-05 | Q156: 0.000837584179 | R156: 4.556343317e-06
A157: 74.40365 | B157: ='DF raw data'!G162 -> -2.6001255e-06 | C157: ='DF raw data'!H162 -> -2.3624336e-06 | D157: ='DF raw data'!I162 -> 1.338946e-06 | F157: -2.60241361e-06 | G157: -2.369988876e-06 | H157: 1.340124272e-06 | J157: -1.19402742e-06 | K157: 7.032921314e-07 | L157: 1.179581919e-05 | N157: -0.0004453893765 | O157: -0.0160709335 | P157: -5.68543536e-05 | Q157: 0.000809148474 | R157: 4.657175615e-06
A158: 74.9038 | B158: ='DF raw data'!G163 -> -4.2748038e-06 | C158: ='DF raw data'!H163 -> -1.5097023e-06 | D158: ='DF raw data'!I163 -> 4.5264865e-06 | F158: -4.278565627e-06 | G158: -1.514530464e-06 | H158: 4.530469808e-06 | J158: -3.553843933e-07 | K158: -4.634398576e-06 | L158: 1.093705014e-05 | N158: -0.000445567122 | O158: -0.0162937839 | P158: -5.917224805e-05 | Q158: 0.0007795534741 | R158: 4.758221627e-06
A159: 75.40395 | B159: ='DF raw data'!G164 -> -6.6480793e-06 | C159: ='DF raw data'!H164 -> 3.721442e-06 | D159: ='DF raw data'!I164 -> -2.3798684e-07 | F159: -6.65392961e-06 | G159: 3.733343507e-06 | H159: -2.381962684e-07 | J159: 1.025195179e-07 | K159: -2.106432084e-06 | L159: 5.683446736e-06 | N159: -0.0004455158469 | O159: -0.01651660865 | P159: -6.022578006e-05 | Q159: 0.0007494315503 | R159: 4.859307701e-06
A160: 75.9041 | B160: ='DF raw data'!G165 -> -9.6005406e-06 | C160: ='DF raw data'!H165 -> -1.7533414e-06 | D160: ='DF raw data'!I165 -> -7.1657973e-06 | F160: -9.608989076e-06 | G160: -1.758948744e-06 | H160: -7.172103202e-06 | J160: -5.933533018e-06 | K160: -5.838814828e-06 | L160: -6.480851935e-07 | N160: -0.0004484835034 | O160: -0.01674091767 | P160: -6.314606329e-05 | Q160: 0.0007178490467 | R160: 4.961900909e-06
A161: 76.40425 | B161: ='DF raw data'!G166 -> -8.7672397e-06 | C161: ='DF raw data'!H166 -> 8.8900097e-06 | D161: ='DF raw data'!I166 -> -5.6107615e-06 | F161: -8.774954871e-06 | G161: 8.918440752e-06 | H161: -5.61569897e-06 | J161: -9.943293105e-06 | K161: -8.969256147e-06 | L161: 4.887291735e-06 | N161: -0.0004534566415 | O161: -0.01696771401 | P161: -6.763203675e-05 | Q161: 0.0006840228835 | R161: 5.067030948e-06
A162: 76.9044 | B162: ='DF raw data'!G167 -> -8.7137068e-06 | C162: ='DF raw data'!H167 -> 1.7822691e-05 | D162: ='DF raw data'!I167 -> -3.849143e-06 | F162: -8.721374862e-06 | G162: 1.787968957e-05 | H162: -3.852530246e-06 | J162: -7.249920721e-06 | K162: 3.610198233e-06 | L162: 9.911814228e-06 | N162: -0.0004570826893 | O162: -0.01719632392 | P162: -6.582639611e-05 | Q162: 0.0006510998115 | R162: 5.173691786e-06
A163: 77.40455 | B163: ='DF raw data'!G168 -> -1.0575282e-05 | C163: ='DF raw data'!H168 -> 5.1201614e-06 | D163: ='DF raw data'!I168 -> -1.1911081e-06 | F163: -1.058458825e-05 | G163: 5.136536138e-06 | H163: -1.192156275e-06 | J163: -9.293583663e-06 | K163: -1.314242066e-05 | L163: 5.922253601e-06 | N163: -0.0004617308752 | O163: -0.01742725862 | P163: -7.23995778e-05 | Q163: 0.0006148891627 | R163: 5.282943102e-06
A164: 77.9047 | B164: ='DF raw data'!G169 -> -9.5271826e-06 | C164: ='DF raw data'!H169 -> 1.5728285e-05 | D164: ='DF raw data'!I169 -> 5.1373195e-06 | F164: -9.535566521e-06 | G164: 1.577858547e-05 | H164: 5.141840341e-06 | J164: -1.086791836e-05 | K164: -9.314597157e-06 | L164: 4.151175923e-07 | N164: -0.0004671664646 | O164: -0.01766091192 | P164: -7.705827357e-05 | Q164: 0.0005763484671 | R164: 5.395067971e-06
A165: 78.40485 | B165: ='DF raw data'!G170 -> -7.643046e-06 | C165: ='DF raw data'!H170 -> 1.4162252e-05 | D165: ='DF raw data'!I170 -> 8.0945165e-06 | F165: -7.64977188e-06 | G165: 1.420754416e-05 | H165: 8.101639675e-06 | J165: -1.433051877e-05 | K165: 4.380796118e-06 | L165: 2.364004595e-06 | N165: -0.0004743338735 | O165: -0.01789815001 | P165: -7.486721839e-05 | Q165: 0.0005389036279 | R165: 5.510401422e-06
A166: 78.905 | B166: ='DF raw data'!G171 -> -2.5833053e-06 | C166: ='DF raw data'!H171 -> 1.3964914e-05 | D166: ='DF raw data'!I171 -> 2.8782749e-06 | F166: -2.585578609e-06 | G166: 1.400957505e-05 | H166: 2.880807782e-06 | J166: -1.895671824e-05 | K166: -1.681715633e-06 | L166: 7.966794015e-06 | N166: -0.0004838150762 | O166: -0.01814013012 | P166: -7.570832846e-05 | Q166: 0.0005010381074 | R166: 5.630341783e-06
A167: 79.40515 | B167: ='DF raw data'!G172 -> 2.2548945e-06 | C167: ='DF raw data'!H172 -> 5.1156248e-06 | D167: ='DF raw data'!I172 -> 4.9869072e-06 | F167: 2.256878807e-06 | G167: 5.131985029e-06 | H167: 4.991295678e-06 | J167: -1.682613798e-05 | K167: -1.170393792e-06 | L167: 8.88544922e-06 | N167: -0.0004922306691 | O167: -0.01838631929 | P167: -7.629370092e-05 | Q167: 0.0004628798129 | R167: 5.75443488e-06
A168: 79.9053 | B168: ='DF raw data'!G173 -> 6.7713613e-06 | C168: ='DF raw data'!H173 -> -6.4411679e-06 | D168: ='DF raw data'!I173 -> 5.2208457e-06 | F168: 6.777320098e-06 | G168: -6.461767336e-06 | H168: 5.225440044e-06 | J168: -9.722291694e-06 | K168: -1.413789011e-05 | L168: 1.055236291e-05 | N168: -0.0004970932733 | O168: -0.01863494049 | P168: -8.336476666e-05 | Q168: 0.0004211849248 | R168: 5.881498691e-06
A169: 80.40545 | B169: ='DF raw data'!G174 -> 9.4944717e-06 | C169: ='DF raw data'!H174 -> 1.0175397e-06 | D169: ='DF raw data'!I174 -> -2.9610467e-06 | F169: 9.502826835e-06 | G169: 1.020793884e-06 | H169: -2.963652421e-06 | J169: -3.23935933e-06 | K169: -1.526734971e-05 | L169: 1.586438739e-05 | N169: -0.0004987134388 | O169: -0.01888437202 | P169: -9.100073161e-05 | Q169: 0.0003756709089 | R169: 6.010035354e-06
A170: 80.9056 | B170: ='DF raw data'!G175 -> 9.7672764e-06 | C170: ='DF raw data'!H175 -> 6.8813979e-06 | D170: ='DF raw data'!I175 -> -7.4933791e-06 | F170: 9.775871603e-06 | G170: 6.903405231e-06 | H170: -7.499973274e-06 | J170: -3.043077053e-06 | K170: -2.165491158e-07 | L170: 1.892010906e-05 | N170: -0.0005002354338 | O170: -0.01913456477 | P170: -9.110903865e-05 | Q170: 0.0003301027232 | R170: 6.139342308e-06
A171: 81.40575 | B171: ='DF raw data'!G176 -> 1.061673e-05 | C171: ='DF raw data'!H176 -> -1.4308491e-06 | D171: ='DF raw data'!I176 -> -6.1674887e-06 | F171: 1.062607272e-05 | G171: -1.435425084e-06 | H171: -6.17291609e-06 | J171: -6.018044823e-06 | K171: -5.6452612e-06 | L171: 1.54088899e-05 | N171: -0.0005032453589 | O171: -0.01938626293 | P171: -9.393251604e-05 | Q171: 0.0002831223753 | R171: 6.270421224e-06
A172: 81.9059 | B172: ='DF raw data'!G177 -> 6.8080067e-06 | C172: ='DF raw data'!H177 -> 1.2368456e-05 | D172: ='DF raw data'!I177 -> 9.7249972e-07 | F172: 6.813997746e-06 | G172: 1.240801144e-05 | H172: 9.733555198e-07 | J172: -7.959022782e-06 | K172: -6.403680059e-06 | L172: 1.129935469e-05 | N172: -0.0005072260642 | O172: -0.01963995205 | P172: -9.713531662e-05 | Q172: 0.0002345401467 | R172: 6.403818006e-06
A173: 82.40605 | B173: ='DF raw data'!G178 -> 1.0062129e-06 | C173: ='DF raw data'!H178 -> 1.2653724e-05 | D173: ='DF raw data'!I178 -> -1.6724273e-06 | F173: 1.007098367e-06 | G173: 1.269419175e-05 | H173: -1.673899036e-06 | J173: -8.841559331e-06 | K173: -1.026901956e-06 | L173: 1.239859817e-05 | N173: -0.0005116481701 | O173: -0.01989585288 | P173: -9.764892164e-05 | Q173: 0.0001857010386 | R173: 6.539518285e-06
A174: 82.9062 | B174: ='DF raw data'!G179 -> 4.4558394e-07 | C174: ='DF raw data'!H179 -> 5.4885504e-06 | D174: ='DF raw data'!I179 -> 1.5452951e-08 | F174: 4.459760539e-07 | G174: 5.506103279e-06 | H174: 1.54665496e-08 | J174: -1.016021913e-05 | K174: -4.135844538e-07 | L174: 9.226838979e-06 | N174: -0.0005167298037 | O174: -0.02015429529 | P174: -9.78557759e-05 | Q174: 0.0001367584722 | R174: 6.677852494e-06
A175: 83.40635 | B175: ='DF raw data'!G180 -> 1.9907663e-06 | C175: ='DF raw data'!H180 -> 1.1383364e-05 | D175: ='DF raw data'!I180 -> 5.6638481e-07 | F175: 1.992518174e-06 | G175: 1.141976902e-05 | H175: 5.668832286e-07 | J175: -1.060883557e-05 | K175: -3.59809846e-06 | L175: 3.212781962e-06 | N175: -0.0005220358128 | O175: -0.02041539151 | P175: -9.965536485e-05 | Q175: 8.691584152e-05 | R175: 6.819121153e-06
A176: 83.9065 | B176: ='DF raw data'!G181 -> 1.3408942e-06 | C176: ='DF raw data'!H181 -> 3.6512581e-06 | D176: ='DF raw data'!I181 -> -5.4273419e-06 | F176: 1.342074187e-06 | G176: 3.662935153e-06 | H176: -5.432117961e-06 | J176: -9.383039215e-06 | K176: -6.865098413e-07 | L176: 6.330386142e-06 | N176: -0.0005267287399 | O176: -0.02067883488 | P176: -9.999872274e-05 | Q176: 3.690148034e-05 | R176: 6.962885724e-06
A177: 84.40665 | B177: ='DF raw data'!G182 -> -1.6273864e-06 | C177: ='DF raw data'!H182 -> -6.2654462e-06 | D177: ='DF raw data'!I182 -> -5.7979137e-06 | F177: -1.6288185e-06 | G177: -6.285483662e-06 | H177: -5.803015864e-06 | J177: -5.065827909e-06 | K177: -1.989845218e-06 | L177: 1.247746652e-05 | N177: -0.0005292624137 | O177: -0.02094354548 | P177: -0.0001009939438 | Q177: -1.361064067e-05 | R177: 7.108088511e-06
A178: 84.9068 | B178: ='DF raw data'!G183 -> -1.6888628e-06 | C178: ='DF raw data'!H183 -> 4.6053983e-06 | D178: ='DF raw data'!I183 -> -8.416283e-06 | F178: -1.690348999e-06 | G178: 4.620126779e-06 | H178: -8.423689329e-06 | J178: -4.557618378e-06 | K178: -1.628262931e-05 | L178: 5.540759782e-06 | N178: -0.0005315419065 | O178: -0.02120939617 | P178: -0.0001091377009 | Q178: -6.819586176e-05 | R178: 7.255356597e-06
A179: 85.40695 | B179: ='DF raw data'!G184 -> 7.4562257e-07 | C179: ='DF raw data'!H184 -> 1.9010862e-05 | D179: ='DF raw data'!I184 -> -7.10011e-06 | F179: 7.462787179e-07 | G179: 1.907166045e-05 | H179: -7.106358097e-06 | J179: -8.49923375e-06 | K179: -1.844009107e-05 | L179: 6.644510428e-07 | N179: -0.0005357927983 | O179: -0.02147737293 | P179: -0.0001183605124 | Q179: -0.0001273938721 | R179: 7.405943326e-06
A180: 85.9071 | B180: ='DF raw data'!G185 -> 3.7976926e-07 | C180: ='DF raw data'!H185 -> 1.9918032e-05 | D180: ='DF raw data'!I185 -> -5.0839203e-06 | F180: 3.801034569e-07 | G180: 1.998173166e-05 | H180: -5.08839415e-06 | J180: -9.354912985e-06 | K180: -1.177898416e-05 | L180: -5.380414402e-07 | N180: -0.000540471658 | O180: -0.02174768983 | P180: -0.0001242517714 | Q180: -0.0001895383955 | R180: 7.559763516e-06
A181: 86.40725 | B181: ='DF raw data'!G186 -> 1.1105419e-06 | C181: ='DF raw data'!H186 -> 5.0383687e-06 | D181: ='DF raw data'!I186 -> -5.9045607e-07 | F181: 1.111519177e-06 | G181: 5.054481857e-06 | H181: -5.909756713e-07 | J181: -9.360992831e-06 | K181: -5.388262716e-06 | L181: 1.671564984e-06 | N181: -0.0005451535586 | O181: -0.02202034839 | P181: -0.000126946711 | Q181: -0.000253030793 | R181: 7.716464447e-06
A182: 86.9074 | B182: ='DF raw data'!G187 -> 3.0996086e-06 | C182: ='DF raw data'!H187 -> 6.8329655e-06 | D182: ='DF raw data'!I187 -> 8.6681274e-07 | F182: 3.102336256e-06 | G182: 6.85481794e-06 | H182: 8.675755352e-07 | J182: -9.658155904e-06 | K182: -1.63140896e-05 | L182: 1.227456512e-05 | N182: -0.0005499840853 | O182: -0.02229542293 | P182: -0.0001351062029 | Q182: -0.0003206041604 | R182: 7.876880648e-06
A183: 87.40755 | B183: ='DF raw data'!G188 -> 5.7446209e-06 | C183: ='DF raw data'!H188 -> 1.0898756e-05 | D183: ='DF raw data'!I188 -> -9.573524e-06 | F183: 5.749676166e-06 | G183: 1.09336112e-05 | H183: -9.581948701e-06 | J183: -8.651222983e-06 | K183: -7.711832913e-06 | L183: 6.834310906e-06 | N183: -0.0005543109944 | O183: -0.02257266157 | P183: -0.0001389632761 | Q183: -0.0003901066429 | R183: 8.040215369e-06
A184: 87.9077 | B184: ='DF raw data'!G189 -> 4.6566051e-06 | C184: ='DF raw data'!H189 -> -1.8307285e-06 | D184: ='DF raw data'!I189 -> -1.1965877e-05 | F184: 4.660702912e-06 | G184: -1.836583335e-06 | H184: -1.197640697e-05 | J184: -9.159298696e-06 | K184: 4.341149027e-07 | L184: 4.27042457e-07 | N184: -0.0005588920177 | O184: -0.02285219141 | P184: -0.0001387461535 | Q184: -0.0004595005316 | R184: 8.206070502e-06
A185: 88.40785 | B185: ='DF raw data'!G190 -> -1.4767995e-06 | C185: ='DF raw data'!H190 -> -5.1765483e-06 | D185: ='DF raw data'!I190 -> -1.1111458e-05 | F185: -1.478099084e-06 | G185: -5.193103368e-06 | H185: -1.112123608e-05 | J185: -1.003515417e-05 | K185: -1.269360588e-05 | L185: 3.007550417e-06 | N185: -0.0005639111 | O185: -0.02313423155 | P185: -0.0001450948605 | Q185: -0.0005320697261 | R185: 8.375645482e-06
A186: 88.908 | B186: ='DF raw data'!G191 -> -6.7820461e-06 | C186: ='DF raw data'!H191 -> 6.5566355e-06 | D186: ='DF raw data'!I191 -> -1.0893026e-05 | F186: -6.788014301e-06 | G186: 6.577604211e-06 | H186: -1.090261186e-05 | J186: -1.014071098e-05 | K186: -1.531875257e-05 | L186: 3.754808026e-06 | N186: -0.0005689829766 | O186: -0.02341880838 | P186: -0.0001527565346 | Q186: -0.0006084709069 | R186: 8.549235637e-06
A187: 89.40815 | B187: ='DF raw data'!G192 -> -7.0459723e-06 | C187: ='DF raw data'!H192 -> 6.4286805e-06 | D187: ='DF raw data'!I192 -> -9.2520686e-06 | F187: -7.052172756e-06 | G187: 6.44924e-06 | H187: -9.26021042e-06 | J187: -1.205997545e-05 | K187: -6.031835558e-06 | L187: 3.94065773e-06 | N187: -0.0005750147733 | O187: -0.02370640202 | P187: -0.0001557733572 | Q187: -0.0006863809515 | R187: 8.726742537e-06
A188: 89.9083 | B188: ='DF raw data'!G193 -> -6.9816753e-07 | C188: ='DF raw data'!H193 -> 9.7110819e-07 | D188: ='DF raw data'!I193 -> -9.3552926e-06 | F188: -6.987819174e-07 | G188: 9.742138815e-07 | H188: -9.363525257e-06 | J188: -8.247032908e-06 | K188: -7.5279143e-06 | L188: 1.16589979e-05 | N188: -0.0005791395269 | O188: -0.02399605866 | P188: -0.0001595384435 | Q188: -0.000766174104 | R188: 8.907224219e-06
A189: 90.40845 | B189: ='DF raw data'!G194 -> 2.6577934e-06 | C189: ='DF raw data'!H194 -> 9.9693034e-06 | D189: ='DF raw data'!I194 -> -6.9317953e-06 | F189: 2.660132258e-06 | G189: 1.000118613e-05 | H189: -6.93789528e-06 | J189: -9.244562362e-07 | K189: -1.032078056e-05 | L189: 1.574102092e-05 | N189: -0.0005796018936 | O189: -0.02428594655 | P189: -0.0001647003819 | Q189: -0.000848549 | R189: 9.088810964e-06
A190: 90.9086 | B190: ='DF raw data'!G195 -> -4.3303888e-07 | C190: ='DF raw data'!H195 -> 1.4234302e-05 | D190: ='DF raw data'!I195 -> -1.0437198e-05 | F190: -4.334199542e-07 | G190: 1.427982458e-05 | H190: -1.044638273e-05 | J190: -2.819336535e-06 | K190: -1.342592343e-05 | L190: 1.158332737e-05 | N190: -0.0005810119848 | O190: -0.02457653969 | P190: -0.0001714153575 | Q190: -0.000934282391 | R190: 9.272345083e-06
A191: 91.40875 | B191: ='DF raw data'!G196 -> -3.615118e-06 | C191: ='DF raw data'!H196 -> 1.4939332e-05 | D191: ='DF raw data'!I196 -> -1.7332864e-05 | F191: -3.618299304e-06 | G191: 1.498710933e-05 | H191: -1.734811692e-05 | J191: -7.444332853e-06 | K191: -1.409907236e-05 | L191: 9.915611967e-06 | N191: -0.0005847352679 | O191: -0.02486899503 | P191: -0.0001784670086 | Q191: -0.001023542665 | R191: 9.459284052e-06
A192: 91.9089 | B192: ='DF raw data'!G197 -> -3.9867123e-06 | C192: ='DF raw data'!H197 -> 5.8335945e-06 | D192: ='DF raw data'!I197 -> -8.7465896e-06 | F192: -3.990220607e-06 | G192: 5.852250861e-06 | H192: -8.754286599e-06 | J192: -1.148743005e-05 | K192: -4.345677664e-06 | L192: 9.149966391e-06 | N192: -0.000590480706 | O192: -0.02516432396 | P192: -0.0001806404992 | Q192: -0.001113890011 | R192: 9.649990474e-06
A193: 92.40905 | B193: ='DF raw data'!G198 -> -2.5770316e-06 | C193: ='DF raw data'!H198 -> 9.7340717e-06 | D193: ='DF raw data'!I198 -> -1.5165544e-06 | F193: -2.579299388e-06 | G193: 9.765202139e-06 | H193: -1.517888968e-06 | J193: -1.609792872e-05 | K193: -9.364925298e-06 | L193: 8.652238876e-06 | N193: -0.0005985320851 | O193: -0.02546367978 | P193: -0.0001853243666 | Q193: -0.001206579993 | R193: 9.84634225e-06
A194: 92.9092 | B194: ='DF raw data'!G199 -> -2.182742e-06 | C194: ='DF raw data'!H199 -> 1.8671024e-05 | D194: ='DF raw data'!I199 -> 3.9880496e-07 | F194: -2.184662813e-06 | G194: 1.873073562e-05 | H194: 3.991559084e-07 | J194: -1.81823444e-05 | K194: -8.990000477e-06 | L194: 8.538663217e-06 | N194: -0.0006076259846 | O194: -0.02576758392 | P194: -0.0001898207154 | Q194: -0.001301518824 | R194: 1.004902366e-05
A195: 93.40935 | B195: ='DF raw data'!G200 -> 1.1625395e-06 | C195: ='DF raw data'!H200 -> 1.5151881e-05 | D195: ='DF raw data'!I200 -> 4.3613659e-06 | F195: 1.163562535e-06 | G195: 1.520033808e-05 | H195: 4.365203902e-06 | J195: -1.513622517e-05 | K195: -9.549245391e-06 | L195: 7.323183135e-06 | N195: -0.0006151963676 | O195: -0.02607527438 | P195: -0.0001945967704 | Q195: -0.001398846399 | R195: 1.025725334e-05
A196: 93.9095 | B196: ='DF raw data'!G201 -> 4.3731202e-06 | C196: ='DF raw data'!H201 -> 1.9647443e-05 | D196: ='DF raw data'!I201 -> -4.3319283e-06 | F196: 4.376968546e-06 | G196: 1.971027729e-05 | H196: -4.335740397e-06 | J196: -8.198797298e-06 | K196: -1.691776506e-05 | L196: 7.523884997e-06 | N196: -0.0006192969961 | O196: -0.02638501577 | P196: -0.0002030581906 | Q196: -0.001500405953 | R196: 1.046969776e-05
A197: 94.40965 | B197: ='DF raw data'!G202 -> 1.9920351e-06 | C197: ='DF raw data'!H202 -> 2.1121945e-05 | D197: ='DF raw data'!I202 -> -9.3803183e-06 | F197: 1.993788091e-06 | G197: 2.118949488e-05 | H197: -9.38857298e-06 | J197: -7.095794609e-06 | K197: -1.34007552e-05 | L197: 1.398591278e-05 | N197: -0.0006228459578 | O197: -0.02669653218 | P197: -0.0002097605784 | Q197: -0.001605317706 | R197: 1.068573084e-05
A198: 94.9098 | B198: ='DF raw data'!G203 -> -7.240663e-07 | C198: ='DF raw data'!H203 -> 9.4552097e-06 | D198: ='DF raw data'!I203 -> -3.1615066e-06 | F198: -7.247034783e-07 | G198: 9.485448313e-06 | H198: -3.164288726e-06 | J198: -1.093365716e-05 | K198: -1.741798069e-05 | L198: 1.494886243e-05 | N198: -0.0006283144264 | O198: -0.02701078364 | P198: -0.0002184721814 | Q198: -0.001714586567 | R198: 1.090705177e-05
A199: 95.40995 | B199: ='DF raw data'!G204 -> -5.1197171e-06 | C199: ='DF raw data'!H204 -> 5.8263913e-06 | D199: ='DF raw data'!I204 -> -6.2621962e-06 | F199: -5.124222451e-06 | G199: =(1-$G$1*($B$2-$G$2))*C199*$M$2/$M$1 -> 5.845024625e-06 | H199: -6.267706933e-06 | J199: =-CELL("contents", INDEX($F$6:$F$1203,1204-CELL("row",F199))) -> -1.506013126e-05 | K199: =CELL("contents", INDEX($G$6:$G$1203,1204-CELL("row",G199))) -> -1.419491089e-05 | L199: =-CELL("contents", INDEX($H$6:$H$1203,1204-CELL("row",H199))) -> 3.512207125e-06 | N199: -0.0006358467511 | O199: -0.02732880239 | P199: -0.0002255717661 | Q199: -0.001827406286 | R199: 1.113471191e-05
A200: =A199+$B$1 -> 95.9101 | B200: ='DF raw data'!G205 -> -9.0096746e-06 | C200: ='DF raw data'!H205 -> 1.6693364e-05 | D200: ='DF raw data'!I205 -> -4.9801139e-07 | F200: -9.017603114e-06 | G200: 1.674675088e-05 | H200: -4.9844964e-07 | J200: -1.91849349e-05 | K200: -9.614033329e-06 | L200: 4.628833492e-06 | N200: =J200*$B$1+N199 -> -0.0006454420963 | O200: =N200*$B$1+O199 -> -0.02765162026 | P200: =K200*$B$1+P199 -> -0.0002303802248 | Q200: =P200*$B$1+Q199 -> -0.001942630956 | R200: =(N200^2+P200^2)*$B$1+R199 -> 1.136961763e-05
... 1003 more rows

Sheet 10 x=1
A1: dz | B1: ='DF raw data'!K7 -> 0.50014 | C1: mm | F1: T_coeff | G1: -0.0008 | H1: /degC | L1: Hallref | M1: ='PI vs x'!B44 -> 0.50517 | N1: T | P1: IBy total | Q1: =P1203*1000 -> -10.10366719 | R1: muTm
A2: Tref | B2: ='DF raw data'!K8 -> 21.08 | C2: degC | F2: Tcorr | G2: 20 | H2: degC | L2: NMRref | M2: ='PI vs x'!B45 -> 0.50634 | N2: T | P2: JBy total | Q2: =Q1203 -> -7.493372779 | R2: muTm^2
A3: Encoder | B3: ='DF raw data'!K9 -> 390665 | P3: PI total | Q3: =R1203 -> 4517.518246 | R3: T^2mm^3
J4: SXR-rotation
A5: z [mm] | B5: Bx | C5: By | D5: Bz | F5: Bx_corr | G5: By_corr | H5: Bz_corr | J5: Bx_rot | K5: By_rot | L5: Bz_rot | N5: Ix | O5: Jx | P5: Iy | Q5: Jy | R5: PI
A6: ='PI vs x'!B53 -> -1.119 | B6: ='DF raw data'!J11 -> 3.4669479e-06 | C6: ='DF raw data'!K11 -> 2.3788173e-06 | D6: ='DF raw data'!L11 -> 7.4253708e-06 | F6: =(1-$G$1*($B$2-$G$2))*B6 -> 3.469943343e-06 | G6: =(1-$G$1*($B$2-$G$2))*C6*$M$2/$M$1 -> 2.386386823e-06 | H6: =(1-$G$1*($B$2-$G$2))*D6 -> 7.43178632e-06 | J6: =-CELL("contents", INDEX($F$6:$F$1203,1204-CELL("row",F6))) -> -6.014558693e-06 | K6: =CELL("contents", INDEX($G$6:$G$1203,1204-CELL("row",G6))) -> -3.429204699e-06 | L6: =-CELL("contents", INDEX($H$6:$H$1203,1204-CELL("row",H6))) -> 1.468519706e-06 | N6: =J6*$B$1 -> -3.008121385e-06 | O6: =N6*$B$1 -> -1.504481829e-06 | P6: =K6*$B$1 -> -1.715082438e-06 | Q6: =P6*$B$1 -> -8.577813307e-07 | R6: =(N6^2+P6^2)*$B$1 -> 5.99682966e-12
A7: =A6+$B$1 -> -0.61886 | B7: ='DF raw data'!J12 -> 3.3160936e-06 | C7: ='DF raw data'!K12 -> 5.5583851e-06 | D7: ='DF raw data'!L12 -> 1.9156937e-06 | F7: =(1-$G$1*($B$2-$G$2))*B7 -> 3.318958705e-06 | G7: =(1-$G$1*($B$2-$G$2))*C7*$M$2/$M$1 -> 5.576072176e-06 | H7: 1.917348859e-06 | J7: =-CELL("contents", INDEX($F$6:$F$1203,1204-CELL("row",F7))) -> -4.996753168e-06 | K7: =CELL("contents", INDEX($G$6:$G$1203,1204-CELL("row",G7))) -> -5.052023415e-06 | L7: =-CELL("contents", INDEX($H$6:$H$1203,1204-CELL("row",H7))) -> 1.580957568e-06 | N7: =J7*$B$1+N6 -> -5.507197514e-06 | O7: =N7*$B$1+O6 -> -4.258851594e-06 | P7: =K7*$B$1+P6 -> -4.241801429e-06 | Q7: =P7*$B$1+Q6 -> -2.979275897e-06 | R7: =(N7^2+P7^2)*$B$1+R6 -> 3.016464666e-11
A8: =A7+$B$1 -> -0.11872 | B8: ='DF raw data'!J13 -> 3.7020395e-06 | C8: ='DF raw data'!K13 -> -5.8086762e-06 | D8: ='DF raw data'!L13 -> -3.0027845e-06 | F8: 3.705238062e-06 | G8: -5.827159716e-06 | H8: -3.005378906e-06 | J8: -9.179144835e-06 | K8: 1.001125229e-05 | L8: 2.238613292e-06 | N8: =J8*$B$1+N7 -> -1.009805501e-05 | O8: =N8*$B$1+O7 -> -9.309292827e-06 | P8: =K8*$B$1+P7 -> 7.652262909e-07 | Q8: =P8*$B$1+Q7 -> -2.59655562e-06 | R8: =(N8^2+P8^2)*$B$1+R7 -> 8.145714769e-11
A9: 0.38142 | B9: ='DF raw data'!J14 -> 3.3793726e-06 | C9: ='DF raw data'!K14 -> 3.0922504e-06 | D9: ='DF raw data'!L14 -> -2.43355e-06 | F9: 3.382292378e-06 | G9: 3.102090105e-06 | H9: -2.435652587e-06 | J9: -1.523353842e-05 | K9: -2.771591376e-06 | L9: 2.930240742e-06 | N9: -1.771695691e-05 | O9: -1.817025166e-05 | P9: -6.2095742e-07 | Q9: -2.907121264e-06 | R9: 2.386392216e-10
A10: 0.88156 | B10: ='DF raw data'!J15 -> 3.8079038e-06 | C10: ='DF raw data'!K15 -> -8.6764221e-06 | D10: ='DF raw data'!L15 -> -3.0787892e-06 | F10: 3.811193829e-06 | G10: -8.704030936e-06 | H10: -3.081449274e-06 | J10: -1.671505334e-05 | K10: 7.113651115e-07 | L10: 3.017238043e-06 | N10: -2.607682369e-05 | O10: -3.121231426e-05 | P10: -2.651752731e-07 | Q10: -3.039746025e-06 | R10: 5.787699574e-10
A11: 1.3817 | B11: ='DF raw data'!J16 -> 3.5526541e-06 | C11: ='DF raw data'!K16 -> -2.6625955e-06 | D11: ='DF raw data'!L16 -> -9.0745789e-06 | F11: 3.555723593e-06 | G11: -2.67106802e-06 | H11: -9.082419336e-06 | J11: -9.561815777e-06 | K11: -6.271814142e-06 | L11: 2.315684925e-06 | N11: -3.085907023e-05 | O11: -4.664616965e-05 | P11: -3.401960398e-06 | Q11: -4.741202499e-06 | R11: 1.060832672e-09
A12: 1.88184 | B12: ='DF raw data'!J17 -> 3.6441011e-06 | C12: ='DF raw data'!K17 -> -5.328201e-06 | D12: ='DF raw data'!L17 -> -1.0249992e-05 | F12: 3.647249603e-06 | G12: -5.345155618e-06 | H12: -1.025884799e-05 | J12: 2.963741362e-07 | K12: -1.569066616e-06 | L12: 1.480240424e-06 | N12: -3.071084167e-05 | O12: -6.200589e-05 | P12: -4.186713376e-06 | Q12: -6.835145327e-06 | R12: 1.541309351e-09
A13: 2.38198 | B13: ='DF raw data'!J18 -> 3.3438614e-06 | C13: ='DF raw data'!K18 -> 2.6001737e-06 | D13: ='DF raw data'!L18 -> -1.1498146e-05 | F13: 3.346750496e-06 | G13: 2.608447591e-06 | H13: -1.15080804e-05 | J13: -3.392580359e-06 | K13: 2.424666946e-06 | L13: 1.165101379e-06 | N13: -3.240760681e-05 | O13: -7.821423047e-05 | P13: -2.974040449e-06 | Q13: -8.322581917e-06 | R13: 2.071006572e-09
A14: 2.88212 | B14: ='DF raw data'!J19 -> 3.5654698e-06 | C14: ='DF raw data'!K19 -> -1.6674956e-06 | D14: ='DF raw data'!L19 -> -6.192173e-07 | F14: 3.568550366e-06 | G14: -1.67280166e-06 | H14: -6.197523037e-07 | J14: -1.243572419e-05 | K14: 9.628968701e-06 | L14: 1.714513861e-06 | N14: -3.862720991e-05 | O14: -9.753324324e-05 | P14: 1.841791957e-06 | Q14: -7.401428087e-06 | R14: 2.818942708e-09
A15: 3.38226 | B15: ='DF raw data'!J20 -> 3.9494794e-06 | C15: ='DF raw data'!K20 -> -1.0630599e-05 | D15: ='DF raw data'!L20 -> 8.0609634e-06 | F15: 3.95289175e-06 | G15: -1.066442613e-05 | H15: 8.067928072e-06 | J15: -1.424566263e-05 | K15: 1.055415235e-05 | L15: 2.378097302e-06 | N15: -4.575203562e-05 | O15: -0.0001204156663 | P15: 7.120345712e-06 | Q15: -3.840258383e-06 | R15: 3.891216903e-09
A16: 3.8824 | B16: ='DF raw data'!J21 -> 3.489376e-06 | C16: ='DF raw data'!K21 -> 1.0842017e-07 | D16: ='DF raw data'!L21 -> -3.2881039e-06 | F16: 3.492390821e-06 | G16: 1.087651687e-07 | H16: -3.290944822e-06 | J16: -1.102983555e-05 | K16: 2.27341478e-06 | L16: 2.297231695e-06 | N16: -5.126849757e-05 | O16: -0.0001460570927 | P16: 8.25737138e-06 | Q16: 2.895833386e-07 | R16: 5.239915946e-09
A17: 4.38254 | B17: ='DF raw data'!J22 -> 3.4571353e-06 | C17: ='DF raw data'!K22 -> 8.5921533e-07 | D17: ='DF raw data'!L22 -> -4.2447505e-06 | F17: 3.460122265e-06 | G17: 8.619493988e-07 | H17: -4.248417964e-06 | J17: -7.378760646e-06 | K17: 1.215662533e-05 | L17: 1.857464364e-06 | N17: -5.495891092e-05 | O17: -0.0001735442424 | P17: 1.433738597e-05 | Q17: 7.460283558e-06 | R17: 6.853388855e-09
A18: 4.88268 | B18: ='DF raw data'!J23 -> 3.3949923e-06 | C18: ='DF raw data'!K23 -> 3.0105959e-06 | D18: ='DF raw data'!L23 -> -1.4154726e-06 | F18: 3.397925573e-06 | G18: 3.020175776e-06 | H18: -1.416695568e-06 | J18: -3.453976059e-06 | K18: 6.486533925e-06 | L18: 1.94951913e-06 | N18: -5.668638251e-05 | O18: -0.0002018953698 | P18: 1.758156105e-05 | Q18: 1.62535255e-05 | R18: 8.615110624e-09
A19: 5.38282 | B19: ='DF raw data'!J24 -> 3.0898805e-06 | C19: ='DF raw data'!K24 -> 1.1638797e-05 | D19: ='DF raw data'!L24 -> 7.9452309e-07 | F19: 3.092550157e-06 | G19: 1.167583227e-05 | H19: 7.952095579e-07 | J19: 5.062156327e-07 | K19: 2.144486726e-05 | L19: 3.162515154e-06 | N19: -5.643320382e-05 | O19: -0.0002301198723 | P19: 2.830699696e-05 | Q19: 3.041098696e-05 | R19: 1.060866495e-08
A20: 5.88296 | B20: ='DF raw data'!J25 -> 3.2363282e-06 | C20: ='DF raw data'!K25 -> 6.5421455e-06 | D20: ='DF raw data'!L25 -> -5.2519795e-06 | F20: 3.239124388e-06 | G20: 6.562962954e-06 | H20: -5.25651721e-06 | J20: -3.40563703e-07 | K20: 6.671248833e-06 | L20: 3.930547962e-06 | N20: -5.660353335e-05 | O20: -0.0002584295635 | P20: 3.164355535e-05 | Q20: 4.623719473e-05 | R20: 1.271189098e-08
A21: 6.3831 | B21: ='DF raw data'!J26 -> 3.1978811e-06 | C21: ='DF raw data'!K26 -> 6.6478178e-06 | D21: ='DF raw data'!L26 -> -1.0564258e-05 | F21: 3.200644069e-06 | G21: 6.668971509e-06 | H21: -1.057338552e-05 | J21: -3.430459859e-06 | K21: -3.372315449e-06 | L21: 3.047812537e-06 | N21: -5.831924354e-05 | O21: -0.00028759735 | P21: 2.99569255e-05 | Q21: 6.121985145e-05 | R21: 1.486176855e-08
A22: 6.88324 | B22: ='DF raw data'!J27 -> 5.073673e-06 | C22: ='DF raw data'!K27 -> -4.1901762e-07 | D22: ='DF raw data'!L27 -> -1.0681394e-05 | F22: 5.078056653e-06 | G22: -4.203509563e-07 | H22: -1.069062272e-05 | J22: -4.59156819e-06 | K22: 1.992596135e-06 | L22: 1.835548445e-06 | N22: -6.061567046e-05 | O22: -0.0003179136714 | P22: 3.095350253e-05 | Q22: 7.67009362e-05 | R22: 1.71786065e-08
A23: 7.38338 | B23: ='DF raw data'!J28 -> 9.5418136e-06 | C23: ='DF raw data'!K28 -> 1.5505004e-06 | D23: ='DF raw data'!L28 -> -3.0528358e-06 | F23: =(1-$G$1*($B$2-$G$2))*B23 -> 9.550057727e-06 | G23: 1.555434175e-06 | H23: -3.05547345e-06 | J23: 3.522558363e-08 | K23: 1.150450081e-05 | L23: -2.374437143e-06 | N23: -6.059805273e-05 | O23: -0.0003482211815 | P23: 3.670736357e-05 | Q23: 9.505975702e-05 | R23: 1.96890865e-08
A24: 7.88352 | B24: ='DF raw data'!J29 -> 1.2422319e-05 | C24: ='DF raw data'!K29 -> -7.0979831e-06 | D24: ='DF raw data'!L29 -> -3.5446687e-06 | F24: 1.243305188e-05 | G24: -7.120569259e-06 | H24: -3.547731294e-06 | J24: 9.719278908e-07 | K24: 8.730291333e-06 | L24: 4.10591695e-07 | N24: -6.011195272e-05 | O24: -0.0003782855735 | P24: 4.107373147e-05 | Q24: 0.0001156023731 | R24: 2.234007771e-08
A25: 8.38366 | B25: ='DF raw data'!J30 -> 7.3649148e-06 | C25: ='DF raw data'!K30 -> -8.8166589e-06 | D25: ='DF raw data'!L30 -> -7.5539553e-08 | F25: 7.371278086e-06 | G25: -8.844713977e-06 | H25: -7.560481917e-08 | J25: -1.968386518e-06 | K25: -1.475371619e-06 | L25: -8.29712833e-07 | N25: -6.109642155e-05 | O25: -0.0004088423378 | P25: 4.033583911e-05 | Q25: 0.0001357759397 | R25: 2.50207044e-08
A26: 8.8838 | B26: ='DF raw data'!J31 -> -3.3016454e-06 | C26: ='DF raw data'!K31 -> -1.1339205e-06 | D26: ='DF raw data'!L31 -> -3.9124466e-06 | F26: -3.304498022e-06 | G26: -1.137528695e-06 | H26: -3.915826954e-06 | J26: -3.372872846e-06 | K26: 9.924538436e-07 | L26: -1.0103635e-06 | N26: -6.278333018e-05 | O26: -0.0004402427925 | P26: 4.083220498e-05 | Q26: 0.0001561977586 | R26: 2.782599742e-08
A27: 9.38394 | B27: ='DF raw data'!J32 -> -4.9868681e-06 | C27: ='DF raw data'!K32 -> -2.8024249e-06 | D27: ='DF raw data'!L32 -> -6.4112178e-06 | F27: -4.991176754e-06 | G27: -2.811342365e-06 | H27: -6.416757092e-06 | J27: -6.055578703e-06 | K27: 7.082706961e-06 | L27: 2.343395446e-07 | N27: -6.581196731e-05 | O27: -0.0004731579899 | P27: 4.437455004e-05 | Q27: 0.0001783912461 | R27: 3.097703733e-08
A28: 9.88408 | B28: ='DF raw data'!J33 -> 1.9572094e-06 | C28: ='DF raw data'!K33 -> 3.7551192e-06 | D28: ='DF raw data'!L33 -> -1.1718906e-05 | F28: 1.958900429e-06 | G28: 3.767068189e-06 | H28: -1.172903113e-05 | J28: -9.608914635e-06 | K28: 1.514343838e-06 | L28: 2.620563312e-06 | N28: -7.061776988e-05 | O28: -0.0005084767613 | P28: 4.513193396e-05 | Q28: 0.0002009635316 | R28: 3.44899011e-08
A29: 10.38422 | B29: ='DF raw data'!J34 -> 6.5848803e-06 | C29: ='DF raw data'!K34 -> 1.5424969e-06 | D29: ='DF raw data'!L34 -> -2.1415767e-06 | F29: 6.590569637e-06 | G29: 1.547405207e-06 | H29: -2.143427022e-06 | J29: -8.626182188e-06 | K29: 2.090184381e-07 | L29: 4.774316148e-06 | N29: -7.493206864e-05 | O29: -0.0005459532861 | P29: 4.523647245e-05 | Q29: 0.0002235881009 | R29: 3.832155033e-08
A30: 10.88436 | B30: ='DF raw data'!J35 -> 4.2272236e-06 | C30: ='DF raw data'!K35 -> 3.3628432e-06 | D30: ='DF raw data'!L35 -> -2.745554e-06 | F30: 4.230875921e-06 | G30: 3.373543946e-06 | H30: -2.747926159e-06 | J30: -1.749593244e-06 | K30: 6.001339708e-07 | L30: 1.554691994e-07 | N30: -7.58071102e-05 | O30: -0.0005838674542 | P30: 4.553662345e-05 | Q30: 0.0002463627877 | R30: 4.223279619e-08
A31: 11.3845 | B31: ='DF raw data'!J36 -> 2.221031e-08 | C31: ='DF raw data'!K36 -> -7.3948568e-06 | D31: ='DF raw data'!L36 -> -5.404589e-06 | F31: 2.222949971e-08 | G31: -7.418387627e-06 | H31: -5.409258565e-06 | J31: 2.011078172e-07 | K31: -3.727694497e-06 | L31: -3.588430928e-06 | N31: -7.570652814e-05 | O31: -0.0006217313172 | P31: 4.367225432e-05 | Q31: 0.000268205029 | R31: 4.605323771e-08
A32: 11.88464 | B32: ='DF raw data'!J37 -> 1.04445e-07 | C32: ='DF raw data'!K37 -> -1.8256893e-05 | D32: ='DF raw data'!L37 -> -5.9295676e-06 | F32: 1.045352405e-07 | G32: -1.83149874e-05 | H32: -5.934690746e-06 | J32: -2.514400967e-06 | K32: 5.955811996e-06 | L32: -6.071638067e-07 | N32: -7.696408064e-05 | O32: -0.0006602241325 | P32: 4.665099414e-05 | Q32: 0.0002915370572 | R32: 5.010426416e-08
A33: 12.38478 | B33: ='DF raw data'!J38 -> -2.5552298e-09 | C33: ='DF raw data'!K38 -> -9.2789158e-08 | D33: ='DF raw data'!L38 -> -1.5338052e-06 | F33: -2.557437519e-09 | G33: -9.308441803e-08 | H33: -1.535130408e-06 | J33: -2.971161467e-06 | K33: 3.973599999e-06 | L33: -3.037955127e-06 | N33: -7.845007733e-05 | O33: -0.0006994601541 | P33: 4.863835044e-05 | Q33: 0.0003158630418 | R33: 5.436550886e-08
A34: 12.88492 | B34: ='DF raw data'!J39 -> 4.1369503e-07 | C34: ='DF raw data'!K39 -> -5.0636181e-06 | D34: ='DF raw data'!L39 -> -8.5701658e-06 | F34: 4.140524625e-07 | G34: -5.079730802e-06 | H34: -8.577570423e-06 | J34: -2.71428762e-06 | K34: 4.665347595e-06 | L34: -5.915761706e-07 | N34: -7.980760114e-05 | O34: -0.0007393751278 | P34: 5.097167739e-05 | Q34: 0.0003413560165 | R34: 5.885044684e-08
A35: 13.38506 | B35: ='DF raw data'!J40 -> -1.4195789e-06 | C35: ='DF raw data'!K40 -> -1.3273882e-06 | D35: ='DF raw data'!L40 -> -5.9119759e-07 | F35: -1.420805416e-06 | G35: -1.33161202e-06 | H35: -5.917083847e-07 | J35: -5.01732913e-06 | K35: 7.345215428e-07 | L35: -5.079599585e-06 | N35: -8.231696813e-05 | O35: -0.0007805451362 | P35: 5.133904099e-05 | Q35: 0.0003670327245 | R35: 6.355765468e-08
A36: 13.8852 | B36: ='DF raw data'!J41 -> -3.0076803e-06 | C36: ='DF raw data'!K41 -> -4.6110317e-06 | D36: ='DF raw data'!L41 -> 8.9333525e-06 | F36: -3.010278936e-06 | G36: -4.625704248e-06 | H36: 8.941070917e-06 | J36: -6.464304638e-06 | K36: -3.75446762e-06 | L36: -4.722092666e-07 | N36: -8.555002546e-05 | O36: -0.000823332126 | P36: 4.946128155e-05 | Q36: 0.0003917702899 | R36: 6.844163442e-08
A37: 14.38534 | B37: ='DF raw data'!J42 -> -1.7901707e-06 | C37: ='DF raw data'!K42 -> 1.4757655e-05 | D37: ='DF raw data'!L42 -> 1.3264378e-07 | F37: -1.791717407e-06 | G37: 1.480461464e-05 | H37: 1.327583842e-07 | J37: -5.592137636e-06 | K37: 1.150329599e-05 | L37: -4.558363927e-06 | N37: -8.834687717e-05 | O37: -0.0008675179331 | P37: 5.521454001e-05 | Q37: 0.0004193852899 | R37: 7.387006203e-08
A38: 14.88548 | B38: ='DF raw data'!J43 -> -6.7832616e-07 | C38: ='DF raw data'!K43 -> -9.3604717e-07 | D38: ='DF raw data'!L43 -> 5.0920733e-07 | F38: -6.789122338e-07 | G38: -9.390257218e-07 | H38: 5.096472851e-07 | J38: -5.430664744e-06 | K38: 4.660125029e-06 | L38: -1.273360133e-05 | N38: -9.106296984e-05 | O38: -0.0009130621668 | P38: 5.754525494e-05 | Q38: 0.0004481659737 | R38: 7.9673647e-08
A39: 15.38562 | B39: ='DF raw data'!J44 -> -1.6881108e-06 | C39: ='DF raw data'!K44 -> 2.7013095e-06 | D39: ='DF raw data'!L44 -> -1.7528333e-06 | F39: -1.689569328e-06 | G39: 2.70990521e-06 | H39: -1.754347748e-06 | J39: -4.173021178e-06 | K39: 1.537348608e-05 | L39: -2.958953729e-06 | N39: -9.315006465e-05 | O39: -0.0009596502402 | P39: 6.523415027e-05 | Q39: 0.0004807921816 | R39: 8.614167199e-08
A40: 15.88576 | B40: ='DF raw data'!J45 -> -4.0834143e-06 | C40: ='DF raw data'!K45 -> -3.9499018e-06 | D40: ='DF raw data'!L45 -> 1.6306747e-05 | F40: -4.08694237e-06 | G40: -3.962470597e-06 | H40: 1.632083603e-05 | J40: -2.418466451e-06 | K40: -2.973427091e-07 | L40: 1.137745463e-05 | N40: -9.435963646e-05 | O40: -0.001006843269 | P40: 6.508543729e-05 | Q40: 0.0005133440122 | R40: 9.271343914e-08
A41: 16.3859 | B41: ='DF raw data'!J46 -> -6.8445729e-06 | C41: ='DF raw data'!K46 -> 1.1426914e-05 | D41: ='DF raw data'!L46 -> 1.1999367e-05 | F41: -6.850486611e-06 | G41: 1.146327505e-05 | H41: 1.200973445e-05 | J41: -3.270991497e-06 | K41: 4.593231947e-07 | L41: 1.329698268e-06 | N41: -9.599559015e-05 | O41: -0.001054854503 | P41: 6.531516319e-05 | Q41: 0.0005460107379 | R41: 9.945593844e-08
A42: 16.88604 | B42: ='DF raw data'!J47 -> -6.9918874e-06 | C42: ='DF raw data'!K47 -> 3.0882916e-07 | D42: ='DF raw data'!L47 -> -3.8219337e-06 | F42: -6.997928391e-06 | G42: 3.098118708e-07 | H42: -3.825235851e-06 | J42: -8.093128327e-06 | K42: -1.395059573e-06 | L42: 4.438528178e-06 | N42: -0.0001000432873 | O42: -0.001104890153 | P42: 6.46174381e-05 | Q42: 0.0005783285034 | R42: 1.065499605e-07
A43: 17.38618 | B43: ='DF raw data'!J48 -> -6.2222675e-06 | C43: ='DF raw data'!K48 -> 8.3921122e-06 | D43: ='DF raw data'!L48 -> 2.6130469e-06 | F43: -6.227643539e-06 | G43: 8.418816347e-06 | H43: 2.615304573e-06 | J43: -1.012987666e-05 | K43: 5.548940917e-07 | L43: 2.694838531e-06 | N43: -0.0001051096439 | O43: -0.00115745969 | P43: 6.489496283e-05 | Q43: 0.0006107850701 | R43: 1.141817936e-07
A44: 17.88632 | B44: ='DF raw data'!J49 -> -3.2619296e-06 | C44: ='DF raw data'!K49 -> 4.5068455e-06 | D44: ='DF raw data'!L49 -> -3.8431649e-06 | F44: -3.264747907e-06 | G44: 4.521186522e-06 | H44: -3.846485394e-06 | J44: -7.613520103e-06 | K44: -1.423434778e-06 | L44: -5.428834464e-07 | N44: -0.0001089174698 | O44: -0.001211933674 | P44: 6.418304616e-05 | Q44: 0.0006428855789 | R44: 1.221752704e-07
A45: 18.38646 | B45: ='DF raw data'!J50 -> 7.1546901e-07 | C45: ='DF raw data'!K50 -> -4.4086219e-06 | D45: ='DF raw data'!L50 -> -3.8166077e-06 | F45: 7.160871752e-07 | G45: -4.422650369e-06 | H45: -3.819905249e-06 | J45: -4.04815899e-06 | K45: 8.944450838e-06 | L45: 7.904772328e-07 | N45: -0.000110942116 | O45: -0.001267420263 | P45: 6.86565238e-05 | Q45: 0.0006772234527 | R45: 1.306885892e-07
A46: 18.8866 | B46: ='DF raw data'!J51 -> 1.5969622e-06 | C46: ='DF raw data'!K51 -> -1.6118563e-06 | D46: ='DF raw data'!L51 -> 6.4966093e-06 | F46: 1.598341975e-06 | G46: -1.616985312e-06 | H46: 6.50222237e-06 | J46: -4.318727059e-06 | K46: 4.796253423e-06 | L46: 6.336426647e-06 | N46: -0.0001131020842 | O46: -0.00132398714 | P46: 7.105532199e-05 | Q46: 0.0007127610614 | R46: 1.39611557e-07
A47: 19.38674 | B47: ='DF raw data'!J52 -> -7.5378473e-08 | C47: ='DF raw data'!K52 -> -9.7737311e-06 | D47: ='DF raw data'!L52 -> -4.8483312e-06 | F47: -7.54436e-08 | G47: -9.804831631e-06 | H47: -4.852520158e-06 | J47: -4.601121637e-06 | K47: -7.833466039e-06 | L47: 5.256717483e-06 | N47: -0.0001154032892 | O47: -0.001381704941 | P47: 6.713749228e-05 | Q47: 0.0007463392068 | R47: 1.485267336e-07
A48: 19.88688 | B48: ='DF raw data'!J53 -> -1.2552405e-06 | C48: ='DF raw data'!K53 -> -6.4130973e-06 | D48: ='DF raw data'!L53 -> -3.8890871e-06 | F48: -1.256325028e-06 | G48: -6.433504116e-06 | H48: -3.892447271e-06 | J48: -7.29357631e-08 | K48: 3.356434174e-07 | L48: -3.112097731e-07 | N48: -0.0001154397673 | O48: -0.001439440986 | P48: 6.730536098e-05 | Q48: 0.00078000131 | R48: 1.574574092e-07
A49: 20.38702 | B49: ='DF raw data'!J54 -> -2.9339894e-06 | C49: ='DF raw data'!K54 -> -2.0488321e-06 | D49: ='DF raw data'!L54 -> 2.3369789e-06 | F49: -2.936524367e-06 | G49: -2.055351593e-06 | H49: 2.33899805e-06 | J49: 4.430822226e-07 | K49: -2.554347989e-06 | L49: -4.757332987e-06 | N49: -0.0001152181641 | O49: -0.001497066199 | P49: 6.602782938e-05 | Q49: 0.0008130244686 | R49: 1.662773279e-07
A50: 20.88716 | B50: ='DF raw data'!J55 -> -6.2436279e-06 | C50: ='DF raw data'!K55 -> 4.2137081e-06 | D50: ='DF raw data'!L55 -> -4.1495773e-06 | F50: -6.249022395e-06 | G50: 4.227116343e-06 | H50: -4.153162535e-06 | J50: -6.150912401e-06 | K50: 2.041719151e-06 | L50: -7.829658485e-06 | N50: -0.0001182944814 | O50: -0.001556230001 | P50: 6.704897479e-05 | Q50: 0.0008465583429 | R50: 1.755244911e-07
A51: 21.3873 | B51: ='DF raw data'!J56 -> -7.8831945e-06 | C51: ='DF raw data'!K56 -> -1.4159839e-06 | D51: ='DF raw data'!L56 -> -4.3201585e-06 | F51: -7.89000558e-06 | G51: -1.420489636e-06 | H51: -4.323891117e-06 | J51: -8.571667327e-06 | K51: 1.01393476e-05 | L51: -1.178892784e-06 | N51: -0.0001225815151 | O51: -0.00161753792 | P51: 7.21200681e-05 | Q51: 0.0008826284737 | R51: 1.85641089e-07
A52: 21.88744 | B52: ='DF raw data'!J57 -> -5.2800983e-06 | C52: ='DF raw data'!K57 -> -3.3115818e-06 | D52: ='DF raw data'!L57 -> -5.3077533e-06 | F52: -5.284660305e-06 | G52: -3.322119429e-06 | H52: -5.312339199e-06 | J52: -4.48768241e-06 | K52: 4.626395841e-06 | L52: 3.473259506e-06 | N52: -0.0001248259846 | O52: -0.001679968388 | P52: 7.443391372e-05 | Q52: 0.0009198558513 | R52: 1.96205013e-07
A53: 22.38758 | B53: ='DF raw data'!J58 -> -2.0750572e-06 | C53: ='DF raw data'!K58 -> 1.2382818e-06 | D53: ='DF raw data'!L58 -> -1.1725502e-06 | F53: -2.076850049e-06 | G53: 1.242222078e-06 | H53: -1.173563283e-06 | J53: 7.000889947e-07 | K53: 1.021216357e-05 | L53: 5.268507361e-06 | N53: -0.0001244758421 | O53: -0.001742223735 | P53: 7.954142521e-05 | Q53: 0.0009596376997 | R53: 2.071186048e-07
A54: 22.88772 | B54: ='DF raw data'!J59 -> -3.6990709e-06 | C54: ='DF raw data'!K59 -> 1.495396e-06 | D54: ='DF raw data'!L59 -> 3.3946558e-06 | F54: -3.702266897e-06 | G54: 1.500154429e-06 | H54: 3.397588783e-06 | J54: 1.228266506e-06 | K54: 1.070500384e-05 | L54: 1.50328882e-06 | N54: -0.0001238615369 | O54: -0.001804171844 | P54: 8.489542583e-05 | Q54: 0.001002097298 | R54: 2.183962184e-07
A55: 23.38786 | B55: ='DF raw data'!J60 -> -7.7199911e-06 | C55: ='DF raw data'!K60 -> -1.2545377e-06 | D55: ='DF raw data'!L60 -> -3.486301e-06 | F55: -7.726661172e-06 | G55: -1.258529706e-06 | H55: -3.489313164e-06 | J55: -1.677775747e-06 | K55: 1.884040099e-06 | L55: 7.866095239e-06 | N55: -0.0001247006597 | O55: -0.001866539632 | P55: 8.583770965e-05 | Q55: 0.00104502817 | R55: 2.298586105e-07
A56: 23.888 | B56: ='DF raw data'!J61 -> -3.8218236e-06 | C56: ='DF raw data'!K61 -> 1.0217275e-06 | D56: ='DF raw data'!L61 -> 5.7638495e-06 | F56: -3.825125656e-06 | G56: 1.024978691e-06 | H56: 5.768829466e-06 | J56: -4.313583119e-06 | K56: 6.128344663e-06 | L56: 6.150310681e-06 | N56: -0.0001268580551 | O56: -0.00192998642 | P56: 8.890273994e-05 | Q56: 0.001089491986 | R56: 2.418603017e-07
A57: 24.38814 | B57: ='DF raw data'!J62 -> 6.868499e-06 | C57: ='DF raw data'!K62 -> -6.5302474e-06 | D57: ='DF raw data'!L62 -> -4.891725e-06 | F57: 6.874433383e-06 | G57: -6.551026994e-06 | H57: -4.89595145e-06 | J57: -7.838926986e-06 | K57: 1.090834884e-06 | L57: 4.411015928e-06 | N57: -0.0001307786161 | O57: -0.001995394037 | P57: 8.94483101e-05 | Q57: 0.001134228664 | R57: 2.544158395e-07
A58: 24.88828 | B58: ='DF raw data'!J63 -> 1.2051592e-05 | C58: ='DF raw data'!K63 -> 2.2423522e-07 | D58: ='DF raw data'!L63 -> 7.4354409e-07 | F58: 1.206200458e-05 | G58: 2.249487484e-07 | H58: 7.441865121e-07 | J58: -1.060687943e-05 | K58: 1.153729584e-05 | L58: 3.285082661e-06 | N58: -0.0001360835408 | O58: -0.002063454859 | P58: 9.521857324e-05 | Q58: 0.001181851282 | R58: 2.682123548e-07
A59: 25.38842 | B59: ='DF raw data'!J64 -> 6.2914501e-06 | C59: ='DF raw data'!K64 -> 5.1782526e-06 | D59: ='DF raw data'!L64 -> 7.0224537e-06 | F59: 6.296885913e-06 | G59: 5.194730075e-06 | H59: 7.0285211e-06 | J59: -1.334944496e-05 | K59: -6.392001772e-07 | L59: 5.840367421e-06 | N59: -0.0001427601322 | O59: -0.002134854912 | P59: 9.489888367e-05 | Q59: 0.001229314009 | R59: 2.829095956e-07
A60: 25.88856 | B60: ='DF raw data'!J65 -> 1.4872935e-06 | C60: ='DF raw data'!K65 -> -2.6627265e-06 | D60: ='DF raw data'!L65 -> 1.1967752e-05 | F60: 1.488578522e-06 | G60: -2.671199437e-06 | H60: 1.197809214e-05 | J60: -1.341625163e-05 | K60: -1.292393921e-06 | L60: 1.349756783e-05 | N60: -0.0001494701362 | O60: -0.002209610906 | P60: 9.425250577e-05 | Q60: 0.001276453457 | R60: 2.985263954e-07
A61: 26.3887 | B61: ='DF raw data'!J66 -> -1.5240416e-06 | C61: ='DF raw data'!K66 -> -4.8963002e-06 | D61: ='DF raw data'!L66 -> 7.0055046e-07 | F61: -1.525358372e-06 | G61: -4.911880487e-06 | H61: 7.011557356e-07 | J61: -1.05887748e-05 | K61: 5.161533777e-06 | L61: 2.42839222e-06 | N61: -0.0001547660061 | O61: -0.002287015576 | P61: 9.683399528e-05 | Q61: 0.001324884012 | R61: 3.151957311e-07
A62: 26.88884 | B62: ='DF raw data'!J67 -> -1.0611343e-06 | C62: ='DF raw data'!K67 -> -1.8019916e-06 | D62: ='DF raw data'!L67 -> -3.4278678e-06 | F62: -1.06205112e-06 | G62: -1.807725633e-06 | H62: -3.430829478e-06 | J62: -4.526697991e-06 | K62: -2.54376492e-07 | L62: 1.959694014e-07 | N62: -0.0001570299888 | O62: -0.002365552554 | P62: 9.670677142e-05 | Q62: 0.001373250936 | R62: 3.322058011e-07
A63: 27.38898 | B63: ='DF raw data'!J68 -> 2.0506582e-06 | C63: ='DF raw data'!K68 -> 3.1134671e-06 | D63: ='DF raw data'!L68 -> -1.5547017e-06 | F63: 2.052429969e-06 | G63: 3.123374318e-06 | H63: -1.556044962e-06 | J63: -3.858592546e-07 | K63: 7.697489126e-06 | L63: 4.763592991e-06 | N63: -0.0001572229725 | O63: -0.002444186052 | P63: 0.0001005565936 | Q63: 0.001423543311 | R63: 3.496260232e-07
A64: 27.88912 | B64: ='DF raw data'!J69 -> 3.9094962e-06 | C64: ='DF raw data'!K69 -> 5.4701895e-06 | D64: ='DF raw data'!L69 -> -1.351979e-06 | F64: 3.912874005e-06 | G64: 5.487595933e-06 | H64: -1.35314711e-06 | J64: -2.571320803e-06 | K64: 9.211886634e-06 | L64: 2.6919075e-06 | N64: -0.0001585089928 | O64: -0.00252346274 | P64: 0.0001051638266 | Q64: 0.001476139947 | R64: 3.677233547e-07
A65: 28.38926 | B65: ='DF raw data'!J70 -> 1.0157751e-06 | C65: ='DF raw data'!K70 -> 1.8356343e-06 | D65: ='DF raw data'!L70 -> 1.2837621e-06 | F65: 1.01665273e-06 | G65: 1.841475386e-06 | H65: 1.28487127e-06 | J65: -6.562043311e-06 | K65: 1.12445613e-05 | L65: 9.983407718e-06 | N65: -0.0001617909332 | O65: -0.002604380857 | P65: 0.0001107876815 | Q65: 0.001531549298 | R65: 3.869538459e-07
A66: 28.8894 | B66: ='DF raw data'!J71 -> -2.3559401e-06 | C66: ='DF raw data'!K71 -> 8.5094257e-07 | D66: ='DF raw data'!L71 -> -5.5188616e-06 | F66: -2.357975632e-06 | G66: 8.536503144e-07 | H66: -5.523629896e-06 | J66: -6.371843821e-06 | K66: 5.238097835e-06 | L66: 1.01172988e-05 | N66: -0.0001649777472 | O66: -0.002686892827 | P66: 0.0001134074637 | Q66: 0.001588268907 | R66: 4.069989119e-07
A67: 29.38954 | B67: ='DF raw data'!J72 -> -4.7139306e-06 | C67: ='DF raw data'!K72 -> 1.9730662e-06 | D67: ='DF raw data'!L72 -> 1.2667909e-06 | F67: -4.718003436e-06 | G67: 1.979344601e-06 | H67: 1.267885407e-06 | J67: -3.660343006e-06 | K67: 6.809114437e-06 | L67: 6.200872929e-07 | N67: -0.0001668084311 | O67: -0.002770320396 | P67: 0.0001168129742 | Q67: 0.001646691748 | R67: 4.277398796e-07
A68: 29.88968 | B68: ='DF raw data'!J73 -> -4.0060527e-06 | C68: ='DF raw data'!K73 -> 9.4144745e-08 | D68: ='DF raw data'!L73 -> 4.2807583e-06 | F68: -4.00951393e-06 | G68: 9.444431858e-08 | H68: 4.284456875e-06 | J68: -3.793155657e-06 | K68: 6.134100018e-06 | L68: -5.295221422e-06 | N68: -0.00016870554 | O68: -0.002854696785 | P68: 0.000119880883 | Q68: 0.001706648973 | R68: 4.491623688e-07
A69: 30.38982 | B69: ='DF raw data'!J74 -> -8.7770559e-07 | C69: ='DF raw data'!K74 -> -9.6882022e-06 | D69: ='DF raw data'!L74 -> 2.4876604e-06 | F69: -8.784639276e-07 | G69: -9.719030574e-06 | H69: 2.489809739e-06 | J69: -4.104610922e-06 | K69: 7.877120208e-06 | L69: -3.211354715e-07 | N69: -0.0001707584201 | O69: -0.002940099901 | P69: 0.0001238205459 | Q69: 0.001768576581 | R69: 4.714135803e-07
A70: 30.88996 | B70: ='DF raw data'!J75 -> 2.4002252e-06 | C70: ='DF raw data'!K75 -> -4.3747305e-06 | D70: ='DF raw data'!L75 -> 1.2901504e-06 | F70: 2.402298995e-06 | G70: -4.388651125e-06 | H70: 1.29126509e-06 | J70: -5.389111373e-06 | K70: -1.265471926e-07 | L70: 3.972846877e-06 | N70: -0.0001734537302 | O70: -0.00302685105 | P70: 0.0001237572546 | Q70: 0.001830472534 | R70: 4.941209638e-07
A71: 31.3901 | B71: ='DF raw data'!J76 -> 5.0112626e-06 | C71: ='DF raw data'!K76 -> 7.3233614e-06 | D71: ='DF raw data'!L76 -> -6.0416428e-06 | F71: 5.015592331e-06 | G71: =(1-$G$1*($B$2-$G$2))*C71*$M$2/$M$1 -> 7.346664725e-06 | H71: -6.046862779e-06 | J71: =-CELL("contents", INDEX($F$6:$F$1203,1204-CELL("row",F71))) -> -7.86838912e-06 | K71: =CELL("contents", INDEX($G$6:$G$1203,1204-CELL("row",G71))) -> -1.192140622e-06 | L71: =-CELL("contents", INDEX($H$6:$H$1203,1204-CELL("row",H71))) -> 7.858165994e-07 | N71: -0.0001773890264 | O71: -0.003115570397 | P71: 0.0001231610174 | Q71: 0.001892070286 | R71: 5.174452443e-07
A72: =A71+$B$1 -> 31.89024 | B72: ='DF raw data'!J77 -> 4.3082578e-06 | C72: ='DF raw data'!K77 -> 6.3345692e-07 | D72: ='DF raw data'!L77 -> -3.9136435e-06 | F72: 4.311980135e-06 | G72: 6.354726136e-07 | H72: -3.917024888e-06 | J72: -3.519514435e-06 | K72: 1.108541148e-05 | L72: 8.04980803e-06 | N72: =J72*$B$1+N71 -> -0.0001791492763 | O72: =N72*$B$1+O71 -> -0.003205170116 | P72: =K72*$B$1+P71 -> 0.0001287052751 | Q72: =P72*$B$1+Q71 -> 0.001956440942 | R72: =(N72^2+P72^2)*$B$1+R71 -> 5.417818121e-07
A73: 32.39038 | B73: ='DF raw data'!J78 -> 3.195787e-07 | C73: ='DF raw data'!K78 -> -6.1782589e-07 | D73: ='DF raw data'!L78 -> -1.1275123e-05 | F73: 3.19854816e-07 | G73: -6.197918448e-07 | H73: -1.128486471e-05 | J73: 3.037336193e-06 | K73: 1.329115501e-05 | L73: -1.030083824e-06 | N73: -0.000177630183 | O73: -0.003294010076 | P73: 0.0001353527134 | Q73: 0.002024136248 | R73: 5.667252138e-07
A74: 32.89052 | B74: ='DF raw data'!J79 -> 3.1423815e-07 | C74: ='DF raw data'!K79 -> -7.4167428e-06 | D74: ='DF raw data'!L79 -> -6.9176281e-06 | F74: 3.145096518e-07 | G74: -7.440343269e-06 | H74: -6.923604931e-06 | J74: 3.640204021e-06 | K74: 6.40729117e-06 | L74: 1.379993085e-06 | N74: -0.0001758095714 | O74: -0.003381939475 | P74: 0.000138557256 | Q74: 0.002093434274 | R74: 5.917857881e-07
A75: 33.39066 | B75: ='DF raw data'!J80 -> 1.9857775e-06 | C75: ='DF raw data'!K80 -> -3.7289453e-06 | D75: ='DF raw data'!L80 -> 1.4534083e-06 | F75: 1.987493212e-06 | G75: -3.740811002e-06 | H75: 1.454664045e-06 | J75: -5.752576836e-07 | K75: 8.146428242e-06 | L75: 4.654217372e-06 | N75: -0.0001760972807 | O75: -0.003470012769 | P75: 0.0001426316106 | Q75: 0.002164770048 | R75: 6.174699919e-07
A76: 33.8908 | B76: ='DF raw data'!J81 -> 2.6714283e-06 | C76: ='DF raw data'!K81 -> 3.4887973e-06 | D76: ='DF raw data'!L81 -> 1.1460669e-07 | F76: 2.673736414e-06 | G76: 3.499898838e-06 | H76: 1.147057102e-07 | J76: -9.688749854e-06 | K76: 4.372211679e-06 | L76: 5.106309943e-06 | N76: -0.0001809430121 | O76: -0.003560509607 | P76: 0.0001448183285 | Q76: 0.002237199486 | R76: 6.443338727e-07
A77: 34.39094 | B77: ='DF raw data'!J82 -> 5.6006606e-06 | C77: ='DF raw data'!K82 -> 1.9108584e-05 | D77: ='DF raw data'!L82 -> -1.2047609e-06 | F77: 5.605499571e-06 | G77: 1.916938853e-05 | H77: -1.205801813e-06 | J77: -1.405733305e-05 | K77: -9.748972047e-07 | L77: 7.382892413e-06 | N77: -0.0001879736466 | O77: -0.003654522747 | P77: 0.0001443307435 | Q77: 0.002309385065 | R77: 6.724244635e-07
A78: 34.89108 | B78: ='DF raw data'!J83 -> 7.943765e-06 | C78: ='DF raw data'!K83 -> 6.4865062e-06 | D78: ='DF raw data'!L83 -> 6.2385802e-06 | F78: 7.950628413e-06 | G78: 6.507146607e-06 | H78: 6.243970333e-06 | J78: -6.513207654e-06 | K78: -1.055074253e-06 | L78: 1.369200668e-05 | N78: -0.0001912311623 | O78: -0.0037501651 | P78: 0.0001438030586 | Q78: 0.002381306726 | R78: 7.010568169e-07
A79: 35.39122 | B79: ='DF raw data'!J84 -> 5.8723977e-06 | C79: ='DF raw data'!K84 -> -1.0983512e-05 | D79: ='DF raw data'!L84 -> 6.9762641e-06 | F79: 5.877471452e-06 | G79: -1.101846212e-05 | H79: 6.982291592e-06 | J79: -9.964772431e-07 | K79: -5.336323704e-06 | L79: -1.124738335e-06 | N79: -0.0001917295405 | O79: -0.003846056713 | P79: 0.0001411341497 | Q79: 0.00245189356 | R79: 7.294042844e-07
A80: 35.89136 | B80: ='DF raw data'!J85 -> 1.7382704e-06 | C80: ='DF raw data'!K85 -> -5.1675552e-06 | D80: ='DF raw data'!L85 -> -1.215744e-06 | F80: 1.739772266e-06 | G80: -5.183998635e-06 | H80: -1.216794403e-06 | J80: -5.147937078e-06 | K80: -4.4598612e-06 | L80: -8.174906022e-06 | N80: -0.0001943042297 | O80: -0.00394323603 | P80: 0.0001389035947 | Q80: 0.002521364804 | R80: 7.579364423e-07
A81: 36.3915 | B81: ='DF raw data'!J86 -> -2.4427131e-06 | C81: ='DF raw data'!K86 -> -5.1316629e-06 | D81: ='DF raw data'!L86 -> -1.6386263e-06 | F81: -2.444823604e-06 | G81: -5.147992124e-06 | H81: -1.640042073e-06 | J81: -7.502888299e-06 | K81: 1.233090213e-05 | L81: -4.010149278e-06 | N81: -0.0001980567243 | O81: -0.00404229212 | P81: 0.0001450707721 | Q81: 0.0025939205 | R81: 7.880808778e-07
A82: 36.89164 | B82: ='DF raw data'!J87 -> -4.4391231e-06 | C82: ='DF raw data'!K87 -> 3.7954419e-07 | D82: ='DF raw data'!L87 -> 1.0669549e-05 | F82: -4.442958502e-06 | G82: 3.807519198e-07 | H82: 1.067876749e-05 | J82: -2.705202077e-06 | K82: 9.548390209e-06 | L82: -2.006541755e-06 | N82: -0.000199409704 | O82: -0.00414202489 | P82: 0.000149846304 | Q82: 0.00266886463 | R82: 8.191986608e-07
A83: 37.39178 | B83: ='DF raw data'!J88 -> -3.9499168e-06 | C83: ='DF raw data'!K88 -> 9.2357741e-06 | D83: ='DF raw data'!L88 -> 1.5872349e-05 | F83: -3.953329528e-06 | G83: 9.265162824e-06 | H83: 1.588606271e-05 | J83: 2.223425181e-06 | K83: 4.143056107e-06 | L83: -2.628026655e-06 | N83: -0.0001982976802 | O83: -0.004241201491 | P83: 0.000151918412 | Q83: 0.002744845105 | R83: 8.504079839e-07
A84: 37.89192 | B84: ='DF raw data'!J89 -> -2.6402918e-06 | C84: ='DF raw data'!K89 -> 6.5525537e-06 | D84: ='DF raw data'!L89 -> 3.0886436e-06 | F84: -2.642573012e-06 | G84: 6.573404274e-06 | H84: 3.091312188e-06 | J84: 1.557025208e-06 | K84: 1.000843846e-05 | L84: -5.583849481e-06 | N84: -0.0001975189496 | O84: -0.004339988619 | P84: 0.0001569240325 | Q84: 0.00282332909 | R84: 8.822363371e-07
A85: 38.39206 | B85: ='DF raw data'!J90 -> -2.1420069e-06 | C85: ='DF raw data'!K90 -> 4.1866197e-06 | D85: ='DF raw data'!L90 -> -7.1224827e-06 | F85: -2.143857594e-06 | G85: 4.199941746e-06 | H85: -7.128636525e-06 | J85: -4.412791861e-06 | K85: 1.27635274e-06 | L85: 3.142798534e-06 | N85: -0.0001997259633 | O85: -0.004439879562 | P85: 0.0001575623875 | Q85: 0.002902132343 | R85: 9.146035805e-07
A86: 38.8922 | B86: ='DF raw data'!J91 -> -3.4344098e-06 | C86: ='DF raw data'!K91 -> 4.9549385e-07 | D86: ='DF raw data'!L91 -> 5.3402925e-07 | F86: -3.43737713e-06 | G86: 4.970705377e-07 | H86: 5.344906513e-07 | J86: -1.080362728e-05 | K86: 1.09779456e-06 | L86: -8.025354921e-07 | N86: -0.0002051292894 | O86: -0.004542472925 | P86: 0.0001581114385 | Q86: 0.002981210198 | R86: 9.481515975e-07
A87: 39.39234 | B87: ='DF raw data'!J92 -> -6.7824944e-06 | C87: ='DF raw data'!K92 -> 1.1785299e-05 | D87: ='DF raw data'!L92 -> 8.2970955e-06 | F87: =(1-$G$1*($B$2-$G$2))*B87 -> -6.788354475e-06 | G87: 1.182280045e-05 | H87: 8.304264191e-06 | J87: -1.020416579e-05 | K87: 1.074236736e-06 | L87: -6.153177156e-06 | N87: -0.0002102328009 | O87: -0.004647618758 | P87: 0.0001586487073 | Q87: 0.003060556762 | R87: 9.828449304e-07
A88: 39.89248 | B88: ='DF raw data'!J93 -> -8.9498499e-06 | C88: ='DF raw data'!K93 -> 1.7113165e-07 | D88: ='DF raw data'!L93 -> -2.4326187e-06 | F88: -8.95758257e-06 | G88: 1.716762e-07 | H88: -2.434720483e-06 | J88: -8.775162295e-06 | K88: 9.329675957e-06 | L88: -6.887038064e-06 | N88: -0.0002146216106 | O88: -0.00475495961 | P88: 0.0001633148514 | Q88: 0.003142237052 | R88: 1.019222201e-06
A89: 40.39262 | B89: ='DF raw data'!J94 -> -8.3131945e-06 | C89: ='DF raw data'!K94 -> 1.622285e-06 | D89: ='DF raw data'!L94 -> -2.9647167e-06 | F89: -8.3203771e-06 | G89: 1.627447197e-06 | H89: -2.967278215e-06 | J89: -9.855833689e-06 | K89: 1.020774455e-05 | L89: 1.37286373e-06 | N89: -0.0002195509072 | O89: -0.004864765801 | P89: 0.0001684201527 | Q89: 0.003226470707 | R89: 1.057516895e-06
A90: 40.89276 | B90: ='DF raw data'!J95 -> -4.9504229e-06 | C90: ='DF raw data'!K95 -> -1.345669e-06 | D90: ='DF raw data'!L95 -> 3.8942776e-06 | F90: -4.954700065e-06 | G90: -1.34995099e-06 | H90: 3.897642256e-06 | J90: -1.143689094e-05 | K90: 7.859850529e-06 | L90: 9.77858e-06 | N90: -0.0002252709539 | O90: -0.004977432816 | P90: 0.0001723511784 | Q90: 0.003312670425 | R90: 1.097754124e-06
A91: 41.3929 | B91: ='DF raw data'!J96 -> 1.1929956e-06 | C91: ='DF raw data'!K96 -> 2.3149053e-06 | D91: ='DF raw data'!L96 -> 1.5254352e-07 | F91: 1.194026348e-06 | G91: 2.322271452e-06 | H91: 1.526753176e-07 | J91: -1.24314485e-05 | K91: 2.065543421e-06 | L91: -5.609160731e-06 | N91: -0.0002314884185 | O91: -0.005093209434 | P91: 0.0001733842393 | Q91: 0.003399386819 | R91: 1.139590326e-06
A92: 41.89304 | B92: ='DF raw data'!J97 -> 7.033103e-06 | C92: ='DF raw data'!K97 -> -9.0208005e-06 | D92: ='DF raw data'!L97 -> -3.2142275e-06 | F92: 7.039179601e-06 | G92: -9.049505166e-06 | H92: -3.217004593e-06 | J92: -7.110596552e-06 | K92: 2.362558842e-06 | L92: 3.696474797e-06 | N92: -0.0002350447123 | O92: -0.005210764696 | P92: 0.0001745658495 | Q92: 0.003486694183 | R92: 1.182461953e-06
A93: 42.39318 | B93: ='DF raw data'!J98 -> 1.2339617e-05 | C93: ='DF raw data'!K98 -> -8.8490806e-06 | D93: ='DF raw data'!L98 -> -4.1867829e-06 | F93: 1.235027843e-05 | G93: -8.877238844e-06 | H93: -4.19040028e-06 | J93: -4.49028856e-06 | K93: 1.458527591e-06 | L93: 1.626487772e-05 | N93: -0.0002372904852 | O93: -0.005329443159 | P93: 0.0001752953174 | Q93: 0.003574366383 | R93: 1.22599175e-06
A94: 42.89332 | B94: ='DF raw data'!J99 -> 1.1639949e-05 | C94: ='DF raw data'!K99 -> -3.1778934e-06 | D94: ='DF raw data'!L99 -> 5.5773648e-06 | F94: 1.165000592e-05 | G94: -3.188005626e-06 | H94: 5.582183643e-06 | J94: -6.466175253e-06 | K94: 9.331285462e-06 | L94: 1.36220643e-05 | N94: -0.0002405244781 | O94: -0.005449739072 | P94: 0.0001799622666 | Q94: 0.003664372711 | R94: 1.271123604e-06
A95: 43.39346 | B95: ='DF raw data'!J100 -> 5.8430273e-06 | C95: ='DF raw data'!K100 -> 4.506594e-07 | D95: ='DF raw data'!L100 -> 1.3436003e-05 | F95: 5.848075676e-06 | G95: 4.520934221e-07 | H95: 1.344761171e-05 | J95: -3.976875754e-06 | K95: 8.87779541e-06 | L95: 6.386848874e-06 | N95: -0.0002425134727 | O95: -0.00557102976 | P95: 0.0001844024072 | Q95: 0.003756599731 | R95: 1.317545114e-06
A96: 43.8936 | B96: ='DF raw data'!J101 -> 2.7262963e-06 | C96: ='DF raw data'!K101 -> -3.9929973e-06 | D96: ='DF raw data'!L101 -> 4.99728e-06 | F96: 2.72865182e-06 | G96: -4.005703229e-06 | H96: 5.00159765e-06 | J96: -1.015851638e-06 | K96: 2.198325199e-06 | L96: 5.694289319e-06 | N96: -0.0002430215408 | O96: -0.005692574553 | P96: 0.0001855018775 | Q96: 0.00384937664 | R96: 1.364293408e-06
A97: 44.39374 | B97: ='DF raw data'!J102 -> 1.8507899e-07 | C97: ='DF raw data'!K102 -> 2.9600244e-06 | D97: ='DF raw data'!L102 -> 3.8000394e-06 | F97: 1.852388982e-07 | G97: 2.969443355e-06 | H97: 3.803322634e-06 | J97: -4.093520949e-06 | K97: 1.560812735e-05 | L97: 7.577532236e-06 | N97: -0.0002450688743 | O97: -0.0058151433 | P97: 0.0001933081263 | Q97: 0.003946057766 | R97: 1.41302044e-06
A98: 44.89388 | B98: ='DF raw data'!J103 -> -2.6187313e-06 | C98: ='DF raw data'!K103 -> 3.646642e-06 | D98: ='DF raw data'!L103 -> 1.7389933e-06 | F98: -2.620993884e-06 | G98: 3.658245808e-06 | H98: 1.74049579e-06 | J98: -9.700574461e-06 | K98: 4.730933731e-06 | L98: 1.146611617e-05 | N98: -0.0002499205197 | O98: -0.005940138549 | P98: 0.0001956742555 | Q98: 0.004043922288 | R98: 1.463408885e-06
A99: 45.39402 | B99: ='DF raw data'!J104 -> -4.5992192e-07 | C99: ='DF raw data'!K104 -> -4.6934902e-06 | D99: ='DF raw data'!L104 -> -3.4525588e-06 | F99: -4.603192925e-07 | G99: -4.708425135e-06 | H99: -3.455541811e-06 | J99: -9.268666315e-06 | K99: 2.245842422e-06 | L99: 1.729869017e-05 | N99: -0.0002545561504 | O99: -0.006067452262 | P99: 0.0001967974912 | Q99: 0.004142348586 | R99: 1.515187422e-06
A100: 45.89416 | B100: ='DF raw data'!J105 -> 2.5368613e-06 | C100: ='DF raw data'!K105 -> 2.0160271e-06 | D100: ='DF raw data'!L105 -> 2.0034781e-06 | F100: 2.539053148e-06 | G100: 2.022442205e-06 | H100: 2.005209105e-06 | J100: -8.386077516e-06 | K100: 3.44421762e-06 | L100: 7.404808332e-06 | N100: -0.0002587503632 | O100: -0.006196863669 | P100: 0.0001985200822 | Q100: 0.004241636419 | R100: 1.5683833e-06
A101: 46.3943 | B101: ='DF raw data'!J106 -> 4.0315149e-06 | C101: ='DF raw data'!K106 -> -4.5581937e-06 | D101: ='DF raw data'!L106 -> 7.6167812e-06 | F101: 4.034998129e-06 | G101: -4.572698114e-06 | H101: 7.623362099e-06 | J101: -9.62889078e-06 | K101: -8.941887006e-06 | L101: 1.994614359e-06 | N101: -0.0002635661567 | O101: -0.006328683646 | P101: 0.0001940478868 | Q101: 0.00433868753 | R101: 1.621959148e-06
A102: 46.89444 | B102: ='DF raw data'!J107 -> 4.618309e-06 | C102: ='DF raw data'!K107 -> -6.7411993e-06 | D102: ='DF raw data'!L107 -> 7.052869e-06 | F102: 4.622299219e-06 | G102: -6.762650154e-06 | H102: 7.058962679e-06 | J102: -6.924405021e-06 | K102: 3.147870117e-06 | L102: -7.839512091e-07 | N102: -0.0002670293286 | O102: -0.006462235695 | P102: 0.0001956222626 | Q102: 0.004436526048 | R102: 1.676760854e-06
A103: 47.39458 | B103: ='DF raw data'!J108 -> 4.3960331e-06 | C103: ='DF raw data'!K108 -> 2.4870253e-06 | D103: ='DF raw data'!L108 -> -4.2036886e-06 | F103: 4.399831273e-06 | G103: 2.494939147e-06 | H103: -4.207320587e-06 | J103: -2.988731735e-06 | K103: 2.841216223e-06 | L103: 3.544068332e-06 | N103: -0.0002685241129 | O103: -0.006596535344 | P103: 0.0001970432684 | Q103: 0.004535075268 | R103: 1.732242008e-06
A104: 47.89472 | B104: ='DF raw data'!J109 -> 5.4903899e-06 | C104: ='DF raw data'!K109 -> -1.0502615e-06 | D104: ='DF raw data'!L109 -> -9.0839649e-06 | F104: 5.495133597e-06 | G104: -1.053603488e-06 | H104: -9.091813446e-06 | J104: -3.297422814e-07 | K104: -8.627339173e-06 | L104: 9.809085334e-06 | N104: -0.0002686890302 | O104: -0.006730917476 | P104: 0.000192728391 | Q104: 0.004631466446 | R104: 1.78692633e-06
A105: 48.39486 | B105: ='DF raw data'!J110 -> 5.2298669e-06 | C105: ='DF raw data'!K110 -> 1.3750581e-07 | D105: ='DF raw data'!L110 -> -1.3695096e-05 | F105: 5.234385505e-06 | G105: 1.379433608e-07 | H105: -1.370692856e-05 | J105: 1.732495884e-07 | K105: 1.113319505e-05 | L105: 7.455234162e-06 | N105: -0.0002686023811 | O105: -0.006865256271 | P105: 0.0001982965472 | Q105: 0.004730642481 | R105: 1.842676315e-06
A106: 48.895 | B106: ='DF raw data'!J111 -> 1.3235572e-06 | C106: ='DF raw data'!K111 -> 6.2584991e-07 | D106: ='DF raw data'!L111 -> -3.1533314e-06 | F106: 1.324700753e-06 | G106: 6.278413976e-07 | H106: -3.156055878e-06 | J106: -5.228974834e-06 | K106: 6.456147741e-06 | L106: 6.515609927e-06 | N106: -0.0002712176006 | O106: -0.007000903042 | P106: 0.0002015255249 | Q106: 0.004831433457 | R106: 1.899778061e-06
A107: 49.39514 | B107: ='DF raw data'!J112 -> -2.9461385e-06 | C107: ='DF raw data'!K112 -> 7.7951599e-06 | D107: ='DF raw data'!L112 -> -2.6312159e-06 | F107: -2.948683964e-06 | G107: 7.819964513e-06 | H107: -2.633489271e-06 | J107: -8.352205976e-06 | K107: -4.6396237e-06 | L107: 1.289460132e-05 | N107: -0.0002753948729 | O107: -0.007138639033 | P107: 0.0001992050635 | Q107: 0.004931063877 | R107: 1.957556731e-06
A108: 49.89528 | B108: ='DF raw data'!J113 -> -3.6801152e-06 | C108: ='DF raw data'!K113 -> -9.6820686e-06 | D108: ='DF raw data'!L113 -> -1.1305275e-05 | F108: -3.68329482e-06 | G108: -9.712877456e-06 | H108: -1.131504276e-05 | J108: -4.40764782e-06 | K108: 6.084710657e-06 | L108: 2.642413675e-06 | N108: -0.0002775993139 | O108: -0.007277477554 | P108: 0.0002022482707 | Q108: 0.005032216327 | R108: 2.016556118e-06
A109: 50.39542 | B109: ='DF raw data'!J114 -> -6.2632512e-06 | C109: ='DF raw data'!K114 -> -2.8648744e-06 | D109: ='DF raw data'!L114 -> -9.9205556e-07 | F109: -6.268662649e-06 | G109: -2.873990582e-06 | H109: -9.92912696e-07 | J109: -3.867445488e-06 | K109: 7.396301571e-08 | L109: -1.914152e-06 | N109: -0.0002795335781 | O109: -0.007417283478 | P109: 0.0002022852626 | Q109: 0.005133387279 | R109: 2.07610196e-06
A110: 50.89556 | B110: ='DF raw data'!J115 -> -4.5364427e-06 | C110: ='DF raw data'!K115 -> 2.0173622e-06 | D110: ='DF raw data'!L115 -> -3.5811395e-06 | F110: -4.540362186e-06 | G110: 2.023781554e-06 | H110: -3.584233605e-06 | J110: -7.093894734e-06 | K110: -2.366826579e-06 | L110: -4.623976867e-06 | N110: -0.0002830815186 | O110: -0.007558863869 | P110: 0.0002011015179 | Q110: 0.005233966192 | R110: 2.136407324e-06
A111: 51.3957 | B111: ='DF raw data'!J116 -> 1.0404715e-06 | C111: ='DF raw data'!K116 -> 1.034722e-05 | D111: ='DF raw data'!L116 -> 4.0247901e-06 | F111: 1.041370467e-06 | G111: 1.03801454e-05 | H111: 4.028267519e-06 | J111: -5.558935174e-06 | K111: -4.35344746e-06 | L111: -1.617331168e-06 | N111: -0.0002858617644 | O111: -0.007701834772 | P111: 0.0001989241847 | Q111: 0.005333456134 | R111: 2.197068194e-06
A112: 51.89584 | B112: ='DF raw data'!J117 -> 2.065944e-06 | C112: ='DF raw data'!K117 -> -2.4759308e-06 | D112: ='DF raw data'!L117 -> 1.1271996e-05 | F112: 2.067728976e-06 | G112: -2.483809343e-06 | H112: 1.1281735e-05 | J112: -4.18130573e-06 | K112: -3.157349385e-06 | L112: 2.013341325e-05 | N112: -0.0002879530027 | O112: -0.007845851586 | P112: 0.000197345068 | Q112: 0.005432156296 | R112: 2.258016259e-06
A113: 52.39598 | B113: ='DF raw data'!J118 -> -2.2478048e-06 | C113: ='DF raw data'!K118 -> -6.2261706e-06 | D113: ='DF raw data'!L118 -> 4.1253547e-06 | F113: -2.249746903e-06 | G113: -6.245982605e-06 | H113: 4.128919006e-06 | J113: -6.852453709e-06 | K113: -9.70079784e-07 | L113: 1.017758184e-05 | N113: -0.0002913801889 | O113: -0.007991582474 | P113: 0.0001968598923 | Q113: 0.005530613802 | R113: 2.319861687e-06
A114: 52.89612 | B114: ='DF raw data'!J119 -> -2.1010233e-06 | C114: ='DF raw data'!K119 -> -5.2390778e-06 | D114: ='DF raw data'!L119 -> 5.3156741e-06 | F114: -2.102838584e-06 | G114: -5.255748824e-06 | H114: 5.320266842e-06 | J114: -8.961620556e-06 | K114: -4.082533733e-06 | L114: -1.869387857e-06 | N114: -0.0002958622538 | O114: -0.008139555022 | P114: 0.0001948180539 | Q114: 0.005628050104 | R114: 2.382623529e-06
A115: 53.39626 | B115: ='DF raw data'!J120 -> 4.2095348e-06 | C115: ='DF raw data'!K120 -> 3.8501571e-07 | D115: ='DF raw data'!L120 -> 5.8523669e-06 | F115: 4.213171838e-06 | G115: 3.862408504e-07 | H115: 5.857423345e-06 | J115: -7.441625514e-06 | K115: 1.507934407e-07 | L115: 7.618298228e-06 | N115: -0.0002995841084 | O115: -0.008289389018 | P115: 0.0001948934717 | Q115: 0.005725524125 | R115: 2.446508463e-06
A116: 53.8964 | B116: ='DF raw data'!J121 -> 1.10627e-05 | C116: ='DF raw data'!K121 -> 5.8990272e-06 | D116: ='DF raw data'!L121 -> 8.4132998e-06 | F116: 1.107225817e-05 | G116: 5.917798218e-06 | H116: 8.420568891e-06 | J116: -7.098036509e-06 | K116: 3.043197199e-06 | L116: 1.000339377e-05 | N116: -0.0003031341203 | O116: -0.008440998517 | P116: 0.0001964154963 | Q116: 0.005823759371 | R116: 2.5117614e-06
A117: 54.39654 | B117: ='DF raw data'!J122 -> 9.1323727e-06 | C117: ='DF raw data'!K122 -> 6.2695517e-06 | D117: ='DF raw data'!L122 -> -5.5785551e-07 | F117: 9.14026307e-06 | G117: 6.289501746e-06 | H117: -5.583374972e-07 | J117: -7.613587461e-06 | K117: 1.174757584e-05 | L117: 2.283242519e-06 | N117: -0.00030694198 | O117: -0.008594512478 | P117: 0.0002022909289 | Q117: 0.005924933156 | R117: 2.579347818e-06
A118: 54.89668 | B118: ='DF raw data'!J123 -> 2.4755582e-07 | C118: ='DF raw data'!K123 -> 6.6721373e-07 | D118: ='DF raw data'!L123 -> -7.7972736e-06 | F118: 2.477697082e-07 | G118: 6.693368395e-07 | H118: -7.804010444e-06 | J118: -3.871386991e-06 | K118: 8.995851178e-06 | L118: 1.531876399e-08 | N118: -0.0003088782155 | O118: -0.008748994829 | P118: 0.0002067901139 | Q118: 0.006028357164 | R118: 2.648451113e-06
A119: 55.39682 | B119: ='DF raw data'!J124 -> -4.8864108e-06 | C119: ='DF raw data'!K124 -> -4.3399077e-06 | D119: ='DF raw data'!L124 -> -6.7546393e-06 | F119: -4.890632659e-06 | G119: -4.353717517e-06 | H119: -6.760475308e-06 | J119: -1.274127396e-06 | K119: 4.243714492e-06 | L119: 8.914028372e-06 | N119: -0.0003095154575 | O119: -0.00890379589 | P119: 0.0002089125653 | Q119: 0.006132842694 | R119: 2.718192775e-06
A120: 55.89696 | B120: ='DF raw data'!J125 -> -7.0982874e-06 | C120: ='DF raw data'!K125 -> -8.9568885e-06 | D120: ='DF raw data'!L125 -> 2.4986398e-06 | F120: -7.10442032e-06 | G120: -8.985389795e-06 | H120: 2.500798625e-06 | J120: -3.577769725e-06 | K120: 6.600575259e-06 | L120: 9.384170024e-06 | N120: -0.0003113048433 | O120: -0.009059491894 | P120: 0.000212213777 | Q120: 0.006238979293 | R120: 2.789185343e-06
A121: 56.3971 | B121: ='DF raw data'!J126 -> -9.7934299e-06 | C121: ='DF raw data'!K126 -> 7.2806624e-06 | D121: ='DF raw data'!L126 -> 2.6794748e-07 | F121: -9.801891423e-06 | G121: 7.303829854e-06 | H121: 2.681789866e-07 | J121: -6.564782376e-06 | K121: -1.276868676e-06 | L121: 1.24118686e-05 | N121: -0.0003145881536 | O121: -0.009216830013 | P121: 0.0002115751639 | Q121: 0.006344796495 | R121: 2.861070344e-06
A122: 56.89724 | B122: ='DF raw data'!J127 -> -6.8581899e-06 | C122: ='DF raw data'!K127 -> 6.715466e-06 | D122: ='DF raw data'!L127 -> -5.4260204e-06 | F122: -6.864115376e-06 | G122: 6.736834969e-06 | H122: -5.430708482e-06 | J122: -8.660454273e-06 | K122: 1.36255517e-06 | L122: 3.069728456e-06 | N122: -0.0003189195932 | O122: -0.009376334459 | P122: 0.0002122566323 | Q122: 0.006450954527 | R122: 2.934472183e-06
A123: 57.39738 | B123: ='DF raw data'!J128 -> 6.2695881e-07 | C123: ='DF raw data'!K128 -> 9.0591138e-06 | D123: ='DF raw data'!L128 -> -6.0444347e-07 | F123: 6.275005024e-07 | G123: 9.087940381e-06 | H123: -6.049657092e-07 | J123: -1.068611283e-05 | K123: 6.153927611e-07 | L123: -5.581051266e-06 | N123: -0.0003242641456 | O123: -0.009538511929 | P123: 0.0002125644148 | Q123: 0.006557266494 | R123: 3.009658663e-06
A124: 57.89752 | B124: ='DF raw data'!J129 -> 6.9684233e-06 | C124: ='DF raw data'!K129 -> 8.2608212e-06 | D124: ='DF raw data'!L129 -> 5.6963779e-07 | F124: 6.974444018e-06 | G124: 8.287107572e-06 | H124: 5.701299571e-07 | J124: -1.014450729e-05 | K124: -6.100482184e-06 | L124: -2.311820689e-06 | N124: -0.0003293378195 | O124: -0.009703226946 | P124: 0.0002095133196 | Q124: 0.006662052485 | R124: 3.085859608e-06
A125: 58.39766 | B125: ='DF raw data'!J130 -> 9.9361696e-06 | C125: ='DF raw data'!K130 -> -6.2457793e-06 | D125: ='DF raw data'!L130 -> -3.9047268e-06 | F125: 9.944754451e-06 | G125: -6.265653701e-06 | H125: -3.908100484e-06 | J125: -6.9686319e-06 | K125: -1.014520418e-06 | L125: -1.985426928e-06 | N125: -0.0003328231111 | O125: -0.009869685096 | P125: 0.0002090059174 | Q125: 0.006766584705 | R125: 3.16310858e-06
A126: 58.8978 | B126: ='DF raw data'!J131 -> 5.1647862e-06 | C126: ='DF raw data'!K131 -> 1.5423623e-06 | D126: ='DF raw data'!L131 -> -3.7217692e-06 | F126: 5.169248575e-06 | G126: 1.547270179e-06 | H126: -3.724984809e-06 | J126: -6.657510824e-06 | K126: -2.345542366e-06 | L126: -5.988714983e-06 | N126: -0.0003361527985 | O126: -0.01003780856 | P126: 0.0002078328178 | Q126: 0.00687053021 | R126: 3.241227039e-06
A127: 59.39794 | B127: ='DF raw data'!J132 -> -4.9104397e-06 | C127: ='DF raw data'!K132 -> 8.3727655e-06 | D127: ='DF raw data'!L132 -> -2.0487319e-06 | F127: -4.91468232e-06 | G127: 8.399408084e-06 | H127: -2.050502004e-06 | J127: -1.026188762e-05 | K127: -6.698534783e-06 | L127: 5.664446657e-06 | N127: -0.000341285179 | O127: -0.01020849893 | P127: 0.0002044826126 | Q127: 0.006972800144 | R127: 3.320393556e-06
